Workbook

Sheet Data Base
A2: Modelo | B2: Peso | C2: Tipo de Hoja | D2: Longitud | E2: Ancho | F2: Altura | G2: Profundidad | H2: Material | I2: Densidad | J2: Nivel de empuje | K2: Factor Hoja | L2: Factor de tracción | M2: Producción por ciclo | N2: Distancia | O2: dmin | P2: Profundidad de trabajo | Q2: Verificación | R2: Peso de material | S2: Power shift | T2: Carga total | U2: Fuerza de tracción | V2: Velod. Avance | W2: Velod. Retroceso | X2: T. Avance | Y2: T. Retroceso | Z2: Cm | AA2: Eficiencia | AB2: Producción Horaria
A3: D7E | B3: 26055.00 | C3: Orientación | D3: 6.200 | E3: 4.500 | F3: 1.423 | G3: 0.715 | H3: Concreto | I3: 2400.00 | J3: Empuje dificultoso | K3: =IF(Tabla1[[#This Row],[Nivel de empuje]]="Empuje facil",1.1,IF(Tabla1[[#This Row],[Nivel de empuje]]="Empuje promedio",0.9,IF(Tabla1[[#This Row],[Nivel de empuje]]="Empuje medio dificultoso",0.7,IF(Tabla1[[#This Row],[Nivel de empuje]]="Empuje dificultoso",0.6," ")))) -> 0.60 | L3: 0.45 | M3: =Tabla1[[#This Row],[Ancho ]]*(Tabla1[[#This Row],[Altura ]]^2)*Tabla1[[#This Row],[Factor Hoja]] -> 5.467 | N3: =Tabla1[[#This Row],[Producción por ciclo ]]/(Tabla1[[#This Row],[Profundidad]]*Tabla1[[#This Row],[Ancho ]]) -> 1.70 | O3: =MROUND(3*Tabla1[[#This Row],[Longitud ]],10) -> 20.00 | P3: =Tabla1[[#This Row],[Producción por ciclo ]]/(Tabla1[[#This Row],[dmin]]*Tabla1[[#This Row],[Ancho ]]) -> 0.0607 | Q3: =IF(Tabla1[[#This Row],[Profundidad]]>Tabla1[[#This Row],[Profundidad de trabajo ]],"Conforme","No conforme") -> Conforme | R3: =Tabla1[[#This Row],[Densidad ]]*Tabla1[[#This Row],[Producción por ciclo ]] -> 13121.54 | S3: =2*0.05 -> 0.10 | T3: =Tabla1[[#This Row],[Peso ]]+Tabla1[[#This Row],[Peso de material]] -> 39176.54 | U3: =(Tabla1[[#This Row],[Factor de tracción ]]*Tabla1[[#This Row],[Carga total]])/1000 -> 17.63 | V3: 3.10 | W3: 2.62 | X3: =Tabla1[[#This Row],[dmin]]/(Tabla1[[#This Row],[Velod. Avance]]*1000/60) -> 0.39 | Y3: =Tabla1[[#This Row],[dmin]]/(Tabla1[[#This Row],[Velod. Retroceso]]*1000/60) -> 0.46 | Z3: =Tabla1[[#This Row],[Power shift]]+Tabla1[[#This Row],[T. Avance]]+Tabla1[[#This Row],[T. Retroceso]] -> 0.95 | AA3: 0.69 | AB3: =(Tabla1[[#This Row],[Producción por ciclo ]]*60*Tabla1[[#This Row],[Eficiencia]])/Tabla1[[#This Row],[Cm]] -> 239.49
A4: D7E | B4: 26055.00 | C4: Orientación | D4: 6.200 | E4: 4.500 | F4: 1.423 | G4: 0.715 | H4: Arcilla seca | I4: 1480.00 | J4: Empuje medio dificultoso | K4: =IF(Tabla1[[#This Row],[Nivel de empuje]]="Empuje facil",1.1,IF(Tabla1[[#This Row],[Nivel de empuje]]="Empuje promedio",0.9,IF(Tabla1[[#This Row],[Nivel de empuje]]="Empuje medio dificultoso",0.7,IF(Tabla1[[#This Row],[Nivel de empuje]]="Empuje dificultoso",0.6," ")))) -> 0.70 | L4: 0.90 | M4: =Tabla1[[#This Row],[Ancho ]]*(Tabla1[[#This Row],[Altura ]]^2)*Tabla1[[#This Row],[Factor Hoja]] -> 6.379 | N4: =Tabla1[[#This Row],[Producción por ciclo ]]/(Tabla1[[#This Row],[Profundidad]]*Tabla1[[#This Row],[Ancho ]]) -> 1.98 | O4: =MROUND(3*Tabla1[[#This Row],[Longitud ]],10) -> 20.00 | P4: =Tabla1[[#This Row],[Producción por ciclo ]]/(Tabla1[[#This Row],[dmin]]*Tabla1[[#This Row],[Ancho ]]) -> 0.0709 | Q4: =IF(Tabla1[[#This Row],[Profundidad]]>Tabla1[[#This Row],[Profundidad de trabajo ]],"Conforme","No conforme") -> Conforme | R4: =Tabla1[[#This Row],[Densidad ]]*Tabla1[[#This Row],[Producción por ciclo ]] -> 9440.22 | S4: 0.10 | T4: =Tabla1[[#This Row],[Peso ]]+Tabla1[[#This Row],[Peso de material]] -> 35495.22 | U4: =(Tabla1[[#This Row],[Factor de tracción ]]*Tabla1[[#This Row],[Carga total]])/1000 -> 31.95 | V4: 1.30 | W4: 2.62 | X4: =Tabla1[[#This Row],[dmin]]/(Tabla1[[#This Row],[Velod. Avance]]*1000/60) -> 0.92 | Y4: =Tabla1[[#This Row],[dmin]]/(Tabla1[[#This Row],[Velod. Retroceso]]*1000/60) -> 0.46 | Z4: =Tabla1[[#This Row],[Power shift]]+Tabla1[[#This Row],[T. Avance]]+Tabla1[[#This Row],[T. Retroceso]] -> 1.48 | AA4: 0.69 | AB4: =(Tabla1[[#This Row],[Producción por ciclo ]]*60*Tabla1[[#This Row],[Eficiencia]])/Tabla1[[#This Row],[Cm]] -> 178.29
A5: D7E | B5: 26055.00 | C5: Orientación | D5: 6.200 | E5: 4.500 | F5: 1.423 | G5: 0.715 | H5: Arcilla húmeda | I5: 1660.00 | J5: Empuje facil | K5: =IF(Tabla1[[#This Row],[Nivel de empuje]]="Empuje facil",1.1,IF(Tabla1[[#This Row],[Nivel de empuje]]="Empuje promedio",0.9,IF(Tabla1[[#This Row],[Nivel de empuje]]="Empuje medio dificultoso",0.7,IF(Tabla1[[#This Row],[Nivel de empuje]]="Empuje dificultoso",0.6," ")))) -> 1.10 | L5: 0.70 | M5: =Tabla1[[#This Row],[Ancho ]]*(Tabla1[[#This Row],[Altura ]]^2)*Tabla1[[#This Row],[Factor Hoja]] -> 10.023 | N5: =Tabla1[[#This Row],[Producción por ciclo ]]/(Tabla1[[#This Row],[Profundidad]]*Tabla1[[#This Row],[Ancho ]]) -> 3.12 | O5: =MROUND(3*Tabla1[[#This Row],[Longitud ]],10) -> 20.00 | P5: =Tabla1[[#This Row],[Producción por ciclo ]]/(Tabla1[[#This Row],[dmin]]*Tabla1[[#This Row],[Ancho ]]) -> 0.1114 | Q5: =IF(Tabla1[[#This Row],[Profundidad]]>Tabla1[[#This Row],[Profundidad de trabajo ]],"Conforme","No conforme") -> Conforme | R5: =Tabla1[[#This Row],[Densidad ]]*Tabla1[[#This Row],[Producción por ciclo ]] -> 16638.84 | S5: 0.10 | T5: =Tabla1[[#This Row],[Peso ]]+Tabla1[[#This Row],[Peso de material]] -> 42693.84 | U5: =(Tabla1[[#This Row],[Factor de tracción ]]*Tabla1[[#This Row],[Carga total]])/1000 -> 29.89 | V5: 1.50 | W5: 2.62 | X5: =Tabla1[[#This Row],[dmin]]/(Tabla1[[#This Row],[Velod. Avance]]*1000/60) -> 0.80 | Y5: =Tabla1[[#This Row],[dmin]]/(Tabla1[[#This Row],[Velod. Retroceso]]*1000/60) -> 0.46 | Z5: =Tabla1[[#This Row],[Power shift]]+Tabla1[[#This Row],[T. Avance]]+Tabla1[[#This Row],[T. Retroceso]] -> 1.36 | AA5: 0.69 | AB5: =(Tabla1[[#This Row],[Producción por ciclo ]]*60*Tabla1[[#This Row],[Eficiencia]])/Tabla1[[#This Row],[Cm]] -> 305.57
A6: D7E | B6: 26055.00 | C6: Orientación | D6: 6.200 | E6: 4.500 | F6: 1.423 | G6: 0.715 | H6: Arena seca | I6: 1420.00 | J6: Empuje facil | K6: =IF(Tabla1[[#This Row],[Nivel de empuje]]="Empuje facil",1.1,IF(Tabla1[[#This Row],[Nivel de empuje]]="Empuje promedio",0.9,IF(Tabla1[[#This Row],[Nivel de empuje]]="Empuje medio dificultoso",0.7,IF(Tabla1[[#This Row],[Nivel de empuje]]="Empuje dificultoso",0.6," ")))) -> 1.10 | L6: 0.39 | M6: =Tabla1[[#This Row],[Ancho ]]*(Tabla1[[#This Row],[Altura ]]^2)*Tabla1[[#This Row],[Factor Hoja]] -> 10.023 | N6: =Tabla1[[#This Row],[Producción por ciclo ]]/(Tabla1[[#This Row],[Profundidad]]*Tabla1[[#This Row],[Ancho ]]) -> 3.12 | O6: =MROUND(3*Tabla1[[#This Row],[Longitud ]],10) -> 20.00 | P6: =Tabla1[[#This Row],[Producción por ciclo ]]/(Tabla1[[#This Row],[dmin]]*Tabla1[[#This Row],[Ancho ]]) -> 0.1114 | Q6: =IF(Tabla1[[#This Row],[Profundidad]]>Tabla1[[#This Row],[Profundidad de trabajo ]],"Conforme","No conforme") -> Conforme | R6: =Tabla1[[#This Row],[Densidad ]]*Tabla1[[#This Row],[Producción por ciclo ]] -> 14233.23 | S6: 0.10 | T6: =Tabla1[[#This Row],[Peso ]]+Tabla1[[#This Row],[Peso de material]] -> 40288.23 | U6: =(Tabla1[[#This Row],[Factor de tracción ]]*Tabla1[[#This Row],[Carga total]])/1000 -> 15.71 | V6: 3.20 | W6: 2.62 | X6: =Tabla1[[#This Row],[dmin]]/(Tabla1[[#This Row],[Velod. Avance]]*1000/60) -> 0.38 | Y6: =Tabla1[[#This Row],[dmin]]/(Tabla1[[#This Row],[Velod. Retroceso]]*1000/60) -> 0.46 | Z6: =Tabla1[[#This Row],[Power shift]]+Tabla1[[#This Row],[T. Avance]]+Tabla1[[#This Row],[T. Retroceso]] -> 0.93 | AA6: 0.69 | AB6: =(Tabla1[[#This Row],[Producción por ciclo ]]*60*Tabla1[[#This Row],[Eficiencia]])/Tabla1[[#This Row],[Cm]] -> 444.76
A7: D7E | B7: 26055.00 | C7: Orientación | D7: 6.200 | E7: 4.500 | F7: 1.423 | G7: 0.715 | H7: Arena húmeda | I7: 1690.00 | J7: Empuje medio dificultoso | K7: =IF(Tabla1[[#This Row],[Nivel de empuje]]="Empuje facil",1.1,IF(Tabla1[[#This Row],[Nivel de empuje]]="Empuje promedio",0.9,IF(Tabla1[[#This Row],[Nivel de empuje]]="Empuje medio dificultoso",0.7,IF(Tabla1[[#This Row],[Nivel de empuje]]="Empuje dificultoso",0.6," ")))) -> 0.70 | L7: 0.50 | M7: =Tabla1[[#This Row],[Ancho ]]*(Tabla1[[#This Row],[Altura ]]^2)*Tabla1[[#This Row],[Factor Hoja]] -> 6.379 | N7: =Tabla1[[#This Row],[Producción por ciclo ]]/(Tabla1[[#This Row],[Profundidad]]*Tabla1[[#This Row],[Ancho ]]) -> 1.98 | O7: =MROUND(3*Tabla1[[#This Row],[Longitud ]],10) -> 20.00 | P7: =Tabla1[[#This Row],[Producción por ciclo ]]/(Tabla1[[#This Row],[dmin]]*Tabla1[[#This Row],[Ancho ]]) -> 0.0709 | Q7: =IF(Tabla1[[#This Row],[Profundidad]]>Tabla1[[#This Row],[Profundidad de trabajo ]],"Conforme","No conforme") -> Conforme | R7: =Tabla1[[#This Row],[Densidad ]]*Tabla1[[#This Row],[Producción por ciclo ]] -> 10779.71 | S7: 0.10 | T7: =Tabla1[[#This Row],[Peso ]]+Tabla1[[#This Row],[Peso de material]] -> 36834.71 | U7: =(Tabla1[[#This Row],[Factor de tracción ]]*Tabla1[[#This Row],[Carga total]])/1000 -> 18.42 | V7: 2.70 | W7: 2.62 | X7: =Tabla1[[#This Row],[dmin]]/(Tabla1[[#This Row],[Velod. Avance]]*1000/60) -> 0.44 | Y7: =Tabla1[[#This Row],[dmin]]/(Tabla1[[#This Row],[Velod. Retroceso]]*1000/60) -> 0.46 | Z7: =Tabla1[[#This Row],[Power shift]]+Tabla1[[#This Row],[T. Avance]]+Tabla1[[#This Row],[T. Retroceso]] -> 1.00 | AA7: 0.69 | AB7: =(Tabla1[[#This Row],[Producción por ciclo ]]*60*Tabla1[[#This Row],[Eficiencia]])/Tabla1[[#This Row],[Cm]] -> 263.42
A8: D7E | B8: 26055.00 | C8: Orientación | D8: 6.200 | E8: 4.500 | F8: 1.423 | G8: 0.715 | H8: Grava suelta | I8: 1930.00 | J8: Empuje promedio | K8: =IF(Tabla1[[#This Row],[Nivel de empuje]]="Empuje facil",1.1,IF(Tabla1[[#This Row],[Nivel de empuje]]="Empuje promedio",0.9,IF(Tabla1[[#This Row],[Nivel de empuje]]="Empuje medio dificultoso",0.7,IF(Tabla1[[#This Row],[Nivel de empuje]]="Empuje dificultoso",0.6," ")))) -> 0.90 | L8: 0.50 | M8: =Tabla1[[#This Row],[Ancho ]]*(Tabla1[[#This Row],[Altura ]]^2)*Tabla1[[#This Row],[Factor Hoja]] -> 8.201 | N8: =Tabla1[[#This Row],[Producción por ciclo ]]/(Tabla1[[#This Row],[Profundidad]]*Tabla1[[#This Row],[Ancho ]]) -> 2.55 | O8: =MROUND(3*Tabla1[[#This Row],[Longitud ]],10) -> 20.00 | P8: =Tabla1[[#This Row],[Producción por ciclo ]]/(Tabla1[[#This Row],[dmin]]*Tabla1[[#This Row],[Ancho ]]) -> 0.0911 | Q8: =IF(Tabla1[[#This Row],[Profundidad]]>Tabla1[[#This Row],[Profundidad de trabajo ]],"Conforme","No conforme") -> Conforme | R8: =Tabla1[[#This Row],[Densidad ]]*Tabla1[[#This Row],[Producción por ciclo ]] -> 15827.86 | S8: 0.10 | T8: =Tabla1[[#This Row],[Peso ]]+Tabla1[[#This Row],[Peso de material]] -> 41882.86 | U8: =(Tabla1[[#This Row],[Factor de tracción ]]*Tabla1[[#This Row],[Carga total]])/1000 -> 20.94 | V8: 2.30 | W8: 2.62 | X8: =Tabla1[[#This Row],[dmin]]/(Tabla1[[#This Row],[Velod. Avance]]*1000/60) -> 0.52 | Y8: =Tabla1[[#This Row],[dmin]]/(Tabla1[[#This Row],[Velod. Retroceso]]*1000/60) -> 0.46 | Z8: =Tabla1[[#This Row],[Power shift]]+Tabla1[[#This Row],[T. Avance]]+Tabla1[[#This Row],[T. Retroceso]] -> 1.08 | AA8: 0.69 | AB8: =(Tabla1[[#This Row],[Producción por ciclo ]]*60*Tabla1[[#This Row],[Eficiencia]])/Tabla1[[#This Row],[Cm]] -> 314.44
A9: D7E | B9: 26055.00 | C9: Orientación | D9: 6.200 | E9: 4.500 | F9: 1.423 | G9: 0.715 | H9: Nieve compacta | I9: 130.00 | J9: Empuje medio dificultoso | K9: =IF(Tabla1[[#This Row],[Nivel de empuje]]="Empuje facil",1.1,IF(Tabla1[[#This Row],[Nivel de empuje]]="Empuje promedio",0.9,IF(Tabla1[[#This Row],[Nivel de empuje]]="Empuje medio dificultoso",0.7,IF(Tabla1[[#This Row],[Nivel de empuje]]="Empuje dificultoso",0.6," ")))) -> 0.70 | L9: 0.27 | M9: =Tabla1[[#This Row],[Ancho ]]*(Tabla1[[#This Row],[Altura ]]^2)*Tabla1[[#This Row],[Factor Hoja]] -> 6.379 | N9: =Tabla1[[#This Row],[Producción por ciclo ]]/(Tabla1[[#This Row],[Profundidad]]*Tabla1[[#This Row],[Ancho ]]) -> 1.98 | O9: =MROUND(3*Tabla1[[#This Row],[Longitud ]],10) -> 20.00 | P9: =Tabla1[[#This Row],[Producción por ciclo ]]/(Tabla1[[#This Row],[dmin]]*Tabla1[[#This Row],[Ancho ]]) -> 0.0709 | Q9: =IF(Tabla1[[#This Row],[Profundidad]]>Tabla1[[#This Row],[Profundidad de trabajo ]],"Conforme","No conforme") -> Conforme | R9: =Tabla1[[#This Row],[Densidad ]]*Tabla1[[#This Row],[Producción por ciclo ]] -> 829.21 | S9: 0.10 | T9: =Tabla1[[#This Row],[Peso ]]+Tabla1[[#This Row],[Peso de material]] -> 26884.21 | U9: =(Tabla1[[#This Row],[Factor de tracción ]]*Tabla1[[#This Row],[Carga total]])/1000 -> 7.26 | V9: 7.00 | W9: 2.62 | X9: =Tabla1[[#This Row],[dmin]]/(Tabla1[[#This Row],[Velod. Avance]]*1000/60) -> 0.17 | Y9: =Tabla1[[#This Row],[dmin]]/(Tabla1[[#This Row],[Velod. Retroceso]]*1000/60) -> 0.46 | Z9: =Tabla1[[#This Row],[Power shift]]+Tabla1[[#This Row],[T. Avance]]+Tabla1[[#This Row],[T. Retroceso]] -> 0.73 | AA9: 0.69 | AB9: =(Tabla1[[#This Row],[Producción por ciclo ]]*60*Tabla1[[#This Row],[Eficiencia]])/Tabla1[[#This Row],[Cm]] -> 362.02
A10: D7E | B10: 26055.00 | C10: Orientación | D10: 6.200 | E10: 4.500 | F10: 1.423 | G10: 0.715 | H10: Hielo | I10: 520.00 | J10: Empuje dificultoso | K10: =IF(Tabla1[[#This Row],[Nivel de empuje]]="Empuje facil",1.1,IF(Tabla1[[#This Row],[Nivel de empuje]]="Empuje promedio",0.9,IF(Tabla1[[#This Row],[Nivel de empuje]]="Empuje medio dificultoso",0.7,IF(Tabla1[[#This Row],[Nivel de empuje]]="Empuje dificultoso",0.6," ")))) -> 0.60 | L10: 0.12 | M10: =Tabla1[[#This Row],[Ancho ]]*(Tabla1[[#This Row],[Altura ]]^2)*Tabla1[[#This Row],[Factor Hoja]] -> 5.467 | N10: =Tabla1[[#This Row],[Producción por ciclo ]]/(Tabla1[[#This Row],[Profundidad]]*Tabla1[[#This Row],[Ancho ]]) -> 1.70 | O10: =MROUND(3*Tabla1[[#This Row],[Longitud ]],10) -> 20.00 | P10: =Tabla1[[#This Row],[Producción por ciclo ]]/(Tabla1[[#This Row],[dmin]]*Tabla1[[#This Row],[Ancho ]]) -> 0.0607 | Q10: =IF(Tabla1[[#This Row],[Profundidad]]>Tabla1[[#This Row],[Profundidad de trabajo ]],"Conforme","No conforme") -> Conforme | R10: =Tabla1[[#This Row],[Densidad ]]*Tabla1[[#This Row],[Producción por ciclo ]] -> 2843.00 | S10: 0.10 | T10: =Tabla1[[#This Row],[Peso ]]+Tabla1[[#This Row],[Peso de material]] -> 28898.00 | U10: =(Tabla1[[#This Row],[Factor de tracción ]]*Tabla1[[#This Row],[Carga total]])/1000 -> 3.47 | V10: 11.00 | W10: 2.62 | X10: =Tabla1[[#This Row],[dmin]]/(Tabla1[[#This Row],[Velod. Avance]]*1000/60) -> 0.11 | Y10: =Tabla1[[#This Row],[dmin]]/(Tabla1[[#This Row],[Velod. Retroceso]]*1000/60) -> 0.46 | Z10: =Tabla1[[#This Row],[Power shift]]+Tabla1[[#This Row],[T. Avance]]+Tabla1[[#This Row],[T. Retroceso]] -> 0.67 | AA10: 0.69 | AB10: =(Tabla1[[#This Row],[Producción por ciclo ]]*60*Tabla1[[#This Row],[Eficiencia]])/Tabla1[[#This Row],[Cm]] -> 339.30
A11: D7E | B11: 26055.00 | C11: Orientación | D11: 6.200 | E11: 4.500 | F11: 1.423 | G11: 0.715 | H11: Tierra firme | I11: 1510.00 | J11: Empuje facil | K11: =IF(Tabla1[[#This Row],[Nivel de empuje]]="Empuje facil",1.1,IF(Tabla1[[#This Row],[Nivel de empuje]]="Empuje promedio",0.9,IF(Tabla1[[#This Row],[Nivel de empuje]]="Empuje medio dificultoso",0.7,IF(Tabla1[[#This Row],[Nivel de empuje]]="Empuje dificultoso",0.6," ")))) -> 1.10 | L11: 0.90 | M11: =Tabla1[[#This Row],[Ancho ]]*(Tabla1[[#This Row],[Altura ]]^2)*Tabla1[[#This Row],[Factor Hoja]] -> 10.023 | N11: =Tabla1[[#This Row],[Producción por ciclo ]]/(Tabla1[[#This Row],[Profundidad]]*Tabla1[[#This Row],[Ancho ]]) -> 3.12 | O11: =MROUND(3*Tabla1[[#This Row],[Longitud ]],10) -> 20.00 | P11: =Tabla1[[#This Row],[Producción por ciclo ]]/(Tabla1[[#This Row],[dmin]]*Tabla1[[#This Row],[Ancho ]]) -> 0.1114 | Q11: =IF(Tabla1[[#This Row],[Profundidad]]>Tabla1[[#This Row],[Profundidad de trabajo ]],"Conforme","No conforme") -> Conforme | R11: =Tabla1[[#This Row],[Densidad ]]*Tabla1[[#This Row],[Producción por ciclo ]] -> 15135.33 | S11: 0.10 | T11: =Tabla1[[#This Row],[Peso ]]+Tabla1[[#This Row],[Peso de material]] -> 41190.33 | U11: =(Tabla1[[#This Row],[Factor de tracción ]]*Tabla1[[#This Row],[Carga total]])/1000 -> 37.07 | V11: 0.90 | W11: 2.62 | X11: =Tabla1[[#This Row],[dmin]]/(Tabla1[[#This Row],[Velod. Avance]]*1000/60) -> 1.33 | Y11: =Tabla1[[#This Row],[dmin]]/(Tabla1[[#This Row],[Velod. Retroceso]]*1000/60) -> 0.46 | Z11: =Tabla1[[#This Row],[Power shift]]+Tabla1[[#This Row],[T. Avance]]+Tabla1[[#This Row],[T. Retroceso]] -> 1.89 | AA11: 0.69 | AB11: =(Tabla1[[#This Row],[Producción por ciclo ]]*60*Tabla1[[#This Row],[Eficiencia]])/Tabla1[[#This Row],[Cm]] -> 219.40
A12: D7E | B12: 26055.00 | C12: Orientación | D12: 6.200 | E12: 4.500 | F12: 1.423 | G12: 0.715 | H12: Tierra suelta | I12: 1250.00 | J12: Empuje facil | K12: =IF(Tabla1[[#This Row],[Nivel de empuje]]="Empuje facil",1.1,IF(Tabla1[[#This Row],[Nivel de empuje]]="Empuje promedio",0.9,IF(Tabla1[[#This Row],[Nivel de empuje]]="Empuje medio dificultoso",0.7,IF(Tabla1[[#This Row],[Nivel de empuje]]="Empuje dificultoso",0.6," ")))) -> 1.10 | L12: 0.60 | M12: =Tabla1[[#This Row],[Ancho ]]*(Tabla1[[#This Row],[Altura ]]^2)*Tabla1[[#This Row],[Factor Hoja]] -> 10.023 | N12: =Tabla1[[#This Row],[Producción por ciclo ]]/(Tabla1[[#This Row],[Profundidad]]*Tabla1[[#This Row],[Ancho ]]) -> 3.12 | O12: =MROUND(3*Tabla1[[#This Row],[Longitud ]],10) -> 20.00 | P12: =Tabla1[[#This Row],[Producción por ciclo ]]/(Tabla1[[#This Row],[dmin]]*Tabla1[[#This Row],[Ancho ]]) -> 0.1114 | Q12: =IF(Tabla1[[#This Row],[Profundidad]]>Tabla1[[#This Row],[Profundidad de trabajo ]],"Conforme","No conforme") -> Conforme | R12: =Tabla1[[#This Row],[Densidad ]]*Tabla1[[#This Row],[Producción por ciclo ]] -> 12529.25 | S12: 0.10 | T12: =Tabla1[[#This Row],[Peso ]]+Tabla1[[#This Row],[Peso de material]] -> 38584.25 | U12: =(Tabla1[[#This Row],[Factor de tracción ]]*Tabla1[[#This Row],[Carga total]])/1000 -> 23.15 | V12: 2.10 | W12: 2.62 | X12: =Tabla1[[#This Row],[dmin]]/(Tabla1[[#This Row],[Velod. Avance]]*1000/60) -> 0.57 | Y12: =Tabla1[[#This Row],[dmin]]/(Tabla1[[#This Row],[Velod. Retroceso]]*1000/60) -> 0.46 | Z12: =Tabla1[[#This Row],[Power shift]]+Tabla1[[#This Row],[T. Avance]]+Tabla1[[#This Row],[T. Retroceso]] -> 1.13 | AA12: 0.69 | AB12: =(Tabla1[[#This Row],[Producción por ciclo ]]*60*Tabla1[[#This Row],[Eficiencia]])/Tabla1[[#This Row],[Cm]] -> 367.41
A13: D7E | B13: 26055.00 | C13: Orientación | D13: 6.200 | E13: 4.500 | F13: 1.423 | G13: 0.715 | H13: Carbón | I13: 1190.00 | J13: Empuje promedio | K13: =IF(Tabla1[[#This Row],[Nivel de empuje]]="Empuje facil",1.1,IF(Tabla1[[#This Row],[Nivel de empuje]]="Empuje promedio",0.9,IF(Tabla1[[#This Row],[Nivel de empuje]]="Empuje medio dificultoso",0.7,IF(Tabla1[[#This Row],[Nivel de empuje]]="Empuje dificultoso",0.6," ")))) -> 0.90 | L13: 0.60 | M13: =Tabla1[[#This Row],[Ancho ]]*(Tabla1[[#This Row],[Altura ]]^2)*Tabla1[[#This Row],[Factor Hoja]] -> 8.201 | N13: =Tabla1[[#This Row],[Producción por ciclo ]]/(Tabla1[[#This Row],[Profundidad]]*Tabla1[[#This Row],[Ancho ]]) -> 2.55 | O13: =MROUND(3*Tabla1[[#This Row],[Longitud ]],10) -> 20.00 | P13: =Tabla1[[#This Row],[Producción por ciclo ]]/(Tabla1[[#This Row],[dmin]]*Tabla1[[#This Row],[Ancho ]]) -> 0.0911 | Q13: =IF(Tabla1[[#This Row],[Profundidad]]>Tabla1[[#This Row],[Profundidad de trabajo ]],"Conforme","No conforme") -> Conforme | R13: =Tabla1[[#This Row],[Densidad ]]*Tabla1[[#This Row],[Producción por ciclo ]] -> 9759.15 | S13: 0.10 | T13: =Tabla1[[#This Row],[Peso ]]+Tabla1[[#This Row],[Peso de material]] -> 35814.15 | U13: =(Tabla1[[#This Row],[Factor de tracción ]]*Tabla1[[#This Row],[Carga total]])/1000 -> 21.49 | V13: 2.30 | W13: 2.62 | X13: =Tabla1[[#This Row],[dmin]]/(Tabla1[[#This Row],[Velod. Avance]]*1000/60) -> 0.52 | Y13: =Tabla1[[#This Row],[dmin]]/(Tabla1[[#This Row],[Velod. Retroceso]]*1000/60) -> 0.46 | Z13: =Tabla1[[#This Row],[Power shift]]+Tabla1[[#This Row],[T. Avance]]+Tabla1[[#This Row],[T. Retroceso]] -> 1.08 | AA13: 0.69 | AB13: =(Tabla1[[#This Row],[Producción por ciclo ]]*60*Tabla1[[#This Row],[Eficiencia]])/Tabla1[[#This Row],[Cm]] -> 314.44
A14: D7E | B14: 26055.00 | C14: Recta | D14: 5.920 | E14: 3.900 | F14: 1.522 | G14: 0.555 | H14: Concreto | I14: 2400.00 | J14: Empuje dificultoso | K14: =IF(Tabla1[[#This Row],[Nivel de empuje]]="Empuje facil",1.1,IF(Tabla1[[#This Row],[Nivel de empuje]]="Empuje promedio",0.9,IF(Tabla1[[#This Row],[Nivel de empuje]]="Empuje medio dificultoso",0.7,IF(Tabla1[[#This Row],[Nivel de empuje]]="Empuje dificultoso",0.6," ")))) -> 0.60 | L14: 0.45 | M14: =Tabla1[[#This Row],[Ancho ]]*(Tabla1[[#This Row],[Altura ]]^2)*Tabla1[[#This Row],[Factor Hoja]] -> 5.421 | N14: =Tabla1[[#This Row],[Producción por ciclo ]]/(Tabla1[[#This Row],[Profundidad]]*Tabla1[[#This Row],[Ancho ]]) -> 2.50 | O14: =MROUND(3*Tabla1[[#This Row],[Longitud ]],10) -> 20.00 | P14: =Tabla1[[#This Row],[Producción por ciclo ]]/(Tabla1[[#This Row],[dmin]]*Tabla1[[#This Row],[Ancho ]]) -> 0.0695 | Q14: =IF(Tabla1[[#This Row],[Profundidad]]>Tabla1[[#This Row],[Profundidad de trabajo ]],"Conforme","No conforme") -> Conforme | R14: =Tabla1[[#This Row],[Densidad ]]*Tabla1[[#This Row],[Producción por ciclo ]] -> 13009.37 | S14: 0.10 | T14: =Tabla1[[#This Row],[Peso ]]+Tabla1[[#This Row],[Peso de material]] -> 39064.37 | U14: =(Tabla1[[#This Row],[Factor de tracción ]]*Tabla1[[#This Row],[Carga total]])/1000 -> 17.58 | V14: 3.20 | W14: 2.62 | X14: =Tabla1[[#This Row],[dmin]]/(Tabla1[[#This Row],[Velod. Avance]]*1000/60) -> 0.38 | Y14: =Tabla1[[#This Row],[dmin]]/(Tabla1[[#This Row],[Velod. Retroceso]]*1000/60) -> 0.46 | Z14: =Tabla1[[#This Row],[Power shift]]+Tabla1[[#This Row],[T. Avance]]+Tabla1[[#This Row],[T. Retroceso]] -> 0.93 | AA14: 0.69 | AB14: =(Tabla1[[#This Row],[Producción por ciclo ]]*60*Tabla1[[#This Row],[Eficiencia]])/Tabla1[[#This Row],[Cm]] -> 240.52
A15: D7E | B15: 26055.00 | C15: Recta | D15: 5.920 | E15: 3.900 | F15: 1.522 | G15: 0.555 | H15: Arcilla seca | I15: 1480.00 | J15: Empuje medio dificultoso | K15: =IF(Tabla1[[#This Row],[Nivel de empuje]]="Empuje facil",1.1,IF(Tabla1[[#This Row],[Nivel de empuje]]="Empuje promedio",0.9,IF(Tabla1[[#This Row],[Nivel de empuje]]="Empuje medio dificultoso",0.7,IF(Tabla1[[#This Row],[Nivel de empuje]]="Empuje dificultoso",0.6," ")))) -> 0.70 | L15: 0.90 | M15: =Tabla1[[#This Row],[Ancho ]]*(Tabla1[[#This Row],[Altura ]]^2)*Tabla1[[#This Row],[Factor Hoja]] -> 6.324 | N15: =Tabla1[[#This Row],[Producción por ciclo ]]/(Tabla1[[#This Row],[Profundidad]]*Tabla1[[#This Row],[Ancho ]]) -> 2.92 | O15: =MROUND(3*Tabla1[[#This Row],[Longitud ]],10) -> 20.00 | P15: =Tabla1[[#This Row],[Producción por ciclo ]]/(Tabla1[[#This Row],[dmin]]*Tabla1[[#This Row],[Ancho ]]) -> 0.0811 | Q15: =IF(Tabla1[[#This Row],[Profundidad]]>Tabla1[[#This Row],[Profundidad de trabajo ]],"Conforme","No conforme") -> Conforme | R15: =Tabla1[[#This Row],[Densidad ]]*Tabla1[[#This Row],[Producción por ciclo ]] -> 9359.52 | S15: 0.10 | T15: =Tabla1[[#This Row],[Peso ]]+Tabla1[[#This Row],[Peso de material]] -> 35414.52 | U15: =(Tabla1[[#This Row],[Factor de tracción ]]*Tabla1[[#This Row],[Carga total]])/1000 -> 31.87 | V15: 1.20 | W15: 2.62 | X15: =Tabla1[[#This Row],[dmin]]/(Tabla1[[#This Row],[Velod. Avance]]*1000/60) -> 1.00 | Y15: =Tabla1[[#This Row],[dmin]]/(Tabla1[[#This Row],[Velod. Retroceso]]*1000/60) -> 0.46 | Z15: =Tabla1[[#This Row],[Power shift]]+Tabla1[[#This Row],[T. Avance]]+Tabla1[[#This Row],[T. Retroceso]] -> 1.56 | AA15: 0.69 | AB15: =(Tabla1[[#This Row],[Producción por ciclo ]]*60*Tabla1[[#This Row],[Eficiencia]])/Tabla1[[#This Row],[Cm]] -> 168.04
A16: D7E | B16: 26055.00 | C16: Recta | D16: 5.920 | E16: 3.900 | F16: 1.522 | G16: 0.555 | H16: Arcilla húmeda | I16: 1660.00 | J16: Empuje facil | K16: =IF(Tabla1[[#This Row],[Nivel de empuje]]="Empuje facil",1.1,IF(Tabla1[[#This Row],[Nivel de empuje]]="Empuje promedio",0.9,IF(Tabla1[[#This Row],[Nivel de empuje]]="Empuje medio dificultoso",0.7,IF(Tabla1[[#This Row],[Nivel de empuje]]="Empuje dificultoso",0.6," ")))) -> 1.10 | L16: 0.70 | M16: =Tabla1[[#This Row],[Ancho ]]*(Tabla1[[#This Row],[Altura ]]^2)*Tabla1[[#This Row],[Factor Hoja]] -> 9.938 | N16: =Tabla1[[#This Row],[Producción por ciclo ]]/(Tabla1[[#This Row],[Profundidad]]*Tabla1[[#This Row],[Ancho ]]) -> 4.59 | O16: =MROUND(3*Tabla1[[#This Row],[Longitud ]],10) -> 20.00 | P16: =Tabla1[[#This Row],[Producción por ciclo ]]/(Tabla1[[#This Row],[dmin]]*Tabla1[[#This Row],[Ancho ]]) -> 0.1274 | Q16: =IF(Tabla1[[#This Row],[Profundidad]]>Tabla1[[#This Row],[Profundidad de trabajo ]],"Conforme","No conforme") -> Conforme | R16: =Tabla1[[#This Row],[Densidad ]]*Tabla1[[#This Row],[Producción por ciclo ]] -> 16496.61 | S16: 0.10 | T16: =Tabla1[[#This Row],[Peso ]]+Tabla1[[#This Row],[Peso de material]] -> 42551.61 | U16: =(Tabla1[[#This Row],[Factor de tracción ]]*Tabla1[[#This Row],[Carga total]])/1000 -> 29.79 | V16: 1.40 | W16: 2.62 | X16: =Tabla1[[#This Row],[dmin]]/(Tabla1[[#This Row],[Velod. Avance]]*1000/60) -> 0.86 | Y16: =Tabla1[[#This Row],[dmin]]/(Tabla1[[#This Row],[Velod. Retroceso]]*1000/60) -> 0.46 | Z16: =Tabla1[[#This Row],[Power shift]]+Tabla1[[#This Row],[T. Avance]]+Tabla1[[#This Row],[T. Retroceso]] -> 1.42 | AA16: 0.69 | AB16: =(Tabla1[[#This Row],[Producción por ciclo ]]*60*Tabla1[[#This Row],[Eficiencia]])/Tabla1[[#This Row],[Cm]] -> 290.72
A17: D7E | B17: 26055.00 | C17: Recta | D17: 5.920 | E17: 3.900 | F17: 1.522 | G17: 0.555 | H17: Arena seca | I17: 1420.00 | J17: Empuje facil | K17: =IF(Tabla1[[#This Row],[Nivel de empuje]]="Empuje facil",1.1,IF(Tabla1[[#This Row],[Nivel de empuje]]="Empuje promedio",0.9,IF(Tabla1[[#This Row],[Nivel de empuje]]="Empuje medio dificultoso",0.7,IF(Tabla1[[#This Row],[Nivel de empuje]]="Empuje dificultoso",0.6," ")))) -> 1.10 | L17: 0.39 | M17: =Tabla1[[#This Row],[Ancho ]]*(Tabla1[[#This Row],[Altura ]]^2)*Tabla1[[#This Row],[Factor Hoja]] -> 9.938 | N17: =Tabla1[[#This Row],[Producción por ciclo ]]/(Tabla1[[#This Row],[Profundidad]]*Tabla1[[#This Row],[Ancho ]]) -> 4.59 | O17: =MROUND(3*Tabla1[[#This Row],[Longitud ]],10) -> 20.00 | P17: =Tabla1[[#This Row],[Producción por ciclo ]]/(Tabla1[[#This Row],[dmin]]*Tabla1[[#This Row],[Ancho ]]) -> 0.1274 | Q17: =IF(Tabla1[[#This Row],[Profundidad]]>Tabla1[[#This Row],[Profundidad de trabajo ]],"Conforme","No conforme") -> Conforme | R17: =Tabla1[[#This Row],[Densidad ]]*Tabla1[[#This Row],[Producción por ciclo ]] -> 14111.56 | S17: 0.10 | T17: =Tabla1[[#This Row],[Peso ]]+Tabla1[[#This Row],[Peso de material]] -> 40166.56 | U17: =(Tabla1[[#This Row],[Factor de tracción ]]*Tabla1[[#This Row],[Carga total]])/1000 -> 15.66 | V17: 3.05 | W17: 2.62 | X17: =Tabla1[[#This Row],[dmin]]/(Tabla1[[#This Row],[Velod. Avance]]*1000/60) -> 0.39 | Y17: =Tabla1[[#This Row],[dmin]]/(Tabla1[[#This Row],[Velod. Retroceso]]*1000/60) -> 0.46 | Z17: =Tabla1[[#This Row],[Power shift]]+Tabla1[[#This Row],[T. Avance]]+Tabla1[[#This Row],[T. Retroceso]] -> 0.95 | AA17: 0.69 | AB17: =(Tabla1[[#This Row],[Producción por ciclo ]]*60*Tabla1[[#This Row],[Eficiencia]])/Tabla1[[#This Row],[Cm]] -> 432.41
A18: D7E | B18: 26055.00 | C18: Recta | D18: 5.920 | E18: 3.900 | F18: 1.522 | G18: 0.555 | H18: Arena húmeda | I18: 1690.00 | J18: Empuje medio dificultoso | K18: =IF(Tabla1[[#This Row],[Nivel de empuje]]="Empuje facil",1.1,IF(Tabla1[[#This Row],[Nivel de empuje]]="Empuje promedio",0.9,IF(Tabla1[[#This Row],[Nivel de empuje]]="Empuje medio dificultoso",0.7,IF(Tabla1[[#This Row],[Nivel de empuje]]="Empuje dificultoso",0.6," ")))) -> 0.70 | L18: 0.50 | M18: =Tabla1[[#This Row],[Ancho ]]*(Tabla1[[#This Row],[Altura ]]^2)*Tabla1[[#This Row],[Factor Hoja]] -> 6.324 | N18: =Tabla1[[#This Row],[Producción por ciclo ]]/(Tabla1[[#This Row],[Profundidad]]*Tabla1[[#This Row],[Ancho ]]) -> 2.92 | O18: =MROUND(3*Tabla1[[#This Row],[Longitud ]],10) -> 20.00 | P18: =Tabla1[[#This Row],[Producción por ciclo ]]/(Tabla1[[#This Row],[dmin]]*Tabla1[[#This Row],[Ancho ]]) -> 0.0811 | Q18: =IF(Tabla1[[#This Row],[Profundidad]]>Tabla1[[#This Row],[Profundidad de trabajo ]],"Conforme","No conforme") -> Conforme | R18: =Tabla1[[#This Row],[Densidad ]]*Tabla1[[#This Row],[Producción por ciclo ]] -> 10687.56 | S18: 0.10 | T18: =Tabla1[[#This Row],[Peso ]]+Tabla1[[#This Row],[Peso de material]] -> 36742.56 | U18: =(Tabla1[[#This Row],[Factor de tracción ]]*Tabla1[[#This Row],[Carga total]])/1000 -> 18.37 | V18: 2.60 | W18: 2.62 | X18: =Tabla1[[#This Row],[dmin]]/(Tabla1[[#This Row],[Velod. Avance]]*1000/60) -> 0.46 | Y18: =Tabla1[[#This Row],[dmin]]/(Tabla1[[#This Row],[Velod. Retroceso]]*1000/60) -> 0.46 | Z18: =Tabla1[[#This Row],[Power shift]]+Tabla1[[#This Row],[T. Avance]]+Tabla1[[#This Row],[T. Retroceso]] -> 1.02 | AA18: 0.69 | AB18: =(Tabla1[[#This Row],[Producción por ciclo ]]*60*Tabla1[[#This Row],[Eficiencia]])/Tabla1[[#This Row],[Cm]] -> 256.79
A19: D7E | B19: 26055.00 | C19: Recta | D19: 5.920 | E19: 3.900 | F19: 1.522 | G19: 0.555 | H19: Grava suelta | I19: 1930.00 | J19: Empuje promedio | K19: =IF(Tabla1[[#This Row],[Nivel de empuje]]="Empuje facil",1.1,IF(Tabla1[[#This Row],[Nivel de empuje]]="Empuje promedio",0.9,IF(Tabla1[[#This Row],[Nivel de empuje]]="Empuje medio dificultoso",0.7,IF(Tabla1[[#This Row],[Nivel de empuje]]="Empuje dificultoso",0.6," ")))) -> 0.90 | L19: 0.50 | M19: =Tabla1[[#This Row],[Ancho ]]*(Tabla1[[#This Row],[Altura ]]^2)*Tabla1[[#This Row],[Factor Hoja]] -> 8.131 | N19: =Tabla1[[#This Row],[Producción por ciclo ]]/(Tabla1[[#This Row],[Profundidad]]*Tabla1[[#This Row],[Ancho ]]) -> 3.76 | O19: =MROUND(3*Tabla1[[#This Row],[Longitud ]],10) -> 20.00 | P19: =Tabla1[[#This Row],[Producción por ciclo ]]/(Tabla1[[#This Row],[dmin]]*Tabla1[[#This Row],[Ancho ]]) -> 0.1042 | Q19: =IF(Tabla1[[#This Row],[Profundidad]]>Tabla1[[#This Row],[Profundidad de trabajo ]],"Conforme","No conforme") -> Conforme | R19: =Tabla1[[#This Row],[Densidad ]]*Tabla1[[#This Row],[Producción por ciclo ]] -> 15692.56 | S19: 0.10 | T19: =Tabla1[[#This Row],[Peso ]]+Tabla1[[#This Row],[Peso de material]] -> 41747.56 | U19: =(Tabla1[[#This Row],[Factor de tracción ]]*Tabla1[[#This Row],[Carga total]])/1000 -> 20.87 | V19: 2.20 | W19: 2.62 | X19: =Tabla1[[#This Row],[dmin]]/(Tabla1[[#This Row],[Velod. Avance]]*1000/60) -> 0.55 | Y19: =Tabla1[[#This Row],[dmin]]/(Tabla1[[#This Row],[Velod. Retroceso]]*1000/60) -> 0.46 | Z19: =Tabla1[[#This Row],[Power shift]]+Tabla1[[#This Row],[T. Avance]]+Tabla1[[#This Row],[T. Retroceso]] -> 1.10 | AA19: 0.69 | AB19: =(Tabla1[[#This Row],[Producción por ciclo ]]*60*Tabla1[[#This Row],[Eficiencia]])/Tabla1[[#This Row],[Cm]] -> 305.05
A20: D7E | B20: 26055.00 | C20: Recta | D20: 5.920 | E20: 3.900 | F20: 1.522 | G20: 0.555 | H20: Nieve compacta | I20: 130.00 | J20: Empuje medio dificultoso | K20: =IF(Tabla1[[#This Row],[Nivel de empuje]]="Empuje facil",1.1,IF(Tabla1[[#This Row],[Nivel de empuje]]="Empuje promedio",0.9,IF(Tabla1[[#This Row],[Nivel de empuje]]="Empuje medio dificultoso",0.7,IF(Tabla1[[#This Row],[Nivel de empuje]]="Empuje dificultoso",0.6," ")))) -> 0.70 | L20: 0.27 | M20: =Tabla1[[#This Row],[Ancho ]]*(Tabla1[[#This Row],[Altura ]]^2)*Tabla1[[#This Row],[Factor Hoja]] -> 6.324 | N20: =Tabla1[[#This Row],[Producción por ciclo ]]/(Tabla1[[#This Row],[Profundidad]]*Tabla1[[#This Row],[Ancho ]]) -> 2.92 | O20: =MROUND(3*Tabla1[[#This Row],[Longitud ]],10) -> 20.00 | P20: =Tabla1[[#This Row],[Producción por ciclo ]]/(Tabla1[[#This Row],[dmin]]*Tabla1[[#This Row],[Ancho ]]) -> 0.0811 | Q20: =IF(Tabla1[[#This Row],[Profundidad]]>Tabla1[[#This Row],[Profundidad de trabajo ]],"Conforme","No conforme") -> Conforme | R20: =Tabla1[[#This Row],[Densidad ]]*Tabla1[[#This Row],[Producción por ciclo ]] -> 822.12 | S20: 0.10 | T20: =Tabla1[[#This Row],[Peso ]]+Tabla1[[#This Row],[Peso de material]] -> 26877.12 | U20: =(Tabla1[[#This Row],[Factor de tracción ]]*Tabla1[[#This Row],[Carga total]])/1000 -> 7.26 | V20: 7.00 | W20: 2.62 | X20: =Tabla1[[#This Row],[dmin]]/(Tabla1[[#This Row],[Velod. Avance]]*1000/60) -> 0.17 | Y20: =Tabla1[[#This Row],[dmin]]/(Tabla1[[#This Row],[Velod. Retroceso]]*1000/60) -> 0.46 | Z20: =Tabla1[[#This Row],[Power shift]]+Tabla1[[#This Row],[T. Avance]]+Tabla1[[#This Row],[T. Retroceso]] -> 0.73 | AA20: 0.69 | AB20: =(Tabla1[[#This Row],[Producción por ciclo ]]*60*Tabla1[[#This Row],[Eficiencia]])/Tabla1[[#This Row],[Cm]] -> 358.92
A21: D7E | B21: 26055.00 | C21: Recta | D21: 5.920 | E21: 3.900 | F21: 1.522 | G21: 0.555 | H21: Hielo | I21: 520.00 | J21: Empuje dificultoso | K21: =IF(Tabla1[[#This Row],[Nivel de empuje]]="Empuje facil",1.1,IF(Tabla1[[#This Row],[Nivel de empuje]]="Empuje promedio",0.9,IF(Tabla1[[#This Row],[Nivel de empuje]]="Empuje medio dificultoso",0.7,IF(Tabla1[[#This Row],[Nivel de empuje]]="Empuje dificultoso",0.6," ")))) -> 0.60 | L21: 0.12 | M21: =Tabla1[[#This Row],[Ancho ]]*(Tabla1[[#This Row],[Altura ]]^2)*Tabla1[[#This Row],[Factor Hoja]] -> 5.421 | N21: =Tabla1[[#This Row],[Producción por ciclo ]]/(Tabla1[[#This Row],[Profundidad]]*Tabla1[[#This Row],[Ancho ]]) -> 2.50 | O21: =MROUND(3*Tabla1[[#This Row],[Longitud ]],10) -> 20.00 | P21: =Tabla1[[#This Row],[Producción por ciclo ]]/(Tabla1[[#This Row],[dmin]]*Tabla1[[#This Row],[Ancho ]]) -> 0.0695 | Q21: =IF(Tabla1[[#This Row],[Profundidad]]>Tabla1[[#This Row],[Profundidad de trabajo ]],"Conforme","No conforme") -> Conforme | R21: =Tabla1[[#This Row],[Densidad ]]*Tabla1[[#This Row],[Producción por ciclo ]] -> 2818.70 | S21: 0.10 | T21: =Tabla1[[#This Row],[Peso ]]+Tabla1[[#This Row],[Peso de material]] -> 28873.70 | U21: =(Tabla1[[#This Row],[Factor de tracción ]]*Tabla1[[#This Row],[Carga total]])/1000 -> 3.46 | V21: 11.00 | W21: 2.62 | X21: =Tabla1[[#This Row],[dmin]]/(Tabla1[[#This Row],[Velod. Avance]]*1000/60) -> 0.11 | Y21: =Tabla1[[#This Row],[dmin]]/(Tabla1[[#This Row],[Velod. Retroceso]]*1000/60) -> 0.46 | Z21: =Tabla1[[#This Row],[Power shift]]+Tabla1[[#This Row],[T. Avance]]+Tabla1[[#This Row],[T. Retroceso]] -> 0.67 | AA21: 0.69 | AB21: =(Tabla1[[#This Row],[Producción por ciclo ]]*60*Tabla1[[#This Row],[Eficiencia]])/Tabla1[[#This Row],[Cm]] -> 336.40
A22: D7E | B22: 26055.00 | C22: Recta | D22: 5.920 | E22: 3.900 | F22: 1.522 | G22: 0.555 | H22: Tierra firme | I22: 1510.00 | J22: Empuje facil | K22: =IF(Tabla1[[#This Row],[Nivel de empuje]]="Empuje facil",1.1,IF(Tabla1[[#This Row],[Nivel de empuje]]="Empuje promedio",0.9,IF(Tabla1[[#This Row],[Nivel de empuje]]="Empuje medio dificultoso",0.7,IF(Tabla1[[#This Row],[Nivel de empuje]]="Empuje dificultoso",0.6," ")))) -> 1.10 | L22: 0.90 | M22: =Tabla1[[#This Row],[Ancho ]]*(Tabla1[[#This Row],[Altura ]]^2)*Tabla1[[#This Row],[Factor Hoja]] -> 9.938 | N22: =Tabla1[[#This Row],[Producción por ciclo ]]/(Tabla1[[#This Row],[Profundidad]]*Tabla1[[#This Row],[Ancho ]]) -> 4.59 | O22: =MROUND(3*Tabla1[[#This Row],[Longitud ]],10) -> 20.00 | P22: =Tabla1[[#This Row],[Producción por ciclo ]]/(Tabla1[[#This Row],[dmin]]*Tabla1[[#This Row],[Ancho ]]) -> 0.1274 | Q22: =IF(Tabla1[[#This Row],[Profundidad]]>Tabla1[[#This Row],[Profundidad de trabajo ]],"Conforme","No conforme") -> Conforme | R22: =Tabla1[[#This Row],[Densidad ]]*Tabla1[[#This Row],[Producción por ciclo ]] -> 15005.95 | S22: 0.10 | T22: =Tabla1[[#This Row],[Peso ]]+Tabla1[[#This Row],[Peso de material]] -> 41060.95 | U22: =(Tabla1[[#This Row],[Factor de tracción ]]*Tabla1[[#This Row],[Carga total]])/1000 -> 36.95 | V22: 0.90 | W22: 2.62 | X22: =Tabla1[[#This Row],[dmin]]/(Tabla1[[#This Row],[Velod. Avance]]*1000/60) -> 1.33 | Y22: =Tabla1[[#This Row],[dmin]]/(Tabla1[[#This Row],[Velod. Retroceso]]*1000/60) -> 0.46 | Z22: =Tabla1[[#This Row],[Power shift]]+Tabla1[[#This Row],[T. Avance]]+Tabla1[[#This Row],[T. Retroceso]] -> 1.89 | AA22: 0.69 | AB22: =(Tabla1[[#This Row],[Producción por ciclo ]]*60*Tabla1[[#This Row],[Eficiencia]])/Tabla1[[#This Row],[Cm]] -> 217.53
A23: D7E | B23: 26055.00 | C23: Recta | D23: 5.920 | E23: 3.900 | F23: 1.522 | G23: 0.555 | H23: Tierra suelta | I23: 1250.00 | J23: Empuje facil | K23: =IF(Tabla1[[#This Row],[Nivel de empuje]]="Empuje facil",1.1,IF(Tabla1[[#This Row],[Nivel de empuje]]="Empuje promedio",0.9,IF(Tabla1[[#This Row],[Nivel de empuje]]="Empuje medio dificultoso",0.7,IF(Tabla1[[#This Row],[Nivel de empuje]]="Empuje dificultoso",0.6," ")))) -> 1.10 | L23: 0.60 | M23: =Tabla1[[#This Row],[Ancho ]]*(Tabla1[[#This Row],[Altura ]]^2)*Tabla1[[#This Row],[Factor Hoja]] -> 9.938 | N23: =Tabla1[[#This Row],[Producción por ciclo ]]/(Tabla1[[#This Row],[Profundidad]]*Tabla1[[#This Row],[Ancho ]]) -> 4.59 | O23: =MROUND(3*Tabla1[[#This Row],[Longitud ]],10) -> 20.00 | P23: =Tabla1[[#This Row],[Producción por ciclo ]]/(Tabla1[[#This Row],[dmin]]*Tabla1[[#This Row],[Ancho ]]) -> 0.1274 | Q23: =IF(Tabla1[[#This Row],[Profundidad]]>Tabla1[[#This Row],[Profundidad de trabajo ]],"Conforme","No conforme") -> Conforme | R23: =Tabla1[[#This Row],[Densidad ]]*Tabla1[[#This Row],[Producción por ciclo ]] -> 12422.15 | S23: 0.10 | T23: =Tabla1[[#This Row],[Peso ]]+Tabla1[[#This Row],[Peso de material]] -> 38477.15 | U23: =(Tabla1[[#This Row],[Factor de tracción ]]*Tabla1[[#This Row],[Carga total]])/1000 -> 23.09 | V23: 2.05 | W23: 2.62 | X23: =Tabla1[[#This Row],[dmin]]/(Tabla1[[#This Row],[Velod. Avance]]*1000/60) -> 0.59 | Y23: =Tabla1[[#This Row],[dmin]]/(Tabla1[[#This Row],[Velod. Retroceso]]*1000/60) -> 0.46 | Z23: =Tabla1[[#This Row],[Power shift]]+Tabla1[[#This Row],[T. Avance]]+Tabla1[[#This Row],[T. Retroceso]] -> 1.14 | AA23: 0.69 | AB23: =(Tabla1[[#This Row],[Producción por ciclo ]]*60*Tabla1[[#This Row],[Eficiencia]])/Tabla1[[#This Row],[Cm]] -> 359.83
A24: D7E | B24: 26055.00 | C24: Recta | D24: 5.920 | E24: 3.900 | F24: 1.522 | G24: 0.555 | H24: Carbón | I24: 1190.00 | J24: Empuje promedio | K24: =IF(Tabla1[[#This Row],[Nivel de empuje]]="Empuje facil",1.1,IF(Tabla1[[#This Row],[Nivel de empuje]]="Empuje promedio",0.9,IF(Tabla1[[#This Row],[Nivel de empuje]]="Empuje medio dificultoso",0.7,IF(Tabla1[[#This Row],[Nivel de empuje]]="Empuje dificultoso",0.6," ")))) -> 0.90 | L24: 0.60 | M24: =Tabla1[[#This Row],[Ancho ]]*(Tabla1[[#This Row],[Altura ]]^2)*Tabla1[[#This Row],[Factor Hoja]] -> 8.131 | N24: =Tabla1[[#This Row],[Producción por ciclo ]]/(Tabla1[[#This Row],[Profundidad]]*Tabla1[[#This Row],[Ancho ]]) -> 3.76 | O24: =MROUND(3*Tabla1[[#This Row],[Longitud ]],10) -> 20.00 | P24: =Tabla1[[#This Row],[Producción por ciclo ]]/(Tabla1[[#This Row],[dmin]]*Tabla1[[#This Row],[Ancho ]]) -> 0.1042 | Q24: =IF(Tabla1[[#This Row],[Profundidad]]>Tabla1[[#This Row],[Profundidad de trabajo ]],"Conforme","No conforme") -> Conforme | R24: =Tabla1[[#This Row],[Densidad ]]*Tabla1[[#This Row],[Producción por ciclo ]] -> 9675.72 | S24: 0.10 | T24: =Tabla1[[#This Row],[Peso ]]+Tabla1[[#This Row],[Peso de material]] -> 35730.72 | U24: =(Tabla1[[#This Row],[Factor de tracción ]]*Tabla1[[#This Row],[Carga total]])/1000 -> 21.44 | V24: 1.40 | W24: 2.62 | X24: =Tabla1[[#This Row],[dmin]]/(Tabla1[[#This Row],[Velod. Avance]]*1000/60) -> 0.86 | Y24: =Tabla1[[#This Row],[dmin]]/(Tabla1[[#This Row],[Velod. Retroceso]]*1000/60) -> 0.46 | Z24: =Tabla1[[#This Row],[Power shift]]+Tabla1[[#This Row],[T. Avance]]+Tabla1[[#This Row],[T. Retroceso]] -> 1.42 | AA24: 0.69 | AB24: =(Tabla1[[#This Row],[Producción por ciclo ]]*60*Tabla1[[#This Row],[Eficiencia]])/Tabla1[[#This Row],[Cm]] -> 237.87
A25: D7E | B25: 26055.00 | C25: Semi universal | D25: 6.170 | E25: 3.710 | F25: 1.524 | G25: 0.555 | H25: Concreto | I25: 2400.00 | J25: Empuje dificultoso | K25: =IF(Tabla1[[#This Row],[Nivel de empuje]]="Empuje facil",1.1,IF(Tabla1[[#This Row],[Nivel de empuje]]="Empuje promedio",0.9,IF(Tabla1[[#This Row],[Nivel de empuje]]="Empuje medio dificultoso",0.7,IF(Tabla1[[#This Row],[Nivel de empuje]]="Empuje dificultoso",0.6," ")))) -> 0.60 | L25: 0.45 | M25: =Tabla1[[#This Row],[Ancho ]]*(Tabla1[[#This Row],[Altura ]]^2)*Tabla1[[#This Row],[Factor Hoja]] -> 5.170 | N25: =Tabla1[[#This Row],[Producción por ciclo ]]/(Tabla1[[#This Row],[Profundidad]]*Tabla1[[#This Row],[Ancho ]]) -> 2.51 | O25: =MROUND(3*Tabla1[[#This Row],[Longitud ]],10) -> 20.00 | P25: =Tabla1[[#This Row],[Producción por ciclo ]]/(Tabla1[[#This Row],[dmin]]*Tabla1[[#This Row],[Ancho ]]) -> 0.0697 | Q25: =IF(Tabla1[[#This Row],[Profundidad]]>Tabla1[[#This Row],[Profundidad de trabajo ]],"Conforme","No conforme") -> Conforme | R25: =Tabla1[[#This Row],[Densidad ]]*Tabla1[[#This Row],[Producción por ciclo ]] -> 12408.13 | S25: 0.10 | T25: =Tabla1[[#This Row],[Peso ]]+Tabla1[[#This Row],[Peso de material]] -> 38463.13 | U25: =(Tabla1[[#This Row],[Factor de tracción ]]*Tabla1[[#This Row],[Carga total]])/1000 -> 17.31 | V25: 2.05 | W25: 2.62 | X25: =Tabla1[[#This Row],[dmin]]/(Tabla1[[#This Row],[Velod. Avance]]*1000/60) -> 0.59 | Y25: =Tabla1[[#This Row],[dmin]]/(Tabla1[[#This Row],[Velod. Retroceso]]*1000/60) -> 0.46 | Z25: =Tabla1[[#This Row],[Power shift]]+Tabla1[[#This Row],[T. Avance]]+Tabla1[[#This Row],[T. Retroceso]] -> 1.14 | AA25: 0.69 | AB25: =(Tabla1[[#This Row],[Producción por ciclo ]]*60*Tabla1[[#This Row],[Eficiencia]])/Tabla1[[#This Row],[Cm]] -> 187.20
A26: D7E | B26: 26055.00 | C26: Semi universal | D26: 6.170 | E26: 3.710 | F26: 1.524 | G26: 0.555 | H26: Arcilla seca | I26: 1480.00 | J26: Empuje medio dificultoso | K26: =IF(Tabla1[[#This Row],[Nivel de empuje]]="Empuje facil",1.1,IF(Tabla1[[#This Row],[Nivel de empuje]]="Empuje promedio",0.9,IF(Tabla1[[#This Row],[Nivel de empuje]]="Empuje medio dificultoso",0.7,IF(Tabla1[[#This Row],[Nivel de empuje]]="Empuje dificultoso",0.6," ")))) -> 0.70 | L26: 0.90 | M26: =Tabla1[[#This Row],[Ancho ]]*(Tabla1[[#This Row],[Altura ]]^2)*Tabla1[[#This Row],[Factor Hoja]] -> 6.032 | N26: =Tabla1[[#This Row],[Producción por ciclo ]]/(Tabla1[[#This Row],[Profundidad]]*Tabla1[[#This Row],[Ancho ]]) -> 2.93 | O26: =MROUND(3*Tabla1[[#This Row],[Longitud ]],10) -> 20.00 | P26: =Tabla1[[#This Row],[Producción por ciclo ]]/(Tabla1[[#This Row],[dmin]]*Tabla1[[#This Row],[Ancho ]]) -> 0.0813 | Q26: =IF(Tabla1[[#This Row],[Profundidad]]>Tabla1[[#This Row],[Profundidad de trabajo ]],"Conforme","No conforme") -> Conforme | R26: =Tabla1[[#This Row],[Densidad ]]*Tabla1[[#This Row],[Producción por ciclo ]] -> 8926.96 | S26: 0.10 | T26: =Tabla1[[#This Row],[Peso ]]+Tabla1[[#This Row],[Peso de material]] -> 34981.96 | U26: =(Tabla1[[#This Row],[Factor de tracción ]]*Tabla1[[#This Row],[Carga total]])/1000 -> 31.48 | V26: 2.30 | W26: 2.62 | X26: =Tabla1[[#This Row],[dmin]]/(Tabla1[[#This Row],[Velod. Avance]]*1000/60) -> 0.52 | Y26: =Tabla1[[#This Row],[dmin]]/(Tabla1[[#This Row],[Velod. Retroceso]]*1000/60) -> 0.46 | Z26: =Tabla1[[#This Row],[Power shift]]+Tabla1[[#This Row],[T. Avance]]+Tabla1[[#This Row],[T. Retroceso]] -> 1.08 | AA26: 0.69 | AB26: =(Tabla1[[#This Row],[Producción por ciclo ]]*60*Tabla1[[#This Row],[Eficiencia]])/Tabla1[[#This Row],[Cm]] -> 231.27
A27: D7E | B27: 26055.00 | C27: Semi universal | D27: 6.170 | E27: 3.710 | F27: 1.524 | G27: 0.555 | H27: Arcilla húmeda | I27: 1660.00 | J27: Empuje facil | K27: =IF(Tabla1[[#This Row],[Nivel de empuje]]="Empuje facil",1.1,IF(Tabla1[[#This Row],[Nivel de empuje]]="Empuje promedio",0.9,IF(Tabla1[[#This Row],[Nivel de empuje]]="Empuje medio dificultoso",0.7,IF(Tabla1[[#This Row],[Nivel de empuje]]="Empuje dificultoso",0.6," ")))) -> 1.10 | L27: 0.70 | M27: =Tabla1[[#This Row],[Ancho ]]*(Tabla1[[#This Row],[Altura ]]^2)*Tabla1[[#This Row],[Factor Hoja]] -> 9.478 | N27: =Tabla1[[#This Row],[Producción por ciclo ]]/(Tabla1[[#This Row],[Profundidad]]*Tabla1[[#This Row],[Ancho ]]) -> 4.60 | O27: =MROUND(3*Tabla1[[#This Row],[Longitud ]],10) -> 20.00 | P27: =Tabla1[[#This Row],[Producción por ciclo ]]/(Tabla1[[#This Row],[dmin]]*Tabla1[[#This Row],[Ancho ]]) -> 0.1277 | Q27: =IF(Tabla1[[#This Row],[Profundidad]]>Tabla1[[#This Row],[Profundidad de trabajo ]],"Conforme","No conforme") -> Conforme | R27: =Tabla1[[#This Row],[Densidad ]]*Tabla1[[#This Row],[Producción por ciclo ]] -> 15734.20 | S27: 0.10 | T27: =Tabla1[[#This Row],[Peso ]]+Tabla1[[#This Row],[Peso de material]] -> 41789.20 | U27: =(Tabla1[[#This Row],[Factor de tracción ]]*Tabla1[[#This Row],[Carga total]])/1000 -> 29.25 | V27: 3.00 | W27: 2.62 | X27: =Tabla1[[#This Row],[dmin]]/(Tabla1[[#This Row],[Velod. Avance]]*1000/60) -> 0.40 | Y27: =Tabla1[[#This Row],[dmin]]/(Tabla1[[#This Row],[Velod. Retroceso]]*1000/60) -> 0.46 | Z27: =Tabla1[[#This Row],[Power shift]]+Tabla1[[#This Row],[T. Avance]]+Tabla1[[#This Row],[T. Retroceso]] -> 0.96 | AA27: 0.69 | AB27: =(Tabla1[[#This Row],[Producción por ciclo ]]*60*Tabla1[[#This Row],[Eficiencia]])/Tabla1[[#This Row],[Cm]] -> 409.60
A28: D7E | B28: 26055.00 | C28: Semi universal | D28: 6.170 | E28: 3.710 | F28: 1.524 | G28: 0.555 | H28: Arena seca | I28: 1420.00 | J28: Empuje facil | K28: =IF(Tabla1[[#This Row],[Nivel de empuje]]="Empuje facil",1.1,IF(Tabla1[[#This Row],[Nivel de empuje]]="Empuje promedio",0.9,IF(Tabla1[[#This Row],[Nivel de empuje]]="Empuje medio dificultoso",0.7,IF(Tabla1[[#This Row],[Nivel de empuje]]="Empuje dificultoso",0.6," ")))) -> 1.10 | L28: 0.39 | M28: =Tabla1[[#This Row],[Ancho ]]*(Tabla1[[#This Row],[Altura ]]^2)*Tabla1[[#This Row],[Factor Hoja]] -> 9.478 | N28: =Tabla1[[#This Row],[Producción por ciclo ]]/(Tabla1[[#This Row],[Profundidad]]*Tabla1[[#This Row],[Ancho ]]) -> 4.60 | O28: =MROUND(3*Tabla1[[#This Row],[Longitud ]],10) -> 20.00 | P28: =Tabla1[[#This Row],[Producción por ciclo ]]/(Tabla1[[#This Row],[dmin]]*Tabla1[[#This Row],[Ancho ]]) -> 0.1277 | Q28: =IF(Tabla1[[#This Row],[Profundidad]]>Tabla1[[#This Row],[Profundidad de trabajo ]],"Conforme","No conforme") -> Conforme | R28: =Tabla1[[#This Row],[Densidad ]]*Tabla1[[#This Row],[Producción por ciclo ]] -> 13459.37 | S28: 0.10 | T28: =Tabla1[[#This Row],[Peso ]]+Tabla1[[#This Row],[Peso de material]] -> 39514.37 | U28: =(Tabla1[[#This Row],[Factor de tracción ]]*Tabla1[[#This Row],[Carga total]])/1000 -> 15.41 | V28: 1.20 | W28: 2.62 | X28: =Tabla1[[#This Row],[dmin]]/(Tabla1[[#This Row],[Velod. Avance]]*1000/60) -> 1.00 | Y28: =Tabla1[[#This Row],[dmin]]/(Tabla1[[#This Row],[Velod. Retroceso]]*1000/60) -> 0.46 | Z28: =Tabla1[[#This Row],[Power shift]]+Tabla1[[#This Row],[T. Avance]]+Tabla1[[#This Row],[T. Retroceso]] -> 1.56 | AA28: 0.69 | AB28: =(Tabla1[[#This Row],[Producción por ciclo ]]*60*Tabla1[[#This Row],[Eficiencia]])/Tabla1[[#This Row],[Cm]] -> 251.86
A29: D7E | B29: 26055.00 | C29: Semi universal | D29: 6.170 | E29: 3.710 | F29: 1.524 | G29: 0.555 | H29: Arena húmeda | I29: 1690.00 | J29: Empuje medio dificultoso | K29: =IF(Tabla1[[#This Row],[Nivel de empuje]]="Empuje facil",1.1,IF(Tabla1[[#This Row],[Nivel de empuje]]="Empuje promedio",0.9,IF(Tabla1[[#This Row],[Nivel de empuje]]="Empuje medio dificultoso",0.7,IF(Tabla1[[#This Row],[Nivel de empuje]]="Empuje dificultoso",0.6," ")))) -> 0.70 | L29: 0.50 | M29: =Tabla1[[#This Row],[Ancho ]]*(Tabla1[[#This Row],[Altura ]]^2)*Tabla1[[#This Row],[Factor Hoja]] -> 6.032 | N29: =Tabla1[[#This Row],[Producción por ciclo ]]/(Tabla1[[#This Row],[Profundidad]]*Tabla1[[#This Row],[Ancho ]]) -> 2.93 | O29: =MROUND(3*Tabla1[[#This Row],[Longitud ]],10) -> 20.00 | P29: =Tabla1[[#This Row],[Producción por ciclo ]]/(Tabla1[[#This Row],[dmin]]*Tabla1[[#This Row],[Ancho ]]) -> 0.0813 | Q29: =IF(Tabla1[[#This Row],[Profundidad]]>Tabla1[[#This Row],[Profundidad de trabajo ]],"Conforme","No conforme") -> Conforme | R29: =Tabla1[[#This Row],[Densidad ]]*Tabla1[[#This Row],[Producción por ciclo ]] -> 10193.62 | S29: 0.10 | T29: =Tabla1[[#This Row],[Peso ]]+Tabla1[[#This Row],[Peso de material]] -> 36248.62 | U29: =(Tabla1[[#This Row],[Factor de tracción ]]*Tabla1[[#This Row],[Carga total]])/1000 -> 18.12 | V29: 1.35 | W29: 2.62 | X29: =Tabla1[[#This Row],[dmin]]/(Tabla1[[#This Row],[Velod. Avance]]*1000/60) -> 0.89 | Y29: =Tabla1[[#This Row],[dmin]]/(Tabla1[[#This Row],[Velod. Retroceso]]*1000/60) -> 0.46 | Z29: =Tabla1[[#This Row],[Power shift]]+Tabla1[[#This Row],[T. Avance]]+Tabla1[[#This Row],[T. Retroceso]] -> 1.45 | AA29: 0.69 | AB29: =(Tabla1[[#This Row],[Producción por ciclo ]]*60*Tabla1[[#This Row],[Eficiencia]])/Tabla1[[#This Row],[Cm]] -> 172.58
A30: D7E | B30: 26055.00 | C30: Semi universal | D30: 6.170 | E30: 3.710 | F30: 1.524 | G30: 0.555 | H30: Grava suelta | I30: 1930.00 | J30: Empuje promedio | K30: =IF(Tabla1[[#This Row],[Nivel de empuje]]="Empuje facil",1.1,IF(Tabla1[[#This Row],[Nivel de empuje]]="Empuje promedio",0.9,IF(Tabla1[[#This Row],[Nivel de empuje]]="Empuje medio dificultoso",0.7,IF(Tabla1[[#This Row],[Nivel de empuje]]="Empuje dificultoso",0.6," ")))) -> 0.90 | L30: 0.50 | M30: =Tabla1[[#This Row],[Ancho ]]*(Tabla1[[#This Row],[Altura ]]^2)*Tabla1[[#This Row],[Factor Hoja]] -> 7.755 | N30: =Tabla1[[#This Row],[Producción por ciclo ]]/(Tabla1[[#This Row],[Profundidad]]*Tabla1[[#This Row],[Ancho ]]) -> 3.77 | O30: =MROUND(3*Tabla1[[#This Row],[Longitud ]],10) -> 20.00 | P30: =Tabla1[[#This Row],[Producción por ciclo ]]/(Tabla1[[#This Row],[dmin]]*Tabla1[[#This Row],[Ancho ]]) -> 0.1045 | Q30: =IF(Tabla1[[#This Row],[Profundidad]]>Tabla1[[#This Row],[Profundidad de trabajo ]],"Conforme","No conforme") -> Conforme | R30: =Tabla1[[#This Row],[Densidad ]]*Tabla1[[#This Row],[Producción por ciclo ]] -> 14967.31 | S30: 0.10 | T30: =Tabla1[[#This Row],[Peso ]]+Tabla1[[#This Row],[Peso de material]] -> 41022.31 | U30: =(Tabla1[[#This Row],[Factor de tracción ]]*Tabla1[[#This Row],[Carga total]])/1000 -> 20.51 | V30: 3.10 | W30: 2.62 | X30: =Tabla1[[#This Row],[dmin]]/(Tabla1[[#This Row],[Velod. Avance]]*1000/60) -> 0.39 | Y30: =Tabla1[[#This Row],[dmin]]/(Tabla1[[#This Row],[Velod. Retroceso]]*1000/60) -> 0.46 | Z30: =Tabla1[[#This Row],[Power shift]]+Tabla1[[#This Row],[T. Avance]]+Tabla1[[#This Row],[T. Retroceso]] -> 0.95 | AA30: 0.69 | AB30: =(Tabla1[[#This Row],[Producción por ciclo ]]*60*Tabla1[[#This Row],[Eficiencia]])/Tabla1[[#This Row],[Cm]] -> 339.71
A31: D7E | B31: 26055.00 | C31: Semi universal | D31: 6.170 | E31: 3.710 | F31: 1.524 | G31: 0.555 | H31: Nieve compacta | I31: 130.00 | J31: Empuje medio dificultoso | K31: =IF(Tabla1[[#This Row],[Nivel de empuje]]="Empuje facil",1.1,IF(Tabla1[[#This Row],[Nivel de empuje]]="Empuje promedio",0.9,IF(Tabla1[[#This Row],[Nivel de empuje]]="Empuje medio dificultoso",0.7,IF(Tabla1[[#This Row],[Nivel de empuje]]="Empuje dificultoso",0.6," ")))) -> 0.70 | L31: 0.27 | M31: =Tabla1[[#This Row],[Ancho ]]*(Tabla1[[#This Row],[Altura ]]^2)*Tabla1[[#This Row],[Factor Hoja]] -> 6.032 | N31: =Tabla1[[#This Row],[Producción por ciclo ]]/(Tabla1[[#This Row],[Profundidad]]*Tabla1[[#This Row],[Ancho ]]) -> 2.93 | O31: =MROUND(3*Tabla1[[#This Row],[Longitud ]],10) -> 20.00 | P31: =Tabla1[[#This Row],[Producción por ciclo ]]/(Tabla1[[#This Row],[dmin]]*Tabla1[[#This Row],[Ancho ]]) -> 0.0813 | Q31: =IF(Tabla1[[#This Row],[Profundidad]]>Tabla1[[#This Row],[Profundidad de trabajo ]],"Conforme","No conforme") -> Conforme | R31: =Tabla1[[#This Row],[Densidad ]]*Tabla1[[#This Row],[Producción por ciclo ]] -> 784.12 | S31: 0.10 | T31: =Tabla1[[#This Row],[Peso ]]+Tabla1[[#This Row],[Peso de material]] -> 26839.12 | U31: =(Tabla1[[#This Row],[Factor de tracción ]]*Tabla1[[#This Row],[Carga total]])/1000 -> 7.25 | V31: 2.60 | W31: 2.62 | X31: =Tabla1[[#This Row],[dmin]]/(Tabla1[[#This Row],[Velod. Avance]]*1000/60) -> 0.46 | Y31: =Tabla1[[#This Row],[dmin]]/(Tabla1[[#This Row],[Velod. Retroceso]]*1000/60) -> 0.46 | Z31: =Tabla1[[#This Row],[Power shift]]+Tabla1[[#This Row],[T. Avance]]+Tabla1[[#This Row],[T. Retroceso]] -> 1.02 | AA31: 0.69 | AB31: =(Tabla1[[#This Row],[Producción por ciclo ]]*60*Tabla1[[#This Row],[Eficiencia]])/Tabla1[[#This Row],[Cm]] -> 244.92
A32: D7E | B32: 26055.00 | C32: Semi universal | D32: 6.170 | E32: 3.710 | F32: 1.524 | G32: 0.555 | H32: Hielo | I32: 520.00 | J32: Empuje dificultoso | K32: =IF(Tabla1[[#This Row],[Nivel de empuje]]="Empuje facil",1.1,IF(Tabla1[[#This Row],[Nivel de empuje]]="Empuje promedio",0.9,IF(Tabla1[[#This Row],[Nivel de empuje]]="Empuje medio dificultoso",0.7,IF(Tabla1[[#This Row],[Nivel de empuje]]="Empuje dificultoso",0.6," ")))) -> 0.60 | L32: 0.12 | M32: =Tabla1[[#This Row],[Ancho ]]*(Tabla1[[#This Row],[Altura ]]^2)*Tabla1[[#This Row],[Factor Hoja]] -> 5.170 | N32: =Tabla1[[#This Row],[Producción por ciclo ]]/(Tabla1[[#This Row],[Profundidad]]*Tabla1[[#This Row],[Ancho ]]) -> 2.51 | O32: =MROUND(3*Tabla1[[#This Row],[Longitud ]],10) -> 20.00 | P32: =Tabla1[[#This Row],[Producción por ciclo ]]/(Tabla1[[#This Row],[dmin]]*Tabla1[[#This Row],[Ancho ]]) -> 0.0697 | Q32: =IF(Tabla1[[#This Row],[Profundidad]]>Tabla1[[#This Row],[Profundidad de trabajo ]],"Conforme","No conforme") -> Conforme | R32: =Tabla1[[#This Row],[Densidad ]]*Tabla1[[#This Row],[Producción por ciclo ]] -> 2688.43 | S32: 0.10 | T32: =Tabla1[[#This Row],[Peso ]]+Tabla1[[#This Row],[Peso de material]] -> 28743.43 | U32: =(Tabla1[[#This Row],[Factor de tracción ]]*Tabla1[[#This Row],[Carga total]])/1000 -> 3.45 | V32: 2.20 | W32: 2.62 | X32: =Tabla1[[#This Row],[dmin]]/(Tabla1[[#This Row],[Velod. Avance]]*1000/60) -> 0.55 | Y32: =Tabla1[[#This Row],[dmin]]/(Tabla1[[#This Row],[Velod. Retroceso]]*1000/60) -> 0.46 | Z32: =Tabla1[[#This Row],[Power shift]]+Tabla1[[#This Row],[T. Avance]]+Tabla1[[#This Row],[T. Retroceso]] -> 1.10 | AA32: 0.69 | AB32: =(Tabla1[[#This Row],[Producción por ciclo ]]*60*Tabla1[[#This Row],[Eficiencia]])/Tabla1[[#This Row],[Cm]] -> 193.97
A33: D7E | B33: 26055.00 | C33: Semi universal | D33: 6.170 | E33: 3.710 | F33: 1.524 | G33: 0.555 | H33: Tierra firme | I33: 1510.00 | J33: Empuje facil | K33: =IF(Tabla1[[#This Row],[Nivel de empuje]]="Empuje facil",1.1,IF(Tabla1[[#This Row],[Nivel de empuje]]="Empuje promedio",0.9,IF(Tabla1[[#This Row],[Nivel de empuje]]="Empuje medio dificultoso",0.7,IF(Tabla1[[#This Row],[Nivel de empuje]]="Empuje dificultoso",0.6," ")))) -> 1.10 | L33: 0.90 | M33: =Tabla1[[#This Row],[Ancho ]]*(Tabla1[[#This Row],[Altura ]]^2)*Tabla1[[#This Row],[Factor Hoja]] -> 9.478 | N33: =Tabla1[[#This Row],[Producción por ciclo ]]/(Tabla1[[#This Row],[Profundidad]]*Tabla1[[#This Row],[Ancho ]]) -> 4.60 | O33: =MROUND(3*Tabla1[[#This Row],[Longitud ]],10) -> 20.00 | P33: =Tabla1[[#This Row],[Producción por ciclo ]]/(Tabla1[[#This Row],[dmin]]*Tabla1[[#This Row],[Ancho ]]) -> 0.1277 | Q33: =IF(Tabla1[[#This Row],[Profundidad]]>Tabla1[[#This Row],[Profundidad de trabajo ]],"Conforme","No conforme") -> Conforme | R33: =Tabla1[[#This Row],[Densidad ]]*Tabla1[[#This Row],[Producción por ciclo ]] -> 14312.43 | S33: 0.10 | T33: =Tabla1[[#This Row],[Peso ]]+Tabla1[[#This Row],[Peso de material]] -> 40367.43 | U33: =(Tabla1[[#This Row],[Factor de tracción ]]*Tabla1[[#This Row],[Carga total]])/1000 -> 36.33 | V33: 3.30 | W33: 2.62 | X33: =Tabla1[[#This Row],[dmin]]/(Tabla1[[#This Row],[Velod. Avance]]*1000/60) -> 0.36 | Y33: =Tabla1[[#This Row],[dmin]]/(Tabla1[[#This Row],[Velod. Retroceso]]*1000/60) -> 0.46 | Z33: =Tabla1[[#This Row],[Power shift]]+Tabla1[[#This Row],[T. Avance]]+Tabla1[[#This Row],[T. Retroceso]] -> 0.92 | AA33: 0.69 | AB33: =(Tabla1[[#This Row],[Producción por ciclo ]]*60*Tabla1[[#This Row],[Eficiencia]])/Tabla1[[#This Row],[Cm]] -> 425.77
A34: D7E | B34: 26055.00 | C34: Semi universal | D34: 6.170 | E34: 3.710 | F34: 1.524 | G34: 0.555 | H34: Tierra suelta | I34: 1250.00 | J34: Empuje facil | K34: =IF(Tabla1[[#This Row],[Nivel de empuje]]="Empuje facil",1.1,IF(Tabla1[[#This Row],[Nivel de empuje]]="Empuje promedio",0.9,IF(Tabla1[[#This Row],[Nivel de empuje]]="Empuje medio dificultoso",0.7,IF(Tabla1[[#This Row],[Nivel de empuje]]="Empuje dificultoso",0.6," ")))) -> 1.10 | L34: 0.60 | M34: =Tabla1[[#This Row],[Ancho ]]*(Tabla1[[#This Row],[Altura ]]^2)*Tabla1[[#This Row],[Factor Hoja]] -> 9.478 | N34: =Tabla1[[#This Row],[Producción por ciclo ]]/(Tabla1[[#This Row],[Profundidad]]*Tabla1[[#This Row],[Ancho ]]) -> 4.60 | O34: =MROUND(3*Tabla1[[#This Row],[Longitud ]],10) -> 20.00 | P34: =Tabla1[[#This Row],[Producción por ciclo ]]/(Tabla1[[#This Row],[dmin]]*Tabla1[[#This Row],[Ancho ]]) -> 0.1277 | Q34: =IF(Tabla1[[#This Row],[Profundidad]]>Tabla1[[#This Row],[Profundidad de trabajo ]],"Conforme","No conforme") -> Conforme | R34: =Tabla1[[#This Row],[Densidad ]]*Tabla1[[#This Row],[Producción por ciclo ]] -> 11848.04 | S34: 0.10 | T34: =Tabla1[[#This Row],[Peso ]]+Tabla1[[#This Row],[Peso de material]] -> 37903.04 | U34: =(Tabla1[[#This Row],[Factor de tracción ]]*Tabla1[[#This Row],[Carga total]])/1000 -> 22.74 | V34: 10.90 | W34: 2.62 | X34: =Tabla1[[#This Row],[dmin]]/(Tabla1[[#This Row],[Velod. Avance]]*1000/60) -> 0.11 | Y34: =Tabla1[[#This Row],[dmin]]/(Tabla1[[#This Row],[Velod. Retroceso]]*1000/60) -> 0.46 | Z34: =Tabla1[[#This Row],[Power shift]]+Tabla1[[#This Row],[T. Avance]]+Tabla1[[#This Row],[T. Retroceso]] -> 0.67 | AA34: 0.69 | AB34: =(Tabla1[[#This Row],[Producción por ciclo ]]*60*Tabla1[[#This Row],[Eficiencia]])/Tabla1[[#This Row],[Cm]] -> 587.34
A35: D7E | B35: 26055.00 | C35: Semi universal | D35: 6.170 | E35: 3.710 | F35: 1.524 | G35: 0.555 | H35: Carbón | I35: 1190.00 | J35: Empuje promedio | K35: =IF(Tabla1[[#This Row],[Nivel de empuje]]="Empuje facil",1.1,IF(Tabla1[[#This Row],[Nivel de empuje]]="Empuje promedio",0.9,IF(Tabla1[[#This Row],[Nivel de empuje]]="Empuje medio dificultoso",0.7,IF(Tabla1[[#This Row],[Nivel de empuje]]="Empuje dificultoso",0.6," ")))) -> 0.90 | L35: 0.60 | M35: =Tabla1[[#This Row],[Ancho ]]*(Tabla1[[#This Row],[Altura ]]^2)*Tabla1[[#This Row],[Factor Hoja]] -> 7.755 | N35: =Tabla1[[#This Row],[Producción por ciclo ]]/(Tabla1[[#This Row],[Profundidad]]*Tabla1[[#This Row],[Ancho ]]) -> 3.77 | O35: =MROUND(3*Tabla1[[#This Row],[Longitud ]],10) -> 20.00 | P35: =Tabla1[[#This Row],[Producción por ciclo ]]/(Tabla1[[#This Row],[dmin]]*Tabla1[[#This Row],[Ancho ]]) -> 0.1045 | Q35: =IF(Tabla1[[#This Row],[Profundidad]]>Tabla1[[#This Row],[Profundidad de trabajo ]],"Conforme","No conforme") -> Conforme | R35: =Tabla1[[#This Row],[Densidad ]]*Tabla1[[#This Row],[Producción por ciclo ]] -> 9228.55 | S35: =2*0.05 -> 0.10 | T35: =Tabla1[[#This Row],[Peso ]]+Tabla1[[#This Row],[Peso de material]] -> 35283.55 | U35: =(Tabla1[[#This Row],[Factor de tracción ]]*Tabla1[[#This Row],[Carga total]])/1000 -> 21.17 | V35: 1.00 | W35: 2.62 | X35: =Tabla1[[#This Row],[dmin]]/(Tabla1[[#This Row],[Velod. Avance]]*1000/60) -> 1.20 | Y35: =Tabla1[[#This Row],[dmin]]/(Tabla1[[#This Row],[Velod. Retroceso]]*1000/60) -> 0.46 | Z35: =Tabla1[[#This Row],[Power shift]]+Tabla1[[#This Row],[T. Avance]]+Tabla1[[#This Row],[T. Retroceso]] -> 1.76 | AA35: 0.69 | AB35: =(Tabla1[[#This Row],[Producción por ciclo ]]*60*Tabla1[[#This Row],[Eficiencia]])/Tabla1[[#This Row],[Cm]] -> 182.63
A36: D7E | B36: 26055.00 | C36: Universal | D36: 6.380 | E36: 4.020 | F36: 1.550 | G36: 0.555 | H36: Concreto | I36: 2400.00 | J36: Empuje dificultoso | K36: =IF(Tabla1[[#This Row],[Nivel de empuje]]="Empuje facil",1.1,IF(Tabla1[[#This Row],[Nivel de empuje]]="Empuje promedio",0.9,IF(Tabla1[[#This Row],[Nivel de empuje]]="Empuje medio dificultoso",0.7,IF(Tabla1[[#This Row],[Nivel de empuje]]="Empuje dificultoso",0.6," ")))) -> 0.60 | L36: 0.45 | M36: =Tabla1[[#This Row],[Ancho ]]*(Tabla1[[#This Row],[Altura ]]^2)*Tabla1[[#This Row],[Factor Hoja]] -> 5.795 | N36: =Tabla1[[#This Row],[Producción por ciclo ]]/(Tabla1[[#This Row],[Profundidad]]*Tabla1[[#This Row],[Ancho ]]) -> 2.60 | O36: =MROUND(3*Tabla1[[#This Row],[Longitud ]],10) -> 20.00 | P36: =Tabla1[[#This Row],[Producción por ciclo ]]/(Tabla1[[#This Row],[dmin]]*Tabla1[[#This Row],[Ancho ]]) -> 0.0721 | Q36: =IF(Tabla1[[#This Row],[Profundidad]]>Tabla1[[#This Row],[Profundidad de trabajo ]],"Conforme","No conforme") -> Conforme | R36: =Tabla1[[#This Row],[Densidad ]]*Tabla1[[#This Row],[Producción por ciclo ]] -> 13907.59 | S36: 0.10 | T36: =Tabla1[[#This Row],[Peso ]]+Tabla1[[#This Row],[Peso de material]] -> 39962.59 | U36: =(Tabla1[[#This Row],[Factor de tracción ]]*Tabla1[[#This Row],[Carga total]])/1000 -> 17.98 | V36: 2.20 | W36: 2.62 | X36: =Tabla1[[#This Row],[dmin]]/(Tabla1[[#This Row],[Velod. Avance]]*1000/60) -> 0.55 | Y36: =Tabla1[[#This Row],[dmin]]/(Tabla1[[#This Row],[Velod. Retroceso]]*1000/60) -> 0.46 | Z36: =Tabla1[[#This Row],[Power shift]]+Tabla1[[#This Row],[T. Avance]]+Tabla1[[#This Row],[T. Retroceso]] -> 1.10 | AA36: 0.69 | AB36: =(Tabla1[[#This Row],[Producción por ciclo ]]*60*Tabla1[[#This Row],[Eficiencia]])/Tabla1[[#This Row],[Cm]] -> 217.41
A37: D7E | B37: 26055.00 | C37: Universal | D37: 6.380 | E37: 4.020 | F37: 1.550 | G37: 0.555 | H37: Arcilla seca | I37: 1480.00 | J37: Empuje medio dificultoso | K37: =IF(Tabla1[[#This Row],[Nivel de empuje]]="Empuje facil",1.1,IF(Tabla1[[#This Row],[Nivel de empuje]]="Empuje promedio",0.9,IF(Tabla1[[#This Row],[Nivel de empuje]]="Empuje medio dificultoso",0.7,IF(Tabla1[[#This Row],[Nivel de empuje]]="Empuje dificultoso",0.6," ")))) -> 0.70 | L37: 0.90 | M37: =Tabla1[[#This Row],[Ancho ]]*(Tabla1[[#This Row],[Altura ]]^2)*Tabla1[[#This Row],[Factor Hoja]] -> 6.761 | N37: =Tabla1[[#This Row],[Producción por ciclo ]]/(Tabla1[[#This Row],[Profundidad]]*Tabla1[[#This Row],[Ancho ]]) -> 3.03 | O37: =MROUND(3*Tabla1[[#This Row],[Longitud ]],10) -> 20.00 | P37: =Tabla1[[#This Row],[Producción por ciclo ]]/(Tabla1[[#This Row],[dmin]]*Tabla1[[#This Row],[Ancho ]]) -> 0.0841 | Q37: =IF(Tabla1[[#This Row],[Profundidad]]>Tabla1[[#This Row],[Profundidad de trabajo ]],"Conforme","No conforme") -> Conforme | R37: =Tabla1[[#This Row],[Densidad ]]*Tabla1[[#This Row],[Producción por ciclo ]] -> 10005.74 | S37: 0.10 | T37: =Tabla1[[#This Row],[Peso ]]+Tabla1[[#This Row],[Peso de material]] -> 36060.74 | U37: =(Tabla1[[#This Row],[Factor de tracción ]]*Tabla1[[#This Row],[Carga total]])/1000 -> 32.45 | V37: 2.40 | W37: 2.62 | X37: =Tabla1[[#This Row],[dmin]]/(Tabla1[[#This Row],[Velod. Avance]]*1000/60) -> 0.50 | Y37: =Tabla1[[#This Row],[dmin]]/(Tabla1[[#This Row],[Velod. Retroceso]]*1000/60) -> 0.46 | Z37: =Tabla1[[#This Row],[Power shift]]+Tabla1[[#This Row],[T. Avance]]+Tabla1[[#This Row],[T. Retroceso]] -> 1.06 | AA37: 0.69 | AB37: =(Tabla1[[#This Row],[Producción por ciclo ]]*60*Tabla1[[#This Row],[Eficiencia]])/Tabla1[[#This Row],[Cm]] -> 264.54
A38: D7E | B38: 26055.00 | C38: Universal | D38: 6.380 | E38: 4.020 | F38: 1.550 | G38: 0.555 | H38: Arcilla húmeda | I38: 1660.00 | J38: Empuje facil | K38: =IF(Tabla1[[#This Row],[Nivel de empuje]]="Empuje facil",1.1,IF(Tabla1[[#This Row],[Nivel de empuje]]="Empuje promedio",0.9,IF(Tabla1[[#This Row],[Nivel de empuje]]="Empuje medio dificultoso",0.7,IF(Tabla1[[#This Row],[Nivel de empuje]]="Empuje dificultoso",0.6," ")))) -> 1.10 | L38: 0.70 | M38: =Tabla1[[#This Row],[Ancho ]]*(Tabla1[[#This Row],[Altura ]]^2)*Tabla1[[#This Row],[Factor Hoja]] -> 10.624 | N38: =Tabla1[[#This Row],[Producción por ciclo ]]/(Tabla1[[#This Row],[Profundidad]]*Tabla1[[#This Row],[Ancho ]]) -> 4.76 | O38: =MROUND(3*Tabla1[[#This Row],[Longitud ]],10) -> 20.00 | P38: =Tabla1[[#This Row],[Producción por ciclo ]]/(Tabla1[[#This Row],[dmin]]*Tabla1[[#This Row],[Ancho ]]) -> 0.1321 | Q38: =IF(Tabla1[[#This Row],[Profundidad]]>Tabla1[[#This Row],[Profundidad de trabajo ]],"Conforme","No conforme") -> Conforme | R38: =Tabla1[[#This Row],[Densidad ]]*Tabla1[[#This Row],[Producción por ciclo ]] -> 17635.60 | S38: 0.10 | T38: =Tabla1[[#This Row],[Peso ]]+Tabla1[[#This Row],[Peso de material]] -> 43690.60 | U38: =(Tabla1[[#This Row],[Factor de tracción ]]*Tabla1[[#This Row],[Carga total]])/1000 -> 30.58 | V38: 3.20 | W38: 2.62 | X38: =Tabla1[[#This Row],[dmin]]/(Tabla1[[#This Row],[Velod. Avance]]*1000/60) -> 0.38 | Y38: =Tabla1[[#This Row],[dmin]]/(Tabla1[[#This Row],[Velod. Retroceso]]*1000/60) -> 0.46 | Z38: =Tabla1[[#This Row],[Power shift]]+Tabla1[[#This Row],[T. Avance]]+Tabla1[[#This Row],[T. Retroceso]] -> 0.93 | AA38: 0.69 | AB38: =(Tabla1[[#This Row],[Producción por ciclo ]]*60*Tabla1[[#This Row],[Eficiencia]])/Tabla1[[#This Row],[Cm]] -> 471.40
A39: D7E | B39: 26055.00 | C39: Universal | D39: 6.380 | E39: 4.020 | F39: 1.550 | G39: 0.555 | H39: Arena seca | I39: 1420.00 | J39: Empuje facil | K39: =IF(Tabla1[[#This Row],[Nivel de empuje]]="Empuje facil",1.1,IF(Tabla1[[#This Row],[Nivel de empuje]]="Empuje promedio",0.9,IF(Tabla1[[#This Row],[Nivel de empuje]]="Empuje medio dificultoso",0.7,IF(Tabla1[[#This Row],[Nivel de empuje]]="Empuje dificultoso",0.6," ")))) -> 1.10 | L39: 0.39 | M39: =Tabla1[[#This Row],[Ancho ]]*(Tabla1[[#This Row],[Altura ]]^2)*Tabla1[[#This Row],[Factor Hoja]] -> 10.624 | N39: =Tabla1[[#This Row],[Producción por ciclo ]]/(Tabla1[[#This Row],[Profundidad]]*Tabla1[[#This Row],[Ancho ]]) -> 4.76 | O39: =MROUND(3*Tabla1[[#This Row],[Longitud ]],10) -> 20.00 | P39: =Tabla1[[#This Row],[Producción por ciclo ]]/(Tabla1[[#This Row],[dmin]]*Tabla1[[#This Row],[Ancho ]]) -> 0.1321 | Q39: =IF(Tabla1[[#This Row],[Profundidad]]>Tabla1[[#This Row],[Profundidad de trabajo ]],"Conforme","No conforme") -> Conforme | R39: =Tabla1[[#This Row],[Densidad ]]*Tabla1[[#This Row],[Producción por ciclo ]] -> 15085.87 | S39: 0.10 | T39: =Tabla1[[#This Row],[Peso ]]+Tabla1[[#This Row],[Peso de material]] -> 41140.87 | U39: =(Tabla1[[#This Row],[Factor de tracción ]]*Tabla1[[#This Row],[Carga total]])/1000 -> 16.04 | V39: 1.20 | W39: 2.62 | X39: =Tabla1[[#This Row],[dmin]]/(Tabla1[[#This Row],[Velod. Avance]]*1000/60) -> 1.00 | Y39: =Tabla1[[#This Row],[dmin]]/(Tabla1[[#This Row],[Velod. Retroceso]]*1000/60) -> 0.46 | Z39: =Tabla1[[#This Row],[Power shift]]+Tabla1[[#This Row],[T. Avance]]+Tabla1[[#This Row],[T. Retroceso]] -> 1.56 | AA39: 0.69 | AB39: =(Tabla1[[#This Row],[Producción por ciclo ]]*60*Tabla1[[#This Row],[Eficiencia]])/Tabla1[[#This Row],[Cm]] -> 282.30
A40: D7E | B40: 26055.00 | C40: Universal | D40: 6.380 | E40: 4.020 | F40: 1.550 | G40: 0.555 | H40: Arena húmeda | I40: 1690.00 | J40: Empuje medio dificultoso | K40: =IF(Tabla1[[#This Row],[Nivel de empuje]]="Empuje facil",1.1,IF(Tabla1[[#This Row],[Nivel de empuje]]="Empuje promedio",0.9,IF(Tabla1[[#This Row],[Nivel de empuje]]="Empuje medio dificultoso",0.7,IF(Tabla1[[#This Row],[Nivel de empuje]]="Empuje dificultoso",0.6," ")))) -> 0.70 | L40: 0.50 | M40: =Tabla1[[#This Row],[Ancho ]]*(Tabla1[[#This Row],[Altura ]]^2)*Tabla1[[#This Row],[Factor Hoja]] -> 6.761 | N40: =Tabla1[[#This Row],[Producción por ciclo ]]/(Tabla1[[#This Row],[Profundidad]]*Tabla1[[#This Row],[Ancho ]]) -> 3.03 | O40: =MROUND(3*Tabla1[[#This Row],[Longitud ]],10) -> 20.00 | P40: =Tabla1[[#This Row],[Producción por ciclo ]]/(Tabla1[[#This Row],[dmin]]*Tabla1[[#This Row],[Ancho ]]) -> 0.0841 | Q40: =IF(Tabla1[[#This Row],[Profundidad]]>Tabla1[[#This Row],[Profundidad de trabajo ]],"Conforme","No conforme") -> Conforme | R40: =Tabla1[[#This Row],[Densidad ]]*Tabla1[[#This Row],[Producción por ciclo ]] -> 11425.47 | S40: 0.10 | T40: =Tabla1[[#This Row],[Peso ]]+Tabla1[[#This Row],[Peso de material]] -> 37480.47 | U40: =(Tabla1[[#This Row],[Factor de tracción ]]*Tabla1[[#This Row],[Carga total]])/1000 -> 18.74 | V40: 1.40 | W40: 2.62 | X40: =Tabla1[[#This Row],[dmin]]/(Tabla1[[#This Row],[Velod. Avance]]*1000/60) -> 0.86 | Y40: =Tabla1[[#This Row],[dmin]]/(Tabla1[[#This Row],[Velod. Retroceso]]*1000/60) -> 0.46 | Z40: =Tabla1[[#This Row],[Power shift]]+Tabla1[[#This Row],[T. Avance]]+Tabla1[[#This Row],[T. Retroceso]] -> 1.42 | AA40: 0.69 | AB40: =(Tabla1[[#This Row],[Producción por ciclo ]]*60*Tabla1[[#This Row],[Eficiencia]])/Tabla1[[#This Row],[Cm]] -> 197.78
A41: D7E | B41: 26055.00 | C41: Universal | D41: 6.380 | E41: 4.020 | F41: 1.550 | G41: 0.555 | H41: Grava suelta | I41: 1930.00 | J41: Empuje promedio | K41: =IF(Tabla1[[#This Row],[Nivel de empuje]]="Empuje facil",1.1,IF(Tabla1[[#This Row],[Nivel de empuje]]="Empuje promedio",0.9,IF(Tabla1[[#This Row],[Nivel de empuje]]="Empuje medio dificultoso",0.7,IF(Tabla1[[#This Row],[Nivel de empuje]]="Empuje dificultoso",0.6," ")))) -> 0.90 | L41: 0.50 | M41: =Tabla1[[#This Row],[Ancho ]]*(Tabla1[[#This Row],[Altura ]]^2)*Tabla1[[#This Row],[Factor Hoja]] -> 8.692 | N41: =Tabla1[[#This Row],[Producción por ciclo ]]/(Tabla1[[#This Row],[Profundidad]]*Tabla1[[#This Row],[Ancho ]]) -> 3.90 | O41: =MROUND(3*Tabla1[[#This Row],[Longitud ]],10) -> 20.00 | P41: =Tabla1[[#This Row],[Producción por ciclo ]]/(Tabla1[[#This Row],[dmin]]*Tabla1[[#This Row],[Ancho ]]) -> 0.1081 | Q41: =IF(Tabla1[[#This Row],[Profundidad]]>Tabla1[[#This Row],[Profundidad de trabajo ]],"Conforme","No conforme") -> Conforme | R41: =Tabla1[[#This Row],[Densidad ]]*Tabla1[[#This Row],[Producción por ciclo ]] -> 16776.03 | S41: 0.10 | T41: =Tabla1[[#This Row],[Peso ]]+Tabla1[[#This Row],[Peso de material]] -> 42831.03 | U41: =(Tabla1[[#This Row],[Factor de tracción ]]*Tabla1[[#This Row],[Carga total]])/1000 -> 21.42 | V41: 3.05 | W41: 2.62 | X41: =Tabla1[[#This Row],[dmin]]/(Tabla1[[#This Row],[Velod. Avance]]*1000/60) -> 0.39 | Y41: =Tabla1[[#This Row],[dmin]]/(Tabla1[[#This Row],[Velod. Retroceso]]*1000/60) -> 0.46 | Z41: =Tabla1[[#This Row],[Power shift]]+Tabla1[[#This Row],[T. Avance]]+Tabla1[[#This Row],[T. Retroceso]] -> 0.95 | AA41: 0.69 | AB41: =(Tabla1[[#This Row],[Producción por ciclo ]]*60*Tabla1[[#This Row],[Eficiencia]])/Tabla1[[#This Row],[Cm]] -> 378.22
A42: D7E | B42: 26055.00 | C42: Universal | D42: 6.380 | E42: 4.020 | F42: 1.550 | G42: 0.555 | H42: Nieve compacta | I42: 130.00 | J42: Empuje medio dificultoso | K42: =IF(Tabla1[[#This Row],[Nivel de empuje]]="Empuje facil",1.1,IF(Tabla1[[#This Row],[Nivel de empuje]]="Empuje promedio",0.9,IF(Tabla1[[#This Row],[Nivel de empuje]]="Empuje medio dificultoso",0.7,IF(Tabla1[[#This Row],[Nivel de empuje]]="Empuje dificultoso",0.6," ")))) -> 0.70 | L42: 0.27 | M42: =Tabla1[[#This Row],[Ancho ]]*(Tabla1[[#This Row],[Altura ]]^2)*Tabla1[[#This Row],[Factor Hoja]] -> 6.761 | N42: =Tabla1[[#This Row],[Producción por ciclo ]]/(Tabla1[[#This Row],[Profundidad]]*Tabla1[[#This Row],[Ancho ]]) -> 3.03 | O42: =MROUND(3*Tabla1[[#This Row],[Longitud ]],10) -> 20.00 | P42: =Tabla1[[#This Row],[Producción por ciclo ]]/(Tabla1[[#This Row],[dmin]]*Tabla1[[#This Row],[Ancho ]]) -> 0.0841 | Q42: =IF(Tabla1[[#This Row],[Profundidad]]>Tabla1[[#This Row],[Profundidad de trabajo ]],"Conforme","No conforme") -> Conforme | R42: =Tabla1[[#This Row],[Densidad ]]*Tabla1[[#This Row],[Producción por ciclo ]] -> 878.88 | S42: 0.10 | T42: =Tabla1[[#This Row],[Peso ]]+Tabla1[[#This Row],[Peso de material]] -> 26933.88 | U42: =(Tabla1[[#This Row],[Factor de tracción ]]*Tabla1[[#This Row],[Carga total]])/1000 -> 7.27 | V42: 2.50 | W42: 2.62 | X42: =Tabla1[[#This Row],[dmin]]/(Tabla1[[#This Row],[Velod. Avance]]*1000/60) -> 0.48 | Y42: =Tabla1[[#This Row],[dmin]]/(Tabla1[[#This Row],[Velod. Retroceso]]*1000/60) -> 0.46 | Z42: =Tabla1[[#This Row],[Power shift]]+Tabla1[[#This Row],[T. Avance]]+Tabla1[[#This Row],[T. Retroceso]] -> 1.04 | AA42: 0.69 | AB42: =(Tabla1[[#This Row],[Producción por ciclo ]]*60*Tabla1[[#This Row],[Eficiencia]])/Tabla1[[#This Row],[Cm]] -> 269.64
A43: D7E | B43: 26055.00 | C43: Universal | D43: 6.380 | E43: 4.020 | F43: 1.550 | G43: 0.555 | H43: Hielo | I43: 520.00 | J43: Empuje dificultoso | K43: =IF(Tabla1[[#This Row],[Nivel de empuje]]="Empuje facil",1.1,IF(Tabla1[[#This Row],[Nivel de empuje]]="Empuje promedio",0.9,IF(Tabla1[[#This Row],[Nivel de empuje]]="Empuje medio dificultoso",0.7,IF(Tabla1[[#This Row],[Nivel de empuje]]="Empuje dificultoso",0.6," ")))) -> 0.60 | L43: 0.12 | M43: =Tabla1[[#This Row],[Ancho ]]*(Tabla1[[#This Row],[Altura ]]^2)*Tabla1[[#This Row],[Factor Hoja]] -> 5.795 | N43: =Tabla1[[#This Row],[Producción por ciclo ]]/(Tabla1[[#This Row],[Profundidad]]*Tabla1[[#This Row],[Ancho ]]) -> 2.60 | O43: =MROUND(3*Tabla1[[#This Row],[Longitud ]],10) -> 20.00 | P43: =Tabla1[[#This Row],[Producción por ciclo ]]/(Tabla1[[#This Row],[dmin]]*Tabla1[[#This Row],[Ancho ]]) -> 0.0721 | Q43: =IF(Tabla1[[#This Row],[Profundidad]]>Tabla1[[#This Row],[Profundidad de trabajo ]],"Conforme","No conforme") -> Conforme | R43: =Tabla1[[#This Row],[Densidad ]]*Tabla1[[#This Row],[Producción por ciclo ]] -> 3013.31 | S43: 0.10 | T43: =Tabla1[[#This Row],[Peso ]]+Tabla1[[#This Row],[Peso de material]] -> 29068.31 | U43: =(Tabla1[[#This Row],[Factor de tracción ]]*Tabla1[[#This Row],[Carga total]])/1000 -> 3.49 | V43: 2.20 | W43: 2.62 | X43: =Tabla1[[#This Row],[dmin]]/(Tabla1[[#This Row],[Velod. Avance]]*1000/60) -> 0.55 | Y43: =Tabla1[[#This Row],[dmin]]/(Tabla1[[#This Row],[Velod. Retroceso]]*1000/60) -> 0.46 | Z43: =Tabla1[[#This Row],[Power shift]]+Tabla1[[#This Row],[T. Avance]]+Tabla1[[#This Row],[T. Retroceso]] -> 1.10 | AA43: 0.69 | AB43: =(Tabla1[[#This Row],[Producción por ciclo ]]*60*Tabla1[[#This Row],[Eficiencia]])/Tabla1[[#This Row],[Cm]] -> 217.41
A44: D7E | B44: 26055.00 | C44: Universal | D44: 6.380 | E44: 4.020 | F44: 1.550 | G44: 0.555 | H44: Tierra firme | I44: 1510.00 | J44: Empuje facil | K44: =IF(Tabla1[[#This Row],[Nivel de empuje]]="Empuje facil",1.1,IF(Tabla1[[#This Row],[Nivel de empuje]]="Empuje promedio",0.9,IF(Tabla1[[#This Row],[Nivel de empuje]]="Empuje medio dificultoso",0.7,IF(Tabla1[[#This Row],[Nivel de empuje]]="Empuje dificultoso",0.6," ")))) -> 1.10 | L44: 0.90 | M44: =Tabla1[[#This Row],[Ancho ]]*(Tabla1[[#This Row],[Altura ]]^2)*Tabla1[[#This Row],[Factor Hoja]] -> 10.624 | N44: =Tabla1[[#This Row],[Producción por ciclo ]]/(Tabla1[[#This Row],[Profundidad]]*Tabla1[[#This Row],[Ancho ]]) -> 4.76 | O44: =MROUND(3*Tabla1[[#This Row],[Longitud ]],10) -> 20.00 | P44: =Tabla1[[#This Row],[Producción por ciclo ]]/(Tabla1[[#This Row],[dmin]]*Tabla1[[#This Row],[Ancho ]]) -> 0.1321 | Q44: =IF(Tabla1[[#This Row],[Profundidad]]>Tabla1[[#This Row],[Profundidad de trabajo ]],"Conforme","No conforme") -> Conforme | R44: =Tabla1[[#This Row],[Densidad ]]*Tabla1[[#This Row],[Producción por ciclo ]] -> 16042.02 | S44: 0.10 | T44: =Tabla1[[#This Row],[Peso ]]+Tabla1[[#This Row],[Peso de material]] -> 42097.02 | U44: =(Tabla1[[#This Row],[Factor de tracción ]]*Tabla1[[#This Row],[Carga total]])/1000 -> 37.89 | V44: 7.00 | W44: 2.62 | X44: =Tabla1[[#This Row],[dmin]]/(Tabla1[[#This Row],[Velod. Avance]]*1000/60) -> 0.17 | Y44: =Tabla1[[#This Row],[dmin]]/(Tabla1[[#This Row],[Velod. Retroceso]]*1000/60) -> 0.46 | Z44: =Tabla1[[#This Row],[Power shift]]+Tabla1[[#This Row],[T. Avance]]+Tabla1[[#This Row],[T. Retroceso]] -> 0.73 | AA44: 0.69 | AB44: =(Tabla1[[#This Row],[Producción por ciclo ]]*60*Tabla1[[#This Row],[Eficiencia]])/Tabla1[[#This Row],[Cm]] -> 602.96
A45: D7E | B45: 26055.00 | C45: Universal | D45: 6.380 | E45: 4.020 | F45: 1.550 | G45: 0.555 | H45: Tierra suelta | I45: 1250.00 | J45: Empuje facil | K45: =IF(Tabla1[[#This Row],[Nivel de empuje]]="Empuje facil",1.1,IF(Tabla1[[#This Row],[Nivel de empuje]]="Empuje promedio",0.9,IF(Tabla1[[#This Row],[Nivel de empuje]]="Empuje medio dificultoso",0.7,IF(Tabla1[[#This Row],[Nivel de empuje]]="Empuje dificultoso",0.6," ")))) -> 1.10 | L45: 0.60 | M45: =Tabla1[[#This Row],[Ancho ]]*(Tabla1[[#This Row],[Altura ]]^2)*Tabla1[[#This Row],[Factor Hoja]] -> 10.624 | N45: =Tabla1[[#This Row],[Producción por ciclo ]]/(Tabla1[[#This Row],[Profundidad]]*Tabla1[[#This Row],[Ancho ]]) -> 4.76 | O45: =MROUND(3*Tabla1[[#This Row],[Longitud ]],10) -> 20.00 | P45: =Tabla1[[#This Row],[Producción por ciclo ]]/(Tabla1[[#This Row],[dmin]]*Tabla1[[#This Row],[Ancho ]]) -> 0.1321 | Q45: =IF(Tabla1[[#This Row],[Profundidad]]>Tabla1[[#This Row],[Profundidad de trabajo ]],"Conforme","No conforme") -> Conforme | R45: =Tabla1[[#This Row],[Densidad ]]*Tabla1[[#This Row],[Producción por ciclo ]] -> 13279.82 | S45: 0.10 | T45: =Tabla1[[#This Row],[Peso ]]+Tabla1[[#This Row],[Peso de material]] -> 39334.82 | U45: =(Tabla1[[#This Row],[Factor de tracción ]]*Tabla1[[#This Row],[Carga total]])/1000 -> 23.60 | V45: 10.80 | W45: 2.62 | X45: =Tabla1[[#This Row],[dmin]]/(Tabla1[[#This Row],[Velod. Avance]]*1000/60) -> 0.11 | Y45: =Tabla1[[#This Row],[dmin]]/(Tabla1[[#This Row],[Velod. Retroceso]]*1000/60) -> 0.46 | Z45: =Tabla1[[#This Row],[Power shift]]+Tabla1[[#This Row],[T. Avance]]+Tabla1[[#This Row],[T. Retroceso]] -> 0.67 | AA45: 0.69 | AB45: =(Tabla1[[#This Row],[Producción por ciclo ]]*60*Tabla1[[#This Row],[Eficiencia]])/Tabla1[[#This Row],[Cm]] -> 657.32
A46: D7E | B46: 26055.00 | C46: Universal | D46: 6.380 | E46: 4.020 | F46: 1.550 | G46: 0.555 | H46: Carbón | I46: 1190.00 | J46: Empuje promedio | K46: =IF(Tabla1[[#This Row],[Nivel de empuje]]="Empuje facil",1.1,IF(Tabla1[[#This Row],[Nivel de empuje]]="Empuje promedio",0.9,IF(Tabla1[[#This Row],[Nivel de empuje]]="Empuje medio dificultoso",0.7,IF(Tabla1[[#This Row],[Nivel de empuje]]="Empuje dificultoso",0.6," ")))) -> 0.90 | L46: 0.60 | M46: =Tabla1[[#This Row],[Ancho ]]*(Tabla1[[#This Row],[Altura ]]^2)*Tabla1[[#This Row],[Factor Hoja]] -> 8.692 | N46: =Tabla1[[#This Row],[Producción por ciclo ]]/(Tabla1[[#This Row],[Profundidad]]*Tabla1[[#This Row],[Ancho ]]) -> 3.90 | O46: =MROUND(3*Tabla1[[#This Row],[Longitud ]],10) -> 20.00 | P46: =Tabla1[[#This Row],[Producción por ciclo ]]/(Tabla1[[#This Row],[dmin]]*Tabla1[[#This Row],[Ancho ]]) -> 0.1081 | Q46: =IF(Tabla1[[#This Row],[Profundidad]]>Tabla1[[#This Row],[Profundidad de trabajo ]],"Conforme","No conforme") -> Conforme | R46: =Tabla1[[#This Row],[Densidad ]]*Tabla1[[#This Row],[Producción por ciclo ]] -> 10343.77 | S46: 0.10 | T46: =Tabla1[[#This Row],[Peso ]]+Tabla1[[#This Row],[Peso de material]] -> 36398.77 | U46: =(Tabla1[[#This Row],[Factor de tracción ]]*Tabla1[[#This Row],[Carga total]])/1000 -> 21.84 | V46: 1.45 | W46: 2.62 | X46: =Tabla1[[#This Row],[dmin]]/(Tabla1[[#This Row],[Velod. Avance]]*1000/60) -> 0.83 | Y46: =Tabla1[[#This Row],[dmin]]/(Tabla1[[#This Row],[Velod. Retroceso]]*1000/60) -> 0.46 | Z46: =Tabla1[[#This Row],[Power shift]]+Tabla1[[#This Row],[T. Avance]]+Tabla1[[#This Row],[T. Retroceso]] -> 1.39 | AA46: 0.69 | AB46: =(Tabla1[[#This Row],[Producción por ciclo ]]*60*Tabla1[[#This Row],[Eficiencia]])/Tabla1[[#This Row],[Cm]] -> 259.71
A47: D7R | B47: 25455.00 | C47: Semi universal | D47: 6.030 | E47: 3.690 | F47: 1.524 | G47: 0.527 | H47: Concreto | I47: 2400.00 | J47: Empuje dificultoso | K47: =IF(Tabla1[[#This Row],[Nivel de empuje]]="Empuje facil",1.1,IF(Tabla1[[#This Row],[Nivel de empuje]]="Empuje promedio",0.9,IF(Tabla1[[#This Row],[Nivel de empuje]]="Empuje medio dificultoso",0.7,IF(Tabla1[[#This Row],[Nivel de empuje]]="Empuje dificultoso",0.6," ")))) -> 0.60 | L47: 0.45 | M47: =Tabla1[[#This Row],[Ancho ]]*(Tabla1[[#This Row],[Altura ]]^2)*Tabla1[[#This Row],[Factor Hoja]] -> 5.142 | N47: =Tabla1[[#This Row],[Producción por ciclo ]]/(Tabla1[[#This Row],[Profundidad]]*Tabla1[[#This Row],[Ancho ]]) -> 2.64 | O47: =MROUND(3*Tabla1[[#This Row],[Longitud ]],10) -> 20.00 | P47: =Tabla1[[#This Row],[Producción por ciclo ]]/(Tabla1[[#This Row],[dmin]]*Tabla1[[#This Row],[Ancho ]]) -> 0.0697 | Q47: =IF(Tabla1[[#This Row],[Profundidad]]>Tabla1[[#This Row],[Profundidad de trabajo ]],"Conforme","No conforme") -> Conforme | R47: =Tabla1[[#This Row],[Densidad ]]*Tabla1[[#This Row],[Producción por ciclo ]] -> 12341.24 | S47: 0.10 | T47: =Tabla1[[#This Row],[Peso ]]+Tabla1[[#This Row],[Peso de material]] -> 37796.24 | U47: =(Tabla1[[#This Row],[Factor de tracción ]]*Tabla1[[#This Row],[Carga total]])/1000 -> 17.01 | V47: 2.80 | W47: 1.99 | X47: =Tabla1[[#This Row],[dmin]]/(Tabla1[[#This Row],[Velod. Avance]]*1000/60) -> 0.43 | Y47: =Tabla1[[#This Row],[dmin]]/(Tabla1[[#This Row],[Velod. Retroceso]]*1000/60) -> 0.60 | Z47: =Tabla1[[#This Row],[Power shift]]+Tabla1[[#This Row],[T. Avance]]+Tabla1[[#This Row],[T. Retroceso]] -> 1.13 | AA47: 0.69 | AB47: =(Tabla1[[#This Row],[Producción por ciclo ]]*60*Tabla1[[#This Row],[Eficiencia]])/Tabla1[[#This Row],[Cm]] -> 188.13
A48: D7R | B48: 25455.00 | C48: Semi universal | D48: 6.030 | E48: 3.690 | F48: 1.524 | G48: 0.527 | H48: Arcilla seca | I48: 1480.00 | J48: Empuje medio dificultoso | K48: =IF(Tabla1[[#This Row],[Nivel de empuje]]="Empuje facil",1.1,IF(Tabla1[[#This Row],[Nivel de empuje]]="Empuje promedio",0.9,IF(Tabla1[[#This Row],[Nivel de empuje]]="Empuje medio dificultoso",0.7,IF(Tabla1[[#This Row],[Nivel de empuje]]="Empuje dificultoso",0.6," ")))) -> 0.70 | L48: 0.90 | M48: =Tabla1[[#This Row],[Ancho ]]*(Tabla1[[#This Row],[Altura ]]^2)*Tabla1[[#This Row],[Factor Hoja]] -> 5.999 | N48: =Tabla1[[#This Row],[Producción por ciclo ]]/(Tabla1[[#This Row],[Profundidad]]*Tabla1[[#This Row],[Ancho ]]) -> 3.09 | O48: =MROUND(3*Tabla1[[#This Row],[Longitud ]],10) -> 20.00 | P48: =Tabla1[[#This Row],[Producción por ciclo ]]/(Tabla1[[#This Row],[dmin]]*Tabla1[[#This Row],[Ancho ]]) -> 0.0813 | Q48: =IF(Tabla1[[#This Row],[Profundidad]]>Tabla1[[#This Row],[Profundidad de trabajo ]],"Conforme","No conforme") -> Conforme | R48: =Tabla1[[#This Row],[Densidad ]]*Tabla1[[#This Row],[Producción por ciclo ]] -> 8878.84 | S48: 0.10 | T48: =Tabla1[[#This Row],[Peso ]]+Tabla1[[#This Row],[Peso de material]] -> 34333.84 | U48: =(Tabla1[[#This Row],[Factor de tracción ]]*Tabla1[[#This Row],[Carga total]])/1000 -> 30.90 | V48: 1.50 | W48: 1.99 | X48: =Tabla1[[#This Row],[dmin]]/(Tabla1[[#This Row],[Velod. Avance]]*1000/60) -> 0.80 | Y48: =Tabla1[[#This Row],[dmin]]/(Tabla1[[#This Row],[Velod. Retroceso]]*1000/60) -> 0.60 | Z48: =Tabla1[[#This Row],[Power shift]]+Tabla1[[#This Row],[T. Avance]]+Tabla1[[#This Row],[T. Retroceso]] -> 1.50 | AA48: 0.69 | AB48: =(Tabla1[[#This Row],[Producción por ciclo ]]*60*Tabla1[[#This Row],[Eficiencia]])/Tabla1[[#This Row],[Cm]] -> 165.25
A49: D7R | B49: 25455.00 | C49: Semi universal | D49: 6.030 | E49: 3.690 | F49: 1.524 | G49: 0.527 | H49: Arcilla húmeda | I49: 1660.00 | J49: Empuje facil | K49: =IF(Tabla1[[#This Row],[Nivel de empuje]]="Empuje facil",1.1,IF(Tabla1[[#This Row],[Nivel de empuje]]="Empuje promedio",0.9,IF(Tabla1[[#This Row],[Nivel de empuje]]="Empuje medio dificultoso",0.7,IF(Tabla1[[#This Row],[Nivel de empuje]]="Empuje dificultoso",0.6," ")))) -> 1.10 | L49: 0.70 | M49: =Tabla1[[#This Row],[Ancho ]]*(Tabla1[[#This Row],[Altura ]]^2)*Tabla1[[#This Row],[Factor Hoja]] -> 9.427 | N49: =Tabla1[[#This Row],[Producción por ciclo ]]/(Tabla1[[#This Row],[Profundidad]]*Tabla1[[#This Row],[Ancho ]]) -> 4.85 | O49: =MROUND(3*Tabla1[[#This Row],[Longitud ]],10) -> 20.00 | P49: =Tabla1[[#This Row],[Producción por ciclo ]]/(Tabla1[[#This Row],[dmin]]*Tabla1[[#This Row],[Ancho ]]) -> 0.1277 | Q49: =IF(Tabla1[[#This Row],[Profundidad]]>Tabla1[[#This Row],[Profundidad de trabajo ]],"Conforme","No conforme") -> Conforme | R49: =Tabla1[[#This Row],[Densidad ]]*Tabla1[[#This Row],[Producción por ciclo ]] -> 15649.38 | S49: 0.10 | T49: =Tabla1[[#This Row],[Peso ]]+Tabla1[[#This Row],[Peso de material]] -> 41104.38 | U49: =(Tabla1[[#This Row],[Factor de tracción ]]*Tabla1[[#This Row],[Carga total]])/1000 -> 28.77 | V49: 1.80 | W49: 1.99 | X49: =Tabla1[[#This Row],[dmin]]/(Tabla1[[#This Row],[Velod. Avance]]*1000/60) -> 0.67 | Y49: =Tabla1[[#This Row],[dmin]]/(Tabla1[[#This Row],[Velod. Retroceso]]*1000/60) -> 0.60 | Z49: =Tabla1[[#This Row],[Power shift]]+Tabla1[[#This Row],[T. Avance]]+Tabla1[[#This Row],[T. Retroceso]] -> 1.37 | AA49: 0.69 | AB49: =(Tabla1[[#This Row],[Producción por ciclo ]]*60*Tabla1[[#This Row],[Eficiencia]])/Tabla1[[#This Row],[Cm]] -> 284.95
A50: D7R | B50: 25455.00 | C50: Semi universal | D50: 6.030 | E50: 3.690 | F50: 1.524 | G50: 0.527 | H50: Arena seca | I50: 1420.00 | J50: Empuje facil | K50: =IF(Tabla1[[#This Row],[Nivel de empuje]]="Empuje facil",1.1,IF(Tabla1[[#This Row],[Nivel de empuje]]="Empuje promedio",0.9,IF(Tabla1[[#This Row],[Nivel de empuje]]="Empuje medio dificultoso",0.7,IF(Tabla1[[#This Row],[Nivel de empuje]]="Empuje dificultoso",0.6," ")))) -> 1.10 | L50: 0.39 | M50: =Tabla1[[#This Row],[Ancho ]]*(Tabla1[[#This Row],[Altura ]]^2)*Tabla1[[#This Row],[Factor Hoja]] -> 9.427 | N50: =Tabla1[[#This Row],[Producción por ciclo ]]/(Tabla1[[#This Row],[Profundidad]]*Tabla1[[#This Row],[Ancho ]]) -> 4.85 | O50: =MROUND(3*Tabla1[[#This Row],[Longitud ]],10) -> 20.00 | P50: =Tabla1[[#This Row],[Producción por ciclo ]]/(Tabla1[[#This Row],[dmin]]*Tabla1[[#This Row],[Ancho ]]) -> 0.1277 | Q50: =IF(Tabla1[[#This Row],[Profundidad]]>Tabla1[[#This Row],[Profundidad de trabajo ]],"Conforme","No conforme") -> Conforme | R50: =Tabla1[[#This Row],[Densidad ]]*Tabla1[[#This Row],[Producción por ciclo ]] -> 13386.82 | S50: 0.10 | T50: =Tabla1[[#This Row],[Peso ]]+Tabla1[[#This Row],[Peso de material]] -> 38841.82 | U50: =(Tabla1[[#This Row],[Factor de tracción ]]*Tabla1[[#This Row],[Carga total]])/1000 -> 15.15 | V50: 3.00 | W50: 1.99 | X50: =Tabla1[[#This Row],[dmin]]/(Tabla1[[#This Row],[Velod. Avance]]*1000/60) -> 0.40 | Y50: =Tabla1[[#This Row],[dmin]]/(Tabla1[[#This Row],[Velod. Retroceso]]*1000/60) -> 0.60 | Z50: =Tabla1[[#This Row],[Power shift]]+Tabla1[[#This Row],[T. Avance]]+Tabla1[[#This Row],[T. Retroceso]] -> 1.10 | AA50: 0.69 | AB50: =(Tabla1[[#This Row],[Producción por ciclo ]]*60*Tabla1[[#This Row],[Eficiencia]])/Tabla1[[#This Row],[Cm]] -> 353.84
A51: D7R | B51: 25455.00 | C51: Semi universal | D51: 6.030 | E51: 3.690 | F51: 1.524 | G51: 0.527 | H51: Arena húmeda | I51: 1690.00 | J51: Empuje medio dificultoso | K51: =IF(Tabla1[[#This Row],[Nivel de empuje]]="Empuje facil",1.1,IF(Tabla1[[#This Row],[Nivel de empuje]]="Empuje promedio",0.9,IF(Tabla1[[#This Row],[Nivel de empuje]]="Empuje medio dificultoso",0.7,IF(Tabla1[[#This Row],[Nivel de empuje]]="Empuje dificultoso",0.6," ")))) -> 0.70 | L51: 0.50 | M51: =Tabla1[[#This Row],[Ancho ]]*(Tabla1[[#This Row],[Altura ]]^2)*Tabla1[[#This Row],[Factor Hoja]] -> 5.999 | N51: =Tabla1[[#This Row],[Producción por ciclo ]]/(Tabla1[[#This Row],[Profundidad]]*Tabla1[[#This Row],[Ancho ]]) -> 3.09 | O51: =MROUND(3*Tabla1[[#This Row],[Longitud ]],10) -> 20.00 | P51: =Tabla1[[#This Row],[Producción por ciclo ]]/(Tabla1[[#This Row],[dmin]]*Tabla1[[#This Row],[Ancho ]]) -> 0.0813 | Q51: =IF(Tabla1[[#This Row],[Profundidad]]>Tabla1[[#This Row],[Profundidad de trabajo ]],"Conforme","No conforme") -> Conforme | R51: =Tabla1[[#This Row],[Densidad ]]*Tabla1[[#This Row],[Producción por ciclo ]] -> 10138.67 | S51: 0.10 | T51: =Tabla1[[#This Row],[Peso ]]+Tabla1[[#This Row],[Peso de material]] -> 35593.67 | U51: =(Tabla1[[#This Row],[Factor de tracción ]]*Tabla1[[#This Row],[Carga total]])/1000 -> 17.80 | V51: 2.80 | W51: 1.99 | X51: =Tabla1[[#This Row],[dmin]]/(Tabla1[[#This Row],[Velod. Avance]]*1000/60) -> 0.43 | Y51: =Tabla1[[#This Row],[dmin]]/(Tabla1[[#This Row],[Velod. Retroceso]]*1000/60) -> 0.60 | Z51: =Tabla1[[#This Row],[Power shift]]+Tabla1[[#This Row],[T. Avance]]+Tabla1[[#This Row],[T. Retroceso]] -> 1.13 | AA51: 0.69 | AB51: =(Tabla1[[#This Row],[Producción por ciclo ]]*60*Tabla1[[#This Row],[Eficiencia]])/Tabla1[[#This Row],[Cm]] -> 219.49
A52: D7R | B52: 25455.00 | C52: Semi universal | D52: 6.030 | E52: 3.690 | F52: 1.524 | G52: 0.527 | H52: Grava suelta | I52: 1930.00 | J52: Empuje promedio | K52: =IF(Tabla1[[#This Row],[Nivel de empuje]]="Empuje facil",1.1,IF(Tabla1[[#This Row],[Nivel de empuje]]="Empuje promedio",0.9,IF(Tabla1[[#This Row],[Nivel de empuje]]="Empuje medio dificultoso",0.7,IF(Tabla1[[#This Row],[Nivel de empuje]]="Empuje dificultoso",0.6," ")))) -> 0.90 | L52: 0.50 | M52: =Tabla1[[#This Row],[Ancho ]]*(Tabla1[[#This Row],[Altura ]]^2)*Tabla1[[#This Row],[Factor Hoja]] -> 7.713 | N52: =Tabla1[[#This Row],[Producción por ciclo ]]/(Tabla1[[#This Row],[Profundidad]]*Tabla1[[#This Row],[Ancho ]]) -> 3.97 | O52: =MROUND(3*Tabla1[[#This Row],[Longitud ]],10) -> 20.00 | P52: =Tabla1[[#This Row],[Producción por ciclo ]]/(Tabla1[[#This Row],[dmin]]*Tabla1[[#This Row],[Ancho ]]) -> 0.1045 | Q52: =IF(Tabla1[[#This Row],[Profundidad]]>Tabla1[[#This Row],[Profundidad de trabajo ]],"Conforme","No conforme") -> Conforme | R52: =Tabla1[[#This Row],[Densidad ]]*Tabla1[[#This Row],[Producción por ciclo ]] -> 14886.62 | S52: 0.10 | T52: =Tabla1[[#This Row],[Peso ]]+Tabla1[[#This Row],[Peso de material]] -> 40341.62 | U52: =(Tabla1[[#This Row],[Factor de tracción ]]*Tabla1[[#This Row],[Carga total]])/1000 -> 20.17 | V52: 2.30 | W52: 1.99 | X52: =Tabla1[[#This Row],[dmin]]/(Tabla1[[#This Row],[Velod. Avance]]*1000/60) -> 0.52 | Y52: =Tabla1[[#This Row],[dmin]]/(Tabla1[[#This Row],[Velod. Retroceso]]*1000/60) -> 0.60 | Z52: =Tabla1[[#This Row],[Power shift]]+Tabla1[[#This Row],[T. Avance]]+Tabla1[[#This Row],[T. Retroceso]] -> 1.22 | AA52: 0.69 | AB52: =(Tabla1[[#This Row],[Producción por ciclo ]]*60*Tabla1[[#This Row],[Eficiencia]])/Tabla1[[#This Row],[Cm]] -> 260.73
A53: D7R | B53: 25455.00 | C53: Semi universal | D53: 6.030 | E53: 3.690 | F53: 1.524 | G53: 0.527 | H53: Nieve compacta | I53: 130.00 | J53: Empuje medio dificultoso | K53: =IF(Tabla1[[#This Row],[Nivel de empuje]]="Empuje facil",1.1,IF(Tabla1[[#This Row],[Nivel de empuje]]="Empuje promedio",0.9,IF(Tabla1[[#This Row],[Nivel de empuje]]="Empuje medio dificultoso",0.7,IF(Tabla1[[#This Row],[Nivel de empuje]]="Empuje dificultoso",0.6," ")))) -> 0.70 | L53: 0.27 | M53: =Tabla1[[#This Row],[Ancho ]]*(Tabla1[[#This Row],[Altura ]]^2)*Tabla1[[#This Row],[Factor Hoja]] -> 5.999 | N53: =Tabla1[[#This Row],[Producción por ciclo ]]/(Tabla1[[#This Row],[Profundidad]]*Tabla1[[#This Row],[Ancho ]]) -> 3.09 | O53: =MROUND(3*Tabla1[[#This Row],[Longitud ]],10) -> 20.00 | P53: =Tabla1[[#This Row],[Producción por ciclo ]]/(Tabla1[[#This Row],[dmin]]*Tabla1[[#This Row],[Ancho ]]) -> 0.0813 | Q53: =IF(Tabla1[[#This Row],[Profundidad]]>Tabla1[[#This Row],[Profundidad de trabajo ]],"Conforme","No conforme") -> Conforme | R53: =Tabla1[[#This Row],[Densidad ]]*Tabla1[[#This Row],[Producción por ciclo ]] -> 779.90 | S53: 0.10 | T53: =Tabla1[[#This Row],[Peso ]]+Tabla1[[#This Row],[Peso de material]] -> 26234.90 | U53: =(Tabla1[[#This Row],[Factor de tracción ]]*Tabla1[[#This Row],[Carga total]])/1000 -> 7.08 | V53: 7.00 | W53: 1.99 | X53: =Tabla1[[#This Row],[dmin]]/(Tabla1[[#This Row],[Velod. Avance]]*1000/60) -> 0.17 | Y53: =Tabla1[[#This Row],[dmin]]/(Tabla1[[#This Row],[Velod. Retroceso]]*1000/60) -> 0.60 | Z53: =Tabla1[[#This Row],[Power shift]]+Tabla1[[#This Row],[T. Avance]]+Tabla1[[#This Row],[T. Retroceso]] -> 0.87 | AA53: 0.69 | AB53: =(Tabla1[[#This Row],[Producción por ciclo ]]*60*Tabla1[[#This Row],[Eficiencia]])/Tabla1[[#This Row],[Cm]] -> 284.03
A54: D7R | B54: 25455.00 | C54: Semi universal | D54: 6.030 | E54: 3.690 | F54: 1.524 | G54: 0.527 | H54: Hielo | I54: 520.00 | J54: Empuje dificultoso | K54: =IF(Tabla1[[#This Row],[Nivel de empuje]]="Empuje facil",1.1,IF(Tabla1[[#This Row],[Nivel de empuje]]="Empuje promedio",0.9,IF(Tabla1[[#This Row],[Nivel de empuje]]="Empuje medio dificultoso",0.7,IF(Tabla1[[#This Row],[Nivel de empuje]]="Empuje dificultoso",0.6," ")))) -> 0.60 | L54: 0.12 | M54: =Tabla1[[#This Row],[Ancho ]]*(Tabla1[[#This Row],[Altura ]]^2)*Tabla1[[#This Row],[Factor Hoja]] -> 5.142 | N54: =Tabla1[[#This Row],[Producción por ciclo ]]/(Tabla1[[#This Row],[Profundidad]]*Tabla1[[#This Row],[Ancho ]]) -> 2.64 | O54: =MROUND(3*Tabla1[[#This Row],[Longitud ]],10) -> 20.00 | P54: =Tabla1[[#This Row],[Producción por ciclo ]]/(Tabla1[[#This Row],[dmin]]*Tabla1[[#This Row],[Ancho ]]) -> 0.0697 | Q54: =IF(Tabla1[[#This Row],[Profundidad]]>Tabla1[[#This Row],[Profundidad de trabajo ]],"Conforme","No conforme") -> Conforme | R54: =Tabla1[[#This Row],[Densidad ]]*Tabla1[[#This Row],[Producción por ciclo ]] -> 2673.94 | S54: 0.10 | T54: =Tabla1[[#This Row],[Peso ]]+Tabla1[[#This Row],[Peso de material]] -> 28128.94 | U54: =(Tabla1[[#This Row],[Factor de tracción ]]*Tabla1[[#This Row],[Carga total]])/1000 -> 3.38 | V54: 9.00 | W54: 1.99 | X54: =Tabla1[[#This Row],[dmin]]/(Tabla1[[#This Row],[Velod. Avance]]*1000/60) -> 0.13 | Y54: =Tabla1[[#This Row],[dmin]]/(Tabla1[[#This Row],[Velod. Retroceso]]*1000/60) -> 0.60 | Z54: =Tabla1[[#This Row],[Power shift]]+Tabla1[[#This Row],[T. Avance]]+Tabla1[[#This Row],[T. Retroceso]] -> 0.84 | AA54: 0.69 | AB54: =(Tabla1[[#This Row],[Producción por ciclo ]]*60*Tabla1[[#This Row],[Eficiencia]])/Tabla1[[#This Row],[Cm]] -> 254.54
A55: D7R | B55: 25455.00 | C55: Semi universal | D55: 6.030 | E55: 3.690 | F55: 1.524 | G55: 0.527 | H55: Tierra firme | I55: 1510.00 | J55: Empuje facil | K55: =IF(Tabla1[[#This Row],[Nivel de empuje]]="Empuje facil",1.1,IF(Tabla1[[#This Row],[Nivel de empuje]]="Empuje promedio",0.9,IF(Tabla1[[#This Row],[Nivel de empuje]]="Empuje medio dificultoso",0.7,IF(Tabla1[[#This Row],[Nivel de empuje]]="Empuje dificultoso",0.6," ")))) -> 1.10 | L55: 0.90 | M55: =Tabla1[[#This Row],[Ancho ]]*(Tabla1[[#This Row],[Altura ]]^2)*Tabla1[[#This Row],[Factor Hoja]] -> 9.427 | N55: =Tabla1[[#This Row],[Producción por ciclo ]]/(Tabla1[[#This Row],[Profundidad]]*Tabla1[[#This Row],[Ancho ]]) -> 4.85 | O55: =MROUND(3*Tabla1[[#This Row],[Longitud ]],10) -> 20.00 | P55: =Tabla1[[#This Row],[Producción por ciclo ]]/(Tabla1[[#This Row],[dmin]]*Tabla1[[#This Row],[Ancho ]]) -> 0.1277 | Q55: =IF(Tabla1[[#This Row],[Profundidad]]>Tabla1[[#This Row],[Profundidad de trabajo ]],"Conforme","No conforme") -> Conforme | R55: =Tabla1[[#This Row],[Densidad ]]*Tabla1[[#This Row],[Producción por ciclo ]] -> 14235.28 | S55: 0.10 | T55: =Tabla1[[#This Row],[Peso ]]+Tabla1[[#This Row],[Peso de material]] -> 39690.28 | U55: =(Tabla1[[#This Row],[Factor de tracción ]]*Tabla1[[#This Row],[Carga total]])/1000 -> 35.72 | V55: 1.10 | W55: 1.99 | X55: =Tabla1[[#This Row],[dmin]]/(Tabla1[[#This Row],[Velod. Avance]]*1000/60) -> 1.09 | Y55: =Tabla1[[#This Row],[dmin]]/(Tabla1[[#This Row],[Velod. Retroceso]]*1000/60) -> 0.60 | Z55: =Tabla1[[#This Row],[Power shift]]+Tabla1[[#This Row],[T. Avance]]+Tabla1[[#This Row],[T. Retroceso]] -> 1.79 | AA55: 0.69 | AB55: =(Tabla1[[#This Row],[Producción por ciclo ]]*60*Tabla1[[#This Row],[Eficiencia]])/Tabla1[[#This Row],[Cm]] -> 217.56
A56: D7R | B56: 25455.00 | C56: Semi universal | D56: 6.030 | E56: 3.690 | F56: 1.524 | G56: 0.527 | H56: Tierra suelta | I56: 1250.00 | J56: Empuje facil | K56: =IF(Tabla1[[#This Row],[Nivel de empuje]]="Empuje facil",1.1,IF(Tabla1[[#This Row],[Nivel de empuje]]="Empuje promedio",0.9,IF(Tabla1[[#This Row],[Nivel de empuje]]="Empuje medio dificultoso",0.7,IF(Tabla1[[#This Row],[Nivel de empuje]]="Empuje dificultoso",0.6," ")))) -> 1.10 | L56: 0.60 | M56: =Tabla1[[#This Row],[Ancho ]]*(Tabla1[[#This Row],[Altura ]]^2)*Tabla1[[#This Row],[Factor Hoja]] -> 9.427 | N56: =Tabla1[[#This Row],[Producción por ciclo ]]/(Tabla1[[#This Row],[Profundidad]]*Tabla1[[#This Row],[Ancho ]]) -> 4.85 | O56: =MROUND(3*Tabla1[[#This Row],[Longitud ]],10) -> 20.00 | P56: =Tabla1[[#This Row],[Producción por ciclo ]]/(Tabla1[[#This Row],[dmin]]*Tabla1[[#This Row],[Ancho ]]) -> 0.1277 | Q56: =IF(Tabla1[[#This Row],[Profundidad]]>Tabla1[[#This Row],[Profundidad de trabajo ]],"Conforme","No conforme") -> Conforme | R56: =Tabla1[[#This Row],[Densidad ]]*Tabla1[[#This Row],[Producción por ciclo ]] -> 11784.17 | S56: 0.10 | T56: =Tabla1[[#This Row],[Peso ]]+Tabla1[[#This Row],[Peso de material]] -> 37239.17 | U56: =(Tabla1[[#This Row],[Factor de tracción ]]*Tabla1[[#This Row],[Carga total]])/1000 -> 22.34 | V56: 2.20 | W56: 1.99 | X56: =Tabla1[[#This Row],[dmin]]/(Tabla1[[#This Row],[Velod. Avance]]*1000/60) -> 0.55 | Y56: =Tabla1[[#This Row],[dmin]]/(Tabla1[[#This Row],[Velod. Retroceso]]*1000/60) -> 0.60 | Z56: =Tabla1[[#This Row],[Power shift]]+Tabla1[[#This Row],[T. Avance]]+Tabla1[[#This Row],[T. Retroceso]] -> 1.25 | AA56: 0.69 | AB56: =(Tabla1[[#This Row],[Producción por ciclo ]]*60*Tabla1[[#This Row],[Eficiencia]])/Tabla1[[#This Row],[Cm]] -> 312.62
A57: D7R | B57: 25455.00 | C57: Semi universal | D57: 6.030 | E57: 3.690 | F57: 1.524 | G57: 0.527 | H57: Carbón | I57: 1190.00 | J57: Empuje promedio | K57: =IF(Tabla1[[#This Row],[Nivel de empuje]]="Empuje facil",1.1,IF(Tabla1[[#This Row],[Nivel de empuje]]="Empuje promedio",0.9,IF(Tabla1[[#This Row],[Nivel de empuje]]="Empuje medio dificultoso",0.7,IF(Tabla1[[#This Row],[Nivel de empuje]]="Empuje dificultoso",0.6," ")))) -> 0.90 | L57: 0.60 | M57: =Tabla1[[#This Row],[Ancho ]]*(Tabla1[[#This Row],[Altura ]]^2)*Tabla1[[#This Row],[Factor Hoja]] -> 7.713 | N57: =Tabla1[[#This Row],[Producción por ciclo ]]/(Tabla1[[#This Row],[Profundidad]]*Tabla1[[#This Row],[Ancho ]]) -> 3.97 | O57: =MROUND(3*Tabla1[[#This Row],[Longitud ]],10) -> 20.00 | P57: =Tabla1[[#This Row],[Producción por ciclo ]]/(Tabla1[[#This Row],[dmin]]*Tabla1[[#This Row],[Ancho ]]) -> 0.1045 | Q57: =IF(Tabla1[[#This Row],[Profundidad]]>Tabla1[[#This Row],[Profundidad de trabajo ]],"Conforme","No conforme") -> Conforme | R57: =Tabla1[[#This Row],[Densidad ]]*Tabla1[[#This Row],[Producción por ciclo ]] -> 9178.80 | S57: 0.10 | T57: =Tabla1[[#This Row],[Peso ]]+Tabla1[[#This Row],[Peso de material]] -> 34633.80 | U57: =(Tabla1[[#This Row],[Factor de tracción ]]*Tabla1[[#This Row],[Carga total]])/1000 -> 20.78 | V57: 2.35 | W57: 1.99 | X57: =Tabla1[[#This Row],[dmin]]/(Tabla1[[#This Row],[Velod. Avance]]*1000/60) -> 0.51 | Y57: =Tabla1[[#This Row],[dmin]]/(Tabla1[[#This Row],[Velod. Retroceso]]*1000/60) -> 0.60 | Z57: =Tabla1[[#This Row],[Power shift]]+Tabla1[[#This Row],[T. Avance]]+Tabla1[[#This Row],[T. Retroceso]] -> 1.21 | AA57: 0.69 | AB57: =(Tabla1[[#This Row],[Producción por ciclo ]]*60*Tabla1[[#This Row],[Eficiencia]])/Tabla1[[#This Row],[Cm]] -> 263.11
A58: D8R | B58: 37920.00 | C58: Orientación | D58: 6.570 | E58: 5.000 | F58: 1.174 | G58: 0.625 | H58: Concreto | I58: 2400.00 | J58: Empuje dificultoso | K58: =IF(Tabla1[[#This Row],[Nivel de empuje]]="Empuje facil",1.1,IF(Tabla1[[#This Row],[Nivel de empuje]]="Empuje promedio",0.9,IF(Tabla1[[#This Row],[Nivel de empuje]]="Empuje medio dificultoso",0.7,IF(Tabla1[[#This Row],[Nivel de empuje]]="Empuje dificultoso",0.6," ")))) -> 0.60 | L58: 0.45 | M58: =Tabla1[[#This Row],[Ancho ]]*(Tabla1[[#This Row],[Altura ]]^2)*Tabla1[[#This Row],[Factor Hoja]] -> 4.135 | N58: =Tabla1[[#This Row],[Producción por ciclo ]]/(Tabla1[[#This Row],[Profundidad]]*Tabla1[[#This Row],[Ancho ]]) -> 1.32 | O58: =MROUND(3*Tabla1[[#This Row],[Longitud ]],10) -> 20.00 | P58: =Tabla1[[#This Row],[Producción por ciclo ]]/(Tabla1[[#This Row],[dmin]]*Tabla1[[#This Row],[Ancho ]]) -> 0.0413 | Q58: =IF(Tabla1[[#This Row],[Profundidad]]>Tabla1[[#This Row],[Profundidad de trabajo ]],"Conforme","No conforme") -> Conforme | R58: =Tabla1[[#This Row],[Densidad ]]*Tabla1[[#This Row],[Producción por ciclo ]] -> 9923.59 | S58: 0.10 | T58: =Tabla1[[#This Row],[Peso ]]+Tabla1[[#This Row],[Peso de material]] -> 47843.59 | U58: =(Tabla1[[#This Row],[Factor de tracción ]]*Tabla1[[#This Row],[Carga total]])/1000 -> 21.53 | V58: 2.60 | W58: 1.50 | X58: =Tabla1[[#This Row],[dmin]]/(Tabla1[[#This Row],[Velod. Avance]]*1000/60) -> 0.46 | Y58: =Tabla1[[#This Row],[dmin]]/(Tabla1[[#This Row],[Velod. Retroceso]]*1000/60) -> 0.80 | Z58: =Tabla1[[#This Row],[Power shift]]+Tabla1[[#This Row],[T. Avance]]+Tabla1[[#This Row],[T. Retroceso]] -> 1.36 | AA58: 0.69 | AB58: =(Tabla1[[#This Row],[Producción por ciclo ]]*60*Tabla1[[#This Row],[Eficiencia]])/Tabla1[[#This Row],[Cm]] -> 125.73
A59: D8R | B59: 37920.00 | C59: Orientación | D59: 6.570 | E59: 5.000 | F59: 1.174 | G59: 0.625 | H59: Arcilla seca | I59: 1480.00 | J59: Empuje medio dificultoso | K59: =IF(Tabla1[[#This Row],[Nivel de empuje]]="Empuje facil",1.1,IF(Tabla1[[#This Row],[Nivel de empuje]]="Empuje promedio",0.9,IF(Tabla1[[#This Row],[Nivel de empuje]]="Empuje medio dificultoso",0.7,IF(Tabla1[[#This Row],[Nivel de empuje]]="Empuje dificultoso",0.6," ")))) -> 0.70 | L59: 0.90 | M59: =Tabla1[[#This Row],[Ancho ]]*(Tabla1[[#This Row],[Altura ]]^2)*Tabla1[[#This Row],[Factor Hoja]] -> 4.824 | N59: =Tabla1[[#This Row],[Producción por ciclo ]]/(Tabla1[[#This Row],[Profundidad]]*Tabla1[[#This Row],[Ancho ]]) -> 1.54 | O59: =MROUND(3*Tabla1[[#This Row],[Longitud ]],10) -> 20.00 | P59: =Tabla1[[#This Row],[Producción por ciclo ]]/(Tabla1[[#This Row],[dmin]]*Tabla1[[#This Row],[Ancho ]]) -> 0.0482 | Q59: =IF(Tabla1[[#This Row],[Profundidad]]>Tabla1[[#This Row],[Profundidad de trabajo ]],"Conforme","No conforme") -> Conforme | R59: =Tabla1[[#This Row],[Densidad ]]*Tabla1[[#This Row],[Producción por ciclo ]] -> 7139.47 | S59: 0.10 | T59: =Tabla1[[#This Row],[Peso ]]+Tabla1[[#This Row],[Peso de material]] -> 45059.47 | U59: =(Tabla1[[#This Row],[Factor de tracción ]]*Tabla1[[#This Row],[Carga total]])/1000 -> 40.55 | V59: 1.40 | W59: 1.50 | X59: =Tabla1[[#This Row],[dmin]]/(Tabla1[[#This Row],[Velod. Avance]]*1000/60) -> 0.86 | Y59: =Tabla1[[#This Row],[dmin]]/(Tabla1[[#This Row],[Velod. Retroceso]]*1000/60) -> 0.80 | Z59: =Tabla1[[#This Row],[Power shift]]+Tabla1[[#This Row],[T. Avance]]+Tabla1[[#This Row],[T. Retroceso]] -> 1.76 | AA59: 0.69 | AB59: =(Tabla1[[#This Row],[Producción por ciclo ]]*60*Tabla1[[#This Row],[Eficiencia]])/Tabla1[[#This Row],[Cm]] -> 113.66
A60: D8R | B60: 37920.00 | C60: Orientación | D60: 6.570 | E60: 5.000 | F60: 1.174 | G60: 0.625 | H60: Arcilla húmeda | I60: 1660.00 | J60: Empuje facil | K60: =IF(Tabla1[[#This Row],[Nivel de empuje]]="Empuje facil",1.1,IF(Tabla1[[#This Row],[Nivel de empuje]]="Empuje promedio",0.9,IF(Tabla1[[#This Row],[Nivel de empuje]]="Empuje medio dificultoso",0.7,IF(Tabla1[[#This Row],[Nivel de empuje]]="Empuje dificultoso",0.6," ")))) -> 1.10 | L60: 0.70 | M60: =Tabla1[[#This Row],[Ancho ]]*(Tabla1[[#This Row],[Altura ]]^2)*Tabla1[[#This Row],[Factor Hoja]] -> 7.581 | N60: =Tabla1[[#This Row],[Producción por ciclo ]]/(Tabla1[[#This Row],[Profundidad]]*Tabla1[[#This Row],[Ancho ]]) -> 2.43 | O60: =MROUND(3*Tabla1[[#This Row],[Longitud ]],10) -> 20.00 | P60: =Tabla1[[#This Row],[Producción por ciclo ]]/(Tabla1[[#This Row],[dmin]]*Tabla1[[#This Row],[Ancho ]]) -> 0.0758 | Q60: =IF(Tabla1[[#This Row],[Profundidad]]>Tabla1[[#This Row],[Profundidad de trabajo ]],"Conforme","No conforme") -> Conforme | R60: =Tabla1[[#This Row],[Densidad ]]*Tabla1[[#This Row],[Producción por ciclo ]] -> 12583.66 | S60: 0.10 | T60: =Tabla1[[#This Row],[Peso ]]+Tabla1[[#This Row],[Peso de material]] -> 50503.66 | U60: =(Tabla1[[#This Row],[Factor de tracción ]]*Tabla1[[#This Row],[Carga total]])/1000 -> 35.35 | V60: 1.70 | W60: 1.50 | X60: =Tabla1[[#This Row],[dmin]]/(Tabla1[[#This Row],[Velod. Avance]]*1000/60) -> 0.71 | Y60: =Tabla1[[#This Row],[dmin]]/(Tabla1[[#This Row],[Velod. Retroceso]]*1000/60) -> 0.80 | Z60: =Tabla1[[#This Row],[Power shift]]+Tabla1[[#This Row],[T. Avance]]+Tabla1[[#This Row],[T. Retroceso]] -> 1.61 | AA60: 0.69 | AB60: =(Tabla1[[#This Row],[Producción por ciclo ]]*60*Tabla1[[#This Row],[Eficiencia]])/Tabla1[[#This Row],[Cm]] -> 195.43
A61: D8R | B61: 37920.00 | C61: Orientación | D61: 6.570 | E61: 5.000 | F61: 1.174 | G61: 0.625 | H61: Arena seca | I61: 1420.00 | J61: Empuje facil | K61: =IF(Tabla1[[#This Row],[Nivel de empuje]]="Empuje facil",1.1,IF(Tabla1[[#This Row],[Nivel de empuje]]="Empuje promedio",0.9,IF(Tabla1[[#This Row],[Nivel de empuje]]="Empuje medio dificultoso",0.7,IF(Tabla1[[#This Row],[Nivel de empuje]]="Empuje dificultoso",0.6," ")))) -> 1.10 | L61: 0.39 | M61: =Tabla1[[#This Row],[Ancho ]]*(Tabla1[[#This Row],[Altura ]]^2)*Tabla1[[#This Row],[Factor Hoja]] -> 7.581 | N61: =Tabla1[[#This Row],[Producción por ciclo ]]/(Tabla1[[#This Row],[Profundidad]]*Tabla1[[#This Row],[Ancho ]]) -> 2.43 | O61: =MROUND(3*Tabla1[[#This Row],[Longitud ]],10) -> 20.00 | P61: =Tabla1[[#This Row],[Producción por ciclo ]]/(Tabla1[[#This Row],[dmin]]*Tabla1[[#This Row],[Ancho ]]) -> 0.0758 | Q61: =IF(Tabla1[[#This Row],[Profundidad]]>Tabla1[[#This Row],[Profundidad de trabajo ]],"Conforme","No conforme") -> Conforme | R61: =Tabla1[[#This Row],[Densidad ]]*Tabla1[[#This Row],[Producción por ciclo ]] -> 10764.34 | S61: 0.10 | T61: =Tabla1[[#This Row],[Peso ]]+Tabla1[[#This Row],[Peso de material]] -> 48684.34 | U61: =(Tabla1[[#This Row],[Factor de tracción ]]*Tabla1[[#This Row],[Carga total]])/1000 -> 18.99 | V61: 2.75 | W61: 1.50 | X61: =Tabla1[[#This Row],[dmin]]/(Tabla1[[#This Row],[Velod. Avance]]*1000/60) -> 0.44 | Y61: =Tabla1[[#This Row],[dmin]]/(Tabla1[[#This Row],[Velod. Retroceso]]*1000/60) -> 0.80 | Z61: =Tabla1[[#This Row],[Power shift]]+Tabla1[[#This Row],[T. Avance]]+Tabla1[[#This Row],[T. Retroceso]] -> 1.34 | AA61: 0.69 | AB61: =(Tabla1[[#This Row],[Producción por ciclo ]]*60*Tabla1[[#This Row],[Eficiencia]])/Tabla1[[#This Row],[Cm]] -> 234.84
A62: D8R | B62: 37920.00 | C62: Orientación | D62: 6.570 | E62: 5.000 | F62: 1.174 | G62: 0.625 | H62: Arena húmeda | I62: 1690.00 | J62: Empuje medio dificultoso | K62: =IF(Tabla1[[#This Row],[Nivel de empuje]]="Empuje facil",1.1,IF(Tabla1[[#This Row],[Nivel de empuje]]="Empuje promedio",0.9,IF(Tabla1[[#This Row],[Nivel de empuje]]="Empuje medio dificultoso",0.7,IF(Tabla1[[#This Row],[Nivel de empuje]]="Empuje dificultoso",0.6," ")))) -> 0.70 | L62: 0.50 | M62: =Tabla1[[#This Row],[Ancho ]]*(Tabla1[[#This Row],[Altura ]]^2)*Tabla1[[#This Row],[Factor Hoja]] -> 4.824 | N62: =Tabla1[[#This Row],[Producción por ciclo ]]/(Tabla1[[#This Row],[Profundidad]]*Tabla1[[#This Row],[Ancho ]]) -> 1.54 | O62: =MROUND(3*Tabla1[[#This Row],[Longitud ]],10) -> 20.00 | P62: =Tabla1[[#This Row],[Producción por ciclo ]]/(Tabla1[[#This Row],[dmin]]*Tabla1[[#This Row],[Ancho ]]) -> 0.0482 | Q62: =IF(Tabla1[[#This Row],[Profundidad]]>Tabla1[[#This Row],[Profundidad de trabajo ]],"Conforme","No conforme") -> Conforme | R62: =Tabla1[[#This Row],[Densidad ]]*Tabla1[[#This Row],[Producción por ciclo ]] -> 8152.50 | S62: 0.10 | T62: =Tabla1[[#This Row],[Peso ]]+Tabla1[[#This Row],[Peso de material]] -> 46072.50 | U62: =(Tabla1[[#This Row],[Factor de tracción ]]*Tabla1[[#This Row],[Carga total]])/1000 -> 23.04 | V62: 2.50 | W62: 1.50 | X62: =Tabla1[[#This Row],[dmin]]/(Tabla1[[#This Row],[Velod. Avance]]*1000/60) -> 0.48 | Y62: =Tabla1[[#This Row],[dmin]]/(Tabla1[[#This Row],[Velod. Retroceso]]*1000/60) -> 0.80 | Z62: =Tabla1[[#This Row],[Power shift]]+Tabla1[[#This Row],[T. Avance]]+Tabla1[[#This Row],[T. Retroceso]] -> 1.38 | AA62: 0.69 | AB62: =(Tabla1[[#This Row],[Producción por ciclo ]]*60*Tabla1[[#This Row],[Eficiencia]])/Tabla1[[#This Row],[Cm]] -> 144.72
A63: D8R | B63: 37920.00 | C63: Orientación | D63: 6.570 | E63: 5.000 | F63: 1.174 | G63: 0.625 | H63: Grava suelta | I63: 1930.00 | J63: Empuje promedio | K63: =IF(Tabla1[[#This Row],[Nivel de empuje]]="Empuje facil",1.1,IF(Tabla1[[#This Row],[Nivel de empuje]]="Empuje promedio",0.9,IF(Tabla1[[#This Row],[Nivel de empuje]]="Empuje medio dificultoso",0.7,IF(Tabla1[[#This Row],[Nivel de empuje]]="Empuje dificultoso",0.6," ")))) -> 0.90 | L63: 0.50 | M63: =Tabla1[[#This Row],[Ancho ]]*(Tabla1[[#This Row],[Altura ]]^2)*Tabla1[[#This Row],[Factor Hoja]] -> 6.202 | N63: =Tabla1[[#This Row],[Producción por ciclo ]]/(Tabla1[[#This Row],[Profundidad]]*Tabla1[[#This Row],[Ancho ]]) -> 1.98 | O63: =MROUND(3*Tabla1[[#This Row],[Longitud ]],10) -> 20.00 | P63: =Tabla1[[#This Row],[Producción por ciclo ]]/(Tabla1[[#This Row],[dmin]]*Tabla1[[#This Row],[Ancho ]]) -> 0.0620 | Q63: =IF(Tabla1[[#This Row],[Profundidad]]>Tabla1[[#This Row],[Profundidad de trabajo ]],"Conforme","No conforme") -> Conforme | R63: =Tabla1[[#This Row],[Densidad ]]*Tabla1[[#This Row],[Producción por ciclo ]] -> 11970.33 | S63: 0.10 | T63: =Tabla1[[#This Row],[Peso ]]+Tabla1[[#This Row],[Peso de material]] -> 49890.33 | U63: =(Tabla1[[#This Row],[Factor de tracción ]]*Tabla1[[#This Row],[Carga total]])/1000 -> 24.95 | V63: 2.60 | W63: 1.50 | X63: =Tabla1[[#This Row],[dmin]]/(Tabla1[[#This Row],[Velod. Avance]]*1000/60) -> 0.46 | Y63: =Tabla1[[#This Row],[dmin]]/(Tabla1[[#This Row],[Velod. Retroceso]]*1000/60) -> 0.80 | Z63: =Tabla1[[#This Row],[Power shift]]+Tabla1[[#This Row],[T. Avance]]+Tabla1[[#This Row],[T. Retroceso]] -> 1.36 | AA63: 0.69 | AB63: =(Tabla1[[#This Row],[Producción por ciclo ]]*60*Tabla1[[#This Row],[Eficiencia]])/Tabla1[[#This Row],[Cm]] -> 188.59
A64: D8R | B64: 37920.00 | C64: Orientación | D64: 6.570 | E64: 5.000 | F64: 1.174 | G64: 0.625 | H64: Nieve compacta | I64: 130.00 | J64: Empuje medio dificultoso | K64: =IF(Tabla1[[#This Row],[Nivel de empuje]]="Empuje facil",1.1,IF(Tabla1[[#This Row],[Nivel de empuje]]="Empuje promedio",0.9,IF(Tabla1[[#This Row],[Nivel de empuje]]="Empuje medio dificultoso",0.7,IF(Tabla1[[#This Row],[Nivel de empuje]]="Empuje dificultoso",0.6," ")))) -> 0.70 | L64: 0.27 | M64: =Tabla1[[#This Row],[Ancho ]]*(Tabla1[[#This Row],[Altura ]]^2)*Tabla1[[#This Row],[Factor Hoja]] -> 4.824 | N64: =Tabla1[[#This Row],[Producción por ciclo ]]/(Tabla1[[#This Row],[Profundidad]]*Tabla1[[#This Row],[Ancho ]]) -> 1.54 | O64: =MROUND(3*Tabla1[[#This Row],[Longitud ]],10) -> 20.00 | P64: =Tabla1[[#This Row],[Producción por ciclo ]]/(Tabla1[[#This Row],[dmin]]*Tabla1[[#This Row],[Ancho ]]) -> 0.0482 | Q64: =IF(Tabla1[[#This Row],[Profundidad]]>Tabla1[[#This Row],[Profundidad de trabajo ]],"Conforme","No conforme") -> Conforme | R64: =Tabla1[[#This Row],[Densidad ]]*Tabla1[[#This Row],[Producción por ciclo ]] -> 627.12 | S64: 0.10 | T64: =Tabla1[[#This Row],[Peso ]]+Tabla1[[#This Row],[Peso de material]] -> 38547.12 | U64: =(Tabla1[[#This Row],[Factor de tracción ]]*Tabla1[[#This Row],[Carga total]])/1000 -> 10.41 | V64: 5.30 | W64: 1.50 | X64: =Tabla1[[#This Row],[dmin]]/(Tabla1[[#This Row],[Velod. Avance]]*1000/60) -> 0.23 | Y64: =Tabla1[[#This Row],[dmin]]/(Tabla1[[#This Row],[Velod. Retroceso]]*1000/60) -> 0.80 | Z64: =Tabla1[[#This Row],[Power shift]]+Tabla1[[#This Row],[T. Avance]]+Tabla1[[#This Row],[T. Retroceso]] -> 1.13 | AA64: 0.69 | AB64: =(Tabla1[[#This Row],[Producción por ciclo ]]*60*Tabla1[[#This Row],[Eficiencia]])/Tabla1[[#This Row],[Cm]] -> 177.30
A65: D8R | B65: 37920.00 | C65: Orientación | D65: 6.570 | E65: 5.000 | F65: 1.174 | G65: 0.625 | H65: Hielo | I65: 520.00 | J65: Empuje dificultoso | K65: =IF(Tabla1[[#This Row],[Nivel de empuje]]="Empuje facil",1.1,IF(Tabla1[[#This Row],[Nivel de empuje]]="Empuje promedio",0.9,IF(Tabla1[[#This Row],[Nivel de empuje]]="Empuje medio dificultoso",0.7,IF(Tabla1[[#This Row],[Nivel de empuje]]="Empuje dificultoso",0.6," ")))) -> 0.60 | L65: 0.12 | M65: =Tabla1[[#This Row],[Ancho ]]*(Tabla1[[#This Row],[Altura ]]^2)*Tabla1[[#This Row],[Factor Hoja]] -> 4.135 | N65: =Tabla1[[#This Row],[Producción por ciclo ]]/(Tabla1[[#This Row],[Profundidad]]*Tabla1[[#This Row],[Ancho ]]) -> 1.32 | O65: =MROUND(3*Tabla1[[#This Row],[Longitud ]],10) -> 20.00 | P65: =Tabla1[[#This Row],[Producción por ciclo ]]/(Tabla1[[#This Row],[dmin]]*Tabla1[[#This Row],[Ancho ]]) -> 0.0413 | Q65: =IF(Tabla1[[#This Row],[Profundidad]]>Tabla1[[#This Row],[Profundidad de trabajo ]],"Conforme","No conforme") -> Conforme | R65: =Tabla1[[#This Row],[Densidad ]]*Tabla1[[#This Row],[Producción por ciclo ]] -> 2150.11 | S65: 0.10 | T65: =Tabla1[[#This Row],[Peso ]]+Tabla1[[#This Row],[Peso de material]] -> 40070.11 | U65: =(Tabla1[[#This Row],[Factor de tracción ]]*Tabla1[[#This Row],[Carga total]])/1000 -> 4.81 | V65: 8.95 | W65: 1.50 | X65: =Tabla1[[#This Row],[dmin]]/(Tabla1[[#This Row],[Velod. Avance]]*1000/60) -> 0.13 | Y65: =Tabla1[[#This Row],[dmin]]/(Tabla1[[#This Row],[Velod. Retroceso]]*1000/60) -> 0.80 | Z65: =Tabla1[[#This Row],[Power shift]]+Tabla1[[#This Row],[T. Avance]]+Tabla1[[#This Row],[T. Retroceso]] -> 1.03 | AA65: 0.69 | AB65: =(Tabla1[[#This Row],[Producción por ciclo ]]*60*Tabla1[[#This Row],[Eficiencia]])/Tabla1[[#This Row],[Cm]] -> 165.54
A66: D8R | B66: 37920.00 | C66: Orientación | D66: 6.570 | E66: 5.000 | F66: 1.174 | G66: 0.625 | H66: Tierra firme | I66: 1510.00 | J66: Empuje facil | K66: =IF(Tabla1[[#This Row],[Nivel de empuje]]="Empuje facil",1.1,IF(Tabla1[[#This Row],[Nivel de empuje]]="Empuje promedio",0.9,IF(Tabla1[[#This Row],[Nivel de empuje]]="Empuje medio dificultoso",0.7,IF(Tabla1[[#This Row],[Nivel de empuje]]="Empuje dificultoso",0.6," ")))) -> 1.10 | L66: 0.90 | M66: =Tabla1[[#This Row],[Ancho ]]*(Tabla1[[#This Row],[Altura ]]^2)*Tabla1[[#This Row],[Factor Hoja]] -> 7.581 | N66: =Tabla1[[#This Row],[Producción por ciclo ]]/(Tabla1[[#This Row],[Profundidad]]*Tabla1[[#This Row],[Ancho ]]) -> 2.43 | O66: =MROUND(3*Tabla1[[#This Row],[Longitud ]],10) -> 20.00 | P66: =Tabla1[[#This Row],[Producción por ciclo ]]/(Tabla1[[#This Row],[dmin]]*Tabla1[[#This Row],[Ancho ]]) -> 0.0758 | Q66: =IF(Tabla1[[#This Row],[Profundidad]]>Tabla1[[#This Row],[Profundidad de trabajo ]],"Conforme","No conforme") -> Conforme | R66: =Tabla1[[#This Row],[Densidad ]]*Tabla1[[#This Row],[Producción por ciclo ]] -> 11446.58 | S66: 0.10 | T66: =Tabla1[[#This Row],[Peso ]]+Tabla1[[#This Row],[Peso de material]] -> 49366.58 | U66: =(Tabla1[[#This Row],[Factor de tracción ]]*Tabla1[[#This Row],[Carga total]])/1000 -> 44.43 | V66: 1.08 | W66: 1.50 | X66: =Tabla1[[#This Row],[dmin]]/(Tabla1[[#This Row],[Velod. Avance]]*1000/60) -> 1.11 | Y66: =Tabla1[[#This Row],[dmin]]/(Tabla1[[#This Row],[Velod. Retroceso]]*1000/60) -> 0.80 | Z66: =Tabla1[[#This Row],[Power shift]]+Tabla1[[#This Row],[T. Avance]]+Tabla1[[#This Row],[T. Retroceso]] -> 2.01 | AA66: 0.69 | AB66: =(Tabla1[[#This Row],[Producción por ciclo ]]*60*Tabla1[[#This Row],[Eficiencia]])/Tabla1[[#This Row],[Cm]] -> 156.05
A67: D8R | B67: 37920.00 | C67: Orientación | D67: 6.570 | E67: 5.000 | F67: 1.174 | G67: 0.625 | H67: Tierra suelta | I67: 1250.00 | J67: Empuje facil | K67: =IF(Tabla1[[#This Row],[Nivel de empuje]]="Empuje facil",1.1,IF(Tabla1[[#This Row],[Nivel de empuje]]="Empuje promedio",0.9,IF(Tabla1[[#This Row],[Nivel de empuje]]="Empuje medio dificultoso",0.7,IF(Tabla1[[#This Row],[Nivel de empuje]]="Empuje dificultoso",0.6," ")))) -> 1.10 | L67: 0.60 | M67: =Tabla1[[#This Row],[Ancho ]]*(Tabla1[[#This Row],[Altura ]]^2)*Tabla1[[#This Row],[Factor Hoja]] -> 7.581 | N67: =Tabla1[[#This Row],[Producción por ciclo ]]/(Tabla1[[#This Row],[Profundidad]]*Tabla1[[#This Row],[Ancho ]]) -> 2.43 | O67: =MROUND(3*Tabla1[[#This Row],[Longitud ]],10) -> 20.00 | P67: =Tabla1[[#This Row],[Producción por ciclo ]]/(Tabla1[[#This Row],[dmin]]*Tabla1[[#This Row],[Ancho ]]) -> 0.0758 | Q67: =IF(Tabla1[[#This Row],[Profundidad]]>Tabla1[[#This Row],[Profundidad de trabajo ]],"Conforme","No conforme") -> Conforme | R67: =Tabla1[[#This Row],[Densidad ]]*Tabla1[[#This Row],[Producción por ciclo ]] -> 9475.65 | S67: =2*0.05 -> 0.10 | T67: =Tabla1[[#This Row],[Peso ]]+Tabla1[[#This Row],[Peso de material]] -> 47395.65 | U67: =(Tabla1[[#This Row],[Factor de tracción ]]*Tabla1[[#This Row],[Carga total]])/1000 -> 28.44 | V67: 2.10 | W67: 1.50 | X67: =Tabla1[[#This Row],[dmin]]/(Tabla1[[#This Row],[Velod. Avance]]*1000/60) -> 0.57 | Y67: =Tabla1[[#This Row],[dmin]]/(Tabla1[[#This Row],[Velod. Retroceso]]*1000/60) -> 0.80 | Z67: =Tabla1[[#This Row],[Power shift]]+Tabla1[[#This Row],[T. Avance]]+Tabla1[[#This Row],[T. Retroceso]] -> 1.47 | AA67: 0.69 | AB67: =(Tabla1[[#This Row],[Producción por ciclo ]]*60*Tabla1[[#This Row],[Eficiencia]])/Tabla1[[#This Row],[Cm]] -> 213.28
A68: D8R | B68: 37920.00 | C68: Orientación | D68: 6.570 | E68: 5.000 | F68: 1.174 | G68: 0.625 | H68: Carbón | I68: 1190.00 | J68: Empuje promedio | K68: =IF(Tabla1[[#This Row],[Nivel de empuje]]="Empuje facil",1.1,IF(Tabla1[[#This Row],[Nivel de empuje]]="Empuje promedio",0.9,IF(Tabla1[[#This Row],[Nivel de empuje]]="Empuje medio dificultoso",0.7,IF(Tabla1[[#This Row],[Nivel de empuje]]="Empuje dificultoso",0.6," ")))) -> 0.90 | L68: 0.60 | M68: =Tabla1[[#This Row],[Ancho ]]*(Tabla1[[#This Row],[Altura ]]^2)*Tabla1[[#This Row],[Factor Hoja]] -> 6.202 | N68: =Tabla1[[#This Row],[Producción por ciclo ]]/(Tabla1[[#This Row],[Profundidad]]*Tabla1[[#This Row],[Ancho ]]) -> 1.98 | O68: =MROUND(3*Tabla1[[#This Row],[Longitud ]],10) -> 20.00 | P68: =Tabla1[[#This Row],[Producción por ciclo ]]/(Tabla1[[#This Row],[dmin]]*Tabla1[[#This Row],[Ancho ]]) -> 0.0620 | Q68: =IF(Tabla1[[#This Row],[Profundidad]]>Tabla1[[#This Row],[Profundidad de trabajo ]],"Conforme","No conforme") -> Conforme | R68: =Tabla1[[#This Row],[Densidad ]]*Tabla1[[#This Row],[Producción por ciclo ]] -> 7380.67 | S68: 0.10 | T68: =Tabla1[[#This Row],[Peso ]]+Tabla1[[#This Row],[Peso de material]] -> 45300.67 | U68: =(Tabla1[[#This Row],[Factor de tracción ]]*Tabla1[[#This Row],[Carga total]])/1000 -> 27.18 | V68: 2.20 | W68: 1.50 | X68: =Tabla1[[#This Row],[dmin]]/(Tabla1[[#This Row],[Velod. Avance]]*1000/60) -> 0.55 | Y68: =Tabla1[[#This Row],[dmin]]/(Tabla1[[#This Row],[Velod. Retroceso]]*1000/60) -> 0.80 | Z68: =Tabla1[[#This Row],[Power shift]]+Tabla1[[#This Row],[T. Avance]]+Tabla1[[#This Row],[T. Retroceso]] -> 1.45 | AA68: 0.69 | AB68: =(Tabla1[[#This Row],[Producción por ciclo ]]*60*Tabla1[[#This Row],[Eficiencia]])/Tabla1[[#This Row],[Cm]] -> 177.64
A69: D8R | B69: 37920.00 | C69: Semi universal | D69: 6.390 | E69: 3.930 | F69: 1.690 | G69: 0.511 | H69: Concreto | I69: 2400.00 | J69: Empuje dificultoso | K69: =IF(Tabla1[[#This Row],[Nivel de empuje]]="Empuje facil",1.1,IF(Tabla1[[#This Row],[Nivel de empuje]]="Empuje promedio",0.9,IF(Tabla1[[#This Row],[Nivel de empuje]]="Empuje medio dificultoso",0.7,IF(Tabla1[[#This Row],[Nivel de empuje]]="Empuje dificultoso",0.6," ")))) -> 0.60 | L69: 0.45 | M69: =Tabla1[[#This Row],[Ancho ]]*(Tabla1[[#This Row],[Altura ]]^2)*Tabla1[[#This Row],[Factor Hoja]] -> 6.735 | N69: =Tabla1[[#This Row],[Producción por ciclo ]]/(Tabla1[[#This Row],[Profundidad]]*Tabla1[[#This Row],[Ancho ]]) -> 3.35 | O69: =MROUND(3*Tabla1[[#This Row],[Longitud ]],10) -> 20.00 | P69: =Tabla1[[#This Row],[Producción por ciclo ]]/(Tabla1[[#This Row],[dmin]]*Tabla1[[#This Row],[Ancho ]]) -> 0.0857 | Q69: =IF(Tabla1[[#This Row],[Profundidad]]>Tabla1[[#This Row],[Profundidad de trabajo ]],"Conforme","No conforme") -> Conforme | R69: =Tabla1[[#This Row],[Densidad ]]*Tabla1[[#This Row],[Producción por ciclo ]] -> 16163.24 | S69: 0.10 | T69: =Tabla1[[#This Row],[Peso ]]+Tabla1[[#This Row],[Peso de material]] -> 54083.24 | U69: =(Tabla1[[#This Row],[Factor de tracción ]]*Tabla1[[#This Row],[Carga total]])/1000 -> 24.34 | V69: 2.50 | W69: 1.50 | X69: =Tabla1[[#This Row],[dmin]]/(Tabla1[[#This Row],[Velod. Avance]]*1000/60) -> 0.48 | Y69: =Tabla1[[#This Row],[dmin]]/(Tabla1[[#This Row],[Velod. Retroceso]]*1000/60) -> 0.80 | Z69: =Tabla1[[#This Row],[Power shift]]+Tabla1[[#This Row],[T. Avance]]+Tabla1[[#This Row],[T. Retroceso]] -> 1.38 | AA69: 0.69 | AB69: =(Tabla1[[#This Row],[Producción por ciclo ]]*60*Tabla1[[#This Row],[Eficiencia]])/Tabla1[[#This Row],[Cm]] -> 202.04
A70: D8R | B70: 37920.00 | C70: Semi universal | D70: 6.390 | E70: 3.930 | F70: 1.690 | G70: 0.511 | H70: Arcilla seca | I70: 1480.00 | J70: Empuje medio dificultoso | K70: =IF(Tabla1[[#This Row],[Nivel de empuje]]="Empuje facil",1.1,IF(Tabla1[[#This Row],[Nivel de empuje]]="Empuje promedio",0.9,IF(Tabla1[[#This Row],[Nivel de empuje]]="Empuje medio dificultoso",0.7,IF(Tabla1[[#This Row],[Nivel de empuje]]="Empuje dificultoso",0.6," ")))) -> 0.70 | L70: 0.90 | M70: =Tabla1[[#This Row],[Ancho ]]*(Tabla1[[#This Row],[Altura ]]^2)*Tabla1[[#This Row],[Factor Hoja]] -> 7.857 | N70: =Tabla1[[#This Row],[Producción por ciclo ]]/(Tabla1[[#This Row],[Profundidad]]*Tabla1[[#This Row],[Ancho ]]) -> 3.91 | O70: =MROUND(3*Tabla1[[#This Row],[Longitud ]],10) -> 20.00 | P70: =Tabla1[[#This Row],[Producción por ciclo ]]/(Tabla1[[#This Row],[dmin]]*Tabla1[[#This Row],[Ancho ]]) -> 0.1000 | Q70: =IF(Tabla1[[#This Row],[Profundidad]]>Tabla1[[#This Row],[Profundidad de trabajo ]],"Conforme","No conforme") -> Conforme | R70: =Tabla1[[#This Row],[Densidad ]]*Tabla1[[#This Row],[Producción por ciclo ]] -> 11628.55 | S70: 0.10 | T70: =Tabla1[[#This Row],[Peso ]]+Tabla1[[#This Row],[Peso de material]] -> 49548.55 | U70: =(Tabla1[[#This Row],[Factor de tracción ]]*Tabla1[[#This Row],[Carga total]])/1000 -> 44.59 | V70: 1.09 | W70: 1.50 | X70: =Tabla1[[#This Row],[dmin]]/(Tabla1[[#This Row],[Velod. Avance]]*1000/60) -> 1.10 | Y70: =Tabla1[[#This Row],[dmin]]/(Tabla1[[#This Row],[Velod. Retroceso]]*1000/60) -> 0.80 | Z70: =Tabla1[[#This Row],[Power shift]]+Tabla1[[#This Row],[T. Avance]]+Tabla1[[#This Row],[T. Retroceso]] -> 2.00 | AA70: 0.69 | AB70: =(Tabla1[[#This Row],[Producción por ciclo ]]*60*Tabla1[[#This Row],[Eficiencia]])/Tabla1[[#This Row],[Cm]] -> 162.57
A71: D8R | B71: 37920.00 | C71: Semi universal | D71: 6.390 | E71: 3.930 | F71: 1.690 | G71: 0.511 | H71: Arcilla húmeda | I71: 1660.00 | J71: Empuje facil | K71: =IF(Tabla1[[#This Row],[Nivel de empuje]]="Empuje facil",1.1,IF(Tabla1[[#This Row],[Nivel de empuje]]="Empuje promedio",0.9,IF(Tabla1[[#This Row],[Nivel de empuje]]="Empuje medio dificultoso",0.7,IF(Tabla1[[#This Row],[Nivel de empuje]]="Empuje dificultoso",0.6," ")))) -> 1.10 | L71: 0.70 | M71: =Tabla1[[#This Row],[Ancho ]]*(Tabla1[[#This Row],[Altura ]]^2)*Tabla1[[#This Row],[Factor Hoja]] -> 12.347 | N71: =Tabla1[[#This Row],[Producción por ciclo ]]/(Tabla1[[#This Row],[Profundidad]]*Tabla1[[#This Row],[Ancho ]]) -> 6.15 | O71: =MROUND(3*Tabla1[[#This Row],[Longitud ]],10) -> 20.00 | P71: =Tabla1[[#This Row],[Producción por ciclo ]]/(Tabla1[[#This Row],[dmin]]*Tabla1[[#This Row],[Ancho ]]) -> 0.1571 | Q71: =IF(Tabla1[[#This Row],[Profundidad]]>Tabla1[[#This Row],[Profundidad de trabajo ]],"Conforme","No conforme") -> Conforme | R71: =Tabla1[[#This Row],[Densidad ]]*Tabla1[[#This Row],[Producción por ciclo ]] -> 20495.89 | S71: 0.10 | T71: =Tabla1[[#This Row],[Peso ]]+Tabla1[[#This Row],[Peso de material]] -> 58415.89 | U71: =(Tabla1[[#This Row],[Factor de tracción ]]*Tabla1[[#This Row],[Carga total]])/1000 -> 40.89 | V71: 1.30 | W71: 1.50 | X71: =Tabla1[[#This Row],[dmin]]/(Tabla1[[#This Row],[Velod. Avance]]*1000/60) -> 0.92 | Y71: =Tabla1[[#This Row],[dmin]]/(Tabla1[[#This Row],[Velod. Retroceso]]*1000/60) -> 0.80 | Z71: =Tabla1[[#This Row],[Power shift]]+Tabla1[[#This Row],[T. Avance]]+Tabla1[[#This Row],[T. Retroceso]] -> 1.82 | AA71: 0.69 | AB71: =(Tabla1[[#This Row],[Producción por ciclo ]]*60*Tabla1[[#This Row],[Eficiencia]])/Tabla1[[#This Row],[Cm]] -> 280.38
A72: D8R | B72: 37920.00 | C72: Semi universal | D72: 6.390 | E72: 3.930 | F72: 1.690 | G72: 0.511 | H72: Arena seca | I72: 1420.00 | J72: Empuje facil | K72: =IF(Tabla1[[#This Row],[Nivel de empuje]]="Empuje facil",1.1,IF(Tabla1[[#This Row],[Nivel de empuje]]="Empuje promedio",0.9,IF(Tabla1[[#This Row],[Nivel de empuje]]="Empuje medio dificultoso",0.7,IF(Tabla1[[#This Row],[Nivel de empuje]]="Empuje dificultoso",0.6," ")))) -> 1.10 | L72: 0.39 | M72: =Tabla1[[#This Row],[Ancho ]]*(Tabla1[[#This Row],[Altura ]]^2)*Tabla1[[#This Row],[Factor Hoja]] -> 12.347 | N72: =Tabla1[[#This Row],[Producción por ciclo ]]/(Tabla1[[#This Row],[Profundidad]]*Tabla1[[#This Row],[Ancho ]]) -> 6.15 | O72: =MROUND(3*Tabla1[[#This Row],[Longitud ]],10) -> 20.00 | P72: =Tabla1[[#This Row],[Producción por ciclo ]]/(Tabla1[[#This Row],[dmin]]*Tabla1[[#This Row],[Ancho ]]) -> 0.1571 | Q72: =IF(Tabla1[[#This Row],[Profundidad]]>Tabla1[[#This Row],[Profundidad de trabajo ]],"Conforme","No conforme") -> Conforme | R72: =Tabla1[[#This Row],[Densidad ]]*Tabla1[[#This Row],[Producción por ciclo ]] -> 17532.63 | S72: 0.10 | T72: =Tabla1[[#This Row],[Peso ]]+Tabla1[[#This Row],[Peso de material]] -> 55452.63 | U72: =(Tabla1[[#This Row],[Factor de tracción ]]*Tabla1[[#This Row],[Carga total]])/1000 -> 21.63 | V72: 2.60 | W72: 1.50 | X72: =Tabla1[[#This Row],[dmin]]/(Tabla1[[#This Row],[Velod. Avance]]*1000/60) -> 0.46 | Y72: =Tabla1[[#This Row],[dmin]]/(Tabla1[[#This Row],[Velod. Retroceso]]*1000/60) -> 0.80 | Z72: =Tabla1[[#This Row],[Power shift]]+Tabla1[[#This Row],[T. Avance]]+Tabla1[[#This Row],[T. Retroceso]] -> 1.36 | AA72: 0.69 | AB72: =(Tabla1[[#This Row],[Producción por ciclo ]]*60*Tabla1[[#This Row],[Eficiencia]])/Tabla1[[#This Row],[Cm]] -> 375.43
A73: D8R | B73: 37920.00 | C73: Semi universal | D73: 6.390 | E73: 3.930 | F73: 1.690 | G73: 0.511 | H73: Arena húmeda | I73: 1690.00 | J73: Empuje medio dificultoso | K73: =IF(Tabla1[[#This Row],[Nivel de empuje]]="Empuje facil",1.1,IF(Tabla1[[#This Row],[Nivel de empuje]]="Empuje promedio",0.9,IF(Tabla1[[#This Row],[Nivel de empuje]]="Empuje medio dificultoso",0.7,IF(Tabla1[[#This Row],[Nivel de empuje]]="Empuje dificultoso",0.6," ")))) -> 0.70 | L73: 0.50 | M73: =Tabla1[[#This Row],[Ancho ]]*(Tabla1[[#This Row],[Altura ]]^2)*Tabla1[[#This Row],[Factor Hoja]] -> 7.857 | N73: =Tabla1[[#This Row],[Producción por ciclo ]]/(Tabla1[[#This Row],[Profundidad]]*Tabla1[[#This Row],[Ancho ]]) -> 3.91 | O73: =MROUND(3*Tabla1[[#This Row],[Longitud ]],10) -> 20.00 | P73: =Tabla1[[#This Row],[Producción por ciclo ]]/(Tabla1[[#This Row],[dmin]]*Tabla1[[#This Row],[Ancho ]]) -> 0.1000 | Q73: =IF(Tabla1[[#This Row],[Profundidad]]>Tabla1[[#This Row],[Profundidad de trabajo ]],"Conforme","No conforme") -> Conforme | R73: =Tabla1[[#This Row],[Densidad ]]*Tabla1[[#This Row],[Producción por ciclo ]] -> 13278.55 | S73: 0.10 | T73: =Tabla1[[#This Row],[Peso ]]+Tabla1[[#This Row],[Peso de material]] -> 51198.55 | U73: =(Tabla1[[#This Row],[Factor de tracción ]]*Tabla1[[#This Row],[Carga total]])/1000 -> 25.60 | V73: 2.28 | W73: 1.50 | X73: =Tabla1[[#This Row],[dmin]]/(Tabla1[[#This Row],[Velod. Avance]]*1000/60) -> 0.53 | Y73: =Tabla1[[#This Row],[dmin]]/(Tabla1[[#This Row],[Velod. Retroceso]]*1000/60) -> 0.80 | Z73: =Tabla1[[#This Row],[Power shift]]+Tabla1[[#This Row],[T. Avance]]+Tabla1[[#This Row],[T. Retroceso]] -> 1.43 | AA73: 0.69 | AB73: =(Tabla1[[#This Row],[Producción por ciclo ]]*60*Tabla1[[#This Row],[Eficiencia]])/Tabla1[[#This Row],[Cm]] -> 228.06
A74: D8R | B74: 37920.00 | C74: Semi universal | D74: 6.390 | E74: 3.930 | F74: 1.690 | G74: 0.511 | H74: Grava suelta | I74: 1930.00 | J74: Empuje promedio | K74: =IF(Tabla1[[#This Row],[Nivel de empuje]]="Empuje facil",1.1,IF(Tabla1[[#This Row],[Nivel de empuje]]="Empuje promedio",0.9,IF(Tabla1[[#This Row],[Nivel de empuje]]="Empuje medio dificultoso",0.7,IF(Tabla1[[#This Row],[Nivel de empuje]]="Empuje dificultoso",0.6," ")))) -> 0.90 | L74: 0.50 | M74: =Tabla1[[#This Row],[Ancho ]]*(Tabla1[[#This Row],[Altura ]]^2)*Tabla1[[#This Row],[Factor Hoja]] -> 10.102 | N74: =Tabla1[[#This Row],[Producción por ciclo ]]/(Tabla1[[#This Row],[Profundidad]]*Tabla1[[#This Row],[Ancho ]]) -> 5.03 | O74: =MROUND(3*Tabla1[[#This Row],[Longitud ]],10) -> 20.00 | P74: =Tabla1[[#This Row],[Producción por ciclo ]]/(Tabla1[[#This Row],[dmin]]*Tabla1[[#This Row],[Ancho ]]) -> 0.1285 | Q74: =IF(Tabla1[[#This Row],[Profundidad]]>Tabla1[[#This Row],[Profundidad de trabajo ]],"Conforme","No conforme") -> Conforme | R74: =Tabla1[[#This Row],[Densidad ]]*Tabla1[[#This Row],[Producción por ciclo ]] -> 19496.91 | S74: 0.10 | T74: =Tabla1[[#This Row],[Peso ]]+Tabla1[[#This Row],[Peso de material]] -> 57416.91 | U74: =(Tabla1[[#This Row],[Factor de tracción ]]*Tabla1[[#This Row],[Carga total]])/1000 -> 28.71 | V74: 2.03 | W74: 1.50 | X74: =Tabla1[[#This Row],[dmin]]/(Tabla1[[#This Row],[Velod. Avance]]*1000/60) -> 0.59 | Y74: =Tabla1[[#This Row],[dmin]]/(Tabla1[[#This Row],[Velod. Retroceso]]*1000/60) -> 0.80 | Z74: =Tabla1[[#This Row],[Power shift]]+Tabla1[[#This Row],[T. Avance]]+Tabla1[[#This Row],[T. Retroceso]] -> 1.49 | AA74: 0.69 | AB74: =(Tabla1[[#This Row],[Producción por ciclo ]]*60*Tabla1[[#This Row],[Eficiencia]])/Tabla1[[#This Row],[Cm]] -> 280.47
A75: D8R | B75: 37920.00 | C75: Semi universal | D75: 6.390 | E75: 3.930 | F75: 1.690 | G75: 0.511 | H75: Nieve compacta | I75: 130.00 | J75: Empuje medio dificultoso | K75: =IF(Tabla1[[#This Row],[Nivel de empuje]]="Empuje facil",1.1,IF(Tabla1[[#This Row],[Nivel de empuje]]="Empuje promedio",0.9,IF(Tabla1[[#This Row],[Nivel de empuje]]="Empuje medio dificultoso",0.7,IF(Tabla1[[#This Row],[Nivel de empuje]]="Empuje dificultoso",0.6," ")))) -> 0.70 | L75: 0.27 | M75: =Tabla1[[#This Row],[Ancho ]]*(Tabla1[[#This Row],[Altura ]]^2)*Tabla1[[#This Row],[Factor Hoja]] -> 7.857 | N75: =Tabla1[[#This Row],[Producción por ciclo ]]/(Tabla1[[#This Row],[Profundidad]]*Tabla1[[#This Row],[Ancho ]]) -> 3.91 | O75: =MROUND(3*Tabla1[[#This Row],[Longitud ]],10) -> 20.00 | P75: =Tabla1[[#This Row],[Producción por ciclo ]]/(Tabla1[[#This Row],[dmin]]*Tabla1[[#This Row],[Ancho ]]) -> 0.1000 | Q75: =IF(Tabla1[[#This Row],[Profundidad]]>Tabla1[[#This Row],[Profundidad de trabajo ]],"Conforme","No conforme") -> Conforme | R75: =Tabla1[[#This Row],[Densidad ]]*Tabla1[[#This Row],[Producción por ciclo ]] -> 1021.43 | S75: 0.10 | T75: =Tabla1[[#This Row],[Peso ]]+Tabla1[[#This Row],[Peso de material]] -> 38941.43 | U75: =(Tabla1[[#This Row],[Factor de tracción ]]*Tabla1[[#This Row],[Carga total]])/1000 -> 10.51 | V75: 4.78 | W75: 1.50 | X75: =Tabla1[[#This Row],[dmin]]/(Tabla1[[#This Row],[Velod. Avance]]*1000/60) -> 0.25 | Y75: =Tabla1[[#This Row],[dmin]]/(Tabla1[[#This Row],[Velod. Retroceso]]*1000/60) -> 0.80 | Z75: =Tabla1[[#This Row],[Power shift]]+Tabla1[[#This Row],[T. Avance]]+Tabla1[[#This Row],[T. Retroceso]] -> 1.15 | AA75: 0.69 | AB75: =(Tabla1[[#This Row],[Producción por ciclo ]]*60*Tabla1[[#This Row],[Eficiencia]])/Tabla1[[#This Row],[Cm]] -> 282.60
A76: D8R | B76: 37920.00 | C76: Semi universal | D76: 6.390 | E76: 3.930 | F76: 1.690 | G76: 0.511 | H76: Hielo | I76: 520.00 | J76: Empuje dificultoso | K76: =IF(Tabla1[[#This Row],[Nivel de empuje]]="Empuje facil",1.1,IF(Tabla1[[#This Row],[Nivel de empuje]]="Empuje promedio",0.9,IF(Tabla1[[#This Row],[Nivel de empuje]]="Empuje medio dificultoso",0.7,IF(Tabla1[[#This Row],[Nivel de empuje]]="Empuje dificultoso",0.6," ")))) -> 0.60 | L76: 0.12 | M76: =Tabla1[[#This Row],[Ancho ]]*(Tabla1[[#This Row],[Altura ]]^2)*Tabla1[[#This Row],[Factor Hoja]] -> 6.735 | N76: =Tabla1[[#This Row],[Producción por ciclo ]]/(Tabla1[[#This Row],[Profundidad]]*Tabla1[[#This Row],[Ancho ]]) -> 3.35 | O76: =MROUND(3*Tabla1[[#This Row],[Longitud ]],10) -> 20.00 | P76: =Tabla1[[#This Row],[Producción por ciclo ]]/(Tabla1[[#This Row],[dmin]]*Tabla1[[#This Row],[Ancho ]]) -> 0.0857 | Q76: =IF(Tabla1[[#This Row],[Profundidad]]>Tabla1[[#This Row],[Profundidad de trabajo ]],"Conforme","No conforme") -> Conforme | R76: =Tabla1[[#This Row],[Densidad ]]*Tabla1[[#This Row],[Producción por ciclo ]] -> 3502.04 | S76: 0.10 | T76: =Tabla1[[#This Row],[Peso ]]+Tabla1[[#This Row],[Peso de material]] -> 41422.04 | U76: =(Tabla1[[#This Row],[Factor de tracción ]]*Tabla1[[#This Row],[Carga total]])/1000 -> 4.97 | V76: 8.95 | W76: 1.50 | X76: =Tabla1[[#This Row],[dmin]]/(Tabla1[[#This Row],[Velod. Avance]]*1000/60) -> 0.13 | Y76: =Tabla1[[#This Row],[dmin]]/(Tabla1[[#This Row],[Velod. Retroceso]]*1000/60) -> 0.80 | Z76: =Tabla1[[#This Row],[Power shift]]+Tabla1[[#This Row],[T. Avance]]+Tabla1[[#This Row],[T. Retroceso]] -> 1.03 | AA76: 0.69 | AB76: =(Tabla1[[#This Row],[Producción por ciclo ]]*60*Tabla1[[#This Row],[Eficiencia]])/Tabla1[[#This Row],[Cm]] -> 269.63
A77: D8R | B77: 37920.00 | C77: Semi universal | D77: 6.390 | E77: 3.930 | F77: 1.690 | G77: 0.511 | H77: Tierra firme | I77: 1510.00 | J77: Empuje facil | K77: =IF(Tabla1[[#This Row],[Nivel de empuje]]="Empuje facil",1.1,IF(Tabla1[[#This Row],[Nivel de empuje]]="Empuje promedio",0.9,IF(Tabla1[[#This Row],[Nivel de empuje]]="Empuje medio dificultoso",0.7,IF(Tabla1[[#This Row],[Nivel de empuje]]="Empuje dificultoso",0.6," ")))) -> 1.10 | L77: 0.90 | M77: =Tabla1[[#This Row],[Ancho ]]*(Tabla1[[#This Row],[Altura ]]^2)*Tabla1[[#This Row],[Factor Hoja]] -> 12.347 | N77: =Tabla1[[#This Row],[Producción por ciclo ]]/(Tabla1[[#This Row],[Profundidad]]*Tabla1[[#This Row],[Ancho ]]) -> 6.15 | O77: =MROUND(3*Tabla1[[#This Row],[Longitud ]],10) -> 20.00 | P77: =Tabla1[[#This Row],[Producción por ciclo ]]/(Tabla1[[#This Row],[dmin]]*Tabla1[[#This Row],[Ancho ]]) -> 0.1571 | Q77: =IF(Tabla1[[#This Row],[Profundidad]]>Tabla1[[#This Row],[Profundidad de trabajo ]],"Conforme","No conforme") -> Conforme | R77: =Tabla1[[#This Row],[Densidad ]]*Tabla1[[#This Row],[Producción por ciclo ]] -> 18643.85 | S77: 0.10 | T77: =Tabla1[[#This Row],[Peso ]]+Tabla1[[#This Row],[Peso de material]] -> 56563.85 | U77: =(Tabla1[[#This Row],[Factor de tracción ]]*Tabla1[[#This Row],[Carga total]])/1000 -> 50.91 | V77: 7.95 | W77: 1.50 | X77: =Tabla1[[#This Row],[dmin]]/(Tabla1[[#This Row],[Velod. Avance]]*1000/60) -> 0.15 | Y77: =Tabla1[[#This Row],[dmin]]/(Tabla1[[#This Row],[Velod. Retroceso]]*1000/60) -> 0.80 | Z77: =Tabla1[[#This Row],[Power shift]]+Tabla1[[#This Row],[T. Avance]]+Tabla1[[#This Row],[T. Retroceso]] -> 1.05 | AA77: 0.69 | AB77: =(Tabla1[[#This Row],[Producción por ciclo ]]*60*Tabla1[[#This Row],[Eficiencia]])/Tabla1[[#This Row],[Cm]] -> 486.38
A78: D8R | B78: 37920.00 | C78: Semi universal | D78: 6.390 | E78: 3.930 | F78: 1.690 | G78: 0.511 | H78: Tierra suelta | I78: 1250.00 | J78: Empuje facil | K78: =IF(Tabla1[[#This Row],[Nivel de empuje]]="Empuje facil",1.1,IF(Tabla1[[#This Row],[Nivel de empuje]]="Empuje promedio",0.9,IF(Tabla1[[#This Row],[Nivel de empuje]]="Empuje medio dificultoso",0.7,IF(Tabla1[[#This Row],[Nivel de empuje]]="Empuje dificultoso",0.6," ")))) -> 1.10 | L78: 0.60 | M78: =Tabla1[[#This Row],[Ancho ]]*(Tabla1[[#This Row],[Altura ]]^2)*Tabla1[[#This Row],[Factor Hoja]] -> 12.347 | N78: =Tabla1[[#This Row],[Producción por ciclo ]]/(Tabla1[[#This Row],[Profundidad]]*Tabla1[[#This Row],[Ancho ]]) -> 6.15 | O78: =MROUND(3*Tabla1[[#This Row],[Longitud ]],10) -> 20.00 | P78: =Tabla1[[#This Row],[Producción por ciclo ]]/(Tabla1[[#This Row],[dmin]]*Tabla1[[#This Row],[Ancho ]]) -> 0.1571 | Q78: =IF(Tabla1[[#This Row],[Profundidad]]>Tabla1[[#This Row],[Profundidad de trabajo ]],"Conforme","No conforme") -> Conforme | R78: =Tabla1[[#This Row],[Densidad ]]*Tabla1[[#This Row],[Producción por ciclo ]] -> 15433.65 | S78: 0.10 | T78: =Tabla1[[#This Row],[Peso ]]+Tabla1[[#This Row],[Peso de material]] -> 53353.65 | U78: =(Tabla1[[#This Row],[Factor de tracción ]]*Tabla1[[#This Row],[Carga total]])/1000 -> 32.01 | V78: 1.80 | W78: 1.50 | X78: =Tabla1[[#This Row],[dmin]]/(Tabla1[[#This Row],[Velod. Avance]]*1000/60) -> 0.67 | Y78: =Tabla1[[#This Row],[dmin]]/(Tabla1[[#This Row],[Velod. Retroceso]]*1000/60) -> 0.80 | Z78: =Tabla1[[#This Row],[Power shift]]+Tabla1[[#This Row],[T. Avance]]+Tabla1[[#This Row],[T. Retroceso]] -> 1.57 | AA78: 0.69 | AB78: =(Tabla1[[#This Row],[Producción por ciclo ]]*60*Tabla1[[#This Row],[Eficiencia]])/Tabla1[[#This Row],[Cm]] -> 326.27
A79: D8R | B79: 37920.00 | C79: Semi universal | D79: 6.390 | E79: 3.930 | F79: 1.690 | G79: 0.511 | H79: Carbón | I79: 1190.00 | J79: Empuje promedio | K79: =IF(Tabla1[[#This Row],[Nivel de empuje]]="Empuje facil",1.1,IF(Tabla1[[#This Row],[Nivel de empuje]]="Empuje promedio",0.9,IF(Tabla1[[#This Row],[Nivel de empuje]]="Empuje medio dificultoso",0.7,IF(Tabla1[[#This Row],[Nivel de empuje]]="Empuje dificultoso",0.6," ")))) -> 0.90 | L79: 0.60 | M79: =Tabla1[[#This Row],[Ancho ]]*(Tabla1[[#This Row],[Altura ]]^2)*Tabla1[[#This Row],[Factor Hoja]] -> 10.102 | N79: =Tabla1[[#This Row],[Producción por ciclo ]]/(Tabla1[[#This Row],[Profundidad]]*Tabla1[[#This Row],[Ancho ]]) -> 5.03 | O79: =MROUND(3*Tabla1[[#This Row],[Longitud ]],10) -> 20.00 | P79: =Tabla1[[#This Row],[Producción por ciclo ]]/(Tabla1[[#This Row],[dmin]]*Tabla1[[#This Row],[Ancho ]]) -> 0.1285 | Q79: =IF(Tabla1[[#This Row],[Profundidad]]>Tabla1[[#This Row],[Profundidad de trabajo ]],"Conforme","No conforme") -> Conforme | R79: =Tabla1[[#This Row],[Densidad ]]*Tabla1[[#This Row],[Producción por ciclo ]] -> 12021.41 | S79: 0.10 | T79: =Tabla1[[#This Row],[Peso ]]+Tabla1[[#This Row],[Peso de material]] -> 49941.41 | U79: =(Tabla1[[#This Row],[Factor de tracción ]]*Tabla1[[#This Row],[Carga total]])/1000 -> 29.96 | V79: 2.00 | W79: 1.50 | X79: =Tabla1[[#This Row],[dmin]]/(Tabla1[[#This Row],[Velod. Avance]]*1000/60) -> 0.60 | Y79: =Tabla1[[#This Row],[dmin]]/(Tabla1[[#This Row],[Velod. Retroceso]]*1000/60) -> 0.80 | Z79: =Tabla1[[#This Row],[Power shift]]+Tabla1[[#This Row],[T. Avance]]+Tabla1[[#This Row],[T. Retroceso]] -> 1.50 | AA79: 0.69 | AB79: =(Tabla1[[#This Row],[Producción por ciclo ]]*60*Tabla1[[#This Row],[Eficiencia]])/Tabla1[[#This Row],[Cm]] -> 278.82
A80: D8R | B80: 37920.00 | C80: Universal | D80: 6.790 | E80: 4.250 | F80: 1.740 | G80: 0.567 | H80: Concreto | I80: 2400.00 | J80: Empuje dificultoso | K80: =IF(Tabla1[[#This Row],[Nivel de empuje]]="Empuje facil",1.1,IF(Tabla1[[#This Row],[Nivel de empuje]]="Empuje promedio",0.9,IF(Tabla1[[#This Row],[Nivel de empuje]]="Empuje medio dificultoso",0.7,IF(Tabla1[[#This Row],[Nivel de empuje]]="Empuje dificultoso",0.6," ")))) -> 0.60 | L80: 0.45 | M80: =Tabla1[[#This Row],[Ancho ]]*(Tabla1[[#This Row],[Altura ]]^2)*Tabla1[[#This Row],[Factor Hoja]] -> 7.720 | N80: =Tabla1[[#This Row],[Producción por ciclo ]]/(Tabla1[[#This Row],[Profundidad]]*Tabla1[[#This Row],[Ancho ]]) -> 3.20 | O80: =MROUND(3*Tabla1[[#This Row],[Longitud ]],10) -> 20.00 | P80: =Tabla1[[#This Row],[Producción por ciclo ]]/(Tabla1[[#This Row],[dmin]]*Tabla1[[#This Row],[Ancho ]]) -> 0.0908 | Q80: =IF(Tabla1[[#This Row],[Profundidad]]>Tabla1[[#This Row],[Profundidad de trabajo ]],"Conforme","No conforme") -> Conforme | R80: =Tabla1[[#This Row],[Densidad ]]*Tabla1[[#This Row],[Producción por ciclo ]] -> 18528.91 | S80: 0.10 | T80: =Tabla1[[#This Row],[Peso ]]+Tabla1[[#This Row],[Peso de material]] -> 56448.91 | U80: =(Tabla1[[#This Row],[Factor de tracción ]]*Tabla1[[#This Row],[Carga total]])/1000 -> 25.40 | V80: 2.40 | W80: 1.50 | X80: =Tabla1[[#This Row],[dmin]]/(Tabla1[[#This Row],[Velod. Avance]]*1000/60) -> 0.50 | Y80: =Tabla1[[#This Row],[dmin]]/(Tabla1[[#This Row],[Velod. Retroceso]]*1000/60) -> 0.80 | Z80: =Tabla1[[#This Row],[Power shift]]+Tabla1[[#This Row],[T. Avance]]+Tabla1[[#This Row],[T. Retroceso]] -> 1.40 | AA80: 0.69 | AB80: =(Tabla1[[#This Row],[Producción por ciclo ]]*60*Tabla1[[#This Row],[Eficiencia]])/Tabla1[[#This Row],[Cm]] -> 228.30
A81: D8R | B81: 37920.00 | C81: Universal | D81: 6.790 | E81: 4.250 | F81: 1.740 | G81: 0.567 | H81: Arcilla seca | I81: 1480.00 | J81: Empuje medio dificultoso | K81: =IF(Tabla1[[#This Row],[Nivel de empuje]]="Empuje facil",1.1,IF(Tabla1[[#This Row],[Nivel de empuje]]="Empuje promedio",0.9,IF(Tabla1[[#This Row],[Nivel de empuje]]="Empuje medio dificultoso",0.7,IF(Tabla1[[#This Row],[Nivel de empuje]]="Empuje dificultoso",0.6," ")))) -> 0.70 | L81: 0.90 | M81: =Tabla1[[#This Row],[Ancho ]]*(Tabla1[[#This Row],[Altura ]]^2)*Tabla1[[#This Row],[Factor Hoja]] -> 9.007 | N81: =Tabla1[[#This Row],[Producción por ciclo ]]/(Tabla1[[#This Row],[Profundidad]]*Tabla1[[#This Row],[Ancho ]]) -> 3.74 | O81: =MROUND(3*Tabla1[[#This Row],[Longitud ]],10) -> 20.00 | P81: =Tabla1[[#This Row],[Producción por ciclo ]]/(Tabla1[[#This Row],[dmin]]*Tabla1[[#This Row],[Ancho ]]) -> 0.1060 | Q81: =IF(Tabla1[[#This Row],[Profundidad]]>Tabla1[[#This Row],[Profundidad de trabajo ]],"Conforme","No conforme") -> Conforme | R81: =Tabla1[[#This Row],[Densidad ]]*Tabla1[[#This Row],[Producción por ciclo ]] -> 13330.52 | S81: 0.10 | T81: =Tabla1[[#This Row],[Peso ]]+Tabla1[[#This Row],[Peso de material]] -> 51250.52 | U81: =(Tabla1[[#This Row],[Factor de tracción ]]*Tabla1[[#This Row],[Carga total]])/1000 -> 46.13 | V81: 1.85 | W81: 1.50 | X81: =Tabla1[[#This Row],[dmin]]/(Tabla1[[#This Row],[Velod. Avance]]*1000/60) -> 0.65 | Y81: =Tabla1[[#This Row],[dmin]]/(Tabla1[[#This Row],[Velod. Retroceso]]*1000/60) -> 0.80 | Z81: =Tabla1[[#This Row],[Power shift]]+Tabla1[[#This Row],[T. Avance]]+Tabla1[[#This Row],[T. Retroceso]] -> 1.55 | AA81: 0.69 | AB81: =(Tabla1[[#This Row],[Producción por ciclo ]]*60*Tabla1[[#This Row],[Eficiencia]])/Tabla1[[#This Row],[Cm]] -> 240.79
A82: D8R | B82: 37920.00 | C82: Universal | D82: 6.790 | E82: 4.250 | F82: 1.740 | G82: 0.567 | H82: Arcilla húmeda | I82: 1660.00 | J82: Empuje facil | K82: =IF(Tabla1[[#This Row],[Nivel de empuje]]="Empuje facil",1.1,IF(Tabla1[[#This Row],[Nivel de empuje]]="Empuje promedio",0.9,IF(Tabla1[[#This Row],[Nivel de empuje]]="Empuje medio dificultoso",0.7,IF(Tabla1[[#This Row],[Nivel de empuje]]="Empuje dificultoso",0.6," ")))) -> 1.10 | L82: 0.70 | M82: =Tabla1[[#This Row],[Ancho ]]*(Tabla1[[#This Row],[Altura ]]^2)*Tabla1[[#This Row],[Factor Hoja]] -> 14.154 | N82: =Tabla1[[#This Row],[Producción por ciclo ]]/(Tabla1[[#This Row],[Profundidad]]*Tabla1[[#This Row],[Ancho ]]) -> 5.87 | O82: =MROUND(3*Tabla1[[#This Row],[Longitud ]],10) -> 20.00 | P82: =Tabla1[[#This Row],[Producción por ciclo ]]/(Tabla1[[#This Row],[dmin]]*Tabla1[[#This Row],[Ancho ]]) -> 0.1665 | Q82: =IF(Tabla1[[#This Row],[Profundidad]]>Tabla1[[#This Row],[Profundidad de trabajo ]],"Conforme","No conforme") -> Conforme | R82: =Tabla1[[#This Row],[Densidad ]]*Tabla1[[#This Row],[Producción por ciclo ]] -> 23495.69 | S82: 0.10 | T82: =Tabla1[[#This Row],[Peso ]]+Tabla1[[#This Row],[Peso de material]] -> 61415.69 | U82: =(Tabla1[[#This Row],[Factor de tracción ]]*Tabla1[[#This Row],[Carga total]])/1000 -> 42.99 | V82: 1.15 | W82: 1.50 | X82: =Tabla1[[#This Row],[dmin]]/(Tabla1[[#This Row],[Velod. Avance]]*1000/60) -> 1.04 | Y82: =Tabla1[[#This Row],[dmin]]/(Tabla1[[#This Row],[Velod. Retroceso]]*1000/60) -> 0.80 | Z82: =Tabla1[[#This Row],[Power shift]]+Tabla1[[#This Row],[T. Avance]]+Tabla1[[#This Row],[T. Retroceso]] -> 1.94 | AA82: 0.69 | AB82: =(Tabla1[[#This Row],[Producción por ciclo ]]*60*Tabla1[[#This Row],[Eficiencia]])/Tabla1[[#This Row],[Cm]] -> 301.51
A83: D8R | B83: 37920.00 | C83: Universal | D83: 6.790 | E83: 4.250 | F83: 1.740 | G83: 0.567 | H83: Arena seca | I83: 1420.00 | J83: Empuje facil | K83: =IF(Tabla1[[#This Row],[Nivel de empuje]]="Empuje facil",1.1,IF(Tabla1[[#This Row],[Nivel de empuje]]="Empuje promedio",0.9,IF(Tabla1[[#This Row],[Nivel de empuje]]="Empuje medio dificultoso",0.7,IF(Tabla1[[#This Row],[Nivel de empuje]]="Empuje dificultoso",0.6," ")))) -> 1.10 | L83: 0.39 | M83: =Tabla1[[#This Row],[Ancho ]]*(Tabla1[[#This Row],[Altura ]]^2)*Tabla1[[#This Row],[Factor Hoja]] -> 14.154 | N83: =Tabla1[[#This Row],[Producción por ciclo ]]/(Tabla1[[#This Row],[Profundidad]]*Tabla1[[#This Row],[Ancho ]]) -> 5.87 | O83: =MROUND(3*Tabla1[[#This Row],[Longitud ]],10) -> 20.00 | P83: =Tabla1[[#This Row],[Producción por ciclo ]]/(Tabla1[[#This Row],[dmin]]*Tabla1[[#This Row],[Ancho ]]) -> 0.1665 | Q83: =IF(Tabla1[[#This Row],[Profundidad]]>Tabla1[[#This Row],[Profundidad de trabajo ]],"Conforme","No conforme") -> Conforme | R83: =Tabla1[[#This Row],[Densidad ]]*Tabla1[[#This Row],[Producción por ciclo ]] -> 20098.72 | S83: 0.10 | T83: =Tabla1[[#This Row],[Peso ]]+Tabla1[[#This Row],[Peso de material]] -> 58018.72 | U83: =(Tabla1[[#This Row],[Factor de tracción ]]*Tabla1[[#This Row],[Carga total]])/1000 -> 22.63 | V83: 2.50 | W83: 1.50 | X83: =Tabla1[[#This Row],[dmin]]/(Tabla1[[#This Row],[Velod. Avance]]*1000/60) -> 0.48 | Y83: =Tabla1[[#This Row],[dmin]]/(Tabla1[[#This Row],[Velod. Retroceso]]*1000/60) -> 0.80 | Z83: =Tabla1[[#This Row],[Power shift]]+Tabla1[[#This Row],[T. Avance]]+Tabla1[[#This Row],[T. Retroceso]] -> 1.38 | AA83: 0.69 | AB83: =(Tabla1[[#This Row],[Producción por ciclo ]]*60*Tabla1[[#This Row],[Eficiencia]])/Tabla1[[#This Row],[Cm]] -> 424.62
A84: D8R | B84: 37920.00 | C84: Universal | D84: 6.790 | E84: 4.250 | F84: 1.740 | G84: 0.567 | H84: Arena húmeda | I84: 1690.00 | J84: Empuje medio dificultoso | K84: =IF(Tabla1[[#This Row],[Nivel de empuje]]="Empuje facil",1.1,IF(Tabla1[[#This Row],[Nivel de empuje]]="Empuje promedio",0.9,IF(Tabla1[[#This Row],[Nivel de empuje]]="Empuje medio dificultoso",0.7,IF(Tabla1[[#This Row],[Nivel de empuje]]="Empuje dificultoso",0.6," ")))) -> 0.70 | L84: 0.50 | M84: =Tabla1[[#This Row],[Ancho ]]*(Tabla1[[#This Row],[Altura ]]^2)*Tabla1[[#This Row],[Factor Hoja]] -> 9.007 | N84: =Tabla1[[#This Row],[Producción por ciclo ]]/(Tabla1[[#This Row],[Profundidad]]*Tabla1[[#This Row],[Ancho ]]) -> 3.74 | O84: =MROUND(3*Tabla1[[#This Row],[Longitud ]],10) -> 20.00 | P84: =Tabla1[[#This Row],[Producción por ciclo ]]/(Tabla1[[#This Row],[dmin]]*Tabla1[[#This Row],[Ancho ]]) -> 0.1060 | Q84: =IF(Tabla1[[#This Row],[Profundidad]]>Tabla1[[#This Row],[Profundidad de trabajo ]],"Conforme","No conforme") -> Conforme | R84: =Tabla1[[#This Row],[Densidad ]]*Tabla1[[#This Row],[Producción por ciclo ]] -> 15222.02 | S84: 0.10 | T84: =Tabla1[[#This Row],[Peso ]]+Tabla1[[#This Row],[Peso de material]] -> 53142.02 | U84: =(Tabla1[[#This Row],[Factor de tracción ]]*Tabla1[[#This Row],[Carga total]])/1000 -> 26.57 | V84: 2.20 | W84: 1.50 | X84: =Tabla1[[#This Row],[dmin]]/(Tabla1[[#This Row],[Velod. Avance]]*1000/60) -> 0.55 | Y84: =Tabla1[[#This Row],[dmin]]/(Tabla1[[#This Row],[Velod. Retroceso]]*1000/60) -> 0.80 | Z84: =Tabla1[[#This Row],[Power shift]]+Tabla1[[#This Row],[T. Avance]]+Tabla1[[#This Row],[T. Retroceso]] -> 1.45 | AA84: 0.69 | AB84: =(Tabla1[[#This Row],[Producción por ciclo ]]*60*Tabla1[[#This Row],[Eficiencia]])/Tabla1[[#This Row],[Cm]] -> 257.98
A85: D8R | B85: 37920.00 | C85: Universal | D85: 6.790 | E85: 4.250 | F85: 1.740 | G85: 0.567 | H85: Grava suelta | I85: 1930.00 | J85: Empuje promedio | K85: =IF(Tabla1[[#This Row],[Nivel de empuje]]="Empuje facil",1.1,IF(Tabla1[[#This Row],[Nivel de empuje]]="Empuje promedio",0.9,IF(Tabla1[[#This Row],[Nivel de empuje]]="Empuje medio dificultoso",0.7,IF(Tabla1[[#This Row],[Nivel de empuje]]="Empuje dificultoso",0.6," ")))) -> 0.90 | L85: 0.50 | M85: =Tabla1[[#This Row],[Ancho ]]*(Tabla1[[#This Row],[Altura ]]^2)*Tabla1[[#This Row],[Factor Hoja]] -> 11.581 | N85: =Tabla1[[#This Row],[Producción por ciclo ]]/(Tabla1[[#This Row],[Profundidad]]*Tabla1[[#This Row],[Ancho ]]) -> 4.81 | O85: =MROUND(3*Tabla1[[#This Row],[Longitud ]],10) -> 20.00 | P85: =Tabla1[[#This Row],[Producción por ciclo ]]/(Tabla1[[#This Row],[dmin]]*Tabla1[[#This Row],[Ancho ]]) -> 0.1362 | Q85: =IF(Tabla1[[#This Row],[Profundidad]]>Tabla1[[#This Row],[Profundidad de trabajo ]],"Conforme","No conforme") -> Conforme | R85: =Tabla1[[#This Row],[Densidad ]]*Tabla1[[#This Row],[Producción por ciclo ]] -> 22350.50 | S85: 0.10 | T85: =Tabla1[[#This Row],[Peso ]]+Tabla1[[#This Row],[Peso de material]] -> 60270.50 | U85: =(Tabla1[[#This Row],[Factor de tracción ]]*Tabla1[[#This Row],[Carga total]])/1000 -> 30.14 | V85: 1.99 | W85: 1.50 | X85: =Tabla1[[#This Row],[dmin]]/(Tabla1[[#This Row],[Velod. Avance]]*1000/60) -> 0.60 | Y85: =Tabla1[[#This Row],[dmin]]/(Tabla1[[#This Row],[Velod. Retroceso]]*1000/60) -> 0.80 | Z85: =Tabla1[[#This Row],[Power shift]]+Tabla1[[#This Row],[T. Avance]]+Tabla1[[#This Row],[T. Retroceso]] -> 1.50 | AA85: 0.69 | AB85: =(Tabla1[[#This Row],[Producción por ciclo ]]*60*Tabla1[[#This Row],[Eficiencia]])/Tabla1[[#This Row],[Cm]] -> 318.98
A86: D8R | B86: 37920.00 | C86: Universal | D86: 6.790 | E86: 4.250 | F86: 1.740 | G86: 0.567 | H86: Nieve compacta | I86: 130.00 | J86: Empuje medio dificultoso | K86: =IF(Tabla1[[#This Row],[Nivel de empuje]]="Empuje facil",1.1,IF(Tabla1[[#This Row],[Nivel de empuje]]="Empuje promedio",0.9,IF(Tabla1[[#This Row],[Nivel de empuje]]="Empuje medio dificultoso",0.7,IF(Tabla1[[#This Row],[Nivel de empuje]]="Empuje dificultoso",0.6," ")))) -> 0.70 | L86: 0.27 | M86: =Tabla1[[#This Row],[Ancho ]]*(Tabla1[[#This Row],[Altura ]]^2)*Tabla1[[#This Row],[Factor Hoja]] -> 9.007 | N86: =Tabla1[[#This Row],[Producción por ciclo ]]/(Tabla1[[#This Row],[Profundidad]]*Tabla1[[#This Row],[Ancho ]]) -> 3.74 | O86: =MROUND(3*Tabla1[[#This Row],[Longitud ]],10) -> 20.00 | P86: =Tabla1[[#This Row],[Producción por ciclo ]]/(Tabla1[[#This Row],[dmin]]*Tabla1[[#This Row],[Ancho ]]) -> 0.1060 | Q86: =IF(Tabla1[[#This Row],[Profundidad]]>Tabla1[[#This Row],[Profundidad de trabajo ]],"Conforme","No conforme") -> Conforme | R86: =Tabla1[[#This Row],[Densidad ]]*Tabla1[[#This Row],[Producción por ciclo ]] -> 1170.92 | S86: 0.10 | T86: =Tabla1[[#This Row],[Peso ]]+Tabla1[[#This Row],[Peso de material]] -> 39090.92 | U86: =(Tabla1[[#This Row],[Factor de tracción ]]*Tabla1[[#This Row],[Carga total]])/1000 -> 10.55 | V86: 4.76 | W86: 1.50 | X86: =Tabla1[[#This Row],[dmin]]/(Tabla1[[#This Row],[Velod. Avance]]*1000/60) -> 0.25 | Y86: =Tabla1[[#This Row],[dmin]]/(Tabla1[[#This Row],[Velod. Retroceso]]*1000/60) -> 0.80 | Z86: =Tabla1[[#This Row],[Power shift]]+Tabla1[[#This Row],[T. Avance]]+Tabla1[[#This Row],[T. Retroceso]] -> 1.15 | AA86: 0.69 | AB86: =(Tabla1[[#This Row],[Producción por ciclo ]]*60*Tabla1[[#This Row],[Eficiencia]])/Tabla1[[#This Row],[Cm]] -> 323.66
A87: D8R | B87: 37920.00 | C87: Universal | D87: 6.790 | E87: 4.250 | F87: 1.740 | G87: 0.567 | H87: Hielo | I87: 520.00 | J87: Empuje dificultoso | K87: =IF(Tabla1[[#This Row],[Nivel de empuje]]="Empuje facil",1.1,IF(Tabla1[[#This Row],[Nivel de empuje]]="Empuje promedio",0.9,IF(Tabla1[[#This Row],[Nivel de empuje]]="Empuje medio dificultoso",0.7,IF(Tabla1[[#This Row],[Nivel de empuje]]="Empuje dificultoso",0.6," ")))) -> 0.60 | L87: 0.12 | M87: =Tabla1[[#This Row],[Ancho ]]*(Tabla1[[#This Row],[Altura ]]^2)*Tabla1[[#This Row],[Factor Hoja]] -> 7.720 | N87: =Tabla1[[#This Row],[Producción por ciclo ]]/(Tabla1[[#This Row],[Profundidad]]*Tabla1[[#This Row],[Ancho ]]) -> 3.20 | O87: =MROUND(3*Tabla1[[#This Row],[Longitud ]],10) -> 20.00 | P87: =Tabla1[[#This Row],[Producción por ciclo ]]/(Tabla1[[#This Row],[dmin]]*Tabla1[[#This Row],[Ancho ]]) -> 0.0908 | Q87: =IF(Tabla1[[#This Row],[Profundidad]]>Tabla1[[#This Row],[Profundidad de trabajo ]],"Conforme","No conforme") -> Conforme | R87: =Tabla1[[#This Row],[Densidad ]]*Tabla1[[#This Row],[Producción por ciclo ]] -> 4014.60 | S87: 0.10 | T87: =Tabla1[[#This Row],[Peso ]]+Tabla1[[#This Row],[Peso de material]] -> 41934.60 | U87: =(Tabla1[[#This Row],[Factor de tracción ]]*Tabla1[[#This Row],[Carga total]])/1000 -> 5.03 | V87: 8.94 | W87: 1.50 | X87: =Tabla1[[#This Row],[dmin]]/(Tabla1[[#This Row],[Velod. Avance]]*1000/60) -> 0.13 | Y87: =Tabla1[[#This Row],[dmin]]/(Tabla1[[#This Row],[Velod. Retroceso]]*1000/60) -> 0.80 | Z87: =Tabla1[[#This Row],[Power shift]]+Tabla1[[#This Row],[T. Avance]]+Tabla1[[#This Row],[T. Retroceso]] -> 1.03 | AA87: 0.69 | AB87: =(Tabla1[[#This Row],[Producción por ciclo ]]*60*Tabla1[[#This Row],[Eficiencia]])/Tabla1[[#This Row],[Cm]] -> 309.05
A88: D8R | B88: 37920.00 | C88: Universal | D88: 6.790 | E88: 4.250 | F88: 1.740 | G88: 0.567 | H88: Tierra firme | I88: 1510.00 | J88: Empuje facil | K88: =IF(Tabla1[[#This Row],[Nivel de empuje]]="Empuje facil",1.1,IF(Tabla1[[#This Row],[Nivel de empuje]]="Empuje promedio",0.9,IF(Tabla1[[#This Row],[Nivel de empuje]]="Empuje medio dificultoso",0.7,IF(Tabla1[[#This Row],[Nivel de empuje]]="Empuje dificultoso",0.6," ")))) -> 1.10 | L88: 0.90 | M88: =Tabla1[[#This Row],[Ancho ]]*(Tabla1[[#This Row],[Altura ]]^2)*Tabla1[[#This Row],[Factor Hoja]] -> 14.154 | N88: =Tabla1[[#This Row],[Producción por ciclo ]]/(Tabla1[[#This Row],[Profundidad]]*Tabla1[[#This Row],[Ancho ]]) -> 5.87 | O88: =MROUND(3*Tabla1[[#This Row],[Longitud ]],10) -> 20.00 | P88: =Tabla1[[#This Row],[Producción por ciclo ]]/(Tabla1[[#This Row],[dmin]]*Tabla1[[#This Row],[Ancho ]]) -> 0.1665 | Q88: =IF(Tabla1[[#This Row],[Profundidad]]>Tabla1[[#This Row],[Profundidad de trabajo ]],"Conforme","No conforme") -> Conforme | R88: =Tabla1[[#This Row],[Densidad ]]*Tabla1[[#This Row],[Producción por ciclo ]] -> 21372.59 | S88: 0.10 | T88: =Tabla1[[#This Row],[Peso ]]+Tabla1[[#This Row],[Peso de material]] -> 59292.59 | U88: =(Tabla1[[#This Row],[Factor de tracción ]]*Tabla1[[#This Row],[Carga total]])/1000 -> 53.36 | V88: 0.38 | W88: 1.50 | X88: =Tabla1[[#This Row],[dmin]]/(Tabla1[[#This Row],[Velod. Avance]]*1000/60) -> 3.16 | Y88: =Tabla1[[#This Row],[dmin]]/(Tabla1[[#This Row],[Velod. Retroceso]]*1000/60) -> 0.80 | Z88: =Tabla1[[#This Row],[Power shift]]+Tabla1[[#This Row],[T. Avance]]+Tabla1[[#This Row],[T. Retroceso]] -> 4.06 | AA88: 0.69 | AB88: =(Tabla1[[#This Row],[Producción por ciclo ]]*60*Tabla1[[#This Row],[Eficiencia]])/Tabla1[[#This Row],[Cm]] -> 144.40
A89: D8R | B89: 37920.00 | C89: Universal | D89: 6.790 | E89: 4.250 | F89: 1.740 | G89: 0.567 | H89: Tierra suelta | I89: 1250.00 | J89: Empuje facil | K89: =IF(Tabla1[[#This Row],[Nivel de empuje]]="Empuje facil",1.1,IF(Tabla1[[#This Row],[Nivel de empuje]]="Empuje promedio",0.9,IF(Tabla1[[#This Row],[Nivel de empuje]]="Empuje medio dificultoso",0.7,IF(Tabla1[[#This Row],[Nivel de empuje]]="Empuje dificultoso",0.6," ")))) -> 1.10 | L89: 0.60 | M89: =Tabla1[[#This Row],[Ancho ]]*(Tabla1[[#This Row],[Altura ]]^2)*Tabla1[[#This Row],[Factor Hoja]] -> 14.154 | N89: =Tabla1[[#This Row],[Producción por ciclo ]]/(Tabla1[[#This Row],[Profundidad]]*Tabla1[[#This Row],[Ancho ]]) -> 5.87 | O89: =MROUND(3*Tabla1[[#This Row],[Longitud ]],10) -> 20.00 | P89: =Tabla1[[#This Row],[Producción por ciclo ]]/(Tabla1[[#This Row],[dmin]]*Tabla1[[#This Row],[Ancho ]]) -> 0.1665 | Q89: =IF(Tabla1[[#This Row],[Profundidad]]>Tabla1[[#This Row],[Profundidad de trabajo ]],"Conforme","No conforme") -> Conforme | R89: =Tabla1[[#This Row],[Densidad ]]*Tabla1[[#This Row],[Producción por ciclo ]] -> 17692.54 | S89: 0.10 | T89: =Tabla1[[#This Row],[Peso ]]+Tabla1[[#This Row],[Peso de material]] -> 55612.54 | U89: =(Tabla1[[#This Row],[Factor de tracción ]]*Tabla1[[#This Row],[Carga total]])/1000 -> 33.37 | V89: 1.76 | W89: 1.50 | X89: =Tabla1[[#This Row],[dmin]]/(Tabla1[[#This Row],[Velod. Avance]]*1000/60) -> 0.68 | Y89: =Tabla1[[#This Row],[dmin]]/(Tabla1[[#This Row],[Velod. Retroceso]]*1000/60) -> 0.80 | Z89: =Tabla1[[#This Row],[Power shift]]+Tabla1[[#This Row],[T. Avance]]+Tabla1[[#This Row],[T. Retroceso]] -> 1.58 | AA89: 0.69 | AB89: =(Tabla1[[#This Row],[Producción por ciclo ]]*60*Tabla1[[#This Row],[Eficiencia]])/Tabla1[[#This Row],[Cm]] -> 370.45
A90: D8R | B90: 37920.00 | C90: Universal | D90: 6.790 | E90: 4.250 | F90: 1.740 | G90: 0.567 | H90: Carbón | I90: 1190.00 | J90: Empuje promedio | K90: =IF(Tabla1[[#This Row],[Nivel de empuje]]="Empuje facil",1.1,IF(Tabla1[[#This Row],[Nivel de empuje]]="Empuje promedio",0.9,IF(Tabla1[[#This Row],[Nivel de empuje]]="Empuje medio dificultoso",0.7,IF(Tabla1[[#This Row],[Nivel de empuje]]="Empuje dificultoso",0.6," ")))) -> 0.90 | L90: 0.60 | M90: =Tabla1[[#This Row],[Ancho ]]*(Tabla1[[#This Row],[Altura ]]^2)*Tabla1[[#This Row],[Factor Hoja]] -> 11.581 | N90: =Tabla1[[#This Row],[Producción por ciclo ]]/(Tabla1[[#This Row],[Profundidad]]*Tabla1[[#This Row],[Ancho ]]) -> 4.81 | O90: =MROUND(3*Tabla1[[#This Row],[Longitud ]],10) -> 20.00 | P90: =Tabla1[[#This Row],[Producción por ciclo ]]/(Tabla1[[#This Row],[dmin]]*Tabla1[[#This Row],[Ancho ]]) -> 0.1362 | Q90: =IF(Tabla1[[#This Row],[Profundidad]]>Tabla1[[#This Row],[Profundidad de trabajo ]],"Conforme","No conforme") -> Conforme | R90: =Tabla1[[#This Row],[Densidad ]]*Tabla1[[#This Row],[Producción por ciclo ]] -> 13780.88 | S90: 0.10 | T90: =Tabla1[[#This Row],[Peso ]]+Tabla1[[#This Row],[Peso de material]] -> 51700.88 | U90: =(Tabla1[[#This Row],[Factor de tracción ]]*Tabla1[[#This Row],[Carga total]])/1000 -> 31.02 | V90: 1.90 | W90: 1.50 | X90: =Tabla1[[#This Row],[dmin]]/(Tabla1[[#This Row],[Velod. Avance]]*1000/60) -> 0.63 | Y90: =Tabla1[[#This Row],[dmin]]/(Tabla1[[#This Row],[Velod. Retroceso]]*1000/60) -> 0.80 | Z90: =Tabla1[[#This Row],[Power shift]]+Tabla1[[#This Row],[T. Avance]]+Tabla1[[#This Row],[T. Retroceso]] -> 1.53 | AA90: 0.69 | AB90: =(Tabla1[[#This Row],[Producción por ciclo ]]*60*Tabla1[[#This Row],[Eficiencia]])/Tabla1[[#This Row],[Cm]] -> 313.03
A91: D8T | B91: 39751.00 | C91: Orientación | D91: 6.570 | E91: 5.000 | F91: 1.174 | G91: 0.625 | H91: Concreto | I91: 2400.00 | J91: Empuje dificultoso | K91: =IF(Tabla1[[#This Row],[Nivel de empuje]]="Empuje facil",1.1,IF(Tabla1[[#This Row],[Nivel de empuje]]="Empuje promedio",0.9,IF(Tabla1[[#This Row],[Nivel de empuje]]="Empuje medio dificultoso",0.7,IF(Tabla1[[#This Row],[Nivel de empuje]]="Empuje dificultoso",0.6," ")))) -> 0.60 | L91: 0.45 | M91: =Tabla1[[#This Row],[Ancho ]]*(Tabla1[[#This Row],[Altura ]]^2)*Tabla1[[#This Row],[Factor Hoja]] -> 4.135 | N91: =Tabla1[[#This Row],[Producción por ciclo ]]/(Tabla1[[#This Row],[Profundidad]]*Tabla1[[#This Row],[Ancho ]]) -> 1.32 | O91: =MROUND(3*Tabla1[[#This Row],[Longitud ]],10) -> 20.00 | P91: =Tabla1[[#This Row],[Producción por ciclo ]]/(Tabla1[[#This Row],[dmin]]*Tabla1[[#This Row],[Ancho ]]) -> 0.0413 | Q91: =IF(Tabla1[[#This Row],[Profundidad]]>Tabla1[[#This Row],[Profundidad de trabajo ]],"Conforme","No conforme") -> Conforme | R91: =Tabla1[[#This Row],[Densidad ]]*Tabla1[[#This Row],[Producción por ciclo ]] -> 9923.59 | S91: 0.10 | T91: =Tabla1[[#This Row],[Peso ]]+Tabla1[[#This Row],[Peso de material]] -> 49674.59 | U91: =(Tabla1[[#This Row],[Factor de tracción ]]*Tabla1[[#This Row],[Carga total]])/1000 -> 22.35 | V91: 2.51 | W91: 1.30 | X91: =Tabla1[[#This Row],[dmin]]/(Tabla1[[#This Row],[Velod. Avance]]*1000/60) -> 0.48 | Y91: =Tabla1[[#This Row],[dmin]]/(Tabla1[[#This Row],[Velod. Retroceso]]*1000/60) -> 0.92 | Z91: =Tabla1[[#This Row],[Power shift]]+Tabla1[[#This Row],[T. Avance]]+Tabla1[[#This Row],[T. Retroceso]] -> 1.50 | AA91: 0.69 | AB91: =(Tabla1[[#This Row],[Producción por ciclo ]]*60*Tabla1[[#This Row],[Eficiencia]])/Tabla1[[#This Row],[Cm]] -> 114.03
A92: D8T | B92: 39751.00 | C92: Orientación | D92: 6.570 | E92: 5.000 | F92: 1.174 | G92: 0.625 | H92: Arcilla seca | I92: 1480.00 | J92: Empuje medio dificultoso | K92: =IF(Tabla1[[#This Row],[Nivel de empuje]]="Empuje facil",1.1,IF(Tabla1[[#This Row],[Nivel de empuje]]="Empuje promedio",0.9,IF(Tabla1[[#This Row],[Nivel de empuje]]="Empuje medio dificultoso",0.7,IF(Tabla1[[#This Row],[Nivel de empuje]]="Empuje dificultoso",0.6," ")))) -> 0.70 | L92: 0.90 | M92: =Tabla1[[#This Row],[Ancho ]]*(Tabla1[[#This Row],[Altura ]]^2)*Tabla1[[#This Row],[Factor Hoja]] -> 4.824 | N92: =Tabla1[[#This Row],[Producción por ciclo ]]/(Tabla1[[#This Row],[Profundidad]]*Tabla1[[#This Row],[Ancho ]]) -> 1.54 | O92: =MROUND(3*Tabla1[[#This Row],[Longitud ]],10) -> 20.00 | P92: =Tabla1[[#This Row],[Producción por ciclo ]]/(Tabla1[[#This Row],[dmin]]*Tabla1[[#This Row],[Ancho ]]) -> 0.0482 | Q92: =IF(Tabla1[[#This Row],[Profundidad]]>Tabla1[[#This Row],[Profundidad de trabajo ]],"Conforme","No conforme") -> Conforme | R92: =Tabla1[[#This Row],[Densidad ]]*Tabla1[[#This Row],[Producción por ciclo ]] -> 7139.47 | S92: 0.10 | T92: =Tabla1[[#This Row],[Peso ]]+Tabla1[[#This Row],[Peso de material]] -> 46890.47 | U92: =(Tabla1[[#This Row],[Factor de tracción ]]*Tabla1[[#This Row],[Carga total]])/1000 -> 42.20 | V92: 1.10 | W92: 1.30 | X92: =Tabla1[[#This Row],[dmin]]/(Tabla1[[#This Row],[Velod. Avance]]*1000/60) -> 1.09 | Y92: =Tabla1[[#This Row],[dmin]]/(Tabla1[[#This Row],[Velod. Retroceso]]*1000/60) -> 0.92 | Z92: =Tabla1[[#This Row],[Power shift]]+Tabla1[[#This Row],[T. Avance]]+Tabla1[[#This Row],[T. Retroceso]] -> 2.11 | AA92: 0.69 | AB92: =(Tabla1[[#This Row],[Producción por ciclo ]]*60*Tabla1[[#This Row],[Eficiencia]])/Tabla1[[#This Row],[Cm]] -> 94.47
A93: D8T | B93: 39751.00 | C93: Orientación | D93: 6.570 | E93: 5.000 | F93: 1.174 | G93: 0.625 | H93: Arcilla húmeda | I93: 1660.00 | J93: Empuje facil | K93: =IF(Tabla1[[#This Row],[Nivel de empuje]]="Empuje facil",1.1,IF(Tabla1[[#This Row],[Nivel de empuje]]="Empuje promedio",0.9,IF(Tabla1[[#This Row],[Nivel de empuje]]="Empuje medio dificultoso",0.7,IF(Tabla1[[#This Row],[Nivel de empuje]]="Empuje dificultoso",0.6," ")))) -> 1.10 | L93: 0.70 | M93: =Tabla1[[#This Row],[Ancho ]]*(Tabla1[[#This Row],[Altura ]]^2)*Tabla1[[#This Row],[Factor Hoja]] -> 7.581 | N93: =Tabla1[[#This Row],[Producción por ciclo ]]/(Tabla1[[#This Row],[Profundidad]]*Tabla1[[#This Row],[Ancho ]]) -> 2.43 | O93: =MROUND(3*Tabla1[[#This Row],[Longitud ]],10) -> 20.00 | P93: =Tabla1[[#This Row],[Producción por ciclo ]]/(Tabla1[[#This Row],[dmin]]*Tabla1[[#This Row],[Ancho ]]) -> 0.0758 | Q93: =IF(Tabla1[[#This Row],[Profundidad]]>Tabla1[[#This Row],[Profundidad de trabajo ]],"Conforme","No conforme") -> Conforme | R93: =Tabla1[[#This Row],[Densidad ]]*Tabla1[[#This Row],[Producción por ciclo ]] -> 12583.66 | S93: 0.10 | T93: =Tabla1[[#This Row],[Peso ]]+Tabla1[[#This Row],[Peso de material]] -> 52334.66 | U93: =(Tabla1[[#This Row],[Factor de tracción ]]*Tabla1[[#This Row],[Carga total]])/1000 -> 36.63 | V93: 1.45 | W93: 1.30 | X93: =Tabla1[[#This Row],[dmin]]/(Tabla1[[#This Row],[Velod. Avance]]*1000/60) -> 0.83 | Y93: =Tabla1[[#This Row],[dmin]]/(Tabla1[[#This Row],[Velod. Retroceso]]*1000/60) -> 0.92 | Z93: =Tabla1[[#This Row],[Power shift]]+Tabla1[[#This Row],[T. Avance]]+Tabla1[[#This Row],[T. Retroceso]] -> 1.85 | AA93: 0.69 | AB93: =(Tabla1[[#This Row],[Producción por ciclo ]]*60*Tabla1[[#This Row],[Eficiencia]])/Tabla1[[#This Row],[Cm]] -> 169.58
A94: D8T | B94: 39751.00 | C94: Orientación | D94: 6.570 | E94: 5.000 | F94: 1.174 | G94: 0.625 | H94: Arena seca | I94: 1420.00 | J94: Empuje facil | K94: =IF(Tabla1[[#This Row],[Nivel de empuje]]="Empuje facil",1.1,IF(Tabla1[[#This Row],[Nivel de empuje]]="Empuje promedio",0.9,IF(Tabla1[[#This Row],[Nivel de empuje]]="Empuje medio dificultoso",0.7,IF(Tabla1[[#This Row],[Nivel de empuje]]="Empuje dificultoso",0.6," ")))) -> 1.10 | L94: 0.39 | M94: =Tabla1[[#This Row],[Ancho ]]*(Tabla1[[#This Row],[Altura ]]^2)*Tabla1[[#This Row],[Factor Hoja]] -> 7.581 | N94: =Tabla1[[#This Row],[Producción por ciclo ]]/(Tabla1[[#This Row],[Profundidad]]*Tabla1[[#This Row],[Ancho ]]) -> 2.43 | O94: =MROUND(3*Tabla1[[#This Row],[Longitud ]],10) -> 20.00 | P94: =Tabla1[[#This Row],[Producción por ciclo ]]/(Tabla1[[#This Row],[dmin]]*Tabla1[[#This Row],[Ancho ]]) -> 0.0758 | Q94: =IF(Tabla1[[#This Row],[Profundidad]]>Tabla1[[#This Row],[Profundidad de trabajo ]],"Conforme","No conforme") -> Conforme | R94: =Tabla1[[#This Row],[Densidad ]]*Tabla1[[#This Row],[Producción por ciclo ]] -> 10764.34 | S94: 0.10 | T94: =Tabla1[[#This Row],[Peso ]]+Tabla1[[#This Row],[Peso de material]] -> 50515.34 | U94: =(Tabla1[[#This Row],[Factor de tracción ]]*Tabla1[[#This Row],[Carga total]])/1000 -> 19.70 | V94: 2.51 | W94: 1.30 | X94: =Tabla1[[#This Row],[dmin]]/(Tabla1[[#This Row],[Velod. Avance]]*1000/60) -> 0.48 | Y94: =Tabla1[[#This Row],[dmin]]/(Tabla1[[#This Row],[Velod. Retroceso]]*1000/60) -> 0.92 | Z94: =Tabla1[[#This Row],[Power shift]]+Tabla1[[#This Row],[T. Avance]]+Tabla1[[#This Row],[T. Retroceso]] -> 1.50 | AA94: 0.69 | AB94: =(Tabla1[[#This Row],[Producción por ciclo ]]*60*Tabla1[[#This Row],[Eficiencia]])/Tabla1[[#This Row],[Cm]] -> 209.06
A95: D8T | B95: 39751.00 | C95: Orientación | D95: 6.570 | E95: 5.000 | F95: 1.174 | G95: 0.625 | H95: Arena húmeda | I95: 1690.00 | J95: Empuje medio dificultoso | K95: =IF(Tabla1[[#This Row],[Nivel de empuje]]="Empuje facil",1.1,IF(Tabla1[[#This Row],[Nivel de empuje]]="Empuje promedio",0.9,IF(Tabla1[[#This Row],[Nivel de empuje]]="Empuje medio dificultoso",0.7,IF(Tabla1[[#This Row],[Nivel de empuje]]="Empuje dificultoso",0.6," ")))) -> 0.70 | L95: 0.50 | M95: =Tabla1[[#This Row],[Ancho ]]*(Tabla1[[#This Row],[Altura ]]^2)*Tabla1[[#This Row],[Factor Hoja]] -> 4.824 | N95: =Tabla1[[#This Row],[Producción por ciclo ]]/(Tabla1[[#This Row],[Profundidad]]*Tabla1[[#This Row],[Ancho ]]) -> 1.54 | O95: =MROUND(3*Tabla1[[#This Row],[Longitud ]],10) -> 20.00 | P95: =Tabla1[[#This Row],[Producción por ciclo ]]/(Tabla1[[#This Row],[dmin]]*Tabla1[[#This Row],[Ancho ]]) -> 0.0482 | Q95: =IF(Tabla1[[#This Row],[Profundidad]]>Tabla1[[#This Row],[Profundidad de trabajo ]],"Conforme","No conforme") -> Conforme | R95: =Tabla1[[#This Row],[Densidad ]]*Tabla1[[#This Row],[Producción por ciclo ]] -> 8152.50 | S95: 0.10 | T95: =Tabla1[[#This Row],[Peso ]]+Tabla1[[#This Row],[Peso de material]] -> 47903.50 | U95: =(Tabla1[[#This Row],[Factor de tracción ]]*Tabla1[[#This Row],[Carga total]])/1000 -> 23.95 | V95: 2.38 | W95: 1.30 | X95: =Tabla1[[#This Row],[dmin]]/(Tabla1[[#This Row],[Velod. Avance]]*1000/60) -> 0.50 | Y95: =Tabla1[[#This Row],[dmin]]/(Tabla1[[#This Row],[Velod. Retroceso]]*1000/60) -> 0.92 | Z95: =Tabla1[[#This Row],[Power shift]]+Tabla1[[#This Row],[T. Avance]]+Tabla1[[#This Row],[T. Retroceso]] -> 1.53 | AA95: 0.69 | AB95: =(Tabla1[[#This Row],[Producción por ciclo ]]*60*Tabla1[[#This Row],[Eficiencia]])/Tabla1[[#This Row],[Cm]] -> 130.76
A96: D8T | B96: 39751.00 | C96: Orientación | D96: 6.570 | E96: 5.000 | F96: 1.174 | G96: 0.625 | H96: Grava suelta | I96: 1930.00 | J96: Empuje promedio | K96: =IF(Tabla1[[#This Row],[Nivel de empuje]]="Empuje facil",1.1,IF(Tabla1[[#This Row],[Nivel de empuje]]="Empuje promedio",0.9,IF(Tabla1[[#This Row],[Nivel de empuje]]="Empuje medio dificultoso",0.7,IF(Tabla1[[#This Row],[Nivel de empuje]]="Empuje dificultoso",0.6," ")))) -> 0.90 | L96: 0.50 | M96: =Tabla1[[#This Row],[Ancho ]]*(Tabla1[[#This Row],[Altura ]]^2)*Tabla1[[#This Row],[Factor Hoja]] -> 6.202 | N96: =Tabla1[[#This Row],[Producción por ciclo ]]/(Tabla1[[#This Row],[Profundidad]]*Tabla1[[#This Row],[Ancho ]]) -> 1.98 | O96: =MROUND(3*Tabla1[[#This Row],[Longitud ]],10) -> 20.00 | P96: =Tabla1[[#This Row],[Producción por ciclo ]]/(Tabla1[[#This Row],[dmin]]*Tabla1[[#This Row],[Ancho ]]) -> 0.0620 | Q96: =IF(Tabla1[[#This Row],[Profundidad]]>Tabla1[[#This Row],[Profundidad de trabajo ]],"Conforme","No conforme") -> Conforme | R96: =Tabla1[[#This Row],[Densidad ]]*Tabla1[[#This Row],[Producción por ciclo ]] -> 11970.33 | S96: 0.10 | T96: =Tabla1[[#This Row],[Peso ]]+Tabla1[[#This Row],[Peso de material]] -> 51721.33 | U96: =(Tabla1[[#This Row],[Factor de tracción ]]*Tabla1[[#This Row],[Carga total]])/1000 -> 25.86 | V96: 2.24 | W96: 1.30 | X96: =Tabla1[[#This Row],[dmin]]/(Tabla1[[#This Row],[Velod. Avance]]*1000/60) -> 0.54 | Y96: =Tabla1[[#This Row],[dmin]]/(Tabla1[[#This Row],[Velod. Retroceso]]*1000/60) -> 0.92 | Z96: =Tabla1[[#This Row],[Power shift]]+Tabla1[[#This Row],[T. Avance]]+Tabla1[[#This Row],[T. Retroceso]] -> 1.56 | AA96: 0.69 | AB96: =(Tabla1[[#This Row],[Producción por ciclo ]]*60*Tabla1[[#This Row],[Eficiencia]])/Tabla1[[#This Row],[Cm]] -> 164.73
A97: D8T | B97: 39751.00 | C97: Orientación | D97: 6.570 | E97: 5.000 | F97: 1.174 | G97: 0.625 | H97: Nieve compacta | I97: 130.00 | J97: Empuje medio dificultoso | K97: =IF(Tabla1[[#This Row],[Nivel de empuje]]="Empuje facil",1.1,IF(Tabla1[[#This Row],[Nivel de empuje]]="Empuje promedio",0.9,IF(Tabla1[[#This Row],[Nivel de empuje]]="Empuje medio dificultoso",0.7,IF(Tabla1[[#This Row],[Nivel de empuje]]="Empuje dificultoso",0.6," ")))) -> 0.70 | L97: 0.27 | M97: =Tabla1[[#This Row],[Ancho ]]*(Tabla1[[#This Row],[Altura ]]^2)*Tabla1[[#This Row],[Factor Hoja]] -> 4.824 | N97: =Tabla1[[#This Row],[Producción por ciclo ]]/(Tabla1[[#This Row],[Profundidad]]*Tabla1[[#This Row],[Ancho ]]) -> 1.54 | O97: =MROUND(3*Tabla1[[#This Row],[Longitud ]],10) -> 20.00 | P97: =Tabla1[[#This Row],[Producción por ciclo ]]/(Tabla1[[#This Row],[dmin]]*Tabla1[[#This Row],[Ancho ]]) -> 0.0482 | Q97: =IF(Tabla1[[#This Row],[Profundidad]]>Tabla1[[#This Row],[Profundidad de trabajo ]],"Conforme","No conforme") -> Conforme | R97: =Tabla1[[#This Row],[Densidad ]]*Tabla1[[#This Row],[Producción por ciclo ]] -> 627.12 | S97: 0.10 | T97: =Tabla1[[#This Row],[Peso ]]+Tabla1[[#This Row],[Peso de material]] -> 40378.12 | U97: =(Tabla1[[#This Row],[Factor de tracción ]]*Tabla1[[#This Row],[Carga total]])/1000 -> 10.90 | V97: 6.32 | W97: 1.30 | X97: =Tabla1[[#This Row],[dmin]]/(Tabla1[[#This Row],[Velod. Avance]]*1000/60) -> 0.19 | Y97: =Tabla1[[#This Row],[dmin]]/(Tabla1[[#This Row],[Velod. Retroceso]]*1000/60) -> 0.92 | Z97: =Tabla1[[#This Row],[Power shift]]+Tabla1[[#This Row],[T. Avance]]+Tabla1[[#This Row],[T. Retroceso]] -> 1.21 | AA97: 0.69 | AB97: =(Tabla1[[#This Row],[Producción por ciclo ]]*60*Tabla1[[#This Row],[Eficiencia]])/Tabla1[[#This Row],[Cm]] -> 164.65
A98: D8T | B98: 39751.00 | C98: Orientación | D98: 6.570 | E98: 5.000 | F98: 1.174 | G98: 0.625 | H98: Hielo | I98: 520.00 | J98: Empuje dificultoso | K98: =IF(Tabla1[[#This Row],[Nivel de empuje]]="Empuje facil",1.1,IF(Tabla1[[#This Row],[Nivel de empuje]]="Empuje promedio",0.9,IF(Tabla1[[#This Row],[Nivel de empuje]]="Empuje medio dificultoso",0.7,IF(Tabla1[[#This Row],[Nivel de empuje]]="Empuje dificultoso",0.6," ")))) -> 0.60 | L98: 0.12 | M98: =Tabla1[[#This Row],[Ancho ]]*(Tabla1[[#This Row],[Altura ]]^2)*Tabla1[[#This Row],[Factor Hoja]] -> 4.135 | N98: =Tabla1[[#This Row],[Producción por ciclo ]]/(Tabla1[[#This Row],[Profundidad]]*Tabla1[[#This Row],[Ancho ]]) -> 1.32 | O98: =MROUND(3*Tabla1[[#This Row],[Longitud ]],10) -> 20.00 | P98: =Tabla1[[#This Row],[Producción por ciclo ]]/(Tabla1[[#This Row],[dmin]]*Tabla1[[#This Row],[Ancho ]]) -> 0.0413 | Q98: =IF(Tabla1[[#This Row],[Profundidad]]>Tabla1[[#This Row],[Profundidad de trabajo ]],"Conforme","No conforme") -> Conforme | R98: =Tabla1[[#This Row],[Densidad ]]*Tabla1[[#This Row],[Producción por ciclo ]] -> 2150.11 | S98: 0.10 | T98: =Tabla1[[#This Row],[Peso ]]+Tabla1[[#This Row],[Peso de material]] -> 41901.11 | U98: =(Tabla1[[#This Row],[Factor de tracción ]]*Tabla1[[#This Row],[Carga total]])/1000 -> 5.03 | V98: 9.29 | W98: 1.30 | X98: =Tabla1[[#This Row],[dmin]]/(Tabla1[[#This Row],[Velod. Avance]]*1000/60) -> 0.13 | Y98: =Tabla1[[#This Row],[dmin]]/(Tabla1[[#This Row],[Velod. Retroceso]]*1000/60) -> 0.92 | Z98: =Tabla1[[#This Row],[Power shift]]+Tabla1[[#This Row],[T. Avance]]+Tabla1[[#This Row],[T. Retroceso]] -> 1.15 | AA98: 0.69 | AB98: =(Tabla1[[#This Row],[Producción por ciclo ]]*60*Tabla1[[#This Row],[Eficiencia]])/Tabla1[[#This Row],[Cm]] -> 148.56
A99: D8T | B99: 39751.00 | C99: Orientación | D99: 6.570 | E99: 5.000 | F99: 1.174 | G99: 0.625 | H99: Tierra firme | I99: 1510.00 | J99: Empuje facil | K99: =IF(Tabla1[[#This Row],[Nivel de empuje]]="Empuje facil",1.1,IF(Tabla1[[#This Row],[Nivel de empuje]]="Empuje promedio",0.9,IF(Tabla1[[#This Row],[Nivel de empuje]]="Empuje medio dificultoso",0.7,IF(Tabla1[[#This Row],[Nivel de empuje]]="Empuje dificultoso",0.6," ")))) -> 1.10 | L99: 0.90 | M99: =Tabla1[[#This Row],[Ancho ]]*(Tabla1[[#This Row],[Altura ]]^2)*Tabla1[[#This Row],[Factor Hoja]] -> 7.581 | N99: =Tabla1[[#This Row],[Producción por ciclo ]]/(Tabla1[[#This Row],[Profundidad]]*Tabla1[[#This Row],[Ancho ]]) -> 2.43 | O99: =MROUND(3*Tabla1[[#This Row],[Longitud ]],10) -> 20.00 | P99: =Tabla1[[#This Row],[Producción por ciclo ]]/(Tabla1[[#This Row],[dmin]]*Tabla1[[#This Row],[Ancho ]]) -> 0.0758 | Q99: =IF(Tabla1[[#This Row],[Profundidad]]>Tabla1[[#This Row],[Profundidad de trabajo ]],"Conforme","No conforme") -> Conforme | R99: =Tabla1[[#This Row],[Densidad ]]*Tabla1[[#This Row],[Producción por ciclo ]] -> 11446.58 | S99: =2*0.05 -> 0.10 | T99: =Tabla1[[#This Row],[Peso ]]+Tabla1[[#This Row],[Peso de material]] -> 51197.58 | U99: =(Tabla1[[#This Row],[Factor de tracción ]]*Tabla1[[#This Row],[Carga total]])/1000 -> 46.08 | V99: 0.90 | W99: 1.30 | X99: =Tabla1[[#This Row],[dmin]]/(Tabla1[[#This Row],[Velod. Avance]]*1000/60) -> 1.33 | Y99: =Tabla1[[#This Row],[dmin]]/(Tabla1[[#This Row],[Velod. Retroceso]]*1000/60) -> 0.92 | Z99: =Tabla1[[#This Row],[Power shift]]+Tabla1[[#This Row],[T. Avance]]+Tabla1[[#This Row],[T. Retroceso]] -> 2.36 | AA99: 0.69 | AB99: =(Tabla1[[#This Row],[Producción por ciclo ]]*60*Tabla1[[#This Row],[Eficiencia]])/Tabla1[[#This Row],[Cm]] -> 133.18
A100: D8T | B100: 39751.00 | C100: Orientación | D100: 6.570 | E100: 5.000 | F100: 1.174 | G100: 0.625 | H100: Tierra suelta | I100: 1250.00 | J100: Empuje facil | K100: =IF(Tabla1[[#This Row],[Nivel de empuje]]="Empuje facil",1.1,IF(Tabla1[[#This Row],[Nivel de empuje]]="Empuje promedio",0.9,IF(Tabla1[[#This Row],[Nivel de empuje]]="Empuje medio dificultoso",0.7,IF(Tabla1[[#This Row],[Nivel de empuje]]="Empuje dificultoso",0.6," ")))) -> 1.10 | L100: 0.60 | M100: =Tabla1[[#This Row],[Ancho ]]*(Tabla1[[#This Row],[Altura ]]^2)*Tabla1[[#This Row],[Factor Hoja]] -> 7.581 | N100: =Tabla1[[#This Row],[Producción por ciclo ]]/(Tabla1[[#This Row],[Profundidad]]*Tabla1[[#This Row],[Ancho ]]) -> 2.43 | O100: =MROUND(3*Tabla1[[#This Row],[Longitud ]],10) -> 20.00 | P100: =Tabla1[[#This Row],[Producción por ciclo ]]/(Tabla1[[#This Row],[dmin]]*Tabla1[[#This Row],[Ancho ]]) -> 0.0758 | Q100: =IF(Tabla1[[#This Row],[Profundidad]]>Tabla1[[#This Row],[Profundidad de trabajo ]],"Conforme","No conforme") -> Conforme | R100: =Tabla1[[#This Row],[Densidad ]]*Tabla1[[#This Row],[Producción por ciclo ]] -> 9475.65 | S100: 0.10 | T100: =Tabla1[[#This Row],[Peso ]]+Tabla1[[#This Row],[Peso de material]] -> 49226.65 | U100: =(Tabla1[[#This Row],[Factor de tracción ]]*Tabla1[[#This Row],[Carga total]])/1000 -> 29.54 | V100: 1.92 | W100: 1.30 | X100: =Tabla1[[#This Row],[dmin]]/(Tabla1[[#This Row],[Velod. Avance]]*1000/60) -> 0.63 | Y100: =Tabla1[[#This Row],[dmin]]/(Tabla1[[#This Row],[Velod. Retroceso]]*1000/60) -> 0.92 | Z100: =Tabla1[[#This Row],[Power shift]]+Tabla1[[#This Row],[T. Avance]]+Tabla1[[#This Row],[T. Retroceso]] -> 1.65 | AA100: 0.69 | AB100: =(Tabla1[[#This Row],[Producción por ciclo ]]*60*Tabla1[[#This Row],[Eficiencia]])/Tabla1[[#This Row],[Cm]] -> 190.42
A101: D8T | B101: 39751.00 | C101: Orientación | D101: 6.570 | E101: 5.000 | F101: 1.174 | G101: 0.625 | H101: Carbón | I101: 1190.00 | J101: Empuje promedio | K101: =IF(Tabla1[[#This Row],[Nivel de empuje]]="Empuje facil",1.1,IF(Tabla1[[#This Row],[Nivel de empuje]]="Empuje promedio",0.9,IF(Tabla1[[#This Row],[Nivel de empuje]]="Empuje medio dificultoso",0.7,IF(Tabla1[[#This Row],[Nivel de empuje]]="Empuje dificultoso",0.6," ")))) -> 0.90 | L101: 0.60 | M101: =Tabla1[[#This Row],[Ancho ]]*(Tabla1[[#This Row],[Altura ]]^2)*Tabla1[[#This Row],[Factor Hoja]] -> 6.202 | N101: =Tabla1[[#This Row],[Producción por ciclo ]]/(Tabla1[[#This Row],[Profundidad]]*Tabla1[[#This Row],[Ancho ]]) -> 1.98 | O101: =MROUND(3*Tabla1[[#This Row],[Longitud ]],10) -> 20.00 | P101: =Tabla1[[#This Row],[Producción por ciclo ]]/(Tabla1[[#This Row],[dmin]]*Tabla1[[#This Row],[Ancho ]]) -> 0.0620 | Q101: =IF(Tabla1[[#This Row],[Profundidad]]>Tabla1[[#This Row],[Profundidad de trabajo ]],"Conforme","No conforme") -> Conforme | R101: =Tabla1[[#This Row],[Densidad ]]*Tabla1[[#This Row],[Producción por ciclo ]] -> 7380.67 | S101: 0.10 | T101: =Tabla1[[#This Row],[Peso ]]+Tabla1[[#This Row],[Peso de material]] -> 47131.67 | U101: =(Tabla1[[#This Row],[Factor de tracción ]]*Tabla1[[#This Row],[Carga total]])/1000 -> 28.28 | V101: 2.01 | W101: 1.30 | X101: =Tabla1[[#This Row],[dmin]]/(Tabla1[[#This Row],[Velod. Avance]]*1000/60) -> 0.60 | Y101: =Tabla1[[#This Row],[dmin]]/(Tabla1[[#This Row],[Velod. Retroceso]]*1000/60) -> 0.92 | Z101: =Tabla1[[#This Row],[Power shift]]+Tabla1[[#This Row],[T. Avance]]+Tabla1[[#This Row],[T. Retroceso]] -> 1.62 | AA101: 0.69 | AB101: =(Tabla1[[#This Row],[Producción por ciclo ]]*60*Tabla1[[#This Row],[Eficiencia]])/Tabla1[[#This Row],[Cm]] -> 158.49
A102: D8T | B102: 39751.00 | C102: Semi universal | D102: 6.390 | E102: 3.930 | F102: 1.690 | G102: 0.511 | H102: Concreto | I102: 2400.00 | J102: Empuje dificultoso | K102: =IF(Tabla1[[#This Row],[Nivel de empuje]]="Empuje facil",1.1,IF(Tabla1[[#This Row],[Nivel de empuje]]="Empuje promedio",0.9,IF(Tabla1[[#This Row],[Nivel de empuje]]="Empuje medio dificultoso",0.7,IF(Tabla1[[#This Row],[Nivel de empuje]]="Empuje dificultoso",0.6," ")))) -> 0.60 | L102: 0.45 | M102: =Tabla1[[#This Row],[Ancho ]]*(Tabla1[[#This Row],[Altura ]]^2)*Tabla1[[#This Row],[Factor Hoja]] -> 6.735 | N102: =Tabla1[[#This Row],[Producción por ciclo ]]/(Tabla1[[#This Row],[Profundidad]]*Tabla1[[#This Row],[Ancho ]]) -> 3.35 | O102: =MROUND(3*Tabla1[[#This Row],[Longitud ]],10) -> 20.00 | P102: =Tabla1[[#This Row],[Producción por ciclo ]]/(Tabla1[[#This Row],[dmin]]*Tabla1[[#This Row],[Ancho ]]) -> 0.0857 | Q102: =IF(Tabla1[[#This Row],[Profundidad]]>Tabla1[[#This Row],[Profundidad de trabajo ]],"Conforme","No conforme") -> Conforme | R102: =Tabla1[[#This Row],[Densidad ]]*Tabla1[[#This Row],[Producción por ciclo ]] -> 16163.24 | S102: 0.10 | T102: =Tabla1[[#This Row],[Peso ]]+Tabla1[[#This Row],[Peso de material]] -> 55914.24 | U102: =(Tabla1[[#This Row],[Factor de tracción ]]*Tabla1[[#This Row],[Carga total]])/1000 -> 25.16 | V102: 2.31 | W102: 1.30 | X102: =Tabla1[[#This Row],[dmin]]/(Tabla1[[#This Row],[Velod. Avance]]*1000/60) -> 0.52 | Y102: =Tabla1[[#This Row],[dmin]]/(Tabla1[[#This Row],[Velod. Retroceso]]*1000/60) -> 0.92 | Z102: =Tabla1[[#This Row],[Power shift]]+Tabla1[[#This Row],[T. Avance]]+Tabla1[[#This Row],[T. Retroceso]] -> 1.54 | AA102: 0.69 | AB102: =(Tabla1[[#This Row],[Producción por ciclo ]]*60*Tabla1[[#This Row],[Eficiencia]])/Tabla1[[#This Row],[Cm]] -> 180.75
A103: D8T | B103: 39751.00 | C103: Semi universal | D103: 6.390 | E103: 3.930 | F103: 1.690 | G103: 0.511 | H103: Arcilla seca | I103: 1480.00 | J103: Empuje medio dificultoso | K103: =IF(Tabla1[[#This Row],[Nivel de empuje]]="Empuje facil",1.1,IF(Tabla1[[#This Row],[Nivel de empuje]]="Empuje promedio",0.9,IF(Tabla1[[#This Row],[Nivel de empuje]]="Empuje medio dificultoso",0.7,IF(Tabla1[[#This Row],[Nivel de empuje]]="Empuje dificultoso",0.6," ")))) -> 0.70 | L103: 0.90 | M103: =Tabla1[[#This Row],[Ancho ]]*(Tabla1[[#This Row],[Altura ]]^2)*Tabla1[[#This Row],[Factor Hoja]] -> 7.857 | N103: =Tabla1[[#This Row],[Producción por ciclo ]]/(Tabla1[[#This Row],[Profundidad]]*Tabla1[[#This Row],[Ancho ]]) -> 3.91 | O103: =MROUND(3*Tabla1[[#This Row],[Longitud ]],10) -> 20.00 | P103: =Tabla1[[#This Row],[Producción por ciclo ]]/(Tabla1[[#This Row],[dmin]]*Tabla1[[#This Row],[Ancho ]]) -> 0.1000 | Q103: =IF(Tabla1[[#This Row],[Profundidad]]>Tabla1[[#This Row],[Profundidad de trabajo ]],"Conforme","No conforme") -> Conforme | R103: =Tabla1[[#This Row],[Densidad ]]*Tabla1[[#This Row],[Producción por ciclo ]] -> 11628.55 | S103: 0.10 | T103: =Tabla1[[#This Row],[Peso ]]+Tabla1[[#This Row],[Peso de material]] -> 51379.55 | U103: =(Tabla1[[#This Row],[Factor de tracción ]]*Tabla1[[#This Row],[Carga total]])/1000 -> 46.24 | V103: 0.80 | W103: 1.30 | X103: =Tabla1[[#This Row],[dmin]]/(Tabla1[[#This Row],[Velod. Avance]]*1000/60) -> 1.50 | Y103: =Tabla1[[#This Row],[dmin]]/(Tabla1[[#This Row],[Velod. Retroceso]]*1000/60) -> 0.92 | Z103: =Tabla1[[#This Row],[Power shift]]+Tabla1[[#This Row],[T. Avance]]+Tabla1[[#This Row],[T. Retroceso]] -> 2.52 | AA103: 0.69 | AB103: =(Tabla1[[#This Row],[Producción por ciclo ]]*60*Tabla1[[#This Row],[Eficiencia]])/Tabla1[[#This Row],[Cm]] -> 128.92
A104: D8T | B104: 39751.00 | C104: Semi universal | D104: 6.390 | E104: 3.930 | F104: 1.690 | G104: 0.511 | H104: Arcilla húmeda | I104: 1660.00 | J104: Empuje facil | K104: =IF(Tabla1[[#This Row],[Nivel de empuje]]="Empuje facil",1.1,IF(Tabla1[[#This Row],[Nivel de empuje]]="Empuje promedio",0.9,IF(Tabla1[[#This Row],[Nivel de empuje]]="Empuje medio dificultoso",0.7,IF(Tabla1[[#This Row],[Nivel de empuje]]="Empuje dificultoso",0.6," ")))) -> 1.10 | L104: 0.70 | M104: =Tabla1[[#This Row],[Ancho ]]*(Tabla1[[#This Row],[Altura ]]^2)*Tabla1[[#This Row],[Factor Hoja]] -> 12.347 | N104: =Tabla1[[#This Row],[Producción por ciclo ]]/(Tabla1[[#This Row],[Profundidad]]*Tabla1[[#This Row],[Ancho ]]) -> 6.15 | O104: =MROUND(3*Tabla1[[#This Row],[Longitud ]],10) -> 20.00 | P104: =Tabla1[[#This Row],[Producción por ciclo ]]/(Tabla1[[#This Row],[dmin]]*Tabla1[[#This Row],[Ancho ]]) -> 0.1571 | Q104: =IF(Tabla1[[#This Row],[Profundidad]]>Tabla1[[#This Row],[Profundidad de trabajo ]],"Conforme","No conforme") -> Conforme | R104: =Tabla1[[#This Row],[Densidad ]]*Tabla1[[#This Row],[Producción por ciclo ]] -> 20495.89 | S104: 0.10 | T104: =Tabla1[[#This Row],[Peso ]]+Tabla1[[#This Row],[Peso de material]] -> 60246.89 | U104: =(Tabla1[[#This Row],[Factor de tracción ]]*Tabla1[[#This Row],[Carga total]])/1000 -> 42.17 | V104: 1.18 | W104: 1.30 | X104: =Tabla1[[#This Row],[dmin]]/(Tabla1[[#This Row],[Velod. Avance]]*1000/60) -> 1.02 | Y104: =Tabla1[[#This Row],[dmin]]/(Tabla1[[#This Row],[Velod. Retroceso]]*1000/60) -> 0.92 | Z104: =Tabla1[[#This Row],[Power shift]]+Tabla1[[#This Row],[T. Avance]]+Tabla1[[#This Row],[T. Retroceso]] -> 2.04 | AA104: 0.69 | AB104: =(Tabla1[[#This Row],[Producción por ciclo ]]*60*Tabla1[[#This Row],[Eficiencia]])/Tabla1[[#This Row],[Cm]] -> 250.57
A105: D8T | B105: 39751.00 | C105: Semi universal | D105: 6.390 | E105: 3.930 | F105: 1.690 | G105: 0.511 | H105: Arena seca | I105: 1420.00 | J105: Empuje facil | K105: =IF(Tabla1[[#This Row],[Nivel de empuje]]="Empuje facil",1.1,IF(Tabla1[[#This Row],[Nivel de empuje]]="Empuje promedio",0.9,IF(Tabla1[[#This Row],[Nivel de empuje]]="Empuje medio dificultoso",0.7,IF(Tabla1[[#This Row],[Nivel de empuje]]="Empuje dificultoso",0.6," ")))) -> 1.10 | L105: 0.39 | M105: =Tabla1[[#This Row],[Ancho ]]*(Tabla1[[#This Row],[Altura ]]^2)*Tabla1[[#This Row],[Factor Hoja]] -> 12.347 | N105: =Tabla1[[#This Row],[Producción por ciclo ]]/(Tabla1[[#This Row],[Profundidad]]*Tabla1[[#This Row],[Ancho ]]) -> 6.15 | O105: =MROUND(3*Tabla1[[#This Row],[Longitud ]],10) -> 20.00 | P105: =Tabla1[[#This Row],[Producción por ciclo ]]/(Tabla1[[#This Row],[dmin]]*Tabla1[[#This Row],[Ancho ]]) -> 0.1571 | Q105: =IF(Tabla1[[#This Row],[Profundidad]]>Tabla1[[#This Row],[Profundidad de trabajo ]],"Conforme","No conforme") -> Conforme | R105: =Tabla1[[#This Row],[Densidad ]]*Tabla1[[#This Row],[Producción por ciclo ]] -> 17532.63 | S105: 0.10 | T105: =Tabla1[[#This Row],[Peso ]]+Tabla1[[#This Row],[Peso de material]] -> 57283.63 | U105: =(Tabla1[[#This Row],[Factor de tracción ]]*Tabla1[[#This Row],[Carga total]])/1000 -> 22.34 | V105: 2.50 | W105: 1.30 | X105: =Tabla1[[#This Row],[dmin]]/(Tabla1[[#This Row],[Velod. Avance]]*1000/60) -> 0.48 | Y105: =Tabla1[[#This Row],[dmin]]/(Tabla1[[#This Row],[Velod. Retroceso]]*1000/60) -> 0.92 | Z105: =Tabla1[[#This Row],[Power shift]]+Tabla1[[#This Row],[T. Avance]]+Tabla1[[#This Row],[T. Retroceso]] -> 1.50 | AA105: 0.69 | AB105: =(Tabla1[[#This Row],[Producción por ciclo ]]*60*Tabla1[[#This Row],[Eficiencia]])/Tabla1[[#This Row],[Cm]] -> 340.08
A106: D8T | B106: 39751.00 | C106: Semi universal | D106: 6.390 | E106: 3.930 | F106: 1.690 | G106: 0.511 | H106: Arena húmeda | I106: 1690.00 | J106: Empuje medio dificultoso | K106: =IF(Tabla1[[#This Row],[Nivel de empuje]]="Empuje facil",1.1,IF(Tabla1[[#This Row],[Nivel de empuje]]="Empuje promedio",0.9,IF(Tabla1[[#This Row],[Nivel de empuje]]="Empuje medio dificultoso",0.7,IF(Tabla1[[#This Row],[Nivel de empuje]]="Empuje dificultoso",0.6," ")))) -> 0.70 | L106: 0.50 | M106: =Tabla1[[#This Row],[Ancho ]]*(Tabla1[[#This Row],[Altura ]]^2)*Tabla1[[#This Row],[Factor Hoja]] -> 7.857 | N106: =Tabla1[[#This Row],[Producción por ciclo ]]/(Tabla1[[#This Row],[Profundidad]]*Tabla1[[#This Row],[Ancho ]]) -> 3.91 | O106: =MROUND(3*Tabla1[[#This Row],[Longitud ]],10) -> 20.00 | P106: =Tabla1[[#This Row],[Producción por ciclo ]]/(Tabla1[[#This Row],[dmin]]*Tabla1[[#This Row],[Ancho ]]) -> 0.1000 | Q106: =IF(Tabla1[[#This Row],[Profundidad]]>Tabla1[[#This Row],[Profundidad de trabajo ]],"Conforme","No conforme") -> Conforme | R106: =Tabla1[[#This Row],[Densidad ]]*Tabla1[[#This Row],[Producción por ciclo ]] -> 13278.55 | S106: 0.10 | T106: =Tabla1[[#This Row],[Peso ]]+Tabla1[[#This Row],[Peso de material]] -> 53029.55 | U106: =(Tabla1[[#This Row],[Factor de tracción ]]*Tabla1[[#This Row],[Carga total]])/1000 -> 26.51 | V106: 2.15 | W106: 1.30 | X106: =Tabla1[[#This Row],[dmin]]/(Tabla1[[#This Row],[Velod. Avance]]*1000/60) -> 0.56 | Y106: =Tabla1[[#This Row],[dmin]]/(Tabla1[[#This Row],[Velod. Retroceso]]*1000/60) -> 0.92 | Z106: =Tabla1[[#This Row],[Power shift]]+Tabla1[[#This Row],[T. Avance]]+Tabla1[[#This Row],[T. Retroceso]] -> 1.58 | AA106: 0.69 | AB106: =(Tabla1[[#This Row],[Producción por ciclo ]]*60*Tabla1[[#This Row],[Eficiencia]])/Tabla1[[#This Row],[Cm]] -> 205.72
A107: D8T | B107: 39751.00 | C107: Semi universal | D107: 6.390 | E107: 3.930 | F107: 1.690 | G107: 0.511 | H107: Grava suelta | I107: 1930.00 | J107: Empuje promedio | K107: =IF(Tabla1[[#This Row],[Nivel de empuje]]="Empuje facil",1.1,IF(Tabla1[[#This Row],[Nivel de empuje]]="Empuje promedio",0.9,IF(Tabla1[[#This Row],[Nivel de empuje]]="Empuje medio dificultoso",0.7,IF(Tabla1[[#This Row],[Nivel de empuje]]="Empuje dificultoso",0.6," ")))) -> 0.90 | L107: 0.50 | M107: =Tabla1[[#This Row],[Ancho ]]*(Tabla1[[#This Row],[Altura ]]^2)*Tabla1[[#This Row],[Factor Hoja]] -> 10.102 | N107: =Tabla1[[#This Row],[Producción por ciclo ]]/(Tabla1[[#This Row],[Profundidad]]*Tabla1[[#This Row],[Ancho ]]) -> 5.03 | O107: =MROUND(3*Tabla1[[#This Row],[Longitud ]],10) -> 20.00 | P107: =Tabla1[[#This Row],[Producción por ciclo ]]/(Tabla1[[#This Row],[dmin]]*Tabla1[[#This Row],[Ancho ]]) -> 0.1285 | Q107: =IF(Tabla1[[#This Row],[Profundidad]]>Tabla1[[#This Row],[Profundidad de trabajo ]],"Conforme","No conforme") -> Conforme | R107: =Tabla1[[#This Row],[Densidad ]]*Tabla1[[#This Row],[Producción por ciclo ]] -> 19496.91 | S107: 0.10 | T107: =Tabla1[[#This Row],[Peso ]]+Tabla1[[#This Row],[Peso de material]] -> 59247.91 | U107: =(Tabla1[[#This Row],[Factor de tracción ]]*Tabla1[[#This Row],[Carga total]])/1000 -> 29.62 | V107: 1.92 | W107: 1.30 | X107: =Tabla1[[#This Row],[dmin]]/(Tabla1[[#This Row],[Velod. Avance]]*1000/60) -> 0.63 | Y107: =Tabla1[[#This Row],[dmin]]/(Tabla1[[#This Row],[Velod. Retroceso]]*1000/60) -> 0.92 | Z107: =Tabla1[[#This Row],[Power shift]]+Tabla1[[#This Row],[T. Avance]]+Tabla1[[#This Row],[T. Retroceso]] -> 1.65 | AA107: 0.69 | AB107: =(Tabla1[[#This Row],[Producción por ciclo ]]*60*Tabla1[[#This Row],[Eficiencia]])/Tabla1[[#This Row],[Cm]] -> 253.76
A108: D8T | B108: 39751.00 | C108: Semi universal | D108: 6.390 | E108: 3.930 | F108: 1.690 | G108: 0.511 | H108: Nieve compacta | I108: 130.00 | J108: Empuje medio dificultoso | K108: =IF(Tabla1[[#This Row],[Nivel de empuje]]="Empuje facil",1.1,IF(Tabla1[[#This Row],[Nivel de empuje]]="Empuje promedio",0.9,IF(Tabla1[[#This Row],[Nivel de empuje]]="Empuje medio dificultoso",0.7,IF(Tabla1[[#This Row],[Nivel de empuje]]="Empuje dificultoso",0.6," ")))) -> 0.70 | L108: 0.27 | M108: =Tabla1[[#This Row],[Ancho ]]*(Tabla1[[#This Row],[Altura ]]^2)*Tabla1[[#This Row],[Factor Hoja]] -> 7.857 | N108: =Tabla1[[#This Row],[Producción por ciclo ]]/(Tabla1[[#This Row],[Profundidad]]*Tabla1[[#This Row],[Ancho ]]) -> 3.91 | O108: =MROUND(3*Tabla1[[#This Row],[Longitud ]],10) -> 20.00 | P108: =Tabla1[[#This Row],[Producción por ciclo ]]/(Tabla1[[#This Row],[dmin]]*Tabla1[[#This Row],[Ancho ]]) -> 0.1000 | Q108: =IF(Tabla1[[#This Row],[Profundidad]]>Tabla1[[#This Row],[Profundidad de trabajo ]],"Conforme","No conforme") -> Conforme | R108: =Tabla1[[#This Row],[Densidad ]]*Tabla1[[#This Row],[Producción por ciclo ]] -> 1021.43 | S108: 0.10 | T108: =Tabla1[[#This Row],[Peso ]]+Tabla1[[#This Row],[Peso de material]] -> 40772.43 | U108: =(Tabla1[[#This Row],[Factor de tracción ]]*Tabla1[[#This Row],[Carga total]])/1000 -> 11.01 | V108: 4.89 | W108: 1.30 | X108: =Tabla1[[#This Row],[dmin]]/(Tabla1[[#This Row],[Velod. Avance]]*1000/60) -> 0.25 | Y108: =Tabla1[[#This Row],[dmin]]/(Tabla1[[#This Row],[Velod. Retroceso]]*1000/60) -> 0.92 | Z108: =Tabla1[[#This Row],[Power shift]]+Tabla1[[#This Row],[T. Avance]]+Tabla1[[#This Row],[T. Retroceso]] -> 1.27 | AA108: 0.69 | AB108: =(Tabla1[[#This Row],[Producción por ciclo ]]*60*Tabla1[[#This Row],[Eficiencia]])/Tabla1[[#This Row],[Cm]] -> 256.44
A109: D8T | B109: 39751.00 | C109: Semi universal | D109: 6.390 | E109: 3.930 | F109: 1.690 | G109: 0.511 | H109: Hielo | I109: 520.00 | J109: Empuje dificultoso | K109: =IF(Tabla1[[#This Row],[Nivel de empuje]]="Empuje facil",1.1,IF(Tabla1[[#This Row],[Nivel de empuje]]="Empuje promedio",0.9,IF(Tabla1[[#This Row],[Nivel de empuje]]="Empuje medio dificultoso",0.7,IF(Tabla1[[#This Row],[Nivel de empuje]]="Empuje dificultoso",0.6," ")))) -> 0.60 | L109: 0.12 | M109: =Tabla1[[#This Row],[Ancho ]]*(Tabla1[[#This Row],[Altura ]]^2)*Tabla1[[#This Row],[Factor Hoja]] -> 6.735 | N109: =Tabla1[[#This Row],[Producción por ciclo ]]/(Tabla1[[#This Row],[Profundidad]]*Tabla1[[#This Row],[Ancho ]]) -> 3.35 | O109: =MROUND(3*Tabla1[[#This Row],[Longitud ]],10) -> 20.00 | P109: =Tabla1[[#This Row],[Producción por ciclo ]]/(Tabla1[[#This Row],[dmin]]*Tabla1[[#This Row],[Ancho ]]) -> 0.0857 | Q109: =IF(Tabla1[[#This Row],[Profundidad]]>Tabla1[[#This Row],[Profundidad de trabajo ]],"Conforme","No conforme") -> Conforme | R109: =Tabla1[[#This Row],[Densidad ]]*Tabla1[[#This Row],[Producción por ciclo ]] -> 3502.04 | S109: 0.10 | T109: =Tabla1[[#This Row],[Peso ]]+Tabla1[[#This Row],[Peso de material]] -> 43253.04 | U109: =(Tabla1[[#This Row],[Factor de tracción ]]*Tabla1[[#This Row],[Carga total]])/1000 -> 5.19 | V109: 9.90 | W109: 1.30 | X109: =Tabla1[[#This Row],[dmin]]/(Tabla1[[#This Row],[Velod. Avance]]*1000/60) -> 0.12 | Y109: =Tabla1[[#This Row],[dmin]]/(Tabla1[[#This Row],[Velod. Retroceso]]*1000/60) -> 0.92 | Z109: =Tabla1[[#This Row],[Power shift]]+Tabla1[[#This Row],[T. Avance]]+Tabla1[[#This Row],[T. Retroceso]] -> 1.14 | AA109: 0.69 | AB109: =(Tabla1[[#This Row],[Producción por ciclo ]]*60*Tabla1[[#This Row],[Eficiencia]])/Tabla1[[#This Row],[Cm]] -> 243.66
A110: D8T | B110: 39751.00 | C110: Semi universal | D110: 6.390 | E110: 3.930 | F110: 1.690 | G110: 0.511 | H110: Tierra firme | I110: 1510.00 | J110: Empuje facil | K110: =IF(Tabla1[[#This Row],[Nivel de empuje]]="Empuje facil",1.1,IF(Tabla1[[#This Row],[Nivel de empuje]]="Empuje promedio",0.9,IF(Tabla1[[#This Row],[Nivel de empuje]]="Empuje medio dificultoso",0.7,IF(Tabla1[[#This Row],[Nivel de empuje]]="Empuje dificultoso",0.6," ")))) -> 1.10 | L110: 0.90 | M110: =Tabla1[[#This Row],[Ancho ]]*(Tabla1[[#This Row],[Altura ]]^2)*Tabla1[[#This Row],[Factor Hoja]] -> 12.347 | N110: =Tabla1[[#This Row],[Producción por ciclo ]]/(Tabla1[[#This Row],[Profundidad]]*Tabla1[[#This Row],[Ancho ]]) -> 6.15 | O110: =MROUND(3*Tabla1[[#This Row],[Longitud ]],10) -> 20.00 | P110: =Tabla1[[#This Row],[Producción por ciclo ]]/(Tabla1[[#This Row],[dmin]]*Tabla1[[#This Row],[Ancho ]]) -> 0.1571 | Q110: =IF(Tabla1[[#This Row],[Profundidad]]>Tabla1[[#This Row],[Profundidad de trabajo ]],"Conforme","No conforme") -> Conforme | R110: =Tabla1[[#This Row],[Densidad ]]*Tabla1[[#This Row],[Producción por ciclo ]] -> 18643.85 | S110: 0.10 | T110: =Tabla1[[#This Row],[Peso ]]+Tabla1[[#This Row],[Peso de material]] -> 58394.85 | U110: =(Tabla1[[#This Row],[Factor de tracción ]]*Tabla1[[#This Row],[Carga total]])/1000 -> 52.56 | V110: 0.51 | W110: 1.30 | X110: =Tabla1[[#This Row],[dmin]]/(Tabla1[[#This Row],[Velod. Avance]]*1000/60) -> 2.35 | Y110: =Tabla1[[#This Row],[dmin]]/(Tabla1[[#This Row],[Velod. Retroceso]]*1000/60) -> 0.92 | Z110: =Tabla1[[#This Row],[Power shift]]+Tabla1[[#This Row],[T. Avance]]+Tabla1[[#This Row],[T. Retroceso]] -> 3.38 | AA110: 0.69 | AB110: =(Tabla1[[#This Row],[Producción por ciclo ]]*60*Tabla1[[#This Row],[Eficiencia]])/Tabla1[[#This Row],[Cm]] -> 151.41
A111: D8T | B111: 39751.00 | C111: Semi universal | D111: 6.390 | E111: 3.930 | F111: 1.690 | G111: 0.511 | H111: Tierra suelta | I111: 1250.00 | J111: Empuje facil | K111: =IF(Tabla1[[#This Row],[Nivel de empuje]]="Empuje facil",1.1,IF(Tabla1[[#This Row],[Nivel de empuje]]="Empuje promedio",0.9,IF(Tabla1[[#This Row],[Nivel de empuje]]="Empuje medio dificultoso",0.7,IF(Tabla1[[#This Row],[Nivel de empuje]]="Empuje dificultoso",0.6," ")))) -> 1.10 | L111: 0.60 | M111: =Tabla1[[#This Row],[Ancho ]]*(Tabla1[[#This Row],[Altura ]]^2)*Tabla1[[#This Row],[Factor Hoja]] -> 12.347 | N111: =Tabla1[[#This Row],[Producción por ciclo ]]/(Tabla1[[#This Row],[Profundidad]]*Tabla1[[#This Row],[Ancho ]]) -> 6.15 | O111: =MROUND(3*Tabla1[[#This Row],[Longitud ]],10) -> 20.00 | P111: =Tabla1[[#This Row],[Producción por ciclo ]]/(Tabla1[[#This Row],[dmin]]*Tabla1[[#This Row],[Ancho ]]) -> 0.1571 | Q111: =IF(Tabla1[[#This Row],[Profundidad]]>Tabla1[[#This Row],[Profundidad de trabajo ]],"Conforme","No conforme") -> Conforme | R111: =Tabla1[[#This Row],[Densidad ]]*Tabla1[[#This Row],[Producción por ciclo ]] -> 15433.65 | S111: 0.10 | T111: =Tabla1[[#This Row],[Peso ]]+Tabla1[[#This Row],[Peso de material]] -> 55184.65 | U111: =(Tabla1[[#This Row],[Factor de tracción ]]*Tabla1[[#This Row],[Carga total]])/1000 -> 33.11 | V111: 1.71 | W111: 1.30 | X111: =Tabla1[[#This Row],[dmin]]/(Tabla1[[#This Row],[Velod. Avance]]*1000/60) -> 0.70 | Y111: =Tabla1[[#This Row],[dmin]]/(Tabla1[[#This Row],[Velod. Retroceso]]*1000/60) -> 0.92 | Z111: =Tabla1[[#This Row],[Power shift]]+Tabla1[[#This Row],[T. Avance]]+Tabla1[[#This Row],[T. Retroceso]] -> 1.72 | AA111: 0.69 | AB111: =(Tabla1[[#This Row],[Producción por ciclo ]]*60*Tabla1[[#This Row],[Eficiencia]])/Tabla1[[#This Row],[Cm]] -> 296.36
A112: D8T | B112: 39751.00 | C112: Semi universal | D112: 6.390 | E112: 3.930 | F112: 1.690 | G112: 0.511 | H112: Carbón | I112: 1190.00 | J112: Empuje promedio | K112: =IF(Tabla1[[#This Row],[Nivel de empuje]]="Empuje facil",1.1,IF(Tabla1[[#This Row],[Nivel de empuje]]="Empuje promedio",0.9,IF(Tabla1[[#This Row],[Nivel de empuje]]="Empuje medio dificultoso",0.7,IF(Tabla1[[#This Row],[Nivel de empuje]]="Empuje dificultoso",0.6," ")))) -> 0.90 | L112: 0.60 | M112: =Tabla1[[#This Row],[Ancho ]]*(Tabla1[[#This Row],[Altura ]]^2)*Tabla1[[#This Row],[Factor Hoja]] -> 10.102 | N112: =Tabla1[[#This Row],[Producción por ciclo ]]/(Tabla1[[#This Row],[Profundidad]]*Tabla1[[#This Row],[Ancho ]]) -> 5.03 | O112: =MROUND(3*Tabla1[[#This Row],[Longitud ]],10) -> 20.00 | P112: =Tabla1[[#This Row],[Producción por ciclo ]]/(Tabla1[[#This Row],[dmin]]*Tabla1[[#This Row],[Ancho ]]) -> 0.1285 | Q112: =IF(Tabla1[[#This Row],[Profundidad]]>Tabla1[[#This Row],[Profundidad de trabajo ]],"Conforme","No conforme") -> Conforme | R112: =Tabla1[[#This Row],[Densidad ]]*Tabla1[[#This Row],[Producción por ciclo ]] -> 12021.41 | S112: 0.10 | T112: =Tabla1[[#This Row],[Peso ]]+Tabla1[[#This Row],[Peso de material]] -> 51772.41 | U112: =(Tabla1[[#This Row],[Factor de tracción ]]*Tabla1[[#This Row],[Carga total]])/1000 -> 31.06 | V112: 1.85 | W112: 1.30 | X112: =Tabla1[[#This Row],[dmin]]/(Tabla1[[#This Row],[Velod. Avance]]*1000/60) -> 0.65 | Y112: =Tabla1[[#This Row],[dmin]]/(Tabla1[[#This Row],[Velod. Retroceso]]*1000/60) -> 0.92 | Z112: =Tabla1[[#This Row],[Power shift]]+Tabla1[[#This Row],[T. Avance]]+Tabla1[[#This Row],[T. Retroceso]] -> 1.67 | AA112: 0.69 | AB112: =(Tabla1[[#This Row],[Producción por ciclo ]]*60*Tabla1[[#This Row],[Eficiencia]])/Tabla1[[#This Row],[Cm]] -> 250.17
A113: D8T | B113: 39751.00 | C113: Universal | D113: 6.790 | E113: 4.250 | F113: 1.740 | G113: 0.567 | H113: Concreto | I113: 2400.00 | J113: Empuje dificultoso | K113: =IF(Tabla1[[#This Row],[Nivel de empuje]]="Empuje facil",1.1,IF(Tabla1[[#This Row],[Nivel de empuje]]="Empuje promedio",0.9,IF(Tabla1[[#This Row],[Nivel de empuje]]="Empuje medio dificultoso",0.7,IF(Tabla1[[#This Row],[Nivel de empuje]]="Empuje dificultoso",0.6," ")))) -> 0.60 | L113: 0.45 | M113: =Tabla1[[#This Row],[Ancho ]]*(Tabla1[[#This Row],[Altura ]]^2)*Tabla1[[#This Row],[Factor Hoja]] -> 7.720 | N113: =Tabla1[[#This Row],[Producción por ciclo ]]/(Tabla1[[#This Row],[Profundidad]]*Tabla1[[#This Row],[Ancho ]]) -> 3.20 | O113: =MROUND(3*Tabla1[[#This Row],[Longitud ]],10) -> 20.00 | P113: =Tabla1[[#This Row],[Producción por ciclo ]]/(Tabla1[[#This Row],[dmin]]*Tabla1[[#This Row],[Ancho ]]) -> 0.0908 | Q113: =IF(Tabla1[[#This Row],[Profundidad]]>Tabla1[[#This Row],[Profundidad de trabajo ]],"Conforme","No conforme") -> Conforme | R113: =Tabla1[[#This Row],[Densidad ]]*Tabla1[[#This Row],[Producción por ciclo ]] -> 18528.91 | S113: 0.10 | T113: =Tabla1[[#This Row],[Peso ]]+Tabla1[[#This Row],[Peso de material]] -> 58279.91 | U113: =(Tabla1[[#This Row],[Factor de tracción ]]*Tabla1[[#This Row],[Carga total]])/1000 -> 26.23 | V113: 2.09 | W113: 1.30 | X113: =Tabla1[[#This Row],[dmin]]/(Tabla1[[#This Row],[Velod. Avance]]*1000/60) -> 0.57 | Y113: =Tabla1[[#This Row],[dmin]]/(Tabla1[[#This Row],[Velod. Retroceso]]*1000/60) -> 0.92 | Z113: =Tabla1[[#This Row],[Power shift]]+Tabla1[[#This Row],[T. Avance]]+Tabla1[[#This Row],[T. Retroceso]] -> 1.60 | AA113: 0.69 | AB113: =(Tabla1[[#This Row],[Producción por ciclo ]]*60*Tabla1[[#This Row],[Eficiencia]])/Tabla1[[#This Row],[Cm]] -> 200.11
A114: D8T | B114: 39751.00 | C114: Universal | D114: 6.790 | E114: 4.250 | F114: 1.740 | G114: 0.567 | H114: Arcilla seca | I114: 1480.00 | J114: Empuje medio dificultoso | K114: =IF(Tabla1[[#This Row],[Nivel de empuje]]="Empuje facil",1.1,IF(Tabla1[[#This Row],[Nivel de empuje]]="Empuje promedio",0.9,IF(Tabla1[[#This Row],[Nivel de empuje]]="Empuje medio dificultoso",0.7,IF(Tabla1[[#This Row],[Nivel de empuje]]="Empuje dificultoso",0.6," ")))) -> 0.70 | L114: 0.90 | M114: =Tabla1[[#This Row],[Ancho ]]*(Tabla1[[#This Row],[Altura ]]^2)*Tabla1[[#This Row],[Factor Hoja]] -> 9.007 | N114: =Tabla1[[#This Row],[Producción por ciclo ]]/(Tabla1[[#This Row],[Profundidad]]*Tabla1[[#This Row],[Ancho ]]) -> 3.74 | O114: =MROUND(3*Tabla1[[#This Row],[Longitud ]],10) -> 20.00 | P114: =Tabla1[[#This Row],[Producción por ciclo ]]/(Tabla1[[#This Row],[dmin]]*Tabla1[[#This Row],[Ancho ]]) -> 0.1060 | Q114: =IF(Tabla1[[#This Row],[Profundidad]]>Tabla1[[#This Row],[Profundidad de trabajo ]],"Conforme","No conforme") -> Conforme | R114: =Tabla1[[#This Row],[Densidad ]]*Tabla1[[#This Row],[Producción por ciclo ]] -> 13330.52 | S114: 0.10 | T114: =Tabla1[[#This Row],[Peso ]]+Tabla1[[#This Row],[Peso de material]] -> 53081.52 | U114: =(Tabla1[[#This Row],[Factor de tracción ]]*Tabla1[[#This Row],[Carga total]])/1000 -> 47.77 | V114: 0.75 | W114: 1.30 | X114: =Tabla1[[#This Row],[dmin]]/(Tabla1[[#This Row],[Velod. Avance]]*1000/60) -> 1.60 | Y114: =Tabla1[[#This Row],[dmin]]/(Tabla1[[#This Row],[Velod. Retroceso]]*1000/60) -> 0.92 | Z114: =Tabla1[[#This Row],[Power shift]]+Tabla1[[#This Row],[T. Avance]]+Tabla1[[#This Row],[T. Retroceso]] -> 2.62 | AA114: 0.69 | AB114: =(Tabla1[[#This Row],[Producción por ciclo ]]*60*Tabla1[[#This Row],[Eficiencia]])/Tabla1[[#This Row],[Cm]] -> 142.16
A115: D8T | B115: 39751.00 | C115: Universal | D115: 6.790 | E115: 4.250 | F115: 1.740 | G115: 0.567 | H115: Arcilla húmeda | I115: 1660.00 | J115: Empuje facil | K115: =IF(Tabla1[[#This Row],[Nivel de empuje]]="Empuje facil",1.1,IF(Tabla1[[#This Row],[Nivel de empuje]]="Empuje promedio",0.9,IF(Tabla1[[#This Row],[Nivel de empuje]]="Empuje medio dificultoso",0.7,IF(Tabla1[[#This Row],[Nivel de empuje]]="Empuje dificultoso",0.6," ")))) -> 1.10 | L115: 0.70 | M115: =Tabla1[[#This Row],[Ancho ]]*(Tabla1[[#This Row],[Altura ]]^2)*Tabla1[[#This Row],[Factor Hoja]] -> 14.154 | N115: =Tabla1[[#This Row],[Producción por ciclo ]]/(Tabla1[[#This Row],[Profundidad]]*Tabla1[[#This Row],[Ancho ]]) -> 5.87 | O115: =MROUND(3*Tabla1[[#This Row],[Longitud ]],10) -> 20.00 | P115: =Tabla1[[#This Row],[Producción por ciclo ]]/(Tabla1[[#This Row],[dmin]]*Tabla1[[#This Row],[Ancho ]]) -> 0.1665 | Q115: =IF(Tabla1[[#This Row],[Profundidad]]>Tabla1[[#This Row],[Profundidad de trabajo ]],"Conforme","No conforme") -> Conforme | R115: =Tabla1[[#This Row],[Densidad ]]*Tabla1[[#This Row],[Producción por ciclo ]] -> 23495.69 | S115: 0.10 | T115: =Tabla1[[#This Row],[Peso ]]+Tabla1[[#This Row],[Peso de material]] -> 63246.69 | U115: =(Tabla1[[#This Row],[Factor de tracción ]]*Tabla1[[#This Row],[Carga total]])/1000 -> 44.27 | V115: 1.02 | W115: 1.30 | X115: =Tabla1[[#This Row],[dmin]]/(Tabla1[[#This Row],[Velod. Avance]]*1000/60) -> 1.18 | Y115: =Tabla1[[#This Row],[dmin]]/(Tabla1[[#This Row],[Velod. Retroceso]]*1000/60) -> 0.92 | Z115: =Tabla1[[#This Row],[Power shift]]+Tabla1[[#This Row],[T. Avance]]+Tabla1[[#This Row],[T. Retroceso]] -> 2.20 | AA115: 0.69 | AB115: =(Tabla1[[#This Row],[Producción por ciclo ]]*60*Tabla1[[#This Row],[Eficiencia]])/Tabla1[[#This Row],[Cm]] -> 266.41
A116: D8T | B116: 39751.00 | C116: Universal | D116: 6.790 | E116: 4.250 | F116: 1.740 | G116: 0.567 | H116: Arena seca | I116: 1420.00 | J116: Empuje facil | K116: =IF(Tabla1[[#This Row],[Nivel de empuje]]="Empuje facil",1.1,IF(Tabla1[[#This Row],[Nivel de empuje]]="Empuje promedio",0.9,IF(Tabla1[[#This Row],[Nivel de empuje]]="Empuje medio dificultoso",0.7,IF(Tabla1[[#This Row],[Nivel de empuje]]="Empuje dificultoso",0.6," ")))) -> 1.10 | L116: 0.39 | M116: =Tabla1[[#This Row],[Ancho ]]*(Tabla1[[#This Row],[Altura ]]^2)*Tabla1[[#This Row],[Factor Hoja]] -> 14.154 | N116: =Tabla1[[#This Row],[Producción por ciclo ]]/(Tabla1[[#This Row],[Profundidad]]*Tabla1[[#This Row],[Ancho ]]) -> 5.87 | O116: =MROUND(3*Tabla1[[#This Row],[Longitud ]],10) -> 20.00 | P116: =Tabla1[[#This Row],[Producción por ciclo ]]/(Tabla1[[#This Row],[dmin]]*Tabla1[[#This Row],[Ancho ]]) -> 0.1665 | Q116: =IF(Tabla1[[#This Row],[Profundidad]]>Tabla1[[#This Row],[Profundidad de trabajo ]],"Conforme","No conforme") -> Conforme | R116: =Tabla1[[#This Row],[Densidad ]]*Tabla1[[#This Row],[Producción por ciclo ]] -> 20098.72 | S116: 0.10 | T116: =Tabla1[[#This Row],[Peso ]]+Tabla1[[#This Row],[Peso de material]] -> 59849.72 | U116: =(Tabla1[[#This Row],[Factor de tracción ]]*Tabla1[[#This Row],[Carga total]])/1000 -> 23.34 | V116: 2.45 | W116: 1.30 | X116: =Tabla1[[#This Row],[dmin]]/(Tabla1[[#This Row],[Velod. Avance]]*1000/60) -> 0.49 | Y116: =Tabla1[[#This Row],[dmin]]/(Tabla1[[#This Row],[Velod. Retroceso]]*1000/60) -> 0.92 | Z116: =Tabla1[[#This Row],[Power shift]]+Tabla1[[#This Row],[T. Avance]]+Tabla1[[#This Row],[T. Retroceso]] -> 1.51 | AA116: 0.69 | AB116: =(Tabla1[[#This Row],[Producción por ciclo ]]*60*Tabla1[[#This Row],[Eficiencia]])/Tabla1[[#This Row],[Cm]] -> 387.33
A117: D8T | B117: 39751.00 | C117: Universal | D117: 6.790 | E117: 4.250 | F117: 1.740 | G117: 0.567 | H117: Arena húmeda | I117: 1690.00 | J117: Empuje medio dificultoso | K117: =IF(Tabla1[[#This Row],[Nivel de empuje]]="Empuje facil",1.1,IF(Tabla1[[#This Row],[Nivel de empuje]]="Empuje promedio",0.9,IF(Tabla1[[#This Row],[Nivel de empuje]]="Empuje medio dificultoso",0.7,IF(Tabla1[[#This Row],[Nivel de empuje]]="Empuje dificultoso",0.6," ")))) -> 0.70 | L117: 0.50 | M117: =Tabla1[[#This Row],[Ancho ]]*(Tabla1[[#This Row],[Altura ]]^2)*Tabla1[[#This Row],[Factor Hoja]] -> 9.007 | N117: =Tabla1[[#This Row],[Producción por ciclo ]]/(Tabla1[[#This Row],[Profundidad]]*Tabla1[[#This Row],[Ancho ]]) -> 3.74 | O117: =MROUND(3*Tabla1[[#This Row],[Longitud ]],10) -> 20.00 | P117: =Tabla1[[#This Row],[Producción por ciclo ]]/(Tabla1[[#This Row],[dmin]]*Tabla1[[#This Row],[Ancho ]]) -> 0.1060 | Q117: =IF(Tabla1[[#This Row],[Profundidad]]>Tabla1[[#This Row],[Profundidad de trabajo ]],"Conforme","No conforme") -> Conforme | R117: =Tabla1[[#This Row],[Densidad ]]*Tabla1[[#This Row],[Producción por ciclo ]] -> 15222.02 | S117: 0.10 | T117: =Tabla1[[#This Row],[Peso ]]+Tabla1[[#This Row],[Peso de material]] -> 54973.02 | U117: =(Tabla1[[#This Row],[Factor de tracción ]]*Tabla1[[#This Row],[Carga total]])/1000 -> 27.49 | V117: 2.09 | W117: 1.30 | X117: =Tabla1[[#This Row],[dmin]]/(Tabla1[[#This Row],[Velod. Avance]]*1000/60) -> 0.57 | Y117: =Tabla1[[#This Row],[dmin]]/(Tabla1[[#This Row],[Velod. Retroceso]]*1000/60) -> 0.92 | Z117: =Tabla1[[#This Row],[Power shift]]+Tabla1[[#This Row],[T. Avance]]+Tabla1[[#This Row],[T. Retroceso]] -> 1.60 | AA117: 0.69 | AB117: =(Tabla1[[#This Row],[Producción por ciclo ]]*60*Tabla1[[#This Row],[Eficiencia]])/Tabla1[[#This Row],[Cm]] -> 233.46
A118: D8T | B118: 39751.00 | C118: Universal | D118: 6.790 | E118: 4.250 | F118: 1.740 | G118: 0.567 | H118: Grava suelta | I118: 1930.00 | J118: Empuje promedio | K118: =IF(Tabla1[[#This Row],[Nivel de empuje]]="Empuje facil",1.1,IF(Tabla1[[#This Row],[Nivel de empuje]]="Empuje promedio",0.9,IF(Tabla1[[#This Row],[Nivel de empuje]]="Empuje medio dificultoso",0.7,IF(Tabla1[[#This Row],[Nivel de empuje]]="Empuje dificultoso",0.6," ")))) -> 0.90 | L118: 0.50 | M118: =Tabla1[[#This Row],[Ancho ]]*(Tabla1[[#This Row],[Altura ]]^2)*Tabla1[[#This Row],[Factor Hoja]] -> 11.581 | N118: =Tabla1[[#This Row],[Producción por ciclo ]]/(Tabla1[[#This Row],[Profundidad]]*Tabla1[[#This Row],[Ancho ]]) -> 4.81 | O118: =MROUND(3*Tabla1[[#This Row],[Longitud ]],10) -> 20.00 | P118: =Tabla1[[#This Row],[Producción por ciclo ]]/(Tabla1[[#This Row],[dmin]]*Tabla1[[#This Row],[Ancho ]]) -> 0.1362 | Q118: =IF(Tabla1[[#This Row],[Profundidad]]>Tabla1[[#This Row],[Profundidad de trabajo ]],"Conforme","No conforme") -> Conforme | R118: =Tabla1[[#This Row],[Densidad ]]*Tabla1[[#This Row],[Producción por ciclo ]] -> 22350.50 | S118: 0.10 | T118: =Tabla1[[#This Row],[Peso ]]+Tabla1[[#This Row],[Peso de material]] -> 62101.50 | U118: =(Tabla1[[#This Row],[Factor de tracción ]]*Tabla1[[#This Row],[Carga total]])/1000 -> 31.05 | V118: 1.84 | W118: 1.30 | X118: =Tabla1[[#This Row],[dmin]]/(Tabla1[[#This Row],[Velod. Avance]]*1000/60) -> 0.65 | Y118: =Tabla1[[#This Row],[dmin]]/(Tabla1[[#This Row],[Velod. Retroceso]]*1000/60) -> 0.92 | Z118: =Tabla1[[#This Row],[Power shift]]+Tabla1[[#This Row],[T. Avance]]+Tabla1[[#This Row],[T. Retroceso]] -> 1.68 | AA118: 0.69 | AB118: =(Tabla1[[#This Row],[Producción por ciclo ]]*60*Tabla1[[#This Row],[Eficiencia]])/Tabla1[[#This Row],[Cm]] -> 286.19
A119: D8T | B119: 39751.00 | C119: Universal | D119: 6.790 | E119: 4.250 | F119: 1.740 | G119: 0.567 | H119: Nieve compacta | I119: 130.00 | J119: Empuje medio dificultoso | K119: =IF(Tabla1[[#This Row],[Nivel de empuje]]="Empuje facil",1.1,IF(Tabla1[[#This Row],[Nivel de empuje]]="Empuje promedio",0.9,IF(Tabla1[[#This Row],[Nivel de empuje]]="Empuje medio dificultoso",0.7,IF(Tabla1[[#This Row],[Nivel de empuje]]="Empuje dificultoso",0.6," ")))) -> 0.70 | L119: 0.27 | M119: =Tabla1[[#This Row],[Ancho ]]*(Tabla1[[#This Row],[Altura ]]^2)*Tabla1[[#This Row],[Factor Hoja]] -> 9.007 | N119: =Tabla1[[#This Row],[Producción por ciclo ]]/(Tabla1[[#This Row],[Profundidad]]*Tabla1[[#This Row],[Ancho ]]) -> 3.74 | O119: =MROUND(3*Tabla1[[#This Row],[Longitud ]],10) -> 20.00 | P119: =Tabla1[[#This Row],[Producción por ciclo ]]/(Tabla1[[#This Row],[dmin]]*Tabla1[[#This Row],[Ancho ]]) -> 0.1060 | Q119: =IF(Tabla1[[#This Row],[Profundidad]]>Tabla1[[#This Row],[Profundidad de trabajo ]],"Conforme","No conforme") -> Conforme | R119: =Tabla1[[#This Row],[Densidad ]]*Tabla1[[#This Row],[Producción por ciclo ]] -> 1170.92 | S119: 0.10 | T119: =Tabla1[[#This Row],[Peso ]]+Tabla1[[#This Row],[Peso de material]] -> 40921.92 | U119: =(Tabla1[[#This Row],[Factor de tracción ]]*Tabla1[[#This Row],[Carga total]])/1000 -> 11.05 | V119: 4.89 | W119: 1.30 | X119: =Tabla1[[#This Row],[dmin]]/(Tabla1[[#This Row],[Velod. Avance]]*1000/60) -> 0.25 | Y119: =Tabla1[[#This Row],[dmin]]/(Tabla1[[#This Row],[Velod. Retroceso]]*1000/60) -> 0.92 | Z119: =Tabla1[[#This Row],[Power shift]]+Tabla1[[#This Row],[T. Avance]]+Tabla1[[#This Row],[T. Retroceso]] -> 1.27 | AA119: 0.69 | AB119: =(Tabla1[[#This Row],[Producción por ciclo ]]*60*Tabla1[[#This Row],[Eficiencia]])/Tabla1[[#This Row],[Cm]] -> 293.97
A120: D8T | B120: 39751.00 | C120: Universal | D120: 6.790 | E120: 4.250 | F120: 1.740 | G120: 0.567 | H120: Hielo | I120: 520.00 | J120: Empuje dificultoso | K120: =IF(Tabla1[[#This Row],[Nivel de empuje]]="Empuje facil",1.1,IF(Tabla1[[#This Row],[Nivel de empuje]]="Empuje promedio",0.9,IF(Tabla1[[#This Row],[Nivel de empuje]]="Empuje medio dificultoso",0.7,IF(Tabla1[[#This Row],[Nivel de empuje]]="Empuje dificultoso",0.6," ")))) -> 0.60 | L120: 0.12 | M120: =Tabla1[[#This Row],[Ancho ]]*(Tabla1[[#This Row],[Altura ]]^2)*Tabla1[[#This Row],[Factor Hoja]] -> 7.720 | N120: =Tabla1[[#This Row],[Producción por ciclo ]]/(Tabla1[[#This Row],[Profundidad]]*Tabla1[[#This Row],[Ancho ]]) -> 3.20 | O120: =MROUND(3*Tabla1[[#This Row],[Longitud ]],10) -> 20.00 | P120: =Tabla1[[#This Row],[Producción por ciclo ]]/(Tabla1[[#This Row],[dmin]]*Tabla1[[#This Row],[Ancho ]]) -> 0.0908 | Q120: =IF(Tabla1[[#This Row],[Profundidad]]>Tabla1[[#This Row],[Profundidad de trabajo ]],"Conforme","No conforme") -> Conforme | R120: =Tabla1[[#This Row],[Densidad ]]*Tabla1[[#This Row],[Producción por ciclo ]] -> 4014.60 | S120: 0.10 | T120: =Tabla1[[#This Row],[Peso ]]+Tabla1[[#This Row],[Peso de material]] -> 43765.60 | U120: =(Tabla1[[#This Row],[Factor de tracción ]]*Tabla1[[#This Row],[Carga total]])/1000 -> 5.25 | V120: 9.28 | W120: 1.30 | X120: =Tabla1[[#This Row],[dmin]]/(Tabla1[[#This Row],[Velod. Avance]]*1000/60) -> 0.13 | Y120: =Tabla1[[#This Row],[dmin]]/(Tabla1[[#This Row],[Velod. Retroceso]]*1000/60) -> 0.92 | Z120: =Tabla1[[#This Row],[Power shift]]+Tabla1[[#This Row],[T. Avance]]+Tabla1[[#This Row],[T. Retroceso]] -> 1.15 | AA120: 0.69 | AB120: =(Tabla1[[#This Row],[Producción por ciclo ]]*60*Tabla1[[#This Row],[Eficiencia]])/Tabla1[[#This Row],[Cm]] -> 277.36
A121: D8T | B121: 39751.00 | C121: Universal | D121: 6.790 | E121: 4.250 | F121: 1.740 | G121: 0.567 | H121: Tierra firme | I121: 1510.00 | J121: Empuje facil | K121: =IF(Tabla1[[#This Row],[Nivel de empuje]]="Empuje facil",1.1,IF(Tabla1[[#This Row],[Nivel de empuje]]="Empuje promedio",0.9,IF(Tabla1[[#This Row],[Nivel de empuje]]="Empuje medio dificultoso",0.7,IF(Tabla1[[#This Row],[Nivel de empuje]]="Empuje dificultoso",0.6," ")))) -> 1.10 | L121: 0.90 | M121: =Tabla1[[#This Row],[Ancho ]]*(Tabla1[[#This Row],[Altura ]]^2)*Tabla1[[#This Row],[Factor Hoja]] -> 14.154 | N121: =Tabla1[[#This Row],[Producción por ciclo ]]/(Tabla1[[#This Row],[Profundidad]]*Tabla1[[#This Row],[Ancho ]]) -> 5.87 | O121: =MROUND(3*Tabla1[[#This Row],[Longitud ]],10) -> 20.00 | P121: =Tabla1[[#This Row],[Producción por ciclo ]]/(Tabla1[[#This Row],[dmin]]*Tabla1[[#This Row],[Ancho ]]) -> 0.1665 | Q121: =IF(Tabla1[[#This Row],[Profundidad]]>Tabla1[[#This Row],[Profundidad de trabajo ]],"Conforme","No conforme") -> Conforme | R121: =Tabla1[[#This Row],[Densidad ]]*Tabla1[[#This Row],[Producción por ciclo ]] -> 21372.59 | S121: 0.10 | T121: =Tabla1[[#This Row],[Peso ]]+Tabla1[[#This Row],[Peso de material]] -> 61123.59 | U121: =(Tabla1[[#This Row],[Factor de tracción ]]*Tabla1[[#This Row],[Carga total]])/1000 -> 55.01 | V121: 0.49 | W121: 1.30 | X121: =Tabla1[[#This Row],[dmin]]/(Tabla1[[#This Row],[Velod. Avance]]*1000/60) -> 2.45 | Y121: =Tabla1[[#This Row],[dmin]]/(Tabla1[[#This Row],[Velod. Retroceso]]*1000/60) -> 0.92 | Z121: =Tabla1[[#This Row],[Power shift]]+Tabla1[[#This Row],[T. Avance]]+Tabla1[[#This Row],[T. Retroceso]] -> 3.47 | AA121: 0.69 | AB121: =(Tabla1[[#This Row],[Producción por ciclo ]]*60*Tabla1[[#This Row],[Eficiencia]])/Tabla1[[#This Row],[Cm]] -> 168.77
A122: D8T | B122: 39751.00 | C122: Universal | D122: 6.790 | E122: 4.250 | F122: 1.740 | G122: 0.567 | H122: Tierra suelta | I122: 1250.00 | J122: Empuje facil | K122: =IF(Tabla1[[#This Row],[Nivel de empuje]]="Empuje facil",1.1,IF(Tabla1[[#This Row],[Nivel de empuje]]="Empuje promedio",0.9,IF(Tabla1[[#This Row],[Nivel de empuje]]="Empuje medio dificultoso",0.7,IF(Tabla1[[#This Row],[Nivel de empuje]]="Empuje dificultoso",0.6," ")))) -> 1.10 | L122: 0.60 | M122: =Tabla1[[#This Row],[Ancho ]]*(Tabla1[[#This Row],[Altura ]]^2)*Tabla1[[#This Row],[Factor Hoja]] -> 14.154 | N122: =Tabla1[[#This Row],[Producción por ciclo ]]/(Tabla1[[#This Row],[Profundidad]]*Tabla1[[#This Row],[Ancho ]]) -> 5.87 | O122: =MROUND(3*Tabla1[[#This Row],[Longitud ]],10) -> 20.00 | P122: =Tabla1[[#This Row],[Producción por ciclo ]]/(Tabla1[[#This Row],[dmin]]*Tabla1[[#This Row],[Ancho ]]) -> 0.1665 | Q122: =IF(Tabla1[[#This Row],[Profundidad]]>Tabla1[[#This Row],[Profundidad de trabajo ]],"Conforme","No conforme") -> Conforme | R122: =Tabla1[[#This Row],[Densidad ]]*Tabla1[[#This Row],[Producción por ciclo ]] -> 17692.54 | S122: 0.10 | T122: =Tabla1[[#This Row],[Peso ]]+Tabla1[[#This Row],[Peso de material]] -> 57443.54 | U122: =(Tabla1[[#This Row],[Factor de tracción ]]*Tabla1[[#This Row],[Carga total]])/1000 -> 34.47 | V122: 1.71 | W122: 1.30 | X122: =Tabla1[[#This Row],[dmin]]/(Tabla1[[#This Row],[Velod. Avance]]*1000/60) -> 0.70 | Y122: =Tabla1[[#This Row],[dmin]]/(Tabla1[[#This Row],[Velod. Retroceso]]*1000/60) -> 0.92 | Z122: =Tabla1[[#This Row],[Power shift]]+Tabla1[[#This Row],[T. Avance]]+Tabla1[[#This Row],[T. Retroceso]] -> 1.72 | AA122: 0.69 | AB122: =(Tabla1[[#This Row],[Producción por ciclo ]]*60*Tabla1[[#This Row],[Eficiencia]])/Tabla1[[#This Row],[Cm]] -> 339.73
A123: D8T | B123: 39751.00 | C123: Universal | D123: 6.790 | E123: 4.250 | F123: 1.740 | G123: 0.567 | H123: Carbón | I123: 1190.00 | J123: Empuje promedio | K123: =IF(Tabla1[[#This Row],[Nivel de empuje]]="Empuje facil",1.1,IF(Tabla1[[#This Row],[Nivel de empuje]]="Empuje promedio",0.9,IF(Tabla1[[#This Row],[Nivel de empuje]]="Empuje medio dificultoso",0.7,IF(Tabla1[[#This Row],[Nivel de empuje]]="Empuje dificultoso",0.6," ")))) -> 0.90 | L123: 0.60 | M123: =Tabla1[[#This Row],[Ancho ]]*(Tabla1[[#This Row],[Altura ]]^2)*Tabla1[[#This Row],[Factor Hoja]] -> 11.581 | N123: =Tabla1[[#This Row],[Producción por ciclo ]]/(Tabla1[[#This Row],[Profundidad]]*Tabla1[[#This Row],[Ancho ]]) -> 4.81 | O123: =MROUND(3*Tabla1[[#This Row],[Longitud ]],10) -> 20.00 | P123: =Tabla1[[#This Row],[Producción por ciclo ]]/(Tabla1[[#This Row],[dmin]]*Tabla1[[#This Row],[Ancho ]]) -> 0.1362 | Q123: =IF(Tabla1[[#This Row],[Profundidad]]>Tabla1[[#This Row],[Profundidad de trabajo ]],"Conforme","No conforme") -> Conforme | R123: =Tabla1[[#This Row],[Densidad ]]*Tabla1[[#This Row],[Producción por ciclo ]] -> 13780.88 | S123: 0.10 | T123: =Tabla1[[#This Row],[Peso ]]+Tabla1[[#This Row],[Peso de material]] -> 53531.88 | U123: =(Tabla1[[#This Row],[Factor de tracción ]]*Tabla1[[#This Row],[Carga total]])/1000 -> 32.12 | V123: 1.79 | W123: 1.30 | X123: =Tabla1[[#This Row],[dmin]]/(Tabla1[[#This Row],[Velod. Avance]]*1000/60) -> 0.67 | Y123: =Tabla1[[#This Row],[dmin]]/(Tabla1[[#This Row],[Velod. Retroceso]]*1000/60) -> 0.92 | Z123: =Tabla1[[#This Row],[Power shift]]+Tabla1[[#This Row],[T. Avance]]+Tabla1[[#This Row],[T. Retroceso]] -> 1.69 | AA123: 0.69 | AB123: =(Tabla1[[#This Row],[Producción por ciclo ]]*60*Tabla1[[#This Row],[Eficiencia]])/Tabla1[[#This Row],[Cm]] -> 283.11
A124: D9R | B124: 48784.00 | C124: Semi universal | D124: 6.600 | E124: 4.310 | F124: 1.934 | G124: 0.606 | H124: Concreto | I124: 2400.00 | J124: Empuje dificultoso | K124: =IF(Tabla1[[#This Row],[Nivel de empuje]]="Empuje facil",1.1,IF(Tabla1[[#This Row],[Nivel de empuje]]="Empuje promedio",0.9,IF(Tabla1[[#This Row],[Nivel de empuje]]="Empuje medio dificultoso",0.7,IF(Tabla1[[#This Row],[Nivel de empuje]]="Empuje dificultoso",0.6," ")))) -> 0.60 | L124: 0.45 | M124: =Tabla1[[#This Row],[Ancho ]]*(Tabla1[[#This Row],[Altura ]]^2)*Tabla1[[#This Row],[Factor Hoja]] -> 9.673 | N124: =Tabla1[[#This Row],[Producción por ciclo ]]/(Tabla1[[#This Row],[Profundidad]]*Tabla1[[#This Row],[Ancho ]]) -> 3.70 | O124: =MROUND(3*Tabla1[[#This Row],[Longitud ]],10) -> 20.00 | P124: =Tabla1[[#This Row],[Producción por ciclo ]]/(Tabla1[[#This Row],[dmin]]*Tabla1[[#This Row],[Ancho ]]) -> 0.1122 | Q124: =IF(Tabla1[[#This Row],[Profundidad]]>Tabla1[[#This Row],[Profundidad de trabajo ]],"Conforme","No conforme") -> Conforme | R124: =Tabla1[[#This Row],[Densidad ]]*Tabla1[[#This Row],[Producción por ciclo ]] -> 23214.15 | S124: 0.10 | T124: =Tabla1[[#This Row],[Peso ]]+Tabla1[[#This Row],[Peso de material]] -> 71998.15 | U124: =(Tabla1[[#This Row],[Factor de tracción ]]*Tabla1[[#This Row],[Carga total]])/1000 -> 32.40 | V124: 2.49 | W124: 1.41 | X124: =Tabla1[[#This Row],[dmin]]/(Tabla1[[#This Row],[Velod. Avance]]*1000/60) -> 0.48 | Y124: =Tabla1[[#This Row],[dmin]]/(Tabla1[[#This Row],[Velod. Retroceso]]*1000/60) -> 0.85 | Z124: =Tabla1[[#This Row],[Power shift]]+Tabla1[[#This Row],[T. Avance]]+Tabla1[[#This Row],[T. Retroceso]] -> 1.43 | AA124: 0.69 | AB124: =(Tabla1[[#This Row],[Producción por ciclo ]]*60*Tabla1[[#This Row],[Eficiencia]])/Tabla1[[#This Row],[Cm]] -> 279.45
A125: D9R | B125: 48784.00 | C125: Semi universal | D125: 6.600 | E125: 4.310 | F125: 1.934 | G125: 0.606 | H125: Arcilla seca | I125: 1480.00 | J125: Empuje medio dificultoso | K125: =IF(Tabla1[[#This Row],[Nivel de empuje]]="Empuje facil",1.1,IF(Tabla1[[#This Row],[Nivel de empuje]]="Empuje promedio",0.9,IF(Tabla1[[#This Row],[Nivel de empuje]]="Empuje medio dificultoso",0.7,IF(Tabla1[[#This Row],[Nivel de empuje]]="Empuje dificultoso",0.6," ")))) -> 0.70 | L125: 0.90 | M125: =Tabla1[[#This Row],[Ancho ]]*(Tabla1[[#This Row],[Altura ]]^2)*Tabla1[[#This Row],[Factor Hoja]] -> 11.285 | N125: =Tabla1[[#This Row],[Producción por ciclo ]]/(Tabla1[[#This Row],[Profundidad]]*Tabla1[[#This Row],[Ancho ]]) -> 4.32 | O125: =MROUND(3*Tabla1[[#This Row],[Longitud ]],10) -> 20.00 | P125: =Tabla1[[#This Row],[Producción por ciclo ]]/(Tabla1[[#This Row],[dmin]]*Tabla1[[#This Row],[Ancho ]]) -> 0.1309 | Q125: =IF(Tabla1[[#This Row],[Profundidad]]>Tabla1[[#This Row],[Profundidad de trabajo ]],"Conforme","No conforme") -> Conforme | R125: =Tabla1[[#This Row],[Densidad ]]*Tabla1[[#This Row],[Producción por ciclo ]] -> 16701.29 | S125: 0.10 | T125: =Tabla1[[#This Row],[Peso ]]+Tabla1[[#This Row],[Peso de material]] -> 65485.29 | U125: =(Tabla1[[#This Row],[Factor de tracción ]]*Tabla1[[#This Row],[Carga total]])/1000 -> 58.94 | V125: 0.81 | W125: 1.41 | X125: =Tabla1[[#This Row],[dmin]]/(Tabla1[[#This Row],[Velod. Avance]]*1000/60) -> 1.48 | Y125: =Tabla1[[#This Row],[dmin]]/(Tabla1[[#This Row],[Velod. Retroceso]]*1000/60) -> 0.85 | Z125: =Tabla1[[#This Row],[Power shift]]+Tabla1[[#This Row],[T. Avance]]+Tabla1[[#This Row],[T. Retroceso]] -> 2.43 | AA125: 0.69 | AB125: =(Tabla1[[#This Row],[Producción por ciclo ]]*60*Tabla1[[#This Row],[Eficiencia]])/Tabla1[[#This Row],[Cm]] -> 192.06
A126: D9R | B126: 48784.00 | C126: Semi universal | D126: 6.600 | E126: 4.310 | F126: 1.934 | G126: 0.606 | H126: Arcilla húmeda | I126: 1660.00 | J126: Empuje facil | K126: =IF(Tabla1[[#This Row],[Nivel de empuje]]="Empuje facil",1.1,IF(Tabla1[[#This Row],[Nivel de empuje]]="Empuje promedio",0.9,IF(Tabla1[[#This Row],[Nivel de empuje]]="Empuje medio dificultoso",0.7,IF(Tabla1[[#This Row],[Nivel de empuje]]="Empuje dificultoso",0.6," ")))) -> 1.10 | L126: 0.70 | M126: =Tabla1[[#This Row],[Ancho ]]*(Tabla1[[#This Row],[Altura ]]^2)*Tabla1[[#This Row],[Factor Hoja]] -> 17.733 | N126: =Tabla1[[#This Row],[Producción por ciclo ]]/(Tabla1[[#This Row],[Profundidad]]*Tabla1[[#This Row],[Ancho ]]) -> 6.79 | O126: =MROUND(3*Tabla1[[#This Row],[Longitud ]],10) -> 20.00 | P126: =Tabla1[[#This Row],[Producción por ciclo ]]/(Tabla1[[#This Row],[dmin]]*Tabla1[[#This Row],[Ancho ]]) -> 0.2057 | Q126: =IF(Tabla1[[#This Row],[Profundidad]]>Tabla1[[#This Row],[Profundidad de trabajo ]],"Conforme","No conforme") -> Conforme | R126: =Tabla1[[#This Row],[Densidad ]]*Tabla1[[#This Row],[Producción por ciclo ]] -> 29436.83 | S126: 0.10 | T126: =Tabla1[[#This Row],[Peso ]]+Tabla1[[#This Row],[Peso de material]] -> 78220.83 | U126: =(Tabla1[[#This Row],[Factor de tracción ]]*Tabla1[[#This Row],[Carga total]])/1000 -> 54.75 | V126: 1.14 | W126: 1.41 | X126: =Tabla1[[#This Row],[dmin]]/(Tabla1[[#This Row],[Velod. Avance]]*1000/60) -> 1.05 | Y126: =Tabla1[[#This Row],[dmin]]/(Tabla1[[#This Row],[Velod. Retroceso]]*1000/60) -> 0.85 | Z126: =Tabla1[[#This Row],[Power shift]]+Tabla1[[#This Row],[T. Avance]]+Tabla1[[#This Row],[T. Retroceso]] -> 2.00 | AA126: 0.69 | AB126: =(Tabla1[[#This Row],[Producción por ciclo ]]*60*Tabla1[[#This Row],[Eficiencia]])/Tabla1[[#This Row],[Cm]] -> 366.40
A127: D9R | B127: 48784.00 | C127: Semi universal | D127: 6.600 | E127: 4.310 | F127: 1.934 | G127: 0.606 | H127: Arena seca | I127: 1420.00 | J127: Empuje facil | K127: =IF(Tabla1[[#This Row],[Nivel de empuje]]="Empuje facil",1.1,IF(Tabla1[[#This Row],[Nivel de empuje]]="Empuje promedio",0.9,IF(Tabla1[[#This Row],[Nivel de empuje]]="Empuje medio dificultoso",0.7,IF(Tabla1[[#This Row],[Nivel de empuje]]="Empuje dificultoso",0.6," ")))) -> 1.10 | L127: 0.39 | M127: =Tabla1[[#This Row],[Ancho ]]*(Tabla1[[#This Row],[Altura ]]^2)*Tabla1[[#This Row],[Factor Hoja]] -> 17.733 | N127: =Tabla1[[#This Row],[Producción por ciclo ]]/(Tabla1[[#This Row],[Profundidad]]*Tabla1[[#This Row],[Ancho ]]) -> 6.79 | O127: =MROUND(3*Tabla1[[#This Row],[Longitud ]],10) -> 20.00 | P127: =Tabla1[[#This Row],[Producción por ciclo ]]/(Tabla1[[#This Row],[dmin]]*Tabla1[[#This Row],[Ancho ]]) -> 0.2057 | Q127: =IF(Tabla1[[#This Row],[Profundidad]]>Tabla1[[#This Row],[Profundidad de trabajo ]],"Conforme","No conforme") -> Conforme | R127: =Tabla1[[#This Row],[Densidad ]]*Tabla1[[#This Row],[Producción por ciclo ]] -> 25180.90 | S127: 0.10 | T127: =Tabla1[[#This Row],[Peso ]]+Tabla1[[#This Row],[Peso de material]] -> 73964.90 | U127: =(Tabla1[[#This Row],[Factor de tracción ]]*Tabla1[[#This Row],[Carga total]])/1000 -> 28.85 | V127: 2.71 | W127: 1.41 | X127: =Tabla1[[#This Row],[dmin]]/(Tabla1[[#This Row],[Velod. Avance]]*1000/60) -> 0.44 | Y127: =Tabla1[[#This Row],[dmin]]/(Tabla1[[#This Row],[Velod. Retroceso]]*1000/60) -> 0.85 | Z127: =Tabla1[[#This Row],[Power shift]]+Tabla1[[#This Row],[T. Avance]]+Tabla1[[#This Row],[T. Retroceso]] -> 1.39 | AA127: 0.69 | AB127: =(Tabla1[[#This Row],[Producción por ciclo ]]*60*Tabla1[[#This Row],[Eficiencia]])/Tabla1[[#This Row],[Cm]] -> 526.70
A128: D9R | B128: 48784.00 | C128: Semi universal | D128: 6.600 | E128: 4.310 | F128: 1.934 | G128: 0.606 | H128: Arena húmeda | I128: 1690.00 | J128: Empuje medio dificultoso | K128: =IF(Tabla1[[#This Row],[Nivel de empuje]]="Empuje facil",1.1,IF(Tabla1[[#This Row],[Nivel de empuje]]="Empuje promedio",0.9,IF(Tabla1[[#This Row],[Nivel de empuje]]="Empuje medio dificultoso",0.7,IF(Tabla1[[#This Row],[Nivel de empuje]]="Empuje dificultoso",0.6," ")))) -> 0.70 | L128: 0.50 | M128: =Tabla1[[#This Row],[Ancho ]]*(Tabla1[[#This Row],[Altura ]]^2)*Tabla1[[#This Row],[Factor Hoja]] -> 11.285 | N128: =Tabla1[[#This Row],[Producción por ciclo ]]/(Tabla1[[#This Row],[Profundidad]]*Tabla1[[#This Row],[Ancho ]]) -> 4.32 | O128: =MROUND(3*Tabla1[[#This Row],[Longitud ]],10) -> 20.00 | P128: =Tabla1[[#This Row],[Producción por ciclo ]]/(Tabla1[[#This Row],[dmin]]*Tabla1[[#This Row],[Ancho ]]) -> 0.1309 | Q128: =IF(Tabla1[[#This Row],[Profundidad]]>Tabla1[[#This Row],[Profundidad de trabajo ]],"Conforme","No conforme") -> Conforme | R128: =Tabla1[[#This Row],[Densidad ]]*Tabla1[[#This Row],[Producción por ciclo ]] -> 19071.07 | S128: 0.10 | T128: =Tabla1[[#This Row],[Peso ]]+Tabla1[[#This Row],[Peso de material]] -> 67855.07 | U128: =(Tabla1[[#This Row],[Factor de tracción ]]*Tabla1[[#This Row],[Carga total]])/1000 -> 33.93 | V128: 2.35 | W128: 1.41 | X128: =Tabla1[[#This Row],[dmin]]/(Tabla1[[#This Row],[Velod. Avance]]*1000/60) -> 0.51 | Y128: =Tabla1[[#This Row],[dmin]]/(Tabla1[[#This Row],[Velod. Retroceso]]*1000/60) -> 0.85 | Z128: =Tabla1[[#This Row],[Power shift]]+Tabla1[[#This Row],[T. Avance]]+Tabla1[[#This Row],[T. Retroceso]] -> 1.46 | AA128: 0.69 | AB128: =(Tabla1[[#This Row],[Producción por ciclo ]]*60*Tabla1[[#This Row],[Eficiencia]])/Tabla1[[#This Row],[Cm]] -> 319.62
A129: D9R | B129: 48784.00 | C129: Semi universal | D129: 6.600 | E129: 4.310 | F129: 1.934 | G129: 0.606 | H129: Grava suelta | I129: 1930.00 | J129: Empuje promedio | K129: =IF(Tabla1[[#This Row],[Nivel de empuje]]="Empuje facil",1.1,IF(Tabla1[[#This Row],[Nivel de empuje]]="Empuje promedio",0.9,IF(Tabla1[[#This Row],[Nivel de empuje]]="Empuje medio dificultoso",0.7,IF(Tabla1[[#This Row],[Nivel de empuje]]="Empuje dificultoso",0.6," ")))) -> 0.90 | L129: 0.50 | M129: =Tabla1[[#This Row],[Ancho ]]*(Tabla1[[#This Row],[Altura ]]^2)*Tabla1[[#This Row],[Factor Hoja]] -> 14.509 | N129: =Tabla1[[#This Row],[Producción por ciclo ]]/(Tabla1[[#This Row],[Profundidad]]*Tabla1[[#This Row],[Ancho ]]) -> 5.55 | O129: =MROUND(3*Tabla1[[#This Row],[Longitud ]],10) -> 20.00 | P129: =Tabla1[[#This Row],[Producción por ciclo ]]/(Tabla1[[#This Row],[dmin]]*Tabla1[[#This Row],[Ancho ]]) -> 0.1683 | Q129: =IF(Tabla1[[#This Row],[Profundidad]]>Tabla1[[#This Row],[Profundidad de trabajo ]],"Conforme","No conforme") -> Conforme | R129: =Tabla1[[#This Row],[Densidad ]]*Tabla1[[#This Row],[Producción por ciclo ]] -> 28002.06 | S129: 0.10 | T129: =Tabla1[[#This Row],[Peso ]]+Tabla1[[#This Row],[Peso de material]] -> 76786.06 | U129: =(Tabla1[[#This Row],[Factor de tracción ]]*Tabla1[[#This Row],[Carga total]])/1000 -> 38.39 | V129: 2.09 | W129: 1.41 | X129: =Tabla1[[#This Row],[dmin]]/(Tabla1[[#This Row],[Velod. Avance]]*1000/60) -> 0.57 | Y129: =Tabla1[[#This Row],[dmin]]/(Tabla1[[#This Row],[Velod. Retroceso]]*1000/60) -> 0.85 | Z129: =Tabla1[[#This Row],[Power shift]]+Tabla1[[#This Row],[T. Avance]]+Tabla1[[#This Row],[T. Retroceso]] -> 1.53 | AA129: 0.69 | AB129: =(Tabla1[[#This Row],[Producción por ciclo ]]*60*Tabla1[[#This Row],[Eficiencia]])/Tabla1[[#This Row],[Cm]] -> 393.82
A130: D9R | B130: 48784.00 | C130: Semi universal | D130: 6.600 | E130: 4.310 | F130: 1.934 | G130: 0.606 | H130: Nieve compacta | I130: 130.00 | J130: Empuje medio dificultoso | K130: =IF(Tabla1[[#This Row],[Nivel de empuje]]="Empuje facil",1.1,IF(Tabla1[[#This Row],[Nivel de empuje]]="Empuje promedio",0.9,IF(Tabla1[[#This Row],[Nivel de empuje]]="Empuje medio dificultoso",0.7,IF(Tabla1[[#This Row],[Nivel de empuje]]="Empuje dificultoso",0.6," ")))) -> 0.70 | L130: 0.27 | M130: =Tabla1[[#This Row],[Ancho ]]*(Tabla1[[#This Row],[Altura ]]^2)*Tabla1[[#This Row],[Factor Hoja]] -> 11.285 | N130: =Tabla1[[#This Row],[Producción por ciclo ]]/(Tabla1[[#This Row],[Profundidad]]*Tabla1[[#This Row],[Ancho ]]) -> 4.32 | O130: =MROUND(3*Tabla1[[#This Row],[Longitud ]],10) -> 20.00 | P130: =Tabla1[[#This Row],[Producción por ciclo ]]/(Tabla1[[#This Row],[dmin]]*Tabla1[[#This Row],[Ancho ]]) -> 0.1309 | Q130: =IF(Tabla1[[#This Row],[Profundidad]]>Tabla1[[#This Row],[Profundidad de trabajo ]],"Conforme","No conforme") -> Conforme | R130: =Tabla1[[#This Row],[Densidad ]]*Tabla1[[#This Row],[Producción por ciclo ]] -> 1467.01 | S130: 0.10 | T130: =Tabla1[[#This Row],[Peso ]]+Tabla1[[#This Row],[Peso de material]] -> 50251.01 | U130: =(Tabla1[[#This Row],[Factor de tracción ]]*Tabla1[[#This Row],[Carga total]])/1000 -> 13.57 | V130: 5.29 | W130: 1.41 | X130: =Tabla1[[#This Row],[dmin]]/(Tabla1[[#This Row],[Velod. Avance]]*1000/60) -> 0.23 | Y130: =Tabla1[[#This Row],[dmin]]/(Tabla1[[#This Row],[Velod. Retroceso]]*1000/60) -> 0.85 | Z130: =Tabla1[[#This Row],[Power shift]]+Tabla1[[#This Row],[T. Avance]]+Tabla1[[#This Row],[T. Retroceso]] -> 1.18 | AA130: 0.69 | AB130: =(Tabla1[[#This Row],[Producción por ciclo ]]*60*Tabla1[[#This Row],[Eficiencia]])/Tabla1[[#This Row],[Cm]] -> 396.62
A131: D9R | B131: 48784.00 | C131: Semi universal | D131: 6.600 | E131: 4.310 | F131: 1.934 | G131: 0.606 | H131: Hielo | I131: 520.00 | J131: Empuje dificultoso | K131: =IF(Tabla1[[#This Row],[Nivel de empuje]]="Empuje facil",1.1,IF(Tabla1[[#This Row],[Nivel de empuje]]="Empuje promedio",0.9,IF(Tabla1[[#This Row],[Nivel de empuje]]="Empuje medio dificultoso",0.7,IF(Tabla1[[#This Row],[Nivel de empuje]]="Empuje dificultoso",0.6," ")))) -> 0.60 | L131: 0.12 | M131: =Tabla1[[#This Row],[Ancho ]]*(Tabla1[[#This Row],[Altura ]]^2)*Tabla1[[#This Row],[Factor Hoja]] -> 9.673 | N131: =Tabla1[[#This Row],[Producción por ciclo ]]/(Tabla1[[#This Row],[Profundidad]]*Tabla1[[#This Row],[Ancho ]]) -> 3.70 | O131: =MROUND(3*Tabla1[[#This Row],[Longitud ]],10) -> 20.00 | P131: =Tabla1[[#This Row],[Producción por ciclo ]]/(Tabla1[[#This Row],[dmin]]*Tabla1[[#This Row],[Ancho ]]) -> 0.1122 | Q131: =IF(Tabla1[[#This Row],[Profundidad]]>Tabla1[[#This Row],[Profundidad de trabajo ]],"Conforme","No conforme") -> Conforme | R131: =Tabla1[[#This Row],[Densidad ]]*Tabla1[[#This Row],[Producción por ciclo ]] -> 5029.73 | S131: =2*0.05 -> 0.10 | T131: =Tabla1[[#This Row],[Peso ]]+Tabla1[[#This Row],[Peso de material]] -> 53813.73 | U131: =(Tabla1[[#This Row],[Factor de tracción ]]*Tabla1[[#This Row],[Carga total]])/1000 -> 6.46 | V131: 10.21 | W131: 1.41 | X131: =Tabla1[[#This Row],[dmin]]/(Tabla1[[#This Row],[Velod. Avance]]*1000/60) -> 0.12 | Y131: =Tabla1[[#This Row],[dmin]]/(Tabla1[[#This Row],[Velod. Retroceso]]*1000/60) -> 0.85 | Z131: =Tabla1[[#This Row],[Power shift]]+Tabla1[[#This Row],[T. Avance]]+Tabla1[[#This Row],[T. Retroceso]] -> 1.07 | AA131: 0.69 | AB131: =(Tabla1[[#This Row],[Producción por ciclo ]]*60*Tabla1[[#This Row],[Eficiencia]])/Tabla1[[#This Row],[Cm]] -> 374.74
A132: D9R | B132: 48784.00 | C132: Semi universal | D132: 6.600 | E132: 4.310 | F132: 1.934 | G132: 0.606 | H132: Tierra firme | I132: 1510.00 | J132: Empuje facil | K132: =IF(Tabla1[[#This Row],[Nivel de empuje]]="Empuje facil",1.1,IF(Tabla1[[#This Row],[Nivel de empuje]]="Empuje promedio",0.9,IF(Tabla1[[#This Row],[Nivel de empuje]]="Empuje medio dificultoso",0.7,IF(Tabla1[[#This Row],[Nivel de empuje]]="Empuje dificultoso",0.6," ")))) -> 1.10 | L132: 0.90 | M132: =Tabla1[[#This Row],[Ancho ]]*(Tabla1[[#This Row],[Altura ]]^2)*Tabla1[[#This Row],[Factor Hoja]] -> 17.733 | N132: =Tabla1[[#This Row],[Producción por ciclo ]]/(Tabla1[[#This Row],[Profundidad]]*Tabla1[[#This Row],[Ancho ]]) -> 6.79 | O132: =MROUND(3*Tabla1[[#This Row],[Longitud ]],10) -> 20.00 | P132: =Tabla1[[#This Row],[Producción por ciclo ]]/(Tabla1[[#This Row],[dmin]]*Tabla1[[#This Row],[Ancho ]]) -> 0.2057 | Q132: =IF(Tabla1[[#This Row],[Profundidad]]>Tabla1[[#This Row],[Profundidad de trabajo ]],"Conforme","No conforme") -> Conforme | R132: =Tabla1[[#This Row],[Densidad ]]*Tabla1[[#This Row],[Producción por ciclo ]] -> 26776.87 | S132: 0.10 | T132: =Tabla1[[#This Row],[Peso ]]+Tabla1[[#This Row],[Peso de material]] -> 75560.87 | U132: =(Tabla1[[#This Row],[Factor de tracción ]]*Tabla1[[#This Row],[Carga total]])/1000 -> 68.00 | V132: 0.49 | W132: 1.41 | X132: =Tabla1[[#This Row],[dmin]]/(Tabla1[[#This Row],[Velod. Avance]]*1000/60) -> 2.45 | Y132: =Tabla1[[#This Row],[dmin]]/(Tabla1[[#This Row],[Velod. Retroceso]]*1000/60) -> 0.85 | Z132: =Tabla1[[#This Row],[Power shift]]+Tabla1[[#This Row],[T. Avance]]+Tabla1[[#This Row],[T. Retroceso]] -> 3.40 | AA132: 0.69 | AB132: =(Tabla1[[#This Row],[Producción por ciclo ]]*60*Tabla1[[#This Row],[Eficiencia]])/Tabla1[[#This Row],[Cm]] -> 215.92
A133: D9R | B133: 48784.00 | C133: Semi universal | D133: 6.600 | E133: 4.310 | F133: 1.934 | G133: 0.606 | H133: Tierra suelta | I133: 1250.00 | J133: Empuje facil | K133: =IF(Tabla1[[#This Row],[Nivel de empuje]]="Empuje facil",1.1,IF(Tabla1[[#This Row],[Nivel de empuje]]="Empuje promedio",0.9,IF(Tabla1[[#This Row],[Nivel de empuje]]="Empuje medio dificultoso",0.7,IF(Tabla1[[#This Row],[Nivel de empuje]]="Empuje dificultoso",0.6," ")))) -> 1.10 | L133: 0.60 | M133: =Tabla1[[#This Row],[Ancho ]]*(Tabla1[[#This Row],[Altura ]]^2)*Tabla1[[#This Row],[Factor Hoja]] -> 17.733 | N133: =Tabla1[[#This Row],[Producción por ciclo ]]/(Tabla1[[#This Row],[Profundidad]]*Tabla1[[#This Row],[Ancho ]]) -> 6.79 | O133: =MROUND(3*Tabla1[[#This Row],[Longitud ]],10) -> 20.00 | P133: =Tabla1[[#This Row],[Producción por ciclo ]]/(Tabla1[[#This Row],[dmin]]*Tabla1[[#This Row],[Ancho ]]) -> 0.2057 | Q133: =IF(Tabla1[[#This Row],[Profundidad]]>Tabla1[[#This Row],[Profundidad de trabajo ]],"Conforme","No conforme") -> Conforme | R133: =Tabla1[[#This Row],[Densidad ]]*Tabla1[[#This Row],[Producción por ciclo ]] -> 22166.28 | S133: 0.10 | T133: =Tabla1[[#This Row],[Peso ]]+Tabla1[[#This Row],[Peso de material]] -> 70950.28 | U133: =(Tabla1[[#This Row],[Factor de tracción ]]*Tabla1[[#This Row],[Carga total]])/1000 -> 42.57 | V133: 1.79 | W133: 1.41 | X133: =Tabla1[[#This Row],[dmin]]/(Tabla1[[#This Row],[Velod. Avance]]*1000/60) -> 0.67 | Y133: =Tabla1[[#This Row],[dmin]]/(Tabla1[[#This Row],[Velod. Retroceso]]*1000/60) -> 0.85 | Z133: =Tabla1[[#This Row],[Power shift]]+Tabla1[[#This Row],[T. Avance]]+Tabla1[[#This Row],[T. Retroceso]] -> 1.62 | AA133: 0.69 | AB133: =(Tabla1[[#This Row],[Producción por ciclo ]]*60*Tabla1[[#This Row],[Eficiencia]])/Tabla1[[#This Row],[Cm]] -> 452.77
A134: D9R | B134: 48784.00 | C134: Semi universal | D134: 6.600 | E134: 4.310 | F134: 1.934 | G134: 0.606 | H134: Carbón | I134: 1190.00 | J134: Empuje promedio | K134: =IF(Tabla1[[#This Row],[Nivel de empuje]]="Empuje facil",1.1,IF(Tabla1[[#This Row],[Nivel de empuje]]="Empuje promedio",0.9,IF(Tabla1[[#This Row],[Nivel de empuje]]="Empuje medio dificultoso",0.7,IF(Tabla1[[#This Row],[Nivel de empuje]]="Empuje dificultoso",0.6," ")))) -> 0.90 | L134: 0.60 | M134: =Tabla1[[#This Row],[Ancho ]]*(Tabla1[[#This Row],[Altura ]]^2)*Tabla1[[#This Row],[Factor Hoja]] -> 14.509 | N134: =Tabla1[[#This Row],[Producción por ciclo ]]/(Tabla1[[#This Row],[Profundidad]]*Tabla1[[#This Row],[Ancho ]]) -> 5.55 | O134: =MROUND(3*Tabla1[[#This Row],[Longitud ]],10) -> 20.00 | P134: =Tabla1[[#This Row],[Producción por ciclo ]]/(Tabla1[[#This Row],[dmin]]*Tabla1[[#This Row],[Ancho ]]) -> 0.1683 | Q134: =IF(Tabla1[[#This Row],[Profundidad]]>Tabla1[[#This Row],[Profundidad de trabajo ]],"Conforme","No conforme") -> Conforme | R134: =Tabla1[[#This Row],[Densidad ]]*Tabla1[[#This Row],[Producción por ciclo ]] -> 17265.52 | S134: 0.10 | T134: =Tabla1[[#This Row],[Peso ]]+Tabla1[[#This Row],[Peso de material]] -> 66049.52 | U134: =(Tabla1[[#This Row],[Factor de tracción ]]*Tabla1[[#This Row],[Carga total]])/1000 -> 39.63 | V134: 2.01 | W134: 1.41 | X134: =Tabla1[[#This Row],[dmin]]/(Tabla1[[#This Row],[Velod. Avance]]*1000/60) -> 0.60 | Y134: =Tabla1[[#This Row],[dmin]]/(Tabla1[[#This Row],[Velod. Retroceso]]*1000/60) -> 0.85 | Z134: =Tabla1[[#This Row],[Power shift]]+Tabla1[[#This Row],[T. Avance]]+Tabla1[[#This Row],[T. Retroceso]] -> 1.55 | AA134: 0.69 | AB134: =(Tabla1[[#This Row],[Producción por ciclo ]]*60*Tabla1[[#This Row],[Eficiencia]])/Tabla1[[#This Row],[Cm]] -> 388.01
A135: D9R | B135: 48784.00 | C135: Universal | D135: 6.960 | E135: 4.650 | F135: 1.934 | G135: 0.606 | H135: Concreto | I135: 2400.00 | J135: Empuje dificultoso | K135: =IF(Tabla1[[#This Row],[Nivel de empuje]]="Empuje facil",1.1,IF(Tabla1[[#This Row],[Nivel de empuje]]="Empuje promedio",0.9,IF(Tabla1[[#This Row],[Nivel de empuje]]="Empuje medio dificultoso",0.7,IF(Tabla1[[#This Row],[Nivel de empuje]]="Empuje dificultoso",0.6," ")))) -> 0.60 | L135: 0.45 | M135: =Tabla1[[#This Row],[Ancho ]]*(Tabla1[[#This Row],[Altura ]]^2)*Tabla1[[#This Row],[Factor Hoja]] -> 10.436 | N135: =Tabla1[[#This Row],[Producción por ciclo ]]/(Tabla1[[#This Row],[Profundidad]]*Tabla1[[#This Row],[Ancho ]]) -> 3.70 | O135: =MROUND(3*Tabla1[[#This Row],[Longitud ]],10) -> 20.00 | P135: =Tabla1[[#This Row],[Producción por ciclo ]]/(Tabla1[[#This Row],[dmin]]*Tabla1[[#This Row],[Ancho ]]) -> 0.1122 | Q135: =IF(Tabla1[[#This Row],[Profundidad]]>Tabla1[[#This Row],[Profundidad de trabajo ]],"Conforme","No conforme") -> Conforme | R135: =Tabla1[[#This Row],[Densidad ]]*Tabla1[[#This Row],[Producción por ciclo ]] -> 25045.42 | S135: 0.10 | T135: =Tabla1[[#This Row],[Peso ]]+Tabla1[[#This Row],[Peso de material]] -> 73829.42 | U135: =(Tabla1[[#This Row],[Factor de tracción ]]*Tabla1[[#This Row],[Carga total]])/1000 -> 33.22 | V135: 2.35 | W135: 1.41 | X135: =Tabla1[[#This Row],[dmin]]/(Tabla1[[#This Row],[Velod. Avance]]*1000/60) -> 0.51 | Y135: =Tabla1[[#This Row],[dmin]]/(Tabla1[[#This Row],[Velod. Retroceso]]*1000/60) -> 0.85 | Z135: =Tabla1[[#This Row],[Power shift]]+Tabla1[[#This Row],[T. Avance]]+Tabla1[[#This Row],[T. Retroceso]] -> 1.46 | AA135: 0.69 | AB135: =(Tabla1[[#This Row],[Producción por ciclo ]]*60*Tabla1[[#This Row],[Eficiencia]])/Tabla1[[#This Row],[Cm]] -> 295.57
A136: D9R | B136: 48784.00 | C136: Universal | D136: 6.960 | E136: 4.650 | F136: 1.934 | G136: 0.606 | H136: Arcilla seca | I136: 1480.00 | J136: Empuje medio dificultoso | K136: =IF(Tabla1[[#This Row],[Nivel de empuje]]="Empuje facil",1.1,IF(Tabla1[[#This Row],[Nivel de empuje]]="Empuje promedio",0.9,IF(Tabla1[[#This Row],[Nivel de empuje]]="Empuje medio dificultoso",0.7,IF(Tabla1[[#This Row],[Nivel de empuje]]="Empuje dificultoso",0.6," ")))) -> 0.70 | L136: 0.90 | M136: =Tabla1[[#This Row],[Ancho ]]*(Tabla1[[#This Row],[Altura ]]^2)*Tabla1[[#This Row],[Factor Hoja]] -> 12.175 | N136: =Tabla1[[#This Row],[Producción por ciclo ]]/(Tabla1[[#This Row],[Profundidad]]*Tabla1[[#This Row],[Ancho ]]) -> 4.32 | O136: =MROUND(3*Tabla1[[#This Row],[Longitud ]],10) -> 20.00 | P136: =Tabla1[[#This Row],[Producción por ciclo ]]/(Tabla1[[#This Row],[dmin]]*Tabla1[[#This Row],[Ancho ]]) -> 0.1309 | Q136: =IF(Tabla1[[#This Row],[Profundidad]]>Tabla1[[#This Row],[Profundidad de trabajo ]],"Conforme","No conforme") -> Conforme | R136: =Tabla1[[#This Row],[Densidad ]]*Tabla1[[#This Row],[Producción por ciclo ]] -> 18018.79 | S136: 0.10 | T136: =Tabla1[[#This Row],[Peso ]]+Tabla1[[#This Row],[Peso de material]] -> 66802.79 | U136: =(Tabla1[[#This Row],[Factor de tracción ]]*Tabla1[[#This Row],[Carga total]])/1000 -> 60.12 | V136: 0.81 | W136: 1.41 | X136: =Tabla1[[#This Row],[dmin]]/(Tabla1[[#This Row],[Velod. Avance]]*1000/60) -> 1.48 | Y136: =Tabla1[[#This Row],[dmin]]/(Tabla1[[#This Row],[Velod. Retroceso]]*1000/60) -> 0.85 | Z136: =Tabla1[[#This Row],[Power shift]]+Tabla1[[#This Row],[T. Avance]]+Tabla1[[#This Row],[T. Retroceso]] -> 2.43 | AA136: 0.69 | AB136: =(Tabla1[[#This Row],[Producción por ciclo ]]*60*Tabla1[[#This Row],[Eficiencia]])/Tabla1[[#This Row],[Cm]] -> 207.21
A137: D9R | B137: 48784.00 | C137: Universal | D137: 6.960 | E137: 4.650 | F137: 1.934 | G137: 0.606 | H137: Arcilla húmeda | I137: 1660.00 | J137: Empuje facil | K137: =IF(Tabla1[[#This Row],[Nivel de empuje]]="Empuje facil",1.1,IF(Tabla1[[#This Row],[Nivel de empuje]]="Empuje promedio",0.9,IF(Tabla1[[#This Row],[Nivel de empuje]]="Empuje medio dificultoso",0.7,IF(Tabla1[[#This Row],[Nivel de empuje]]="Empuje dificultoso",0.6," ")))) -> 1.10 | L137: 0.70 | M137: =Tabla1[[#This Row],[Ancho ]]*(Tabla1[[#This Row],[Altura ]]^2)*Tabla1[[#This Row],[Factor Hoja]] -> 19.132 | N137: =Tabla1[[#This Row],[Producción por ciclo ]]/(Tabla1[[#This Row],[Profundidad]]*Tabla1[[#This Row],[Ancho ]]) -> 6.79 | O137: =MROUND(3*Tabla1[[#This Row],[Longitud ]],10) -> 20.00 | P137: =Tabla1[[#This Row],[Producción por ciclo ]]/(Tabla1[[#This Row],[dmin]]*Tabla1[[#This Row],[Ancho ]]) -> 0.2057 | Q137: =IF(Tabla1[[#This Row],[Profundidad]]>Tabla1[[#This Row],[Profundidad de trabajo ]],"Conforme","No conforme") -> Conforme | R137: =Tabla1[[#This Row],[Densidad ]]*Tabla1[[#This Row],[Producción por ciclo ]] -> 31758.99 | S137: 0.10 | T137: =Tabla1[[#This Row],[Peso ]]+Tabla1[[#This Row],[Peso de material]] -> 80542.99 | U137: =(Tabla1[[#This Row],[Factor de tracción ]]*Tabla1[[#This Row],[Carga total]])/1000 -> 56.38 | V137: 1.09 | W137: 1.41 | X137: =Tabla1[[#This Row],[dmin]]/(Tabla1[[#This Row],[Velod. Avance]]*1000/60) -> 1.10 | Y137: =Tabla1[[#This Row],[dmin]]/(Tabla1[[#This Row],[Velod. Retroceso]]*1000/60) -> 0.85 | Z137: =Tabla1[[#This Row],[Power shift]]+Tabla1[[#This Row],[T. Avance]]+Tabla1[[#This Row],[T. Retroceso]] -> 2.05 | AA137: 0.69 | AB137: =(Tabla1[[#This Row],[Producción por ciclo ]]*60*Tabla1[[#This Row],[Eficiencia]])/Tabla1[[#This Row],[Cm]] -> 386.00
A138: D9R | B138: 48784.00 | C138: Universal | D138: 6.960 | E138: 4.650 | F138: 1.934 | G138: 0.606 | H138: Arena seca | I138: 1420.00 | J138: Empuje facil | K138: =IF(Tabla1[[#This Row],[Nivel de empuje]]="Empuje facil",1.1,IF(Tabla1[[#This Row],[Nivel de empuje]]="Empuje promedio",0.9,IF(Tabla1[[#This Row],[Nivel de empuje]]="Empuje medio dificultoso",0.7,IF(Tabla1[[#This Row],[Nivel de empuje]]="Empuje dificultoso",0.6," ")))) -> 1.10 | L138: 0.39 | M138: =Tabla1[[#This Row],[Ancho ]]*(Tabla1[[#This Row],[Altura ]]^2)*Tabla1[[#This Row],[Factor Hoja]] -> 19.132 | N138: =Tabla1[[#This Row],[Producción por ciclo ]]/(Tabla1[[#This Row],[Profundidad]]*Tabla1[[#This Row],[Ancho ]]) -> 6.79 | O138: =MROUND(3*Tabla1[[#This Row],[Longitud ]],10) -> 20.00 | P138: =Tabla1[[#This Row],[Producción por ciclo ]]/(Tabla1[[#This Row],[dmin]]*Tabla1[[#This Row],[Ancho ]]) -> 0.2057 | Q138: =IF(Tabla1[[#This Row],[Profundidad]]>Tabla1[[#This Row],[Profundidad de trabajo ]],"Conforme","No conforme") -> Conforme | R138: =Tabla1[[#This Row],[Densidad ]]*Tabla1[[#This Row],[Producción por ciclo ]] -> 27167.33 | S138: 0.10 | T138: =Tabla1[[#This Row],[Peso ]]+Tabla1[[#This Row],[Peso de material]] -> 75951.33 | U138: =(Tabla1[[#This Row],[Factor de tracción ]]*Tabla1[[#This Row],[Carga total]])/1000 -> 29.62 | V138: 2.61 | W138: 1.41 | X138: =Tabla1[[#This Row],[dmin]]/(Tabla1[[#This Row],[Velod. Avance]]*1000/60) -> 0.46 | Y138: =Tabla1[[#This Row],[dmin]]/(Tabla1[[#This Row],[Velod. Retroceso]]*1000/60) -> 0.85 | Z138: =Tabla1[[#This Row],[Power shift]]+Tabla1[[#This Row],[T. Avance]]+Tabla1[[#This Row],[T. Retroceso]] -> 1.41 | AA138: 0.69 | AB138: =(Tabla1[[#This Row],[Producción por ciclo ]]*60*Tabla1[[#This Row],[Eficiencia]])/Tabla1[[#This Row],[Cm]] -> 561.41
A139: D9R | B139: 48784.00 | C139: Universal | D139: 6.960 | E139: 4.650 | F139: 1.934 | G139: 0.606 | H139: Arena húmeda | I139: 1690.00 | J139: Empuje medio dificultoso | K139: =IF(Tabla1[[#This Row],[Nivel de empuje]]="Empuje facil",1.1,IF(Tabla1[[#This Row],[Nivel de empuje]]="Empuje promedio",0.9,IF(Tabla1[[#This Row],[Nivel de empuje]]="Empuje medio dificultoso",0.7,IF(Tabla1[[#This Row],[Nivel de empuje]]="Empuje dificultoso",0.6," ")))) -> 0.70 | L139: 0.50 | M139: =Tabla1[[#This Row],[Ancho ]]*(Tabla1[[#This Row],[Altura ]]^2)*Tabla1[[#This Row],[Factor Hoja]] -> 12.175 | N139: =Tabla1[[#This Row],[Producción por ciclo ]]/(Tabla1[[#This Row],[Profundidad]]*Tabla1[[#This Row],[Ancho ]]) -> 4.32 | O139: =MROUND(3*Tabla1[[#This Row],[Longitud ]],10) -> 20.00 | P139: =Tabla1[[#This Row],[Producción por ciclo ]]/(Tabla1[[#This Row],[dmin]]*Tabla1[[#This Row],[Ancho ]]) -> 0.1309 | Q139: =IF(Tabla1[[#This Row],[Profundidad]]>Tabla1[[#This Row],[Profundidad de trabajo ]],"Conforme","No conforme") -> Conforme | R139: =Tabla1[[#This Row],[Densidad ]]*Tabla1[[#This Row],[Producción por ciclo ]] -> 20575.51 | S139: 0.10 | T139: =Tabla1[[#This Row],[Peso ]]+Tabla1[[#This Row],[Peso de material]] -> 69359.51 | U139: =(Tabla1[[#This Row],[Factor de tracción ]]*Tabla1[[#This Row],[Carga total]])/1000 -> 34.68 | V139: 2.28 | W139: 1.41 | X139: =Tabla1[[#This Row],[dmin]]/(Tabla1[[#This Row],[Velod. Avance]]*1000/60) -> 0.53 | Y139: =Tabla1[[#This Row],[dmin]]/(Tabla1[[#This Row],[Velod. Retroceso]]*1000/60) -> 0.85 | Z139: =Tabla1[[#This Row],[Power shift]]+Tabla1[[#This Row],[T. Avance]]+Tabla1[[#This Row],[T. Retroceso]] -> 1.48 | AA139: 0.69 | AB139: =(Tabla1[[#This Row],[Producción por ciclo ]]*60*Tabla1[[#This Row],[Eficiencia]])/Tabla1[[#This Row],[Cm]] -> 341.17
A140: D9R | B140: 48784.00 | C140: Universal | D140: 6.960 | E140: 4.650 | F140: 1.934 | G140: 0.606 | H140: Grava suelta | I140: 1930.00 | J140: Empuje promedio | K140: =IF(Tabla1[[#This Row],[Nivel de empuje]]="Empuje facil",1.1,IF(Tabla1[[#This Row],[Nivel de empuje]]="Empuje promedio",0.9,IF(Tabla1[[#This Row],[Nivel de empuje]]="Empuje medio dificultoso",0.7,IF(Tabla1[[#This Row],[Nivel de empuje]]="Empuje dificultoso",0.6," ")))) -> 0.90 | L140: 0.50 | M140: =Tabla1[[#This Row],[Ancho ]]*(Tabla1[[#This Row],[Altura ]]^2)*Tabla1[[#This Row],[Factor Hoja]] -> 15.653 | N140: =Tabla1[[#This Row],[Producción por ciclo ]]/(Tabla1[[#This Row],[Profundidad]]*Tabla1[[#This Row],[Ancho ]]) -> 5.55 | O140: =MROUND(3*Tabla1[[#This Row],[Longitud ]],10) -> 20.00 | P140: =Tabla1[[#This Row],[Producción por ciclo ]]/(Tabla1[[#This Row],[dmin]]*Tabla1[[#This Row],[Ancho ]]) -> 0.1683 | Q140: =IF(Tabla1[[#This Row],[Profundidad]]>Tabla1[[#This Row],[Profundidad de trabajo ]],"Conforme","No conforme") -> Conforme | R140: =Tabla1[[#This Row],[Densidad ]]*Tabla1[[#This Row],[Producción por ciclo ]] -> 30211.04 | S140: 0.10 | T140: =Tabla1[[#This Row],[Peso ]]+Tabla1[[#This Row],[Peso de material]] -> 78995.04 | U140: =(Tabla1[[#This Row],[Factor de tracción ]]*Tabla1[[#This Row],[Carga total]])/1000 -> 39.50 | V140: 2.00 | W140: 1.41 | X140: =Tabla1[[#This Row],[dmin]]/(Tabla1[[#This Row],[Velod. Avance]]*1000/60) -> 0.60 | Y140: =Tabla1[[#This Row],[dmin]]/(Tabla1[[#This Row],[Velod. Retroceso]]*1000/60) -> 0.85 | Z140: =Tabla1[[#This Row],[Power shift]]+Tabla1[[#This Row],[T. Avance]]+Tabla1[[#This Row],[T. Retroceso]] -> 1.55 | AA140: 0.69 | AB140: =(Tabla1[[#This Row],[Producción por ciclo ]]*60*Tabla1[[#This Row],[Eficiencia]])/Tabla1[[#This Row],[Cm]] -> 417.81
A141: D9R | B141: 48784.00 | C141: Universal | D141: 6.960 | E141: 4.650 | F141: 1.934 | G141: 0.606 | H141: Nieve compacta | I141: 130.00 | J141: Empuje medio dificultoso | K141: =IF(Tabla1[[#This Row],[Nivel de empuje]]="Empuje facil",1.1,IF(Tabla1[[#This Row],[Nivel de empuje]]="Empuje promedio",0.9,IF(Tabla1[[#This Row],[Nivel de empuje]]="Empuje medio dificultoso",0.7,IF(Tabla1[[#This Row],[Nivel de empuje]]="Empuje dificultoso",0.6," ")))) -> 0.70 | L141: 0.27 | M141: =Tabla1[[#This Row],[Ancho ]]*(Tabla1[[#This Row],[Altura ]]^2)*Tabla1[[#This Row],[Factor Hoja]] -> 12.175 | N141: =Tabla1[[#This Row],[Producción por ciclo ]]/(Tabla1[[#This Row],[Profundidad]]*Tabla1[[#This Row],[Ancho ]]) -> 4.32 | O141: =MROUND(3*Tabla1[[#This Row],[Longitud ]],10) -> 20.00 | P141: =Tabla1[[#This Row],[Producción por ciclo ]]/(Tabla1[[#This Row],[dmin]]*Tabla1[[#This Row],[Ancho ]]) -> 0.1309 | Q141: =IF(Tabla1[[#This Row],[Profundidad]]>Tabla1[[#This Row],[Profundidad de trabajo ]],"Conforme","No conforme") -> Conforme | R141: =Tabla1[[#This Row],[Densidad ]]*Tabla1[[#This Row],[Producción por ciclo ]] -> 1582.73 | S141: 0.10 | T141: =Tabla1[[#This Row],[Peso ]]+Tabla1[[#This Row],[Peso de material]] -> 50366.73 | U141: =(Tabla1[[#This Row],[Factor de tracción ]]*Tabla1[[#This Row],[Carga total]])/1000 -> 13.60 | V141: 5.29 | W141: 1.41 | X141: =Tabla1[[#This Row],[dmin]]/(Tabla1[[#This Row],[Velod. Avance]]*1000/60) -> 0.23 | Y141: =Tabla1[[#This Row],[dmin]]/(Tabla1[[#This Row],[Velod. Retroceso]]*1000/60) -> 0.85 | Z141: =Tabla1[[#This Row],[Power shift]]+Tabla1[[#This Row],[T. Avance]]+Tabla1[[#This Row],[T. Retroceso]] -> 1.18 | AA141: 0.69 | AB141: =(Tabla1[[#This Row],[Producción por ciclo ]]*60*Tabla1[[#This Row],[Eficiencia]])/Tabla1[[#This Row],[Cm]] -> 427.91
A142: D9R | B142: 48784.00 | C142: Universal | D142: 6.960 | E142: 4.650 | F142: 1.934 | G142: 0.606 | H142: Hielo | I142: 520.00 | J142: Empuje dificultoso | K142: =IF(Tabla1[[#This Row],[Nivel de empuje]]="Empuje facil",1.1,IF(Tabla1[[#This Row],[Nivel de empuje]]="Empuje promedio",0.9,IF(Tabla1[[#This Row],[Nivel de empuje]]="Empuje medio dificultoso",0.7,IF(Tabla1[[#This Row],[Nivel de empuje]]="Empuje dificultoso",0.6," ")))) -> 0.60 | L142: 0.12 | M142: =Tabla1[[#This Row],[Ancho ]]*(Tabla1[[#This Row],[Altura ]]^2)*Tabla1[[#This Row],[Factor Hoja]] -> 10.436 | N142: =Tabla1[[#This Row],[Producción por ciclo ]]/(Tabla1[[#This Row],[Profundidad]]*Tabla1[[#This Row],[Ancho ]]) -> 3.70 | O142: =MROUND(3*Tabla1[[#This Row],[Longitud ]],10) -> 20.00 | P142: =Tabla1[[#This Row],[Producción por ciclo ]]/(Tabla1[[#This Row],[dmin]]*Tabla1[[#This Row],[Ancho ]]) -> 0.1122 | Q142: =IF(Tabla1[[#This Row],[Profundidad]]>Tabla1[[#This Row],[Profundidad de trabajo ]],"Conforme","No conforme") -> Conforme | R142: =Tabla1[[#This Row],[Densidad ]]*Tabla1[[#This Row],[Producción por ciclo ]] -> 5426.51 | S142: 0.10 | T142: =Tabla1[[#This Row],[Peso ]]+Tabla1[[#This Row],[Peso de material]] -> 54210.51 | U142: =(Tabla1[[#This Row],[Factor de tracción ]]*Tabla1[[#This Row],[Carga total]])/1000 -> 6.51 | V142: 10.21 | W142: 1.41 | X142: =Tabla1[[#This Row],[dmin]]/(Tabla1[[#This Row],[Velod. Avance]]*1000/60) -> 0.12 | Y142: =Tabla1[[#This Row],[dmin]]/(Tabla1[[#This Row],[Velod. Retroceso]]*1000/60) -> 0.85 | Z142: =Tabla1[[#This Row],[Power shift]]+Tabla1[[#This Row],[T. Avance]]+Tabla1[[#This Row],[T. Retroceso]] -> 1.07 | AA142: 0.69 | AB142: =(Tabla1[[#This Row],[Producción por ciclo ]]*60*Tabla1[[#This Row],[Eficiencia]])/Tabla1[[#This Row],[Cm]] -> 404.30
A143: D9R | B143: 48784.00 | C143: Universal | D143: 6.960 | E143: 4.650 | F143: 1.934 | G143: 0.606 | H143: Tierra firme | I143: 1510.00 | J143: Empuje facil | K143: =IF(Tabla1[[#This Row],[Nivel de empuje]]="Empuje facil",1.1,IF(Tabla1[[#This Row],[Nivel de empuje]]="Empuje promedio",0.9,IF(Tabla1[[#This Row],[Nivel de empuje]]="Empuje medio dificultoso",0.7,IF(Tabla1[[#This Row],[Nivel de empuje]]="Empuje dificultoso",0.6," ")))) -> 1.10 | L143: 0.90 | M143: =Tabla1[[#This Row],[Ancho ]]*(Tabla1[[#This Row],[Altura ]]^2)*Tabla1[[#This Row],[Factor Hoja]] -> 19.132 | N143: =Tabla1[[#This Row],[Producción por ciclo ]]/(Tabla1[[#This Row],[Profundidad]]*Tabla1[[#This Row],[Ancho ]]) -> 6.79 | O143: =MROUND(3*Tabla1[[#This Row],[Longitud ]],10) -> 20.00 | P143: =Tabla1[[#This Row],[Producción por ciclo ]]/(Tabla1[[#This Row],[dmin]]*Tabla1[[#This Row],[Ancho ]]) -> 0.2057 | Q143: =IF(Tabla1[[#This Row],[Profundidad]]>Tabla1[[#This Row],[Profundidad de trabajo ]],"Conforme","No conforme") -> Conforme | R143: =Tabla1[[#This Row],[Densidad ]]*Tabla1[[#This Row],[Producción por ciclo ]] -> 28889.20 | S143: 0.10 | T143: =Tabla1[[#This Row],[Peso ]]+Tabla1[[#This Row],[Peso de material]] -> 77673.20 | U143: =(Tabla1[[#This Row],[Factor de tracción ]]*Tabla1[[#This Row],[Carga total]])/1000 -> 69.91 | V143: 0.33 | W143: 1.41 | X143: =Tabla1[[#This Row],[dmin]]/(Tabla1[[#This Row],[Velod. Avance]]*1000/60) -> 3.64 | Y143: =Tabla1[[#This Row],[dmin]]/(Tabla1[[#This Row],[Velod. Retroceso]]*1000/60) -> 0.85 | Z143: =Tabla1[[#This Row],[Power shift]]+Tabla1[[#This Row],[T. Avance]]+Tabla1[[#This Row],[T. Retroceso]] -> 4.59 | AA143: 0.69 | AB143: =(Tabla1[[#This Row],[Producción por ciclo ]]*60*Tabla1[[#This Row],[Eficiencia]])/Tabla1[[#This Row],[Cm]] -> 172.66
A144: D9R | B144: 48784.00 | C144: Universal | D144: 6.960 | E144: 4.650 | F144: 1.934 | G144: 0.606 | H144: Tierra suelta | I144: 1250.00 | J144: Empuje facil | K144: =IF(Tabla1[[#This Row],[Nivel de empuje]]="Empuje facil",1.1,IF(Tabla1[[#This Row],[Nivel de empuje]]="Empuje promedio",0.9,IF(Tabla1[[#This Row],[Nivel de empuje]]="Empuje medio dificultoso",0.7,IF(Tabla1[[#This Row],[Nivel de empuje]]="Empuje dificultoso",0.6," ")))) -> 1.10 | L144: 0.60 | M144: =Tabla1[[#This Row],[Ancho ]]*(Tabla1[[#This Row],[Altura ]]^2)*Tabla1[[#This Row],[Factor Hoja]] -> 19.132 | N144: =Tabla1[[#This Row],[Producción por ciclo ]]/(Tabla1[[#This Row],[Profundidad]]*Tabla1[[#This Row],[Ancho ]]) -> 6.79 | O144: =MROUND(3*Tabla1[[#This Row],[Longitud ]],10) -> 20.00 | P144: =Tabla1[[#This Row],[Producción por ciclo ]]/(Tabla1[[#This Row],[dmin]]*Tabla1[[#This Row],[Ancho ]]) -> 0.2057 | Q144: =IF(Tabla1[[#This Row],[Profundidad]]>Tabla1[[#This Row],[Profundidad de trabajo ]],"Conforme","No conforme") -> Conforme | R144: =Tabla1[[#This Row],[Densidad ]]*Tabla1[[#This Row],[Producción por ciclo ]] -> 23914.90 | S144: 0.10 | T144: =Tabla1[[#This Row],[Peso ]]+Tabla1[[#This Row],[Peso de material]] -> 72698.90 | U144: =(Tabla1[[#This Row],[Factor de tracción ]]*Tabla1[[#This Row],[Carga total]])/1000 -> 43.62 | V144: 1.79 | W144: 1.41 | X144: =Tabla1[[#This Row],[dmin]]/(Tabla1[[#This Row],[Velod. Avance]]*1000/60) -> 0.67 | Y144: =Tabla1[[#This Row],[dmin]]/(Tabla1[[#This Row],[Velod. Retroceso]]*1000/60) -> 0.85 | Z144: =Tabla1[[#This Row],[Power shift]]+Tabla1[[#This Row],[T. Avance]]+Tabla1[[#This Row],[T. Retroceso]] -> 1.62 | AA144: 0.69 | AB144: =(Tabla1[[#This Row],[Producción por ciclo ]]*60*Tabla1[[#This Row],[Eficiencia]])/Tabla1[[#This Row],[Cm]] -> 488.49
A145: D9R | B145: 48784.00 | C145: Universal | D145: 6.960 | E145: 4.650 | F145: 1.934 | G145: 0.606 | H145: Carbón | I145: 1190.00 | J145: Empuje promedio | K145: =IF(Tabla1[[#This Row],[Nivel de empuje]]="Empuje facil",1.1,IF(Tabla1[[#This Row],[Nivel de empuje]]="Empuje promedio",0.9,IF(Tabla1[[#This Row],[Nivel de empuje]]="Empuje medio dificultoso",0.7,IF(Tabla1[[#This Row],[Nivel de empuje]]="Empuje dificultoso",0.6," ")))) -> 0.90 | L145: 0.60 | M145: =Tabla1[[#This Row],[Ancho ]]*(Tabla1[[#This Row],[Altura ]]^2)*Tabla1[[#This Row],[Factor Hoja]] -> 15.653 | N145: =Tabla1[[#This Row],[Producción por ciclo ]]/(Tabla1[[#This Row],[Profundidad]]*Tabla1[[#This Row],[Ancho ]]) -> 5.55 | O145: =MROUND(3*Tabla1[[#This Row],[Longitud ]],10) -> 20.00 | P145: =Tabla1[[#This Row],[Producción por ciclo ]]/(Tabla1[[#This Row],[dmin]]*Tabla1[[#This Row],[Ancho ]]) -> 0.1683 | Q145: =IF(Tabla1[[#This Row],[Profundidad]]>Tabla1[[#This Row],[Profundidad de trabajo ]],"Conforme","No conforme") -> Conforme | R145: =Tabla1[[#This Row],[Densidad ]]*Tabla1[[#This Row],[Producción por ciclo ]] -> 18627.53 | S145: 0.10 | T145: =Tabla1[[#This Row],[Peso ]]+Tabla1[[#This Row],[Peso de material]] -> 67411.53 | U145: =(Tabla1[[#This Row],[Factor de tracción ]]*Tabla1[[#This Row],[Carga total]])/1000 -> 40.45 | V145: 1.96 | W145: 1.41 | X145: =Tabla1[[#This Row],[dmin]]/(Tabla1[[#This Row],[Velod. Avance]]*1000/60) -> 0.61 | Y145: =Tabla1[[#This Row],[dmin]]/(Tabla1[[#This Row],[Velod. Retroceso]]*1000/60) -> 0.85 | Z145: =Tabla1[[#This Row],[Power shift]]+Tabla1[[#This Row],[T. Avance]]+Tabla1[[#This Row],[T. Retroceso]] -> 1.56 | AA145: 0.69 | AB145: =(Tabla1[[#This Row],[Producción por ciclo ]]*60*Tabla1[[#This Row],[Eficiencia]])/Tabla1[[#This Row],[Cm]] -> 414.54
A146: D9T | B146: 47872.00 | C146: Semi universal | D146: 6.600 | E146: 4.310 | F146: 1.934 | G146: 0.606 | H146: Concreto | I146: 2400.00 | J146: Empuje dificultoso | K146: =IF(Tabla1[[#This Row],[Nivel de empuje]]="Empuje facil",1.1,IF(Tabla1[[#This Row],[Nivel de empuje]]="Empuje promedio",0.9,IF(Tabla1[[#This Row],[Nivel de empuje]]="Empuje medio dificultoso",0.7,IF(Tabla1[[#This Row],[Nivel de empuje]]="Empuje dificultoso",0.6," ")))) -> 0.60 | L146: 0.45 | M146: =Tabla1[[#This Row],[Ancho ]]*(Tabla1[[#This Row],[Altura ]]^2)*Tabla1[[#This Row],[Factor Hoja]] -> 9.673 | N146: =Tabla1[[#This Row],[Producción por ciclo ]]/(Tabla1[[#This Row],[Profundidad]]*Tabla1[[#This Row],[Ancho ]]) -> 3.70 | O146: =MROUND(3*Tabla1[[#This Row],[Longitud ]],10) -> 20.00 | P146: =Tabla1[[#This Row],[Producción por ciclo ]]/(Tabla1[[#This Row],[dmin]]*Tabla1[[#This Row],[Ancho ]]) -> 0.1122 | Q146: =IF(Tabla1[[#This Row],[Profundidad]]>Tabla1[[#This Row],[Profundidad de trabajo ]],"Conforme","No conforme") -> Conforme | R146: =Tabla1[[#This Row],[Densidad ]]*Tabla1[[#This Row],[Producción por ciclo ]] -> 23214.15 | S146: 0.10 | T146: =Tabla1[[#This Row],[Peso ]]+Tabla1[[#This Row],[Peso de material]] -> 71086.15 | U146: =(Tabla1[[#This Row],[Factor de tracción ]]*Tabla1[[#This Row],[Carga total]])/1000 -> 31.99 | V146: 2.60 | W146: 1.54 | X146: =Tabla1[[#This Row],[dmin]]/(Tabla1[[#This Row],[Velod. Avance]]*1000/60) -> 0.46 | Y146: =Tabla1[[#This Row],[dmin]]/(Tabla1[[#This Row],[Velod. Retroceso]]*1000/60) -> 0.78 | Z146: =Tabla1[[#This Row],[Power shift]]+Tabla1[[#This Row],[T. Avance]]+Tabla1[[#This Row],[T. Retroceso]] -> 1.34 | AA146: 0.69 | AB146: =(Tabla1[[#This Row],[Producción por ciclo ]]*60*Tabla1[[#This Row],[Eficiencia]])/Tabla1[[#This Row],[Cm]] -> 298.67
A147: D9T | B147: 47872.00 | C147: Semi universal | D147: 6.600 | E147: 4.310 | F147: 1.934 | G147: 0.606 | H147: Arcilla seca | I147: 1480.00 | J147: Empuje medio dificultoso | K147: =IF(Tabla1[[#This Row],[Nivel de empuje]]="Empuje facil",1.1,IF(Tabla1[[#This Row],[Nivel de empuje]]="Empuje promedio",0.9,IF(Tabla1[[#This Row],[Nivel de empuje]]="Empuje medio dificultoso",0.7,IF(Tabla1[[#This Row],[Nivel de empuje]]="Empuje dificultoso",0.6," ")))) -> 0.70 | L147: 0.90 | M147: =Tabla1[[#This Row],[Ancho ]]*(Tabla1[[#This Row],[Altura ]]^2)*Tabla1[[#This Row],[Factor Hoja]] -> 11.285 | N147: =Tabla1[[#This Row],[Producción por ciclo ]]/(Tabla1[[#This Row],[Profundidad]]*Tabla1[[#This Row],[Ancho ]]) -> 4.32 | O147: =MROUND(3*Tabla1[[#This Row],[Longitud ]],10) -> 20.00 | P147: =Tabla1[[#This Row],[Producción por ciclo ]]/(Tabla1[[#This Row],[dmin]]*Tabla1[[#This Row],[Ancho ]]) -> 0.1309 | Q147: =IF(Tabla1[[#This Row],[Profundidad]]>Tabla1[[#This Row],[Profundidad de trabajo ]],"Conforme","No conforme") -> Conforme | R147: =Tabla1[[#This Row],[Densidad ]]*Tabla1[[#This Row],[Producción por ciclo ]] -> 16701.29 | S147: 0.10 | T147: =Tabla1[[#This Row],[Peso ]]+Tabla1[[#This Row],[Peso de material]] -> 64573.29 | U147: =(Tabla1[[#This Row],[Factor de tracción ]]*Tabla1[[#This Row],[Carga total]])/1000 -> 58.12 | V147: 1.03 | W147: 1.54 | X147: =Tabla1[[#This Row],[dmin]]/(Tabla1[[#This Row],[Velod. Avance]]*1000/60) -> 1.17 | Y147: =Tabla1[[#This Row],[dmin]]/(Tabla1[[#This Row],[Velod. Retroceso]]*1000/60) -> 0.78 | Z147: =Tabla1[[#This Row],[Power shift]]+Tabla1[[#This Row],[T. Avance]]+Tabla1[[#This Row],[T. Retroceso]] -> 2.04 | AA147: 0.69 | AB147: =(Tabla1[[#This Row],[Producción por ciclo ]]*60*Tabla1[[#This Row],[Eficiencia]])/Tabla1[[#This Row],[Cm]] -> 228.53
A148: D9T | B148: 47872.00 | C148: Semi universal | D148: 6.600 | E148: 4.310 | F148: 1.934 | G148: 0.606 | H148: Arcilla húmeda | I148: 1660.00 | J148: Empuje facil | K148: =IF(Tabla1[[#This Row],[Nivel de empuje]]="Empuje facil",1.1,IF(Tabla1[[#This Row],[Nivel de empuje]]="Empuje promedio",0.9,IF(Tabla1[[#This Row],[Nivel de empuje]]="Empuje medio dificultoso",0.7,IF(Tabla1[[#This Row],[Nivel de empuje]]="Empuje dificultoso",0.6," ")))) -> 1.10 | L148: 0.70 | M148: =Tabla1[[#This Row],[Ancho ]]*(Tabla1[[#This Row],[Altura ]]^2)*Tabla1[[#This Row],[Factor Hoja]] -> 17.733 | N148: =Tabla1[[#This Row],[Producción por ciclo ]]/(Tabla1[[#This Row],[Profundidad]]*Tabla1[[#This Row],[Ancho ]]) -> 6.79 | O148: =MROUND(3*Tabla1[[#This Row],[Longitud ]],10) -> 20.00 | P148: =Tabla1[[#This Row],[Producción por ciclo ]]/(Tabla1[[#This Row],[dmin]]*Tabla1[[#This Row],[Ancho ]]) -> 0.2057 | Q148: =IF(Tabla1[[#This Row],[Profundidad]]>Tabla1[[#This Row],[Profundidad de trabajo ]],"Conforme","No conforme") -> Conforme | R148: =Tabla1[[#This Row],[Densidad ]]*Tabla1[[#This Row],[Producción por ciclo ]] -> 29436.83 | S148: 0.10 | T148: =Tabla1[[#This Row],[Peso ]]+Tabla1[[#This Row],[Peso de material]] -> 77308.83 | U148: =(Tabla1[[#This Row],[Factor de tracción ]]*Tabla1[[#This Row],[Carga total]])/1000 -> 54.12 | V148: 1.31 | W148: 1.54 | X148: =Tabla1[[#This Row],[dmin]]/(Tabla1[[#This Row],[Velod. Avance]]*1000/60) -> 0.92 | Y148: =Tabla1[[#This Row],[dmin]]/(Tabla1[[#This Row],[Velod. Retroceso]]*1000/60) -> 0.78 | Z148: =Tabla1[[#This Row],[Power shift]]+Tabla1[[#This Row],[T. Avance]]+Tabla1[[#This Row],[T. Retroceso]] -> 1.80 | AA148: 0.69 | AB148: =(Tabla1[[#This Row],[Producción por ciclo ]]*60*Tabla1[[#This Row],[Eficiencia]])/Tabla1[[#This Row],[Cm]] -> 408.94
A149: D9T | B149: 47872.00 | C149: Semi universal | D149: 6.600 | E149: 4.310 | F149: 1.934 | G149: 0.606 | H149: Arena seca | I149: 1420.00 | J149: Empuje facil | K149: =IF(Tabla1[[#This Row],[Nivel de empuje]]="Empuje facil",1.1,IF(Tabla1[[#This Row],[Nivel de empuje]]="Empuje promedio",0.9,IF(Tabla1[[#This Row],[Nivel de empuje]]="Empuje medio dificultoso",0.7,IF(Tabla1[[#This Row],[Nivel de empuje]]="Empuje dificultoso",0.6," ")))) -> 1.10 | L149: 0.39 | M149: =Tabla1[[#This Row],[Ancho ]]*(Tabla1[[#This Row],[Altura ]]^2)*Tabla1[[#This Row],[Factor Hoja]] -> 17.733 | N149: =Tabla1[[#This Row],[Producción por ciclo ]]/(Tabla1[[#This Row],[Profundidad]]*Tabla1[[#This Row],[Ancho ]]) -> 6.79 | O149: =MROUND(3*Tabla1[[#This Row],[Longitud ]],10) -> 20.00 | P149: =Tabla1[[#This Row],[Producción por ciclo ]]/(Tabla1[[#This Row],[dmin]]*Tabla1[[#This Row],[Ancho ]]) -> 0.2057 | Q149: =IF(Tabla1[[#This Row],[Profundidad]]>Tabla1[[#This Row],[Profundidad de trabajo ]],"Conforme","No conforme") -> Conforme | R149: =Tabla1[[#This Row],[Densidad ]]*Tabla1[[#This Row],[Producción por ciclo ]] -> 25180.90 | S149: 0.10 | T149: =Tabla1[[#This Row],[Peso ]]+Tabla1[[#This Row],[Peso de material]] -> 73052.90 | U149: =(Tabla1[[#This Row],[Factor de tracción ]]*Tabla1[[#This Row],[Carga total]])/1000 -> 28.49 | V149: 2.80 | W149: 1.54 | X149: =Tabla1[[#This Row],[dmin]]/(Tabla1[[#This Row],[Velod. Avance]]*1000/60) -> 0.43 | Y149: =Tabla1[[#This Row],[dmin]]/(Tabla1[[#This Row],[Velod. Retroceso]]*1000/60) -> 0.78 | Z149: =Tabla1[[#This Row],[Power shift]]+Tabla1[[#This Row],[T. Avance]]+Tabla1[[#This Row],[T. Retroceso]] -> 1.31 | AA149: 0.69 | AB149: =(Tabla1[[#This Row],[Producción por ciclo ]]*60*Tabla1[[#This Row],[Eficiencia]])/Tabla1[[#This Row],[Cm]] -> 561.36
A150: D9T | B150: 47872.00 | C150: Semi universal | D150: 6.600 | E150: 4.310 | F150: 1.934 | G150: 0.606 | H150: Arena húmeda | I150: 1690.00 | J150: Empuje medio dificultoso | K150: =IF(Tabla1[[#This Row],[Nivel de empuje]]="Empuje facil",1.1,IF(Tabla1[[#This Row],[Nivel de empuje]]="Empuje promedio",0.9,IF(Tabla1[[#This Row],[Nivel de empuje]]="Empuje medio dificultoso",0.7,IF(Tabla1[[#This Row],[Nivel de empuje]]="Empuje dificultoso",0.6," ")))) -> 0.70 | L150: 0.50 | M150: =Tabla1[[#This Row],[Ancho ]]*(Tabla1[[#This Row],[Altura ]]^2)*Tabla1[[#This Row],[Factor Hoja]] -> 11.285 | N150: =Tabla1[[#This Row],[Producción por ciclo ]]/(Tabla1[[#This Row],[Profundidad]]*Tabla1[[#This Row],[Ancho ]]) -> 4.32 | O150: =MROUND(3*Tabla1[[#This Row],[Longitud ]],10) -> 20.00 | P150: =Tabla1[[#This Row],[Producción por ciclo ]]/(Tabla1[[#This Row],[dmin]]*Tabla1[[#This Row],[Ancho ]]) -> 0.1309 | Q150: =IF(Tabla1[[#This Row],[Profundidad]]>Tabla1[[#This Row],[Profundidad de trabajo ]],"Conforme","No conforme") -> Conforme | R150: =Tabla1[[#This Row],[Densidad ]]*Tabla1[[#This Row],[Producción por ciclo ]] -> 19071.07 | S150: 0.10 | T150: =Tabla1[[#This Row],[Peso ]]+Tabla1[[#This Row],[Peso de material]] -> 66943.07 | U150: =(Tabla1[[#This Row],[Factor de tracción ]]*Tabla1[[#This Row],[Carga total]])/1000 -> 33.47 | V150: 2.55 | W150: 1.54 | X150: =Tabla1[[#This Row],[dmin]]/(Tabla1[[#This Row],[Velod. Avance]]*1000/60) -> 0.47 | Y150: =Tabla1[[#This Row],[dmin]]/(Tabla1[[#This Row],[Velod. Retroceso]]*1000/60) -> 0.78 | Z150: =Tabla1[[#This Row],[Power shift]]+Tabla1[[#This Row],[T. Avance]]+Tabla1[[#This Row],[T. Retroceso]] -> 1.35 | AA150: 0.69 | AB150: =(Tabla1[[#This Row],[Producción por ciclo ]]*60*Tabla1[[#This Row],[Eficiencia]])/Tabla1[[#This Row],[Cm]] -> 346.11
A151: D9T | B151: 47872.00 | C151: Semi universal | D151: 6.600 | E151: 4.310 | F151: 1.934 | G151: 0.606 | H151: Grava suelta | I151: 1930.00 | J151: Empuje promedio | K151: =IF(Tabla1[[#This Row],[Nivel de empuje]]="Empuje facil",1.1,IF(Tabla1[[#This Row],[Nivel de empuje]]="Empuje promedio",0.9,IF(Tabla1[[#This Row],[Nivel de empuje]]="Empuje medio dificultoso",0.7,IF(Tabla1[[#This Row],[Nivel de empuje]]="Empuje dificultoso",0.6," ")))) -> 0.90 | L151: 0.50 | M151: =Tabla1[[#This Row],[Ancho ]]*(Tabla1[[#This Row],[Altura ]]^2)*Tabla1[[#This Row],[Factor Hoja]] -> 14.509 | N151: =Tabla1[[#This Row],[Producción por ciclo ]]/(Tabla1[[#This Row],[Profundidad]]*Tabla1[[#This Row],[Ancho ]]) -> 5.55 | O151: =MROUND(3*Tabla1[[#This Row],[Longitud ]],10) -> 20.00 | P151: =Tabla1[[#This Row],[Producción por ciclo ]]/(Tabla1[[#This Row],[dmin]]*Tabla1[[#This Row],[Ancho ]]) -> 0.1683 | Q151: =IF(Tabla1[[#This Row],[Profundidad]]>Tabla1[[#This Row],[Profundidad de trabajo ]],"Conforme","No conforme") -> Conforme | R151: =Tabla1[[#This Row],[Densidad ]]*Tabla1[[#This Row],[Producción por ciclo ]] -> 28002.06 | S151: 0.10 | T151: =Tabla1[[#This Row],[Peso ]]+Tabla1[[#This Row],[Peso de material]] -> 75874.06 | U151: =(Tabla1[[#This Row],[Factor de tracción ]]*Tabla1[[#This Row],[Carga total]])/1000 -> 37.94 | V151: 2.22 | W151: 1.54 | X151: =Tabla1[[#This Row],[dmin]]/(Tabla1[[#This Row],[Velod. Avance]]*1000/60) -> 0.54 | Y151: =Tabla1[[#This Row],[dmin]]/(Tabla1[[#This Row],[Velod. Retroceso]]*1000/60) -> 0.78 | Z151: =Tabla1[[#This Row],[Power shift]]+Tabla1[[#This Row],[T. Avance]]+Tabla1[[#This Row],[T. Retroceso]] -> 1.42 | AA151: 0.69 | AB151: =(Tabla1[[#This Row],[Producción por ciclo ]]*60*Tabla1[[#This Row],[Eficiencia]])/Tabla1[[#This Row],[Cm]] -> 423.08
A152: D9T | B152: 47872.00 | C152: Semi universal | D152: 6.600 | E152: 4.310 | F152: 1.934 | G152: 0.606 | H152: Nieve compacta | I152: 130.00 | J152: Empuje medio dificultoso | K152: =IF(Tabla1[[#This Row],[Nivel de empuje]]="Empuje facil",1.1,IF(Tabla1[[#This Row],[Nivel de empuje]]="Empuje promedio",0.9,IF(Tabla1[[#This Row],[Nivel de empuje]]="Empuje medio dificultoso",0.7,IF(Tabla1[[#This Row],[Nivel de empuje]]="Empuje dificultoso",0.6," ")))) -> 0.70 | L152: 0.27 | M152: =Tabla1[[#This Row],[Ancho ]]*(Tabla1[[#This Row],[Altura ]]^2)*Tabla1[[#This Row],[Factor Hoja]] -> 11.285 | N152: =Tabla1[[#This Row],[Producción por ciclo ]]/(Tabla1[[#This Row],[Profundidad]]*Tabla1[[#This Row],[Ancho ]]) -> 4.32 | O152: =MROUND(3*Tabla1[[#This Row],[Longitud ]],10) -> 20.00 | P152: =Tabla1[[#This Row],[Producción por ciclo ]]/(Tabla1[[#This Row],[dmin]]*Tabla1[[#This Row],[Ancho ]]) -> 0.1309 | Q152: =IF(Tabla1[[#This Row],[Profundidad]]>Tabla1[[#This Row],[Profundidad de trabajo ]],"Conforme","No conforme") -> Conforme | R152: =Tabla1[[#This Row],[Densidad ]]*Tabla1[[#This Row],[Producción por ciclo ]] -> 1467.01 | S152: 0.10 | T152: =Tabla1[[#This Row],[Peso ]]+Tabla1[[#This Row],[Peso de material]] -> 49339.01 | U152: =(Tabla1[[#This Row],[Factor de tracción ]]*Tabla1[[#This Row],[Carga total]])/1000 -> 13.32 | V152: 5.99 | W152: 1.54 | X152: =Tabla1[[#This Row],[dmin]]/(Tabla1[[#This Row],[Velod. Avance]]*1000/60) -> 0.20 | Y152: =Tabla1[[#This Row],[dmin]]/(Tabla1[[#This Row],[Velod. Retroceso]]*1000/60) -> 0.78 | Z152: =Tabla1[[#This Row],[Power shift]]+Tabla1[[#This Row],[T. Avance]]+Tabla1[[#This Row],[T. Retroceso]] -> 1.08 | AA152: 0.69 | AB152: =(Tabla1[[#This Row],[Producción por ciclo ]]*60*Tabla1[[#This Row],[Eficiencia]])/Tabla1[[#This Row],[Cm]] -> 432.76
A153: D9T | B153: 47872.00 | C153: Semi universal | D153: 6.600 | E153: 4.310 | F153: 1.934 | G153: 0.606 | H153: Hielo | I153: 520.00 | J153: Empuje dificultoso | K153: =IF(Tabla1[[#This Row],[Nivel de empuje]]="Empuje facil",1.1,IF(Tabla1[[#This Row],[Nivel de empuje]]="Empuje promedio",0.9,IF(Tabla1[[#This Row],[Nivel de empuje]]="Empuje medio dificultoso",0.7,IF(Tabla1[[#This Row],[Nivel de empuje]]="Empuje dificultoso",0.6," ")))) -> 0.60 | L153: 0.12 | M153: =Tabla1[[#This Row],[Ancho ]]*(Tabla1[[#This Row],[Altura ]]^2)*Tabla1[[#This Row],[Factor Hoja]] -> 9.673 | N153: =Tabla1[[#This Row],[Producción por ciclo ]]/(Tabla1[[#This Row],[Profundidad]]*Tabla1[[#This Row],[Ancho ]]) -> 3.70 | O153: =MROUND(3*Tabla1[[#This Row],[Longitud ]],10) -> 20.00 | P153: =Tabla1[[#This Row],[Producción por ciclo ]]/(Tabla1[[#This Row],[dmin]]*Tabla1[[#This Row],[Ancho ]]) -> 0.1122 | Q153: =IF(Tabla1[[#This Row],[Profundidad]]>Tabla1[[#This Row],[Profundidad de trabajo ]],"Conforme","No conforme") -> Conforme | R153: =Tabla1[[#This Row],[Densidad ]]*Tabla1[[#This Row],[Producción por ciclo ]] -> 5029.73 | S153: 0.10 | T153: =Tabla1[[#This Row],[Peso ]]+Tabla1[[#This Row],[Peso de material]] -> 52901.73 | U153: =(Tabla1[[#This Row],[Factor de tracción ]]*Tabla1[[#This Row],[Carga total]])/1000 -> 6.35 | V153: 9.89 | W153: 1.54 | X153: =Tabla1[[#This Row],[dmin]]/(Tabla1[[#This Row],[Velod. Avance]]*1000/60) -> 0.12 | Y153: =Tabla1[[#This Row],[dmin]]/(Tabla1[[#This Row],[Velod. Retroceso]]*1000/60) -> 0.78 | Z153: =Tabla1[[#This Row],[Power shift]]+Tabla1[[#This Row],[T. Avance]]+Tabla1[[#This Row],[T. Retroceso]] -> 1.00 | AA153: 0.69 | AB153: =(Tabla1[[#This Row],[Producción por ciclo ]]*60*Tabla1[[#This Row],[Eficiencia]])/Tabla1[[#This Row],[Cm]] -> 400.22
A154: D9T | B154: 47872.00 | C154: Semi universal | D154: 6.600 | E154: 4.310 | F154: 1.934 | G154: 0.606 | H154: Tierra firme | I154: 1510.00 | J154: Empuje facil | K154: =IF(Tabla1[[#This Row],[Nivel de empuje]]="Empuje facil",1.1,IF(Tabla1[[#This Row],[Nivel de empuje]]="Empuje promedio",0.9,IF(Tabla1[[#This Row],[Nivel de empuje]]="Empuje medio dificultoso",0.7,IF(Tabla1[[#This Row],[Nivel de empuje]]="Empuje dificultoso",0.6," ")))) -> 1.10 | L154: 0.90 | M154: =Tabla1[[#This Row],[Ancho ]]*(Tabla1[[#This Row],[Altura ]]^2)*Tabla1[[#This Row],[Factor Hoja]] -> 17.733 | N154: =Tabla1[[#This Row],[Producción por ciclo ]]/(Tabla1[[#This Row],[Profundidad]]*Tabla1[[#This Row],[Ancho ]]) -> 6.79 | O154: =MROUND(3*Tabla1[[#This Row],[Longitud ]],10) -> 20.00 | P154: =Tabla1[[#This Row],[Producción por ciclo ]]/(Tabla1[[#This Row],[dmin]]*Tabla1[[#This Row],[Ancho ]]) -> 0.2057 | Q154: =IF(Tabla1[[#This Row],[Profundidad]]>Tabla1[[#This Row],[Profundidad de trabajo ]],"Conforme","No conforme") -> Conforme | R154: =Tabla1[[#This Row],[Densidad ]]*Tabla1[[#This Row],[Producción por ciclo ]] -> 26776.87 | S154: 0.10 | T154: =Tabla1[[#This Row],[Peso ]]+Tabla1[[#This Row],[Peso de material]] -> 74648.87 | U154: =(Tabla1[[#This Row],[Factor de tracción ]]*Tabla1[[#This Row],[Carga total]])/1000 -> 67.18 | V154: 0.60 | W154: 1.54 | X154: =Tabla1[[#This Row],[dmin]]/(Tabla1[[#This Row],[Velod. Avance]]*1000/60) -> 2.00 | Y154: =Tabla1[[#This Row],[dmin]]/(Tabla1[[#This Row],[Velod. Retroceso]]*1000/60) -> 0.78 | Z154: =Tabla1[[#This Row],[Power shift]]+Tabla1[[#This Row],[T. Avance]]+Tabla1[[#This Row],[T. Retroceso]] -> 2.88 | AA154: 0.69 | AB154: =(Tabla1[[#This Row],[Producción por ciclo ]]*60*Tabla1[[#This Row],[Eficiencia]])/Tabla1[[#This Row],[Cm]] -> 254.98
A155: D9T | B155: 47872.00 | C155: Semi universal | D155: 6.600 | E155: 4.310 | F155: 1.934 | G155: 0.606 | H155: Tierra suelta | I155: 1250.00 | J155: Empuje facil | K155: =IF(Tabla1[[#This Row],[Nivel de empuje]]="Empuje facil",1.1,IF(Tabla1[[#This Row],[Nivel de empuje]]="Empuje promedio",0.9,IF(Tabla1[[#This Row],[Nivel de empuje]]="Empuje medio dificultoso",0.7,IF(Tabla1[[#This Row],[Nivel de empuje]]="Empuje dificultoso",0.6," ")))) -> 1.10 | L155: 0.60 | M155: =Tabla1[[#This Row],[Ancho ]]*(Tabla1[[#This Row],[Altura ]]^2)*Tabla1[[#This Row],[Factor Hoja]] -> 17.733 | N155: =Tabla1[[#This Row],[Producción por ciclo ]]/(Tabla1[[#This Row],[Profundidad]]*Tabla1[[#This Row],[Ancho ]]) -> 6.79 | O155: =MROUND(3*Tabla1[[#This Row],[Longitud ]],10) -> 20.00 | P155: =Tabla1[[#This Row],[Producción por ciclo ]]/(Tabla1[[#This Row],[dmin]]*Tabla1[[#This Row],[Ancho ]]) -> 0.2057 | Q155: =IF(Tabla1[[#This Row],[Profundidad]]>Tabla1[[#This Row],[Profundidad de trabajo ]],"Conforme","No conforme") -> Conforme | R155: =Tabla1[[#This Row],[Densidad ]]*Tabla1[[#This Row],[Producción por ciclo ]] -> 22166.28 | S155: 0.10 | T155: =Tabla1[[#This Row],[Peso ]]+Tabla1[[#This Row],[Peso de material]] -> 70038.28 | U155: =(Tabla1[[#This Row],[Factor de tracción ]]*Tabla1[[#This Row],[Carga total]])/1000 -> 42.02 | V155: 1.99 | W155: 1.54 | X155: =Tabla1[[#This Row],[dmin]]/(Tabla1[[#This Row],[Velod. Avance]]*1000/60) -> 0.60 | Y155: =Tabla1[[#This Row],[dmin]]/(Tabla1[[#This Row],[Velod. Retroceso]]*1000/60) -> 0.78 | Z155: =Tabla1[[#This Row],[Power shift]]+Tabla1[[#This Row],[T. Avance]]+Tabla1[[#This Row],[T. Retroceso]] -> 1.48 | AA155: 0.69 | AB155: =(Tabla1[[#This Row],[Producción por ciclo ]]*60*Tabla1[[#This Row],[Eficiencia]])/Tabla1[[#This Row],[Cm]] -> 495.30
A156: D9T | B156: 47872.00 | C156: Semi universal | D156: 6.600 | E156: 4.310 | F156: 1.934 | G156: 0.606 | H156: Carbón | I156: 1190.00 | J156: Empuje promedio | K156: =IF(Tabla1[[#This Row],[Nivel de empuje]]="Empuje facil",1.1,IF(Tabla1[[#This Row],[Nivel de empuje]]="Empuje promedio",0.9,IF(Tabla1[[#This Row],[Nivel de empuje]]="Empuje medio dificultoso",0.7,IF(Tabla1[[#This Row],[Nivel de empuje]]="Empuje dificultoso",0.6," ")))) -> 0.90 | L156: 0.60 | M156: =Tabla1[[#This Row],[Ancho ]]*(Tabla1[[#This Row],[Altura ]]^2)*Tabla1[[#This Row],[Factor Hoja]] -> 14.509 | N156: =Tabla1[[#This Row],[Producción por ciclo ]]/(Tabla1[[#This Row],[Profundidad]]*Tabla1[[#This Row],[Ancho ]]) -> 5.55 | O156: =MROUND(3*Tabla1[[#This Row],[Longitud ]],10) -> 20.00 | P156: =Tabla1[[#This Row],[Producción por ciclo ]]/(Tabla1[[#This Row],[dmin]]*Tabla1[[#This Row],[Ancho ]]) -> 0.1683 | Q156: =IF(Tabla1[[#This Row],[Profundidad]]>Tabla1[[#This Row],[Profundidad de trabajo ]],"Conforme","No conforme") -> Conforme | R156: =Tabla1[[#This Row],[Densidad ]]*Tabla1[[#This Row],[Producción por ciclo ]] -> 17265.52 | S156: 0.10 | T156: =Tabla1[[#This Row],[Peso ]]+Tabla1[[#This Row],[Peso de material]] -> 65137.52 | U156: =(Tabla1[[#This Row],[Factor de tracción ]]*Tabla1[[#This Row],[Carga total]])/1000 -> 39.08 | V156: 2.15 | W156: 1.54 | X156: =Tabla1[[#This Row],[dmin]]/(Tabla1[[#This Row],[Velod. Avance]]*1000/60) -> 0.56 | Y156: =Tabla1[[#This Row],[dmin]]/(Tabla1[[#This Row],[Velod. Retroceso]]*1000/60) -> 0.78 | Z156: =Tabla1[[#This Row],[Power shift]]+Tabla1[[#This Row],[T. Avance]]+Tabla1[[#This Row],[T. Retroceso]] -> 1.44 | AA156: 0.69 | AB156: =(Tabla1[[#This Row],[Producción por ciclo ]]*60*Tabla1[[#This Row],[Eficiencia]])/Tabla1[[#This Row],[Cm]] -> 417.90
A157: D9T | B157: 47872.00 | C157: Universal | D157: 6.960 | E157: 4.650 | F157: 1.934 | G157: 0.606 | H157: Concreto | I157: 2400.00 | J157: Empuje dificultoso | K157: =IF(Tabla1[[#This Row],[Nivel de empuje]]="Empuje facil",1.1,IF(Tabla1[[#This Row],[Nivel de empuje]]="Empuje promedio",0.9,IF(Tabla1[[#This Row],[Nivel de empuje]]="Empuje medio dificultoso",0.7,IF(Tabla1[[#This Row],[Nivel de empuje]]="Empuje dificultoso",0.6," ")))) -> 0.60 | L157: 0.45 | M157: =Tabla1[[#This Row],[Ancho ]]*(Tabla1[[#This Row],[Altura ]]^2)*Tabla1[[#This Row],[Factor Hoja]] -> 10.436 | N157: =Tabla1[[#This Row],[Producción por ciclo ]]/(Tabla1[[#This Row],[Profundidad]]*Tabla1[[#This Row],[Ancho ]]) -> 3.70 | O157: =MROUND(3*Tabla1[[#This Row],[Longitud ]],10) -> 20.00 | P157: =Tabla1[[#This Row],[Producción por ciclo ]]/(Tabla1[[#This Row],[dmin]]*Tabla1[[#This Row],[Ancho ]]) -> 0.1122 | Q157: =IF(Tabla1[[#This Row],[Profundidad]]>Tabla1[[#This Row],[Profundidad de trabajo ]],"Conforme","No conforme") -> Conforme | R157: =Tabla1[[#This Row],[Densidad ]]*Tabla1[[#This Row],[Producción por ciclo ]] -> 25045.42 | S157: 0.10 | T157: =Tabla1[[#This Row],[Peso ]]+Tabla1[[#This Row],[Peso de material]] -> 72917.42 | U157: =(Tabla1[[#This Row],[Factor de tracción ]]*Tabla1[[#This Row],[Carga total]])/1000 -> 32.81 | V157: 2.53 | W157: 1.54 | X157: =Tabla1[[#This Row],[dmin]]/(Tabla1[[#This Row],[Velod. Avance]]*1000/60) -> 0.47 | Y157: =Tabla1[[#This Row],[dmin]]/(Tabla1[[#This Row],[Velod. Retroceso]]*1000/60) -> 0.78 | Z157: =Tabla1[[#This Row],[Power shift]]+Tabla1[[#This Row],[T. Avance]]+Tabla1[[#This Row],[T. Retroceso]] -> 1.35 | AA157: 0.69 | AB157: =(Tabla1[[#This Row],[Producción por ciclo ]]*60*Tabla1[[#This Row],[Eficiencia]])/Tabla1[[#This Row],[Cm]] -> 319.19
A158: D9T | B158: 47872.00 | C158: Universal | D158: 6.960 | E158: 4.650 | F158: 1.934 | G158: 0.606 | H158: Arcilla seca | I158: 1480.00 | J158: Empuje medio dificultoso | K158: =IF(Tabla1[[#This Row],[Nivel de empuje]]="Empuje facil",1.1,IF(Tabla1[[#This Row],[Nivel de empuje]]="Empuje promedio",0.9,IF(Tabla1[[#This Row],[Nivel de empuje]]="Empuje medio dificultoso",0.7,IF(Tabla1[[#This Row],[Nivel de empuje]]="Empuje dificultoso",0.6," ")))) -> 0.70 | L158: 0.90 | M158: =Tabla1[[#This Row],[Ancho ]]*(Tabla1[[#This Row],[Altura ]]^2)*Tabla1[[#This Row],[Factor Hoja]] -> 12.175 | N158: =Tabla1[[#This Row],[Producción por ciclo ]]/(Tabla1[[#This Row],[Profundidad]]*Tabla1[[#This Row],[Ancho ]]) -> 4.32 | O158: =MROUND(3*Tabla1[[#This Row],[Longitud ]],10) -> 20.00 | P158: =Tabla1[[#This Row],[Producción por ciclo ]]/(Tabla1[[#This Row],[dmin]]*Tabla1[[#This Row],[Ancho ]]) -> 0.1309 | Q158: =IF(Tabla1[[#This Row],[Profundidad]]>Tabla1[[#This Row],[Profundidad de trabajo ]],"Conforme","No conforme") -> Conforme | R158: =Tabla1[[#This Row],[Densidad ]]*Tabla1[[#This Row],[Producción por ciclo ]] -> 18018.79 | S158: 0.10 | T158: =Tabla1[[#This Row],[Peso ]]+Tabla1[[#This Row],[Peso de material]] -> 65890.79 | U158: =(Tabla1[[#This Row],[Factor de tracción ]]*Tabla1[[#This Row],[Carga total]])/1000 -> 59.30 | V158: 1.00 | W158: 1.54 | X158: =Tabla1[[#This Row],[dmin]]/(Tabla1[[#This Row],[Velod. Avance]]*1000/60) -> 1.20 | Y158: =Tabla1[[#This Row],[dmin]]/(Tabla1[[#This Row],[Velod. Retroceso]]*1000/60) -> 0.78 | Z158: =Tabla1[[#This Row],[Power shift]]+Tabla1[[#This Row],[T. Avance]]+Tabla1[[#This Row],[T. Retroceso]] -> 2.08 | AA158: 0.69 | AB158: =(Tabla1[[#This Row],[Producción por ciclo ]]*60*Tabla1[[#This Row],[Eficiencia]])/Tabla1[[#This Row],[Cm]] -> 242.42
A159: D9T | B159: 47872.00 | C159: Universal | D159: 6.960 | E159: 4.650 | F159: 1.934 | G159: 0.606 | H159: Arcilla húmeda | I159: 1660.00 | J159: Empuje facil | K159: =IF(Tabla1[[#This Row],[Nivel de empuje]]="Empuje facil",1.1,IF(Tabla1[[#This Row],[Nivel de empuje]]="Empuje promedio",0.9,IF(Tabla1[[#This Row],[Nivel de empuje]]="Empuje medio dificultoso",0.7,IF(Tabla1[[#This Row],[Nivel de empuje]]="Empuje dificultoso",0.6," ")))) -> 1.10 | L159: 0.70 | M159: =Tabla1[[#This Row],[Ancho ]]*(Tabla1[[#This Row],[Altura ]]^2)*Tabla1[[#This Row],[Factor Hoja]] -> 19.132 | N159: =Tabla1[[#This Row],[Producción por ciclo ]]/(Tabla1[[#This Row],[Profundidad]]*Tabla1[[#This Row],[Ancho ]]) -> 6.79 | O159: =MROUND(3*Tabla1[[#This Row],[Longitud ]],10) -> 20.00 | P159: =Tabla1[[#This Row],[Producción por ciclo ]]/(Tabla1[[#This Row],[dmin]]*Tabla1[[#This Row],[Ancho ]]) -> 0.2057 | Q159: =IF(Tabla1[[#This Row],[Profundidad]]>Tabla1[[#This Row],[Profundidad de trabajo ]],"Conforme","No conforme") -> Conforme | R159: =Tabla1[[#This Row],[Densidad ]]*Tabla1[[#This Row],[Producción por ciclo ]] -> 31758.99 | S159: 0.10 | T159: =Tabla1[[#This Row],[Peso ]]+Tabla1[[#This Row],[Peso de material]] -> 79630.99 | U159: =(Tabla1[[#This Row],[Factor de tracción ]]*Tabla1[[#This Row],[Carga total]])/1000 -> 55.74 | V159: 1.21 | W159: 1.54 | X159: =Tabla1[[#This Row],[dmin]]/(Tabla1[[#This Row],[Velod. Avance]]*1000/60) -> 0.99 | Y159: =Tabla1[[#This Row],[dmin]]/(Tabla1[[#This Row],[Velod. Retroceso]]*1000/60) -> 0.78 | Z159: =Tabla1[[#This Row],[Power shift]]+Tabla1[[#This Row],[T. Avance]]+Tabla1[[#This Row],[T. Retroceso]] -> 1.87 | AA159: 0.69 | AB159: =(Tabla1[[#This Row],[Producción por ciclo ]]*60*Tabla1[[#This Row],[Eficiencia]])/Tabla1[[#This Row],[Cm]] -> 423.35
A160: D9T | B160: 47872.00 | C160: Universal | D160: 6.960 | E160: 4.650 | F160: 1.934 | G160: 0.606 | H160: Arena seca | I160: 1420.00 | J160: Empuje facil | K160: =IF(Tabla1[[#This Row],[Nivel de empuje]]="Empuje facil",1.1,IF(Tabla1[[#This Row],[Nivel de empuje]]="Empuje promedio",0.9,IF(Tabla1[[#This Row],[Nivel de empuje]]="Empuje medio dificultoso",0.7,IF(Tabla1[[#This Row],[Nivel de empuje]]="Empuje dificultoso",0.6," ")))) -> 1.10 | L160: 0.39 | M160: =Tabla1[[#This Row],[Ancho ]]*(Tabla1[[#This Row],[Altura ]]^2)*Tabla1[[#This Row],[Factor Hoja]] -> 19.132 | N160: =Tabla1[[#This Row],[Producción por ciclo ]]/(Tabla1[[#This Row],[Profundidad]]*Tabla1[[#This Row],[Ancho ]]) -> 6.79 | O160: =MROUND(3*Tabla1[[#This Row],[Longitud ]],10) -> 20.00 | P160: =Tabla1[[#This Row],[Producción por ciclo ]]/(Tabla1[[#This Row],[dmin]]*Tabla1[[#This Row],[Ancho ]]) -> 0.2057 | Q160: =IF(Tabla1[[#This Row],[Profundidad]]>Tabla1[[#This Row],[Profundidad de trabajo ]],"Conforme","No conforme") -> Conforme | R160: =Tabla1[[#This Row],[Densidad ]]*Tabla1[[#This Row],[Producción por ciclo ]] -> 27167.33 | S160: 0.10 | T160: =Tabla1[[#This Row],[Peso ]]+Tabla1[[#This Row],[Peso de material]] -> 75039.33 | U160: =(Tabla1[[#This Row],[Factor de tracción ]]*Tabla1[[#This Row],[Carga total]])/1000 -> 29.27 | V160: 2.79 | W160: 1.54 | X160: =Tabla1[[#This Row],[dmin]]/(Tabla1[[#This Row],[Velod. Avance]]*1000/60) -> 0.43 | Y160: =Tabla1[[#This Row],[dmin]]/(Tabla1[[#This Row],[Velod. Retroceso]]*1000/60) -> 0.78 | Z160: =Tabla1[[#This Row],[Power shift]]+Tabla1[[#This Row],[T. Avance]]+Tabla1[[#This Row],[T. Retroceso]] -> 1.31 | AA160: 0.69 | AB160: =(Tabla1[[#This Row],[Producción por ciclo ]]*60*Tabla1[[#This Row],[Eficiencia]])/Tabla1[[#This Row],[Cm]] -> 604.94
A161: D9T | B161: 47872.00 | C161: Universal | D161: 6.960 | E161: 4.650 | F161: 1.934 | G161: 0.606 | H161: Arena húmeda | I161: 1690.00 | J161: Empuje medio dificultoso | K161: =IF(Tabla1[[#This Row],[Nivel de empuje]]="Empuje facil",1.1,IF(Tabla1[[#This Row],[Nivel de empuje]]="Empuje promedio",0.9,IF(Tabla1[[#This Row],[Nivel de empuje]]="Empuje medio dificultoso",0.7,IF(Tabla1[[#This Row],[Nivel de empuje]]="Empuje dificultoso",0.6," ")))) -> 0.70 | L161: 0.50 | M161: =Tabla1[[#This Row],[Ancho ]]*(Tabla1[[#This Row],[Altura ]]^2)*Tabla1[[#This Row],[Factor Hoja]] -> 12.175 | N161: =Tabla1[[#This Row],[Producción por ciclo ]]/(Tabla1[[#This Row],[Profundidad]]*Tabla1[[#This Row],[Ancho ]]) -> 4.32 | O161: =MROUND(3*Tabla1[[#This Row],[Longitud ]],10) -> 20.00 | P161: =Tabla1[[#This Row],[Producción por ciclo ]]/(Tabla1[[#This Row],[dmin]]*Tabla1[[#This Row],[Ancho ]]) -> 0.1309 | Q161: =IF(Tabla1[[#This Row],[Profundidad]]>Tabla1[[#This Row],[Profundidad de trabajo ]],"Conforme","No conforme") -> Conforme | R161: =Tabla1[[#This Row],[Densidad ]]*Tabla1[[#This Row],[Producción por ciclo ]] -> 20575.51 | S161: 0.10 | T161: =Tabla1[[#This Row],[Peso ]]+Tabla1[[#This Row],[Peso de material]] -> 68447.51 | U161: =(Tabla1[[#This Row],[Factor de tracción ]]*Tabla1[[#This Row],[Carga total]])/1000 -> 34.22 | V161: 2.47 | W161: 1.54 | X161: =Tabla1[[#This Row],[dmin]]/(Tabla1[[#This Row],[Velod. Avance]]*1000/60) -> 0.49 | Y161: =Tabla1[[#This Row],[dmin]]/(Tabla1[[#This Row],[Velod. Retroceso]]*1000/60) -> 0.78 | Z161: =Tabla1[[#This Row],[Power shift]]+Tabla1[[#This Row],[T. Avance]]+Tabla1[[#This Row],[T. Retroceso]] -> 1.37 | AA161: 0.69 | AB161: =(Tabla1[[#This Row],[Producción por ciclo ]]*60*Tabla1[[#This Row],[Eficiencia]])/Tabla1[[#This Row],[Cm]] -> 369.25
A162: D9T | B162: 47872.00 | C162: Universal | D162: 6.960 | E162: 4.650 | F162: 1.934 | G162: 0.606 | H162: Grava suelta | I162: 1930.00 | J162: Empuje promedio | K162: =IF(Tabla1[[#This Row],[Nivel de empuje]]="Empuje facil",1.1,IF(Tabla1[[#This Row],[Nivel de empuje]]="Empuje promedio",0.9,IF(Tabla1[[#This Row],[Nivel de empuje]]="Empuje medio dificultoso",0.7,IF(Tabla1[[#This Row],[Nivel de empuje]]="Empuje dificultoso",0.6," ")))) -> 0.90 | L162: 0.50 | M162: =Tabla1[[#This Row],[Ancho ]]*(Tabla1[[#This Row],[Altura ]]^2)*Tabla1[[#This Row],[Factor Hoja]] -> 15.653 | N162: =Tabla1[[#This Row],[Producción por ciclo ]]/(Tabla1[[#This Row],[Profundidad]]*Tabla1[[#This Row],[Ancho ]]) -> 5.55 | O162: =MROUND(3*Tabla1[[#This Row],[Longitud ]],10) -> 20.00 | P162: =Tabla1[[#This Row],[Producción por ciclo ]]/(Tabla1[[#This Row],[dmin]]*Tabla1[[#This Row],[Ancho ]]) -> 0.1683 | Q162: =IF(Tabla1[[#This Row],[Profundidad]]>Tabla1[[#This Row],[Profundidad de trabajo ]],"Conforme","No conforme") -> Conforme | R162: =Tabla1[[#This Row],[Densidad ]]*Tabla1[[#This Row],[Producción por ciclo ]] -> 30211.04 | S162: 0.10 | T162: =Tabla1[[#This Row],[Peso ]]+Tabla1[[#This Row],[Peso de material]] -> 78083.04 | U162: =(Tabla1[[#This Row],[Factor de tracción ]]*Tabla1[[#This Row],[Carga total]])/1000 -> 39.04 | V162: 2.15 | W162: 1.54 | X162: =Tabla1[[#This Row],[dmin]]/(Tabla1[[#This Row],[Velod. Avance]]*1000/60) -> 0.56 | Y162: =Tabla1[[#This Row],[dmin]]/(Tabla1[[#This Row],[Velod. Retroceso]]*1000/60) -> 0.78 | Z162: =Tabla1[[#This Row],[Power shift]]+Tabla1[[#This Row],[T. Avance]]+Tabla1[[#This Row],[T. Retroceso]] -> 1.44 | AA162: 0.69 | AB162: =(Tabla1[[#This Row],[Producción por ciclo ]]*60*Tabla1[[#This Row],[Eficiencia]])/Tabla1[[#This Row],[Cm]] -> 450.86
A163: D9T | B163: 47872.00 | C163: Universal | D163: 6.960 | E163: 4.650 | F163: 1.934 | G163: 0.606 | H163: Nieve compacta | I163: 130.00 | J163: Empuje medio dificultoso | K163: =IF(Tabla1[[#This Row],[Nivel de empuje]]="Empuje facil",1.1,IF(Tabla1[[#This Row],[Nivel de empuje]]="Empuje promedio",0.9,IF(Tabla1[[#This Row],[Nivel de empuje]]="Empuje medio dificultoso",0.7,IF(Tabla1[[#This Row],[Nivel de empuje]]="Empuje dificultoso",0.6," ")))) -> 0.70 | L163: 0.27 | M163: =Tabla1[[#This Row],[Ancho ]]*(Tabla1[[#This Row],[Altura ]]^2)*Tabla1[[#This Row],[Factor Hoja]] -> 12.175 | N163: =Tabla1[[#This Row],[Producción por ciclo ]]/(Tabla1[[#This Row],[Profundidad]]*Tabla1[[#This Row],[Ancho ]]) -> 4.32 | O163: =MROUND(3*Tabla1[[#This Row],[Longitud ]],10) -> 20.00 | P163: =Tabla1[[#This Row],[Producción por ciclo ]]/(Tabla1[[#This Row],[dmin]]*Tabla1[[#This Row],[Ancho ]]) -> 0.1309 | Q163: =IF(Tabla1[[#This Row],[Profundidad]]>Tabla1[[#This Row],[Profundidad de trabajo ]],"Conforme","No conforme") -> Conforme | R163: =Tabla1[[#This Row],[Densidad ]]*Tabla1[[#This Row],[Producción por ciclo ]] -> 1582.73 | S163: 0.10 | T163: =Tabla1[[#This Row],[Peso ]]+Tabla1[[#This Row],[Peso de material]] -> 49454.73 | U163: =(Tabla1[[#This Row],[Factor de tracción ]]*Tabla1[[#This Row],[Carga total]])/1000 -> 13.35 | V163: 5.99 | W163: 1.54 | X163: =Tabla1[[#This Row],[dmin]]/(Tabla1[[#This Row],[Velod. Avance]]*1000/60) -> 0.20 | Y163: =Tabla1[[#This Row],[dmin]]/(Tabla1[[#This Row],[Velod. Retroceso]]*1000/60) -> 0.78 | Z163: =Tabla1[[#This Row],[Power shift]]+Tabla1[[#This Row],[T. Avance]]+Tabla1[[#This Row],[T. Retroceso]] -> 1.08 | AA163: 0.69 | AB163: =(Tabla1[[#This Row],[Producción por ciclo ]]*60*Tabla1[[#This Row],[Eficiencia]])/Tabla1[[#This Row],[Cm]] -> 466.90
A164: D9T | B164: 47872.00 | C164: Universal | D164: 6.960 | E164: 4.650 | F164: 1.934 | G164: 0.606 | H164: Hielo | I164: 520.00 | J164: Empuje dificultoso | K164: =IF(Tabla1[[#This Row],[Nivel de empuje]]="Empuje facil",1.1,IF(Tabla1[[#This Row],[Nivel de empuje]]="Empuje promedio",0.9,IF(Tabla1[[#This Row],[Nivel de empuje]]="Empuje medio dificultoso",0.7,IF(Tabla1[[#This Row],[Nivel de empuje]]="Empuje dificultoso",0.6," ")))) -> 0.60 | L164: 0.12 | M164: =Tabla1[[#This Row],[Ancho ]]*(Tabla1[[#This Row],[Altura ]]^2)*Tabla1[[#This Row],[Factor Hoja]] -> 10.436 | N164: =Tabla1[[#This Row],[Producción por ciclo ]]/(Tabla1[[#This Row],[Profundidad]]*Tabla1[[#This Row],[Ancho ]]) -> 3.70 | O164: =MROUND(3*Tabla1[[#This Row],[Longitud ]],10) -> 20.00 | P164: =Tabla1[[#This Row],[Producción por ciclo ]]/(Tabla1[[#This Row],[dmin]]*Tabla1[[#This Row],[Ancho ]]) -> 0.1122 | Q164: =IF(Tabla1[[#This Row],[Profundidad]]>Tabla1[[#This Row],[Profundidad de trabajo ]],"Conforme","No conforme") -> Conforme | R164: =Tabla1[[#This Row],[Densidad ]]*Tabla1[[#This Row],[Producción por ciclo ]] -> 5426.51 | S164: 0.10 | T164: =Tabla1[[#This Row],[Peso ]]+Tabla1[[#This Row],[Peso de material]] -> 53298.51 | U164: =(Tabla1[[#This Row],[Factor de tracción ]]*Tabla1[[#This Row],[Carga total]])/1000 -> 6.40 | V164: 9.89 | W164: 1.54 | X164: =Tabla1[[#This Row],[dmin]]/(Tabla1[[#This Row],[Velod. Avance]]*1000/60) -> 0.12 | Y164: =Tabla1[[#This Row],[dmin]]/(Tabla1[[#This Row],[Velod. Retroceso]]*1000/60) -> 0.78 | Z164: =Tabla1[[#This Row],[Power shift]]+Tabla1[[#This Row],[T. Avance]]+Tabla1[[#This Row],[T. Retroceso]] -> 1.00 | AA164: 0.69 | AB164: =(Tabla1[[#This Row],[Producción por ciclo ]]*60*Tabla1[[#This Row],[Eficiencia]])/Tabla1[[#This Row],[Cm]] -> 431.79
A165: D9T | B165: 47872.00 | C165: Universal | D165: 6.960 | E165: 4.650 | F165: 1.934 | G165: 0.606 | H165: Tierra firme | I165: 1510.00 | J165: Empuje facil | K165: =IF(Tabla1[[#This Row],[Nivel de empuje]]="Empuje facil",1.1,IF(Tabla1[[#This Row],[Nivel de empuje]]="Empuje promedio",0.9,IF(Tabla1[[#This Row],[Nivel de empuje]]="Empuje medio dificultoso",0.7,IF(Tabla1[[#This Row],[Nivel de empuje]]="Empuje dificultoso",0.6," ")))) -> 1.10 | L165: 0.90 | M165: =Tabla1[[#This Row],[Ancho ]]*(Tabla1[[#This Row],[Altura ]]^2)*Tabla1[[#This Row],[Factor Hoja]] -> 19.132 | N165: =Tabla1[[#This Row],[Producción por ciclo ]]/(Tabla1[[#This Row],[Profundidad]]*Tabla1[[#This Row],[Ancho ]]) -> 6.79 | O165: =MROUND(3*Tabla1[[#This Row],[Longitud ]],10) -> 20.00 | P165: =Tabla1[[#This Row],[Producción por ciclo ]]/(Tabla1[[#This Row],[dmin]]*Tabla1[[#This Row],[Ancho ]]) -> 0.2057 | Q165: =IF(Tabla1[[#This Row],[Profundidad]]>Tabla1[[#This Row],[Profundidad de trabajo ]],"Conforme","No conforme") -> Conforme | R165: =Tabla1[[#This Row],[Densidad ]]*Tabla1[[#This Row],[Producción por ciclo ]] -> 28889.20 | S165: 0.10 | T165: =Tabla1[[#This Row],[Peso ]]+Tabla1[[#This Row],[Peso de material]] -> 76761.20 | U165: =(Tabla1[[#This Row],[Factor de tracción ]]*Tabla1[[#This Row],[Carga total]])/1000 -> 69.09 | V165: 0.42 | W165: 1.54 | X165: =Tabla1[[#This Row],[dmin]]/(Tabla1[[#This Row],[Velod. Avance]]*1000/60) -> 2.86 | Y165: =Tabla1[[#This Row],[dmin]]/(Tabla1[[#This Row],[Velod. Retroceso]]*1000/60) -> 0.78 | Z165: =Tabla1[[#This Row],[Power shift]]+Tabla1[[#This Row],[T. Avance]]+Tabla1[[#This Row],[T. Retroceso]] -> 3.74 | AA165: 0.69 | AB165: =(Tabla1[[#This Row],[Producción por ciclo ]]*60*Tabla1[[#This Row],[Eficiencia]])/Tabla1[[#This Row],[Cm]] -> 211.99
A166: D9T | B166: 47872.00 | C166: Universal | D166: 6.960 | E166: 4.650 | F166: 1.934 | G166: 0.606 | H166: Tierra suelta | I166: 1250.00 | J166: Empuje facil | K166: =IF(Tabla1[[#This Row],[Nivel de empuje]]="Empuje facil",1.1,IF(Tabla1[[#This Row],[Nivel de empuje]]="Empuje promedio",0.9,IF(Tabla1[[#This Row],[Nivel de empuje]]="Empuje medio dificultoso",0.7,IF(Tabla1[[#This Row],[Nivel de empuje]]="Empuje dificultoso",0.6," ")))) -> 1.10 | L166: 0.60 | M166: =Tabla1[[#This Row],[Ancho ]]*(Tabla1[[#This Row],[Altura ]]^2)*Tabla1[[#This Row],[Factor Hoja]] -> 19.132 | N166: =Tabla1[[#This Row],[Producción por ciclo ]]/(Tabla1[[#This Row],[Profundidad]]*Tabla1[[#This Row],[Ancho ]]) -> 6.79 | O166: =MROUND(3*Tabla1[[#This Row],[Longitud ]],10) -> 20.00 | P166: =Tabla1[[#This Row],[Producción por ciclo ]]/(Tabla1[[#This Row],[dmin]]*Tabla1[[#This Row],[Ancho ]]) -> 0.2057 | Q166: =IF(Tabla1[[#This Row],[Profundidad]]>Tabla1[[#This Row],[Profundidad de trabajo ]],"Conforme","No conforme") -> Conforme | R166: =Tabla1[[#This Row],[Densidad ]]*Tabla1[[#This Row],[Producción por ciclo ]] -> 23914.90 | S166: 0.10 | T166: =Tabla1[[#This Row],[Peso ]]+Tabla1[[#This Row],[Peso de material]] -> 71786.90 | U166: =(Tabla1[[#This Row],[Factor de tracción ]]*Tabla1[[#This Row],[Carga total]])/1000 -> 43.07 | V166: 1.91 | W166: 1.54 | X166: =Tabla1[[#This Row],[dmin]]/(Tabla1[[#This Row],[Velod. Avance]]*1000/60) -> 0.63 | Y166: =Tabla1[[#This Row],[dmin]]/(Tabla1[[#This Row],[Velod. Retroceso]]*1000/60) -> 0.78 | Z166: =Tabla1[[#This Row],[Power shift]]+Tabla1[[#This Row],[T. Avance]]+Tabla1[[#This Row],[T. Retroceso]] -> 1.51 | AA166: 0.69 | AB166: =(Tabla1[[#This Row],[Producción por ciclo ]]*60*Tabla1[[#This Row],[Eficiencia]])/Tabla1[[#This Row],[Cm]] -> 525.42
A167: D9T | B167: 47872.00 | C167: Universal | D167: 6.960 | E167: 4.650 | F167: 1.934 | G167: 0.606 | H167: Carbón | I167: 1190.00 | J167: Empuje promedio | K167: =IF(Tabla1[[#This Row],[Nivel de empuje]]="Empuje facil",1.1,IF(Tabla1[[#This Row],[Nivel de empuje]]="Empuje promedio",0.9,IF(Tabla1[[#This Row],[Nivel de empuje]]="Empuje medio dificultoso",0.7,IF(Tabla1[[#This Row],[Nivel de empuje]]="Empuje dificultoso",0.6," ")))) -> 0.90 | L167: 0.60 | M167: =Tabla1[[#This Row],[Ancho ]]*(Tabla1[[#This Row],[Altura ]]^2)*Tabla1[[#This Row],[Factor Hoja]] -> 15.653 | N167: =Tabla1[[#This Row],[Producción por ciclo ]]/(Tabla1[[#This Row],[Profundidad]]*Tabla1[[#This Row],[Ancho ]]) -> 5.55 | O167: =MROUND(3*Tabla1[[#This Row],[Longitud ]],10) -> 20.00 | P167: =Tabla1[[#This Row],[Producción por ciclo ]]/(Tabla1[[#This Row],[dmin]]*Tabla1[[#This Row],[Ancho ]]) -> 0.1683 | Q167: =IF(Tabla1[[#This Row],[Profundidad]]>Tabla1[[#This Row],[Profundidad de trabajo ]],"Conforme","No conforme") -> Conforme | R167: =Tabla1[[#This Row],[Densidad ]]*Tabla1[[#This Row],[Producción por ciclo ]] -> 18627.53 | S167: 0.10 | T167: =Tabla1[[#This Row],[Peso ]]+Tabla1[[#This Row],[Peso de material]] -> 66499.53 | U167: =(Tabla1[[#This Row],[Factor de tracción ]]*Tabla1[[#This Row],[Carga total]])/1000 -> 39.90 | V167: 2.09 | W167: 1.54 | X167: =Tabla1[[#This Row],[dmin]]/(Tabla1[[#This Row],[Velod. Avance]]*1000/60) -> 0.57 | Y167: =Tabla1[[#This Row],[dmin]]/(Tabla1[[#This Row],[Velod. Retroceso]]*1000/60) -> 0.78 | Z167: =Tabla1[[#This Row],[Power shift]]+Tabla1[[#This Row],[T. Avance]]+Tabla1[[#This Row],[T. Retroceso]] -> 1.45 | AA167: 0.69 | AB167: =(Tabla1[[#This Row],[Producción por ciclo ]]*60*Tabla1[[#This Row],[Eficiencia]])/Tabla1[[#This Row],[Cm]] -> 445.89

Sheet Support
B2: Etiquetas de fila | C2: Suma de Longitud | D2: Suma de Ancho | E2: Suma de Altura | F2: Suma de Profundidad | G2: Suma de Producción Horaria | H2: Suma de Producción por ciclo | I2: Suma de Factor Hoja | J2: Suma de Power shift | K2: Suma de T. Avance | L2: Suma de T. Retroceso | M2: Suma de Cm | N2: Suma de Eficiencia
B3: Semi universal
B4: D9T
B5: Arcilla seca | C5: 6.60 | D5: 4.31 | E5: 1.93 | F5: 0.61 | G5: 228.53 | H5: 11.28 | I5: 0.70 | J5: 0.10 | K5: 1.17 | L5: 0.78 | M5: 2.04 | N5: 0.69

Sheet DashBoard
